{"text_format":"1","workbook":"xlsx","n_sheets":19,"sheets":["HOME","GETTING STARTED","DATA SETUP","SYNTHESIS","Critical Roles","Vacant Positions","CARDINAL Position Report","CARDINAL Job Data Report","CARDINAL Personal Report","CARDINAL DisabilityVeteran","HRDI Employee Report","HRDI Transaction Report","PageUP","PeopleAdmin","COVLC DOMAIN HISTORY","AGENCY LMS","CENTRAL DATA","CENTRAL ANALYSIS","DHRM ADMIN"],"not_rendered":{"charts":0,"images":15,"macros":1,"external_links":0,"defined_names":4,"comments":0,"pivot_tables":0},"unopened":[],"bounds":{"document_bytes":16777216,"sheet_cells":100000,"rows_first":2000,"rows_last":500,"rows_between":2000,"halvings":0,"cell_chars":16384,"cell_head_chars":4096},"cells_cut":0,"cells_raw":0,"read":"whole","date_system":"1900"}

{"sheet":"HOME","index":0,"n_rows":38,"n_cols":30,"rows_kept":38,"cut":false,"hidden":false,"merged":[[37,4,37,19],[0,24,3,27],[19,1,21,4],[19,7,21,10],[19,13,21,16],[19,19,21,22],[23,1,31,4],[32,2,34,4],[23,7,34,10],[23,13,34,16],[23,19,34,22],[4,25,5,27]]}
[null,null,null,null,null,null,null,null,null,null,null,null,null,null,null,null,null,null,null,null,null,null,null,null,"DHRM ADMIN"]
[]
[]
[]
[null,null,null,null,null,null,null,null,null,null,null,null,null,null,null,null,null,null,null,null,null,null,null,null,null,{"$f":"AD6","v":"LOCKED"}]
[null,null,null,null,null,null,null,null,null,null,null,null,null,null,null,null,null,null,null,null,null,null,null,null,null,null,null,null,null,"LOCKED"]
[]
[]
[]
[]
[]
[]
[]
[]
[]
[]
[]
[]
[]
[null,"GETTING STARTED",null,null,null,null,null,"DATA SETUP",null,null,null,null,null,"DATA SYNTHESIS",null,null,null,null,null,"DATA TABS"]
[]
[]
[]
[null,"It is highly recommended first time users start here. \n\n\n reviews important features, setup, and instructions for using this tool to its full potential. \n\n\n",null,null,null,null,null,"\nidentifies the agency information, dates of the data included, and some specific questions to ensure the tool can utilize the sources of data correctly to calculate the respective metrics correctly.\n",null,null,null,null,null,"\ndisplays the specific metrics included in the foundational analysis of the workforce plan around the agency, resilience, recruitment, retention & engagement, and workforce development.\n",null,null,null,null,null,"\nare a series of tabs where data from the respective source, outlined in the tab name, can be pasted in. Additional columns with specific calculations are already included and update once the data is pasted in the tool. \n\nIt is recommended to paste in all data before viewing the synthesis tab, as many reports are utilized collectively.\n"]
[]
[]
[]
[]
[]
[]
[]
[]
[null,null,"Users can also import data from other tools on the Getting Started Tab."]
[]
[]
[]
[]
[null,null,null,null,"For questions using this tool, please contact DHRM Workforce Planning at dhrm.wfp@dhrm.virginia.gov.",null,null,null,null,null,null,null,null,null,null,null,null,null,null,null,null,null,"Version 1.2"]

{"sheet":"GETTING STARTED","index":1,"n_rows":54,"n_cols":12,"rows_kept":54,"cut":false,"hidden":false,"merged":[[21,1,23,15],[5,2,7,14],[8,2,11,14],[12,1,13,15],[14,1,17,15],[19,1,20,15],[46,5,51,13],[53,5,61,13],[25,3,30,7],[25,11,30,15],[32,3,37,7],[32,11,37,15],[39,3,44,7],[39,11,44,15]]}
[]
[]
[]
[]
[]
[null,null,"GETTING STARTED"]
[]
[]
[null,null,"This tab reviews key features of this tool and steps required in order to utilize all features. Taking the time to review each section will significantly enhance your understanding of the design and your ability to use the tool efficiently.\nIt is highly recommended first time users review this tab."]
[]
[]
[]
[null,"Step 1: Review Overall Setup"]
[]
[null,"To use this tool, it is recommended to follow the tabs in order from left to right, completing each step in order. For each step, instructions are included underneath. Some steps also provide sub-steps with additional instructions. Information required to be entered is noted by a yellow color and labeled either to the left or above the cell. Optional information is noted by a green color. "]
[]
[]
[]
[]
[null,"Step 2: Review Important Features of This Tool"]
[]
[null,"This tool utilizes various features to assist with entering and interpreting workforce information. Below are descriptions of the tool's key features and design. "]
[]
[]
[]
[null,null,null,"USE OF EXCEL MACROS\nThis tool utilizes a series of excel macros, which are custom actions used to automate specific tasks. This tool performs best when using Excel 2016 or later.  \nNOTE: MACROS MUST BE ENABLED TO USE THEM. SEE BELOW TO LEARN HOW.",null,null,null,null,null,null,null,"EASY FILE NAVIGATION\nEach excel worksheet, or tab, houses related information which is compiled together into a single report. Links to each are frozen at the top of each tab. See the HOME tab for descriptions of each."]
[]
[]
[]
[]
[]
[]
[null,null,null,"COLOR GUIDED DATA ENTRY\nColors are used to identify what data should be entered and where. Yellow indicates required information, Green indicates optional information, and Gray indicates information that is not required",null,null,null,null,null,null,null,"BUILT-IN HELP FEATURE\nThis tool has a built-in help feature, noted by a question mark in a blue circle. Simply click on the question mark to gain additional information, definitions, and steps to complete each section. (NOTE: Cannot edit template while a help box is open)"]
[]
[]
[]
[]
[]
[]
[null,null,null,"PROGRESS INDICATORS\nThe home tab shows the overall progress for each stage of developing the Agency Profile. Each tab also has indicators for each specific step to show if they are complete or incomplete. ",null,null,null,null,null,null,null,"ONLINE INSTRUCTIONS\nA full step by step guide and data definitions can be found on the DHRM Workforce Planning website. "]
[]
[]
[]
[]
[]
[]
[null,null,null,null,null,"ADVANCED FEATURE: DATA IMPORT\nThis template is part of an suite of integrated workforce planning and development tools. Using these tools allows for information to easily be imported from one tool to the next. Data cannot be imported unless using a specific template, provided by DHRM upon request.\n MACROS MUST BE ENABLED TO UTILIZE THIS FEATURE."]
[]
[]
[]
[]
[]
[]
[null,null,null,null,null,"TOOL VERSIONS\nAs we continue to enhance this tool, integrate it with other elements of workforce planning and development, or as changes to any mandates or guidance occurs, new versions of this tool may be released. The version number is located on the home tab in the bottom right corner. \n\nIt is important to be using the most up to date version, which will be noted on the DHRM Workforce Planning Website. As new versions are released, the prior version data can be imported so that no progress is lost."]

{"sheet":"DATA SETUP","index":2,"n_rows":160,"n_cols":15,"rows_kept":160,"cut":false,"hidden":false,"merged":[[147,13,147,15],[148,13,148,15],[149,13,149,15],[150,13,150,15],[151,13,151,15],[141,13,141,15],[142,13,142,15],[143,13,143,15],[144,13,144,15],[145,13,145,15],[146,13,146,15],[135,13,135,15],[136,13,136,15],[137,13,137,15],[138,13,138,15],[139,13,139,15],[140,13,140,15],[129,13,129,15],[130,13,130,15],[131,13,131,15],[132,13,132,15],[133,13,133,15],[134,13,134,15],[123,13,123,15],[124,13,124,15],[125,13,125,15],[126,13,126,15],[127,13,127,15],[128,13,128,15],[117,13,117,15],[118,13,118,15],[119,13,119,15],[120,13,120,15],[121,13,121,15],[122,13,122,15],[150,10,150,12],[151,10,151,12],[140,10,140,12],[141,10,141,12],[142,10,142,12],[143,10,143,12],[144,10,144,12],[145,10,145,12],[111,13,111,15],[112,13,112,15],[113,13,113,15],[114,13,114,15],[115,13,115,15],[116,13,116,15],[146,10,146,12],[147,10,147,12],[148,10,148,12],[134,10,134,12],[135,10,135,12],[136,10,136,12],[137,10,137,12],[138,10,138,12],[139,10,139,12],[128,10,128,12],[126,10,126,12],[127,10,127,12],[116,10,116,12],[117,10,117,12],[118,10,118,12],[119,10,119,12],[120,10,120,12],[121,10,121,12],[149,10,149,12],[129,10,129,12],[130,10,130,12],[131,10,131,12],[132,10,132,12],[133,10,133,12],[122,10,122,12],[123,10,123,12],[124,10,124,12],[148,3,148,9],[149,3,149,9],[150,3,150,9],[151,3,151,9],[111,10,111,12],[112,10,112,12],[113,10,113,12],[114,10,114,12],[115,10,115,12],[141,3,141,9],[142,3,142,9],[143,3,143,9],[144,3,144,9],[145,3,145,9],[146,3,146,9],[135,3,135,9],[136,3,136,9],[137,3,137,9],[138,3,138,9],[139,3,139,9],[140,3,140,9],[129,3,129,9],[130,3,130,9],[125,10,125,12],[133,3,133,9],[134,3,134,9],[123,3,123,9],[124,3,124,9],[125,3,125,9],[126,3,126,9],[127,3,127,9],[128,3,128,9],[147,3,147,9],[122,3,122,9],[111,3,111,9],[112,3,112,9],[113,3,113,9],[114,3,114,9],[115,3,115,9],[116,3,116,9],[131,3,131,9],[132,3,132,9],[5,2,7,14],[8,2,11,14],[14,1,15,12],[14,13,15,15],[16,1,16,15],[103,1,104,12],[103,13,104,15],[159,6,159,12],[159,13,159,15],[105,1,107,15],[154,1,155,12],[154,13,155,15],[156,1,157,15],[109,10,109,12],[109,13,109,15],[109,3,109,9],[110,3,110,9],[110,10,110,12],[110,13,110,15],[117,3,117,9],[118,3,118,9],[119,3,119,9],[120,3,120,9],[121,3,121,9],[160,6,160,12],[160,13,160,15],[161,6,161,12],[161,13,161,15],[162,6,162,12],[162,13,162,15],[163,6,163,12],[163,13,163,15],[164,6,164,12],[164,13,164,15],[165,6,165,12],[165,13,165,15],[166,6,166,12],[166,13,166,15],[167,6,167,12],[167,13,167,15],[168,6,168,12],[168,13,168,15],[169,6,169,12],[169,13,169,15],[170,6,170,12],[170,13,170,15],[171,6,171,12],[171,13,171,15],[172,6,172,12],[172,13,172,15],[173,6,173,12],[173,13,173,15],[174,6,174,12],[174,13,174,15],[175,6,175,12],[175,13,175,15],[176,6,176,12],[176,13,176,15],[177,6,177,12],[177,13,177,15],[178,6,178,12],[178,13,178,15],[179,6,179,12],[179,13,179,15],[180,6,180,12],[180,13,180,15],[181,6,181,12],[181,13,181,15],[182,6,182,12],[182,13,182,15],[183,6,183,12],[183,13,183,15],[184,6,184,12],[184,13,184,15],[185,6,185,12],[185,13,185,15],[186,6,186,12],[186,13,186,15],[187,6,187,12],[187,13,187,15],[188,6,188,12],[188,13,188,15],[189,6,189,12],[189,13,189,15],[190,6,190,12],[190,13,190,15],[191,6,191,12],[191,13,191,15],[192,6,192,12],[192,13,192,15],[193,6,193,12],[193,13,193,15],[194,6,194,12],[194,13,194,15],[195,6,195,12],[195,13,195,15],[196,6,196,12],[196,13,196,15],[197,6,197,12],[197,13,197,15],[198,6,198,12],[198,13,198,15],[199,6,199,12],[199,13,199,15],[200,6,200,12],[200,13,200,15],[201,6,201,12],[201,13,201,15],[202,6,202,12],[202,13,202,15],[203,6,203,12],[203,13,203,15],[204,6,204,12],[204,13,204,15],[205,6,205,12],[205,13,205,15],[206,6,206,12],[206,13,206,15],[207,6,207,12],[207,13,207,15],[208,6,208,12],[208,13,208,15],[209,6,209,12],[209,13,209,15],[38,12,38,15],[18,9,18,15],[41,1,42,12],[41,13,42,15],[43,1,45,15],[33,1,34,15],[36,12,36,15],[37,12,37,15],[31,1,32,11],[31,13,32,15],[56,6,56,9],[56,10,56,12],[56,13,56,15],[57,6,57,9],[57,10,57,12],[50,10,50,12],[50,13,50,15],[51,6,51,9],[51,10,51,12],[51,13,51,15],[52,6,52,9],[52,10,52,12],[52,13,52,15],[53,6,53,9],[53,10,53,12],[53,13,53,15],[54,6,54,9],[54,10,54,12],[54,13,54,15],[55,6,55,9],[55,10,55,12],[55,13,55,15],[57,13,57,15],[65,1,66,12],[65,13,66,15],[67,1,68,15],[70,14,70,15],[71,14,71,15],[61,6,61,9],[61,10,61,12],[61,13,61,15],[62,6,62,9],[62,10,62,12],[62,13,62,15],[78,14,78,15],[79,14,79,15],[80,14,80,15],[75,14,75,15],[76,14,76,15],[77,14,77,15],[72,14,72,15],[73,14,73,15],[74,14,74,15],[91,14,91,15],[92,14,92,15],[87,14,87,15],[88,14,88,15],[89,14,89,15],[84,14,84,15],[85,14,85,15],[86,14,86,15],[81,14,81,15],[82,14,82,15],[83,14,83,15],[99,14,99,15],[100,14,100,15],[21,1,22,12],[21,13,22,15],[23,1,25,15],[27,13,27,15],[28,13,28,15],[47,13,47,15],[47,10,47,12],[47,6,47,9],[48,13,48,15],[48,10,48,12],[48,6,48,9],[49,6,49,9],[49,10,49,12],[49,13,49,15],[50,6,50,9],[96,14,96,15],[97,14,97,15],[98,14,98,15],[93,14,93,15],[94,14,94,15],[95,14,95,15],[90,14,90,15],[58,6,58,9],[58,10,58,12],[58,13,58,15],[59,6,59,9],[59,10,59,12],[59,13,59,15],[60,6,60,9],[60,10,60,12],[60,13,60,15]]}
[]
[]
[]
[]
[]
[null,null,"DATA SETUP"]
[]
[]
[null,null,"This tab has the required information that the Agency needs to enter to ensure the data explorer shows the correct information; to include the agency name, data date range, classifications and executive positions, and options to reclassificy transactions or identify development opportunities as weither internal or external."]
[]
[]
[]
[]
[]
[null,"Step 1: Enter Agency Specific Information",null,null,null,null,null,null,null,null,null,null,null,{"$f":"IF(J19<>\"\",\"Complete\",\"Incomplete\")","v":"Incomplete"}]
[]
[null,"INSTRUCTIONS: Please select the agency name from the drop down menu in the yellow box. "]
[]
[null,null,null,null,null,null,null,null,"Agency Name"]
[]
[]
[null,"Step 2: Identify the Date Range of the Data Included",null,null,null,null,null,null,null,null,null,null,null,{"$f":"IF(AND(N28<>\"\",N29<>\"\"),\"Complete\",\"Incomplete\")","v":"Incomplete"}]
[]
[null,"INSTRUCTIONS: Please enter the start and end data for the data set that is included. For example, if this was for the entire fiscal year, the start day would be July 1 of the prior year and the end date would be June 30 of the current year. "]
[]
[]
[]
[null,null,null,null,null,null,null,null,null,null,null,null,"Data Start Date"]
[null,null,null,null,null,null,null,null,null,null,null,null,"Data End Date"]
[]
[]
[null,"Step 3: Identify Which Data Sources are Used",null,null,null,null,null,null,null,null,null,null,null,{"$f":"IF(AND(M37<>\"\",M38<>\"\",M39<>\"\"),\"Complete\",\"Incomplete\")","v":"Incomplete"}]
[]
[null,"INSTRUCTIONS: For each of the types of data (employee and transactions, recruitment, a and development), select what is the source of the data to ensure the calculations use the correct data source."]
[]
[]
[null,null,null,null,null,null,null,null,null,null,null,"For Employee and Transaction Data (select either Cardinal or HR Data Insights)"]
[null,null,null,null,null,null,null,null,null,null,null,"For Recruitment Data (select either Page Up or PeopleAdmin)"]
[null,null,null,null,null,null,null,null,null,null,null,"For Development (select COVLC, Agency LMS, or Both)"]
[]
[]
[null,"Step 4: Enter Classifications Included",null,null,null,null,null,null,null,null,null,null,null,{"$f":"IF(COUNTA(G49:J63)>0,\"Complete\",\"Incomplete\")","v":"Incomplete"}]
[]
[null,"INSTRUCTIONS: Please enter the classifications that are included (which can be copied from the Agency Strategy Template). If using a classification breakdown of the data, enter the equivalent data for either Cardinal or HR Data Insights. For Example, if the workforce plan is using Classified, then the Cardinal Equivalent would be CLS."]
[]
[]
[]
[null,null,null,null,null,null,"Classification Title",null,null,null,"Cardinal Equivalent",null,null,"HRDI Equivalent"]
[]
[]
[]
[]
[]
[]
[]
[]
[]
[]
[]
[]
[]
[]
[]
[]
[]
[null,"Step 5: Enter Executive Positions",null,null,null,null,null,null,null,null,null,null,null,{"$f":"IF(COUNTA(O72:P100)>0,\"Complete\",\"Incomplete\")","v":"Incomplete"}]
[]
[null,"INSTRUCTIONS: Please enter the position numbers for any positions that are identified as part of the agency executive team. The information can be copied from the Agency Strategy template."]
[]
[]
[null,null,null,null,null,null,null,null,null,null,null,null,null,null,"Position Number"]
[]
[]
[]
[]
[]
[]
[]
[]
[]
[]
[]
[]
[]
[]
[]
[]
[]
[]
[]
[]
[]
[]
[]
[]
[]
[]
[]
[]
[]
[]
[]
[]
[null,"(Optional) Step 6: Categorizing Transaction Reasons"]
[]
[null,"INSTRUCTIONS: If the agency uses a transaction code different from the categories listed, such as one that may be used as an external transfer instead of internal transfer, the category can be changed in the custom category. Only the specific transaction codes that are different need to be changed. If the custom category is blank, the default category will be used."]
[]
[]
[]
[null,null,"Code","Code Description",null,null,null,null,null,null,"Default Category",null,null,"Custom Category"]
[null,null,"XCL","Transfer In Comp Lateral",null,null,null,null,null,null,"Internal Transfer"]
[null,null,"XLP","Transfer In Layoff Place-Card",null,null,null,null,null,null,"Internal Transfer"]
[null,null,"XLR","Transfer in from Layoff-NoCard",null,null,null,null,null,null,"Internal Transfer"]
[null,null,"XNC","Transfer In Non-Competitive",null,null,null,null,null,null,"Internal Transfer"]
[null,null,"XPO","Transfer In Promotion",null,null,null,null,null,null,"Internal Transfer"]
[null,null,"XRE","Transfer In Inter-Agency Reorg",null,null,null,null,null,null,"Internal Transfer"]
[null,null,"XVD","Transfer In Demotion",null,null,null,null,null,null,"Internal Transfer"]
[null,null,"DIP","Demotion Perf or Discipline",null,null,null,null,null,null,"Internal Transfer"]
[null,null,"NEW","New Position",null,null,null,null,null,null,"Internal Transfer"]
[null,null,"POR","Intra-Agency Reorg",null,null,null,null,null,null,"Internal Transfer"]
[null,null,"RDW","Job Reclass Downward",null,null,null,null,null,null,"Internal Transfer"]
[null,null,"RLT","Job Reclass Lateral",null,null,null,null,null,null,"Internal Transfer"]
[null,null,"CPL","Competitive Lateral",null,null,null,null,null,null,"Internal Transfer"]
[null,null,"IDX","XFR Demotion Perf/Discipline",null,null,null,null,null,null,"Internal Transfer"]
[null,null,"LDX","Lateral Perf/Discipline",null,null,null,null,null,null,"Internal Transfer"]
[null,null,"NCL","Non-Competitive Lateral",null,null,null,null,null,null,"Internal Transfer"]
[null,null,"REA","Reassignment",null,null,null,null,null,null,"Internal Transfer"]
[null,null,"VDX","Voluntary Demotion",null,null,null,null,null,null,"Internal Transfer"]
[null,null,"XCL","Transfer In Comp Lateral",null,null,null,null,null,null,"Internal Transfer"]
[null,null,"XNC","Transfer In Non-Competitive",null,null,null,null,null,null,"Internal Transfer"]
[null,null,"XPO","Transfer In Promotion",null,null,null,null,null,null,"Internal Transfer"]
[null,null,"XRA","Transfer In Reassignment",null,null,null,null,null,null,"Internal Transfer"]
[null,null,"XRS","Transfer In Reinstate",null,null,null,null,null,null,"Internal Transfer"]
[null,null,"XVD","Transfer In Demotion",null,null,null,null,null,null,"Internal Transfer"]
[null,null,"RUP","Job Reclass Upward",null,null,null,null,null,null,"Internal Promotion"]
[null,null,"PRO","Promotion",null,null,null,null,null,null,"Internal Promotion"]
[null,null,"LOC","Transfer to Locality",null,null,null,null,null,null,"External Transfer"]
[null,null,"XFO","Transfer Out",null,null,null,null,null,null,"External Transfer"]
[null,null,"XOP","Transfer out - LOF Placement",null,null,null,null,null,null,"External Transfer"]
[null,null,"DIS","Disability Retirement",null,null,null,null,null,null,"Voluntary Separation"]
[null,null,"ERT","Enhanced Retirement",null,null,null,null,null,null,"Voluntary Separation"]
[null,null,"ORP","Retirement-ORP",null,null,null,null,null,null,"Voluntary Separation"]
[null,null,"RMT","Service Retirement",null,null,null,null,null,null,"Voluntary Separation"]
[null,null,"DEA","Death",null,null,null,null,null,null,"Voluntary Separation"]
[null,null,"DIS","Resign Dissatisfied",null,null,null,null,null,null,"Voluntary Separation"]
[null,null,"DWD","Death with Dependent",null,null,null,null,null,null,"Voluntary Separation"]
[null,null,"EPP","Resign During Probation",null,null,null,null,null,null,"Voluntary Separation"]
[null,null,"FAM","Resign Family Reasons",null,null,null,null,null,null,"Voluntary Separation"]
[null,null,"HEA","Resign Health Reasons",null,null,null,null,null,null,"Voluntary Separation"]
[null,null,"REL","Resign Relocation",null,null,null,null,null,null,"Voluntary Separation"]
[null,null,"RES","Resignation",null,null,null,null,null,null,"Voluntary Separation"]
[null,null,"USD","Resign Military Service",null,null,null,null,null,null,"Voluntary Separation"]
[]
[]
[null,"(Optional) Step 7: Categorizing Professional Development "]
[]
[null,"INSTRUCTIONS: To identify whether a development program or course was an internal or external, the agency can include the course name and select whether it is internal or external. "]
[]
[]
[null,null,null,null,null,null,"Training Name (on COVLC or LMS Report)",null,null,null,null,null,null,"Internal or External"]

{"sheet":"SYNTHESIS","index":3,"n_rows":130,"n_cols":14,"rows_kept":130,"cut":false,"hidden":false,"merged":[[127,5,128,7],[127,9,128,11],[129,5,130,7],[129,9,130,11],[122,5,123,7],[124,5,125,7],[122,9,123,11],[124,9,125,11],[116,1,117,3],[116,4,117,6],[116,7,117,9],[116,10,117,12],[116,13,117,15],[120,6,120,10],[110,1,110,3],[110,4,110,6],[110,7,110,9],[110,10,110,12],[110,13,110,15],[113,1,115,3],[113,4,115,6],[113,7,115,9],[113,10,115,12],[113,13,115,15],[104,6,104,10],[107,1,109,3],[107,4,109,6],[107,7,109,9],[107,10,109,12],[107,13,109,15],[97,1,99,3],[97,4,99,6],[97,7,99,9],[97,10,99,12],[97,13,99,15],[100,1,101,3],[100,4,101,6],[100,7,101,9],[100,10,101,12],[100,13,101,15],[91,13,93,15],[94,1,94,3],[94,4,94,6],[94,7,94,9],[94,10,94,12],[94,13,94,15],[84,4,85,6],[72,6,72,10],[88,6,88,10],[91,1,93,3],[91,4,93,6],[91,7,93,9],[91,10,93,12],[84,1,85,3],[84,13,85,15],[84,10,85,12],[84,7,85,9],[78,1,78,3],[78,4,78,6],[78,7,78,9],[78,10,78,12],[78,13,78,15],[81,1,83,3],[81,4,83,6],[81,7,83,9],[81,10,83,12],[81,13,83,15],[70,6,70,10],[75,1,77,3],[75,4,77,6],[75,7,77,9],[75,10,77,12],[75,13,77,15],[64,1,66,3],[64,4,66,6],[64,7,66,9],[64,10,66,12],[64,13,66,15],[67,1,67,3],[67,4,67,6],[67,7,67,9],[67,10,67,12],[67,13,67,15],[52,1,52,3],[52,4,52,6],[52,7,52,9],[52,10,52,12],[52,13,52,15],[61,1,61,3],[61,4,61,6],[61,7,61,9],[61,10,61,12],[61,13,61,15],[55,6,55,10],[58,1,60,3],[58,4,60,6],[58,7,60,9],[58,10,60,12],[58,13,60,15],[44,7,45,9],[46,7,47,9],[49,1,51,3],[49,4,51,6],[49,7,51,9],[38,10,40,12],[41,10,41,12],[38,13,40,15],[41,13,41,15],[49,10,51,12],[49,13,51,15],[31,6,31,10],[33,7,34,9],[35,7,36,9],[38,1,40,3],[41,1,41,3],[38,4,40,6],[41,4,41,6],[38,7,40,9],[41,7,41,9],[5,2,7,14],[8,2,10,14],[15,1,16,8],[15,10,16,15],[25,13,26,15],[27,1,27,3],[27,9,28,11],[27,13,28,15],[25,5,26,7],[27,5,28,7],[20,13,21,15],[20,9,21,11],[20,5,21,7],[20,1,21,3],[22,13,22,15],[22,9,22,11],[22,5,22,7],[22,1,22,3],[18,6,18,10],[25,1,26,3],[25,9,26,11],[11,1,13,15]]}
[]
[]
[]
[]
[]
[null,null,"DATA SYNTHESIS"]
[]
[]
[null,null,"This tab uses the data pasted into the data tabs collectively and provides the information for the foundational level of analysis in the Agency Strategy template. "]
[]
[]
[null,{"$f":"CONCATENATE(\"The data includes the following employee classifications: \",'CENTRAL ANALYSIS'!N59)","v":"The data includes the following employee classifications: "}]
[]
[]
[]
[null,{"$f":"'DATA SETUP'!J19","v":0},null,null,null,null,null,null,null,null,{"$f":"CONCATENATE(TEXT('DATA SETUP'!N28,\"mm/dd/yyyy\"),\" to \",TEXT('DATA SETUP'!N29,\"mm/dd/yyyy\"))","v":"01/00/1900 to 01/00/1900"}]
[]
[]
[null,null,null,null,null,null,"Employee & Position Information"]
[]
[null,{"$f":"VLOOKUP('DATA SETUP'!M37,'CENTRAL ANALYSIS'!A46:B47,2,FALSE)","v":{"$error":"#N/A"}},null,null,null,{"$f":"VLOOKUP('DATA SETUP'!M37,'CENTRAL ANALYSIS'!A58:B59,2,FALSE)","v":{"$error":"#N/A"}},null,null,null,{"$f":"VLOOKUP('DATA SETUP'!M37,'CENTRAL ANALYSIS'!A62:B63,2,FALSE)","v":{"$error":"#N/A"}},null,null,null,{"$f":"VLOOKUP('DATA SETUP'!M37,'CENTRAL ANALYSIS'!A46:C47,3,FALSE)","v":{"$error":"#N/A"}}]
[]
[null,"Total Employees",null,null,null,"Employees in First Five Years",null,null,null,"Employees in First Year",null,null,null,"Executive Employees"]
[]
[]
[null,{"$f":"VLOOKUP('DATA SETUP'!M37,'CENTRAL ANALYSIS'!A50:C51,2,FALSE)","v":{"$error":"#N/A"}},null,null,null,{"$f":"'CENTRAL ANALYSIS'!B54","v":0},null,null,null,{"$f":"'CENTRAL ANALYSIS'!B55","v":0},null,null,null,{"$f":"VLOOKUP('DATA SETUP'!M37,'CENTRAL ANALYSIS'!A50:D51,4,FALSE)","v":{"$error":"#N/A"}}]
[]
[null,"Total Positions",null,null,null,"Positions Assessed For Criticality",null,null,null,"Positions Identified as\nCritical",null,null,null,"Executive Positions Identified as Critical"]
[]
[]
[]
[null,null,null,null,null,null,"Retirements"]
[]
[null,null,null,null,null,null,null,{"$f":"VLOOKUP('DATA SETUP'!$M$37,'CENTRAL ANALYSIS'!$A$66:$G$67,2,FALSE)","v":{"$error":"#N/A"}}]
[]
[null,null,null,null,null,null,null,"Employees Currently Eligible to Retire"]
[]
[]
[null,{"$f":"VLOOKUP('DATA SETUP'!$M$37,'CENTRAL ANALYSIS'!$A$66:$G$67,3,FALSE)","v":{"$error":"#N/A"}},null,null,{"$f":"VLOOKUP('DATA SETUP'!$M$37,'CENTRAL ANALYSIS'!$A$66:$G$67,4,FALSE)","v":{"$error":"#N/A"}},null,null,{"$f":"VLOOKUP('DATA SETUP'!$M$37,'CENTRAL ANALYSIS'!$A$66:$G$67,5,FALSE)","v":{"$error":"#N/A"}},null,null,{"$f":"VLOOKUP('DATA SETUP'!$M$37,'CENTRAL ANALYSIS'!$A$66:$G$67,6,FALSE)","v":{"$error":"#N/A"}},null,null,{"$f":"VLOOKUP('DATA SETUP'!$M$37,'CENTRAL ANALYSIS'!$A$66:$G$67,7,FALSE)","v":{"$error":"#N/A"}}]
[]
[]
[null,{"$f":"'CARDINAL Personal Report'!Z10","v":"FY1 Eligibile"},null,null,{"$f":"'CARDINAL Personal Report'!AA10","v":"FY2 Eligibile"},null,null,{"$f":"'CARDINAL Personal Report'!AB10","v":"FY3 Eligibile"},null,null,{"$f":"'CARDINAL Personal Report'!AC10","v":"FY4 Eligibile"},null,null,{"$f":"'CARDINAL Personal Report'!AD10","v":"FY5 Eligibile"}]
[]
[]
[null,null,null,null,null,null,null,{"$f":"VLOOKUP('DATA SETUP'!$M$37,'CENTRAL ANALYSIS'!$A$70:$G$71,2,FALSE)","v":{"$error":"#N/A"}}]
[]
[null,null,null,null,null,null,null,"Employees in Critical Roles Currently Eligible to Retire"]
[]
[]
[null,{"$f":"VLOOKUP('DATA SETUP'!$M$37,'CENTRAL ANALYSIS'!$A$70:$G$71,3,FALSE)","v":{"$error":"#N/A"}},null,null,{"$f":"VLOOKUP('DATA SETUP'!$M$37,'CENTRAL ANALYSIS'!$A$70:$G$71,4,FALSE)","v":{"$error":"#N/A"}},null,null,{"$f":"VLOOKUP('DATA SETUP'!$M$37,'CENTRAL ANALYSIS'!$A$70:$G$71,5,FALSE)","v":{"$error":"#N/A"}},null,null,{"$f":"VLOOKUP('DATA SETUP'!$M$37,'CENTRAL ANALYSIS'!$A$70:$G$71,6,FALSE)","v":{"$error":"#N/A"}},null,null,{"$f":"VLOOKUP('DATA SETUP'!$M$37,'CENTRAL ANALYSIS'!$A$70:$G$71,7,FALSE)","v":{"$error":"#N/A"}}]
[]
[]
[null,{"$f":"B42","v":"FY1 Eligibile"},null,null,{"$f":"E42","v":"FY2 Eligibile"},null,null,{"$f":"H42","v":"FY3 Eligibile"},null,null,{"$f":"K42","v":"FY4 Eligibile"},null,null,{"$f":"N42","v":"FY5 Eligibile"}]
[]
[]
[null,null,null,null,null,null,"Recruitment"]
[]
[]
[null,{"$f":"VLOOKUP('DATA SETUP'!$M$38,'CENTRAL ANALYSIS'!$A$74:$F$75,2,FALSE)","v":{"$error":"#N/A"}},null,null,{"$f":"VLOOKUP('DATA SETUP'!$M$38,'CENTRAL ANALYSIS'!$A$74:$F$75,3,FALSE)","v":{"$error":"#N/A"}},null,null,{"$f":"VLOOKUP('DATA SETUP'!$M$38,'CENTRAL ANALYSIS'!$A$74:$F$75,4,FALSE)","v":{"$error":"#N/A"}},null,null,{"$f":"VLOOKUP('DATA SETUP'!$M$38,'CENTRAL ANALYSIS'!$A$74:$F$75,5,FALSE)","v":{"$error":"#N/A"}},null,null,{"$f":"VLOOKUP('DATA SETUP'!$M$38,'CENTRAL ANALYSIS'!$A$74:$F$75,6,FALSE)","v":{"$error":"#N/A"}}]
[]
[]
[null,"Applicants",null,null,"Hires",null,null,"Filled Positions",null,null,"Vacant Positions",null,null,"Average Time to Fill"]
[]
[]
[null,{"$f":"VLOOKUP('DATA SETUP'!$M$38,'CENTRAL ANALYSIS'!$A$78:$F$79,2,FALSE)","v":{"$error":"#N/A"}},null,null,{"$f":"VLOOKUP('DATA SETUP'!$M$38,'CENTRAL ANALYSIS'!$A$78:$F$79,3,FALSE)","v":{"$error":"#N/A"}},null,null,{"$f":"VLOOKUP('DATA SETUP'!$M$38,'CENTRAL ANALYSIS'!$A$78:$F$79,4,FALSE)","v":{"$error":"#N/A"}},null,null,{"$f":"VLOOKUP('DATA SETUP'!$M$38,'CENTRAL ANALYSIS'!$A$78:$F$79,5,FALSE)","v":{"$error":"#N/A"}},null,null,{"$f":"VLOOKUP('DATA SETUP'!$M$38,'CENTRAL ANALYSIS'!$A$78:$F$79,6,FALSE)","v":{"$error":"#N/A"}}]
[]
[]
[null,"Critical Role Applicants",null,null,"Hires to Critical Roles",null,null,"Filled Critical Roles",null,null,"Vacant Critical Roles",null,null,"Average TTF for Critical Roles"]
[]
[]
[null,null,null,null,null,null,"Retention and Engagement"]
[]
[null,null,null,null,null,null,"All Employees"]
[]
[]
[null,{"$f":"IFERROR(VLOOKUP('DATA SETUP'!$M$37,'CENTRAL ANALYSIS'!$A$83:$F$84,2,FALSE),0)","v":0},null,null,{"$f":"VLOOKUP('DATA SETUP'!$M$37,'CENTRAL ANALYSIS'!$A$83:$F$84,3,FALSE)","v":{"$error":"#N/A"}},null,null,{"$f":"VLOOKUP('DATA SETUP'!$M$37,'CENTRAL ANALYSIS'!$A$83:$F$84,4,FALSE)","v":{"$error":"#N/A"}},null,null,{"$f":"VLOOKUP('DATA SETUP'!$M$37,'CENTRAL ANALYSIS'!$A$83:$F$84,5,FALSE)","v":{"$error":"#N/A"}},null,null,{"$f":"VLOOKUP('DATA SETUP'!$M$37,'CENTRAL ANALYSIS'!$A$83:$F$84,6,FALSE)","v":{"$error":"#N/A"}}]
[]
[]
[null,"Avg. Years of Service",null,null,"Internal Promotions",null,null,"Internal Transfers",null,null,"External Transfers",null,null,"Voluntary Separations"]
[]
[]
[null,{"$f":"IFERROR(VLOOKUP('DATA SETUP'!$M$37,'CENTRAL ANALYSIS'!$A$88:$F$89,2,FALSE),0)","v":0},null,null,{"$f":"VLOOKUP('DATA SETUP'!$M$37,'CENTRAL ANALYSIS'!$A$88:$F$89,3,FALSE)","v":{"$error":"#N/A"}},null,null,{"$f":"VLOOKUP('DATA SETUP'!$M$37,'CENTRAL ANALYSIS'!$A$88:$F$89,4,FALSE)","v":{"$error":"#N/A"}},null,null,{"$f":"VLOOKUP('DATA SETUP'!$M$37,'CENTRAL ANALYSIS'!$A$88:$F$89,5,FALSE)","v":{"$error":"#N/A"}},null,null,{"$f":"VLOOKUP('DATA SETUP'!$M$37,'CENTRAL ANALYSIS'!$A$88:$F$89,6,FALSE)","v":{"$error":"#N/A"}}]
[]
[]
[null,"Avg. Years of Service for Critical Roles",null,null,"Internal Promotions of Critical Roles",null,null,"Internal Transfers of Critical Roles",null,null,"External Transfers of Critical Roles",null,null,"Voluntary Separations of Critical Roles"]
[]
[]
[]
[null,null,null,null,null,null,"Employees in their First Five Years"]
[]
[]
[null,{"$f":"IFERROR(VLOOKUP('DATA SETUP'!$M$37,'CENTRAL ANALYSIS'!$A$93:$F$94,2,FALSE),0)","v":0},null,null,{"$f":"VLOOKUP('DATA SETUP'!$M$37,'CENTRAL ANALYSIS'!$A$93:$F$94,3,FALSE)","v":{"$error":"#N/A"}},null,null,{"$f":"VLOOKUP('DATA SETUP'!$M$37,'CENTRAL ANALYSIS'!$A$93:$F$94,4,FALSE)","v":{"$error":"#N/A"}},null,null,{"$f":"VLOOKUP('DATA SETUP'!$M$37,'CENTRAL ANALYSIS'!$A$93:$F$94,5,FALSE)","v":{"$error":"#N/A"}},null,null,{"$f":"VLOOKUP('DATA SETUP'!$M$37,'CENTRAL ANALYSIS'!$A$93:$F$94,6,FALSE)","v":{"$error":"#N/A"}}]
[]
[]
[null,"Avg. Years of Service",null,null,"Internal Promotions",null,null,"Internal Transfers",null,null,"External Transfers",null,null,"Voluntary Separations"]
[]
[]
[null,{"$f":"IFERROR(VLOOKUP('DATA SETUP'!$M$37,'CENTRAL ANALYSIS'!$A$98:$F$99,2,FALSE),0)","v":0},null,null,{"$f":"VLOOKUP('DATA SETUP'!$M$37,'CENTRAL ANALYSIS'!$A$98:$F$99,3,FALSE)","v":{"$error":"#N/A"}},null,null,{"$f":"VLOOKUP('DATA SETUP'!$M$37,'CENTRAL ANALYSIS'!$A$98:$F$99,4,FALSE)","v":{"$error":"#N/A"}},null,null,{"$f":"VLOOKUP('DATA SETUP'!$M$37,'CENTRAL ANALYSIS'!$A$98:$F$99,5,FALSE)","v":{"$error":"#N/A"}},null,null,{"$f":"VLOOKUP('DATA SETUP'!$M$37,'CENTRAL ANALYSIS'!$A$98:$F$99,6,FALSE)","v":{"$error":"#N/A"}}]
[]
[]
[null,"Avg. Years of Service for Critical Roles",null,null,"Internal Promotions of Critical Roles",null,null,"Internal Transfers of Critical Roles",null,null,"External Transfers of Critical Roles",null,null,"Voluntary Separations of Critical Roles"]
[]
[]
[]
[null,null,null,null,null,null,"Employees in their First Year"]
[]
[]
[null,{"$f":"IFERROR(VLOOKUP('DATA SETUP'!$M$37,'CENTRAL ANALYSIS'!$A$103:$F$104,2,FALSE),0)","v":0},null,null,{"$f":"VLOOKUP('DATA SETUP'!$M$37,'CENTRAL ANALYSIS'!$A$103:$F$104,3,FALSE)","v":{"$error":"#N/A"}},null,null,{"$f":"VLOOKUP('DATA SETUP'!$M$37,'CENTRAL ANALYSIS'!$A$103:$F$104,4,FALSE)","v":{"$error":"#N/A"}},null,null,{"$f":"VLOOKUP('DATA SETUP'!$M$37,'CENTRAL ANALYSIS'!$A$103:$F$104,5,FALSE)","v":{"$error":"#N/A"}},null,null,{"$f":"VLOOKUP('DATA SETUP'!$M$37,'CENTRAL ANALYSIS'!$A$103:$F$104,6,FALSE)","v":{"$error":"#N/A"}}]
[]
[]
[null,"Avg. Years of Service",null,null,"Internal Promotions",null,null,"Internal Transfers",null,null,"External Transfers",null,null,"Voluntary Separations"]
[]
[]
[null,{"$f":"IFERROR(VLOOKUP('DATA SETUP'!$M$37,'CENTRAL ANALYSIS'!$A$108:$F$109,2,FALSE),0)","v":0},null,null,{"$f":"VLOOKUP('DATA SETUP'!$M$37,'CENTRAL ANALYSIS'!$A$108:$F$109,3,FALSE)","v":{"$error":"#N/A"}},null,null,{"$f":"VLOOKUP('DATA SETUP'!$M$37,'CENTRAL ANALYSIS'!$A$108:$F$109,4,FALSE)","v":{"$error":"#N/A"}},null,null,{"$f":"VLOOKUP('DATA SETUP'!$M$37,'CENTRAL ANALYSIS'!$A$108:$F$109,5,FALSE)","v":{"$error":"#N/A"}},null,null,{"$f":"VLOOKUP('DATA SETUP'!$M$37,'CENTRAL ANALYSIS'!$A$108:$F$109,6,FALSE)","v":{"$error":"#N/A"}}]
[]
[]
[null,"Avg. Years of Service for Critical Roles",null,null,"Internal Promotions of Critical Roles",null,null,"Internal Transfers of Critical Roles",null,null,"External Transfers of Critical Roles",null,null,"Voluntary Separations of Critical Roles"]
[]
[]
[]
[null,null,null,null,null,null,"Workforce Development"]
[]
[null,null,null,null,null,{"$f":"VLOOKUP('DATA SETUP'!$M$39,'CENTRAL ANALYSIS'!$A$112:$E$114,3,FALSE)","v":{"$error":"#N/A"}},null,null,null,{"$f":"VLOOKUP('DATA SETUP'!$M$39,'CENTRAL ANALYSIS'!$A$112:$E$114,5,FALSE)","v":{"$error":"#N/A"}}]
[]
[null,null,null,null,null,"Total Internal Development Opportunities",null,null,null,"Total External Development Opportunities"]
[]
[]
[null,null,null,null,null,{"$f":"VLOOKUP('DATA SETUP'!$M$39,'CENTRAL ANALYSIS'!$A$112:$E$114,2,FALSE)","v":{"$error":"#N/A"}},null,null,null,{"$f":"VLOOKUP('DATA SETUP'!$M$39,'CENTRAL ANALYSIS'!$A$112:$E$114,4,FALSE)","v":{"$error":"#N/A"}}]
[]
[null,null,null,null,null,"Total Internal Development Unique Participants",null,null,null,"Total External Development Unique Participants"]

{"sheet":"Critical Roles","index":4,"n_rows":10,"n_cols":2,"rows_kept":10,"cut":false,"hidden":false,"merged":[[0,0,8,9],[0,10,8,15]]}
["To include critical roles, only two fields need to be entered: the position number and criticality status. \n\nCriicality Status should be either \"Critical\" or \"Not Critical\". \n\nData can be entered manually or pasted from the Critical Roles tool, using the data table of the summary tab and only adding the two columns."]
[]
[]
[]
[]
[]
[]
[]
[]
["Position Number","Criticality Status"]

{"sheet":"Vacant Positions","index":5,"n_rows":1002,"n_cols":2,"rows_kept":1002,"cut":false,"hidden":false,"merged":[[0,0,8,9]]}
["To include vacant positions only one field needs to be entered: the position number.\n\nThese should be positions that are currently vacant but are not actively being recruited for (e.g. it is currently not posted or receiving applications).\n\nData can must be entered manually because this information is not captured in any system or tool."]
[]
[]
[]
[]
[]
[]
[]
[]
["Position Number","Is Critical?"]
[null,{"$f":"IFERROR(VLOOKUP(A11,'Critical Roles'!A11:B999999,2,FALSE),\"\")","v":""}]
[null,{"$f":"IFERROR(VLOOKUP(A12,'Critical Roles'!A12:B1000000,2,FALSE),\"\")","v":""}]
[null,{"$f":"IFERROR(VLOOKUP(A13,'Critical Roles'!A13:B1000001,2,FALSE),\"\")","v":""}]
[null,{"$f":"IFERROR(VLOOKUP(A14,'Critical Roles'!A14:B1000002,2,FALSE),\"\")","v":""}]
[null,{"$f":"IFERROR(VLOOKUP(A15,'Critical Roles'!A15:B1000003,2,FALSE),\"\")","v":""}]
[null,{"$f":"IFERROR(VLOOKUP(A16,'Critical Roles'!A16:B1000004,2,FALSE),\"\")","v":""}]
[null,{"$f":"IFERROR(VLOOKUP(A17,'Critical Roles'!A17:B1000005,2,FALSE),\"\")","v":""}]
[null,{"$f":"IFERROR(VLOOKUP(A18,'Critical Roles'!A18:B1000006,2,FALSE),\"\")","v":""}]
[null,{"$f":"IFERROR(VLOOKUP(A19,'Critical Roles'!A19:B1000007,2,FALSE),\"\")","v":""}]
[null,{"$f":"IFERROR(VLOOKUP(A20,'Critical Roles'!A20:B1000008,2,FALSE),\"\")","v":""}]
[null,{"$f":"IFERROR(VLOOKUP(A21,'Critical Roles'!A21:B1000009,2,FALSE),\"\")","v":""}]
[null,{"$f":"IFERROR(VLOOKUP(A22,'Critical Roles'!A22:B1000010,2,FALSE),\"\")","v":""}]
[null,{"$f":"IFERROR(VLOOKUP(A23,'Critical Roles'!A23:B1000011,2,FALSE),\"\")","v":""}]
[null,{"$f":"IFERROR(VLOOKUP(A24,'Critical Roles'!A24:B1000012,2,FALSE),\"\")","v":""}]
[null,{"$f":"IFERROR(VLOOKUP(A25,'Critical Roles'!A25:B1000013,2,FALSE),\"\")","v":""}]
[null,{"$f":"IFERROR(VLOOKUP(A26,'Critical Roles'!A26:B1000014,2,FALSE),\"\")","v":""}]
[null,{"$f":"IFERROR(VLOOKUP(A27,'Critical Roles'!A27:B1000015,2,FALSE),\"\")","v":""}]
[null,{"$f":"IFERROR(VLOOKUP(A28,'Critical Roles'!A28:B1000016,2,FALSE),\"\")","v":""}]
[null,{"$f":"IFERROR(VLOOKUP(A29,'Critical Roles'!A29:B1000017,2,FALSE),\"\")","v":""}]
[null,{"$f":"IFERROR(VLOOKUP(A30,'Critical Roles'!A30:B1000018,2,FALSE),\"\")","v":""}]
[null,{"$f":"IFERROR(VLOOKUP(A31,'Critical Roles'!A31:B1000019,2,FALSE),\"\")","v":""}]
[null,{"$f":"IFERROR(VLOOKUP(A32,'Critical Roles'!A32:B1000020,2,FALSE),\"\")","v":""}]
[null,{"$f":"IFERROR(VLOOKUP(A33,'Critical Roles'!A33:B1000021,2,FALSE),\"\")","v":""}]
[null,{"$f":"IFERROR(VLOOKUP(A34,'Critical Roles'!A34:B1000022,2,FALSE),\"\")","v":""}]
[null,{"$f":"IFERROR(VLOOKUP(A35,'Critical Roles'!A35:B1000023,2,FALSE),\"\")","v":""}]
[null,{"$f":"IFERROR(VLOOKUP(A36,'Critical Roles'!A36:B1000024,2,FALSE),\"\")","v":""}]
[null,{"$f":"IFERROR(VLOOKUP(A37,'Critical Roles'!A37:B1000025,2,FALSE),\"\")","v":""}]
[null,{"$f":"IFERROR(VLOOKUP(A38,'Critical Roles'!A38:B1000026,2,FALSE),\"\")","v":""}]
[null,{"$f":"IFERROR(VLOOKUP(A39,'Critical Roles'!A39:B1000027,2,FALSE),\"\")","v":""}]
[null,{"$f":"IFERROR(VLOOKUP(A40,'Critical Roles'!A40:B1000028,2,FALSE),\"\")","v":""}]
[null,{"$f":"IFERROR(VLOOKUP(A41,'Critical Roles'!A41:B1000029,2,FALSE),\"\")","v":""}]
[null,{"$f":"IFERROR(VLOOKUP(A42,'Critical Roles'!A42:B1000030,2,FALSE),\"\")","v":""}]
[null,{"$f":"IFERROR(VLOOKUP(A43,'Critical Roles'!A43:B1000031,2,FALSE),\"\")","v":""}]
[null,{"$f":"IFERROR(VLOOKUP(A44,'Critical Roles'!A44:B1000032,2,FALSE),\"\")","v":""}]
[null,{"$f":"IFERROR(VLOOKUP(A45,'Critical Roles'!A45:B1000033,2,FALSE),\"\")","v":""}]
[null,{"$f":"IFERROR(VLOOKUP(A46,'Critical Roles'!A46:B1000034,2,FALSE),\"\")","v":""}]
[null,{"$f":"IFERROR(VLOOKUP(A47,'Critical Roles'!A47:B1000035,2,FALSE),\"\")","v":""}]
[null,{"$f":"IFERROR(VLOOKUP(A48,'Critical Roles'!A48:B1000036,2,FALSE),\"\")","v":""}]
[null,{"$f":"IFERROR(VLOOKUP(A49,'Critical Roles'!A49:B1000037,2,FALSE),\"\")","v":""}]
[null,{"$f":"IFERROR(VLOOKUP(A50,'Critical Roles'!A50:B1000038,2,FALSE),\"\")","v":""}]
[null,{"$f":"IFERROR(VLOOKUP(A51,'Critical Roles'!A51:B1000039,2,FALSE),\"\")","v":""}]
[null,{"$f":"IFERROR(VLOOKUP(A52,'Critical Roles'!A52:B1000040,2,FALSE),\"\")","v":""}]
[null,{"$f":"IFERROR(VLOOKUP(A53,'Critical Roles'!A53:B1000041,2,FALSE),\"\")","v":""}]
[null,{"$f":"IFERROR(VLOOKUP(A54,'Critical Roles'!A54:B1000042,2,FALSE),\"\")","v":""}]
[null,{"$f":"IFERROR(VLOOKUP(A55,'Critical Roles'!A55:B1000043,2,FALSE),\"\")","v":""}]
[null,{"$f":"IFERROR(VLOOKUP(A56,'Critical Roles'!A56:B1000044,2,FALSE),\"\")","v":""}]
[null,{"$f":"IFERROR(VLOOKUP(A57,'Critical Roles'!A57:B1000045,2,FALSE),\"\")","v":""}]
[null,{"$f":"IFERROR(VLOOKUP(A58,'Critical Roles'!A58:B1000046,2,FALSE),\"\")","v":""}]
[null,{"$f":"IFERROR(VLOOKUP(A59,'Critical Roles'!A59:B1000047,2,FALSE),\"\")","v":""}]
[null,{"$f":"IFERROR(VLOOKUP(A60,'Critical Roles'!A60:B1000048,2,FALSE),\"\")","v":""}]
[null,{"$f":"IFERROR(VLOOKUP(A61,'Critical Roles'!A61:B1000049,2,FALSE),\"\")","v":""}]
[null,{"$f":"IFERROR(VLOOKUP(A62,'Critical Roles'!A62:B1000050,2,FALSE),\"\")","v":""}]
[null,{"$f":"IFERROR(VLOOKUP(A63,'Critical Roles'!A63:B1000051,2,FALSE),\"\")","v":""}]
[null,{"$f":"IFERROR(VLOOKUP(A64,'Critical Roles'!A64:B1000052,2,FALSE),\"\")","v":""}]
[null,{"$f":"IFERROR(VLOOKUP(A65,'Critical Roles'!A65:B1000053,2,FALSE),\"\")","v":""}]
[null,{"$f":"IFERROR(VLOOKUP(A66,'Critical Roles'!A66:B1000054,2,FALSE),\"\")","v":""}]
[null,{"$f":"IFERROR(VLOOKUP(A67,'Critical Roles'!A67:B1000055,2,FALSE),\"\")","v":""}]
[null,{"$f":"IFERROR(VLOOKUP(A68,'Critical Roles'!A68:B1000056,2,FALSE),\"\")","v":""}]
[null,{"$f":"IFERROR(VLOOKUP(A69,'Critical Roles'!A69:B1000057,2,FALSE),\"\")","v":""}]
[null,{"$f":"IFERROR(VLOOKUP(A70,'Critical Roles'!A70:B1000058,2,FALSE),\"\")","v":""}]
[null,{"$f":"IFERROR(VLOOKUP(A71,'Critical Roles'!A71:B1000059,2,FALSE),\"\")","v":""}]
[null,{"$f":"IFERROR(VLOOKUP(A72,'Critical Roles'!A72:B1000060,2,FALSE),\"\")","v":""}]
[null,{"$f":"IFERROR(VLOOKUP(A73,'Critical Roles'!A73:B1000061,2,FALSE),\"\")","v":""}]
[null,{"$f":"IFERROR(VLOOKUP(A74,'Critical Roles'!A74:B1000062,2,FALSE),\"\")","v":""}]
[null,{"$f":"IFERROR(VLOOKUP(A75,'Critical Roles'!A75:B1000063,2,FALSE),\"\")","v":""}]
[null,{"$f":"IFERROR(VLOOKUP(A76,'Critical Roles'!A76:B1000064,2,FALSE),\"\")","v":""}]
[null,{"$f":"IFERROR(VLOOKUP(A77,'Critical Roles'!A77:B1000065,2,FALSE),\"\")","v":""}]
[null,{"$f":"IFERROR(VLOOKUP(A78,'Critical Roles'!A78:B1000066,2,FALSE),\"\")","v":""}]
[null,{"$f":"IFERROR(VLOOKUP(A79,'Critical Roles'!A79:B1000067,2,FALSE),\"\")","v":""}]
[null,{"$f":"IFERROR(VLOOKUP(A80,'Critical Roles'!A80:B1000068,2,FALSE),\"\")","v":""}]
[null,{"$f":"IFERROR(VLOOKUP(A81,'Critical Roles'!A81:B1000069,2,FALSE),\"\")","v":""}]
[null,{"$f":"IFERROR(VLOOKUP(A82,'Critical Roles'!A82:B1000070,2,FALSE),\"\")","v":""}]
[null,{"$f":"IFERROR(VLOOKUP(A83,'Critical Roles'!A83:B1000071,2,FALSE),\"\")","v":""}]
[null,{"$f":"IFERROR(VLOOKUP(A84,'Critical Roles'!A84:B1000072,2,FALSE),\"\")","v":""}]
[null,{"$f":"IFERROR(VLOOKUP(A85,'Critical Roles'!A85:B1000073,2,FALSE),\"\")","v":""}]
[null,{"$f":"IFERROR(VLOOKUP(A86,'Critical Roles'!A86:B1000074,2,FALSE),\"\")","v":""}]
[null,{"$f":"IFERROR(VLOOKUP(A87,'Critical Roles'!A87:B1000075,2,FALSE),\"\")","v":""}]
[null,{"$f":"IFERROR(VLOOKUP(A88,'Critical Roles'!A88:B1000076,2,FALSE),\"\")","v":""}]
[null,{"$f":"IFERROR(VLOOKUP(A89,'Critical Roles'!A89:B1000077,2,FALSE),\"\")","v":""}]
[null,{"$f":"IFERROR(VLOOKUP(A90,'Critical Roles'!A90:B1000078,2,FALSE),\"\")","v":""}]
[null,{"$f":"IFERROR(VLOOKUP(A91,'Critical Roles'!A91:B1000079,2,FALSE),\"\")","v":""}]
[null,{"$f":"IFERROR(VLOOKUP(A92,'Critical Roles'!A92:B1000080,2,FALSE),\"\")","v":""}]
[null,{"$f":"IFERROR(VLOOKUP(A93,'Critical Roles'!A93:B1000081,2,FALSE),\"\")","v":""}]
[null,{"$f":"IFERROR(VLOOKUP(A94,'Critical Roles'!A94:B1000082,2,FALSE),\"\")","v":""}]
[null,{"$f":"IFERROR(VLOOKUP(A95,'Critical Roles'!A95:B1000083,2,FALSE),\"\")","v":""}]
[null,{"$f":"IFERROR(VLOOKUP(A96,'Critical Roles'!A96:B1000084,2,FALSE),\"\")","v":""}]
[null,{"$f":"IFERROR(VLOOKUP(A97,'Critical Roles'!A97:B1000085,2,FALSE),\"\")","v":""}]
[null,{"$f":"IFERROR(VLOOKUP(A98,'Critical Roles'!A98:B1000086,2,FALSE),\"\")","v":""}]
[null,{"$f":"IFERROR(VLOOKUP(A99,'Critical Roles'!A99:B1000087,2,FALSE),\"\")","v":""}]
[null,{"$f":"IFERROR(VLOOKUP(A100,'Critical Roles'!A100:B1000088,2,FALSE),\"\")","v":""}]
[null,{"$f":"IFERROR(VLOOKUP(A101,'Critical Roles'!A101:B1000089,2,FALSE),\"\")","v":""}]
[null,{"$f":"IFERROR(VLOOKUP(A102,'Critical Roles'!A102:B1000090,2,FALSE),\"\")","v":""}]
[null,{"$f":"IFERROR(VLOOKUP(A103,'Critical Roles'!A103:B1000091,2,FALSE),\"\")","v":""}]
[null,{"$f":"IFERROR(VLOOKUP(A104,'Critical Roles'!A104:B1000092,2,FALSE),\"\")","v":""}]
[null,{"$f":"IFERROR(VLOOKUP(A105,'Critical Roles'!A105:B1000093,2,FALSE),\"\")","v":""}]
[null,{"$f":"IFERROR(VLOOKUP(A106,'Critical Roles'!A106:B1000094,2,FALSE),\"\")","v":""}]
[null,{"$f":"IFERROR(VLOOKUP(A107,'Critical Roles'!A107:B1000095,2,FALSE),\"\")","v":""}]
[null,{"$f":"IFERROR(VLOOKUP(A108,'Critical Roles'!A108:B1000096,2,FALSE),\"\")","v":""}]
[null,{"$f":"IFERROR(VLOOKUP(A109,'Critical Roles'!A109:B1000097,2,FALSE),\"\")","v":""}]
[null,{"$f":"IFERROR(VLOOKUP(A110,'Critical Roles'!A110:B1000098,2,FALSE),\"\")","v":""}]
[null,{"$f":"IFERROR(VLOOKUP(A111,'Critical Roles'!A111:B1000099,2,FALSE),\"\")","v":""}]
[null,{"$f":"IFERROR(VLOOKUP(A112,'Critical Roles'!A112:B1000100,2,FALSE),\"\")","v":""}]
[null,{"$f":"IFERROR(VLOOKUP(A113,'Critical Roles'!A113:B1000101,2,FALSE),\"\")","v":""}]
[null,{"$f":"IFERROR(VLOOKUP(A114,'Critical Roles'!A114:B1000102,2,FALSE),\"\")","v":""}]
[null,{"$f":"IFERROR(VLOOKUP(A115,'Critical Roles'!A115:B1000103,2,FALSE),\"\")","v":""}]
[null,{"$f":"IFERROR(VLOOKUP(A116,'Critical Roles'!A116:B1000104,2,FALSE),\"\")","v":""}]
[null,{"$f":"IFERROR(VLOOKUP(A117,'Critical Roles'!A117:B1000105,2,FALSE),\"\")","v":""}]
[null,{"$f":"IFERROR(VLOOKUP(A118,'Critical Roles'!A118:B1000106,2,FALSE),\"\")","v":""}]
[null,{"$f":"IFERROR(VLOOKUP(A119,'Critical Roles'!A119:B1000107,2,FALSE),\"\")","v":""}]
[null,{"$f":"IFERROR(VLOOKUP(A120,'Critical Roles'!A120:B1000108,2,FALSE),\"\")","v":""}]
[null,{"$f":"IFERROR(VLOOKUP(A121,'Critical Roles'!A121:B1000109,2,FALSE),\"\")","v":""}]
[null,{"$f":"IFERROR(VLOOKUP(A122,'Critical Roles'!A122:B1000110,2,FALSE),\"\")","v":""}]
[null,{"$f":"IFERROR(VLOOKUP(A123,'Critical Roles'!A123:B1000111,2,FALSE),\"\")","v":""}]
[null,{"$f":"IFERROR(VLOOKUP(A124,'Critical Roles'!A124:B1000112,2,FALSE),\"\")","v":""}]
[null,{"$f":"IFERROR(VLOOKUP(A125,'Critical Roles'!A125:B1000113,2,FALSE),\"\")","v":""}]
[null,{"$f":"IFERROR(VLOOKUP(A126,'Critical Roles'!A126:B1000114,2,FALSE),\"\")","v":""}]
[null,{"$f":"IFERROR(VLOOKUP(A127,'Critical Roles'!A127:B1000115,2,FALSE),\"\")","v":""}]
[null,{"$f":"IFERROR(VLOOKUP(A128,'Critical Roles'!A128:B1000116,2,FALSE),\"\")","v":""}]
[null,{"$f":"IFERROR(VLOOKUP(A129,'Critical Roles'!A129:B1000117,2,FALSE),\"\")","v":""}]
[null,{"$f":"IFERROR(VLOOKUP(A130,'Critical Roles'!A130:B1000118,2,FALSE),\"\")","v":""}]
[null,{"$f":"IFERROR(VLOOKUP(A131,'Critical Roles'!A131:B1000119,2,FALSE),\"\")","v":""}]
[null,{"$f":"IFERROR(VLOOKUP(A132,'Critical Roles'!A132:B1000120,2,FALSE),\"\")","v":""}]
[null,{"$f":"IFERROR(VLOOKUP(A133,'Critical Roles'!A133:B1000121,2,FALSE),\"\")","v":""}]
[null,{"$f":"IFERROR(VLOOKUP(A134,'Critical Roles'!A134:B1000122,2,FALSE),\"\")","v":""}]
[null,{"$f":"IFERROR(VLOOKUP(A135,'Critical Roles'!A135:B1000123,2,FALSE),\"\")","v":""}]
[null,{"$f":"IFERROR(VLOOKUP(A136,'Critical Roles'!A136:B1000124,2,FALSE),\"\")","v":""}]
[null,{"$f":"IFERROR(VLOOKUP(A137,'Critical Roles'!A137:B1000125,2,FALSE),\"\")","v":""}]
[null,{"$f":"IFERROR(VLOOKUP(A138,'Critical Roles'!A138:B1000126,2,FALSE),\"\")","v":""}]
[null,{"$f":"IFERROR(VLOOKUP(A139,'Critical Roles'!A139:B1000127,2,FALSE),\"\")","v":""}]
[null,{"$f":"IFERROR(VLOOKUP(A140,'Critical Roles'!A140:B1000128,2,FALSE),\"\")","v":""}]
[null,{"$f":"IFERROR(VLOOKUP(A141,'Critical Roles'!A141:B1000129,2,FALSE),\"\")","v":""}]
[null,{"$f":"IFERROR(VLOOKUP(A142,'Critical Roles'!A142:B1000130,2,FALSE),\"\")","v":""}]
[null,{"$f":"IFERROR(VLOOKUP(A143,'Critical Roles'!A143:B1000131,2,FALSE),\"\")","v":""}]
[null,{"$f":"IFERROR(VLOOKUP(A144,'Critical Roles'!A144:B1000132,2,FALSE),\"\")","v":""}]
[null,{"$f":"IFERROR(VLOOKUP(A145,'Critical Roles'!A145:B1000133,2,FALSE),\"\")","v":""}]
[null,{"$f":"IFERROR(VLOOKUP(A146,'Critical Roles'!A146:B1000134,2,FALSE),\"\")","v":""}]
[null,{"$f":"IFERROR(VLOOKUP(A147,'Critical Roles'!A147:B1000135,2,FALSE),\"\")","v":""}]
[null,{"$f":"IFERROR(VLOOKUP(A148,'Critical Roles'!A148:B1000136,2,FALSE),\"\")","v":""}]
[null,{"$f":"IFERROR(VLOOKUP(A149,'Critical Roles'!A149:B1000137,2,FALSE),\"\")","v":""}]
[null,{"$f":"IFERROR(VLOOKUP(A150,'Critical Roles'!A150:B1000138,2,FALSE),\"\")","v":""}]
[null,{"$f":"IFERROR(VLOOKUP(A151,'Critical Roles'!A151:B1000139,2,FALSE),\"\")","v":""}]
[null,{"$f":"IFERROR(VLOOKUP(A152,'Critical Roles'!A152:B1000140,2,FALSE),\"\")","v":""}]
[null,{"$f":"IFERROR(VLOOKUP(A153,'Critical Roles'!A153:B1000141,2,FALSE),\"\")","v":""}]
[null,{"$f":"IFERROR(VLOOKUP(A154,'Critical Roles'!A154:B1000142,2,FALSE),\"\")","v":""}]
[null,{"$f":"IFERROR(VLOOKUP(A155,'Critical Roles'!A155:B1000143,2,FALSE),\"\")","v":""}]
[null,{"$f":"IFERROR(VLOOKUP(A156,'Critical Roles'!A156:B1000144,2,FALSE),\"\")","v":""}]
[null,{"$f":"IFERROR(VLOOKUP(A157,'Critical Roles'!A157:B1000145,2,FALSE),\"\")","v":""}]
[null,{"$f":"IFERROR(VLOOKUP(A158,'Critical Roles'!A158:B1000146,2,FALSE),\"\")","v":""}]
[null,{"$f":"IFERROR(VLOOKUP(A159,'Critical Roles'!A159:B1000147,2,FALSE),\"\")","v":""}]
[null,{"$f":"IFERROR(VLOOKUP(A160,'Critical Roles'!A160:B1000148,2,FALSE),\"\")","v":""}]
[null,{"$f":"IFERROR(VLOOKUP(A161,'Critical Roles'!A161:B1000149,2,FALSE),\"\")","v":""}]
[null,{"$f":"IFERROR(VLOOKUP(A162,'Critical Roles'!A162:B1000150,2,FALSE),\"\")","v":""}]
[null,{"$f":"IFERROR(VLOOKUP(A163,'Critical Roles'!A163:B1000151,2,FALSE),\"\")","v":""}]
[null,{"$f":"IFERROR(VLOOKUP(A164,'Critical Roles'!A164:B1000152,2,FALSE),\"\")","v":""}]
[null,{"$f":"IFERROR(VLOOKUP(A165,'Critical Roles'!A165:B1000153,2,FALSE),\"\")","v":""}]
[null,{"$f":"IFERROR(VLOOKUP(A166,'Critical Roles'!A166:B1000154,2,FALSE),\"\")","v":""}]
[null,{"$f":"IFERROR(VLOOKUP(A167,'Critical Roles'!A167:B1000155,2,FALSE),\"\")","v":""}]
[null,{"$f":"IFERROR(VLOOKUP(A168,'Critical Roles'!A168:B1000156,2,FALSE),\"\")","v":""}]
[null,{"$f":"IFERROR(VLOOKUP(A169,'Critical Roles'!A169:B1000157,2,FALSE),\"\")","v":""}]
[null,{"$f":"IFERROR(VLOOKUP(A170,'Critical Roles'!A170:B1000158,2,FALSE),\"\")","v":""}]
[null,{"$f":"IFERROR(VLOOKUP(A171,'Critical Roles'!A171:B1000159,2,FALSE),\"\")","v":""}]
[null,{"$f":"IFERROR(VLOOKUP(A172,'Critical Roles'!A172:B1000160,2,FALSE),\"\")","v":""}]
[null,{"$f":"IFERROR(VLOOKUP(A173,'Critical Roles'!A173:B1000161,2,FALSE),\"\")","v":""}]
[null,{"$f":"IFERROR(VLOOKUP(A174,'Critical Roles'!A174:B1000162,2,FALSE),\"\")","v":""}]
[null,{"$f":"IFERROR(VLOOKUP(A175,'Critical Roles'!A175:B1000163,2,FALSE),\"\")","v":""}]
[null,{"$f":"IFERROR(VLOOKUP(A176,'Critical Roles'!A176:B1000164,2,FALSE),\"\")","v":""}]
[null,{"$f":"IFERROR(VLOOKUP(A177,'Critical Roles'!A177:B1000165,2,FALSE),\"\")","v":""}]
[null,{"$f":"IFERROR(VLOOKUP(A178,'Critical Roles'!A178:B1000166,2,FALSE),\"\")","v":""}]
[null,{"$f":"IFERROR(VLOOKUP(A179,'Critical Roles'!A179:B1000167,2,FALSE),\"\")","v":""}]
[null,{"$f":"IFERROR(VLOOKUP(A180,'Critical Roles'!A180:B1000168,2,FALSE),\"\")","v":""}]
[null,{"$f":"IFERROR(VLOOKUP(A181,'Critical Roles'!A181:B1000169,2,FALSE),\"\")","v":""}]
[null,{"$f":"IFERROR(VLOOKUP(A182,'Critical Roles'!A182:B1000170,2,FALSE),\"\")","v":""}]
[null,{"$f":"IFERROR(VLOOKUP(A183,'Critical Roles'!A183:B1000171,2,FALSE),\"\")","v":""}]
[null,{"$f":"IFERROR(VLOOKUP(A184,'Critical Roles'!A184:B1000172,2,FALSE),\"\")","v":""}]
[null,{"$f":"IFERROR(VLOOKUP(A185,'Critical Roles'!A185:B1000173,2,FALSE),\"\")","v":""}]
[null,{"$f":"IFERROR(VLOOKUP(A186,'Critical Roles'!A186:B1000174,2,FALSE),\"\")","v":""}]
[null,{"$f":"IFERROR(VLOOKUP(A187,'Critical Roles'!A187:B1000175,2,FALSE),\"\")","v":""}]
[null,{"$f":"IFERROR(VLOOKUP(A188,'Critical Roles'!A188:B1000176,2,FALSE),\"\")","v":""}]
[null,{"$f":"IFERROR(VLOOKUP(A189,'Critical Roles'!A189:B1000177,2,FALSE),\"\")","v":""}]
[null,{"$f":"IFERROR(VLOOKUP(A190,'Critical Roles'!A190:B1000178,2,FALSE),\"\")","v":""}]
[null,{"$f":"IFERROR(VLOOKUP(A191,'Critical Roles'!A191:B1000179,2,FALSE),\"\")","v":""}]
[null,{"$f":"IFERROR(VLOOKUP(A192,'Critical Roles'!A192:B1000180,2,FALSE),\"\")","v":""}]
[null,{"$f":"IFERROR(VLOOKUP(A193,'Critical Roles'!A193:B1000181,2,FALSE),\"\")","v":""}]
[null,{"$f":"IFERROR(VLOOKUP(A194,'Critical Roles'!A194:B1000182,2,FALSE),\"\")","v":""}]
[null,{"$f":"IFERROR(VLOOKUP(A195,'Critical Roles'!A195:B1000183,2,FALSE),\"\")","v":""}]
[null,{"$f":"IFERROR(VLOOKUP(A196,'Critical Roles'!A196:B1000184,2,FALSE),\"\")","v":""}]
[null,{"$f":"IFERROR(VLOOKUP(A197,'Critical Roles'!A197:B1000185,2,FALSE),\"\")","v":""}]
[null,{"$f":"IFERROR(VLOOKUP(A198,'Critical Roles'!A198:B1000186,2,FALSE),\"\")","v":""}]
[null,{"$f":"IFERROR(VLOOKUP(A199,'Critical Roles'!A199:B1000187,2,FALSE),\"\")","v":""}]
[null,{"$f":"IFERROR(VLOOKUP(A200,'Critical Roles'!A200:B1000188,2,FALSE),\"\")","v":""}]
[null,{"$f":"IFERROR(VLOOKUP(A201,'Critical Roles'!A201:B1000189,2,FALSE),\"\")","v":""}]
[null,{"$f":"IFERROR(VLOOKUP(A202,'Critical Roles'!A202:B1000190,2,FALSE),\"\")","v":""}]
[null,{"$f":"IFERROR(VLOOKUP(A203,'Critical Roles'!A203:B1000191,2,FALSE),\"\")","v":""}]
[null,{"$f":"IFERROR(VLOOKUP(A204,'Critical Roles'!A204:B1000192,2,FALSE),\"\")","v":""}]
[null,{"$f":"IFERROR(VLOOKUP(A205,'Critical Roles'!A205:B1000193,2,FALSE),\"\")","v":""}]
[null,{"$f":"IFERROR(VLOOKUP(A206,'Critical Roles'!A206:B1000194,2,FALSE),\"\")","v":""}]
[null,{"$f":"IFERROR(VLOOKUP(A207,'Critical Roles'!A207:B1000195,2,FALSE),\"\")","v":""}]
[null,{"$f":"IFERROR(VLOOKUP(A208,'Critical Roles'!A208:B1000196,2,FALSE),\"\")","v":""}]
[null,{"$f":"IFERROR(VLOOKUP(A209,'Critical Roles'!A209:B1000197,2,FALSE),\"\")","v":""}]
[null,{"$f":"IFERROR(VLOOKUP(A210,'Critical Roles'!A210:B1000198,2,FALSE),\"\")","v":""}]
[null,{"$f":"IFERROR(VLOOKUP(A211,'Critical Roles'!A211:B1000199,2,FALSE),\"\")","v":""}]
[null,{"$f":"IFERROR(VLOOKUP(A212,'Critical Roles'!A212:B1000200,2,FALSE),\"\")","v":""}]
[null,{"$f":"IFERROR(VLOOKUP(A213,'Critical Roles'!A213:B1000201,2,FALSE),\"\")","v":""}]
[null,{"$f":"IFERROR(VLOOKUP(A214,'Critical Roles'!A214:B1000202,2,FALSE),\"\")","v":""}]
[null,{"$f":"IFERROR(VLOOKUP(A215,'Critical Roles'!A215:B1000203,2,FALSE),\"\")","v":""}]
[null,{"$f":"IFERROR(VLOOKUP(A216,'Critical Roles'!A216:B1000204,2,FALSE),\"\")","v":""}]
[null,{"$f":"IFERROR(VLOOKUP(A217,'Critical Roles'!A217:B1000205,2,FALSE),\"\")","v":""}]
[null,{"$f":"IFERROR(VLOOKUP(A218,'Critical Roles'!A218:B1000206,2,FALSE),\"\")","v":""}]
[null,{"$f":"IFERROR(VLOOKUP(A219,'Critical Roles'!A219:B1000207,2,FALSE),\"\")","v":""}]
[null,{"$f":"IFERROR(VLOOKUP(A220,'Critical Roles'!A220:B1000208,2,FALSE),\"\")","v":""}]
[null,{"$f":"IFERROR(VLOOKUP(A221,'Critical Roles'!A221:B1000209,2,FALSE),\"\")","v":""}]
[null,{"$f":"IFERROR(VLOOKUP(A222,'Critical Roles'!A222:B1000210,2,FALSE),\"\")","v":""}]
[null,{"$f":"IFERROR(VLOOKUP(A223,'Critical Roles'!A223:B1000211,2,FALSE),\"\")","v":""}]
[null,{"$f":"IFERROR(VLOOKUP(A224,'Critical Roles'!A224:B1000212,2,FALSE),\"\")","v":""}]
[null,{"$f":"IFERROR(VLOOKUP(A225,'Critical Roles'!A225:B1000213,2,FALSE),\"\")","v":""}]
[null,{"$f":"IFERROR(VLOOKUP(A226,'Critical Roles'!A226:B1000214,2,FALSE),\"\")","v":""}]
[null,{"$f":"IFERROR(VLOOKUP(A227,'Critical Roles'!A227:B1000215,2,FALSE),\"\")","v":""}]
[null,{"$f":"IFERROR(VLOOKUP(A228,'Critical Roles'!A228:B1000216,2,FALSE),\"\")","v":""}]
[null,{"$f":"IFERROR(VLOOKUP(A229,'Critical Roles'!A229:B1000217,2,FALSE),\"\")","v":""}]
[null,{"$f":"IFERROR(VLOOKUP(A230,'Critical Roles'!A230:B1000218,2,FALSE),\"\")","v":""}]
[null,{"$f":"IFERROR(VLOOKUP(A231,'Critical Roles'!A231:B1000219,2,FALSE),\"\")","v":""}]
[null,{"$f":"IFERROR(VLOOKUP(A232,'Critical Roles'!A232:B1000220,2,FALSE),\"\")","v":""}]
[null,{"$f":"IFERROR(VLOOKUP(A233,'Critical Roles'!A233:B1000221,2,FALSE),\"\")","v":""}]
[null,{"$f":"IFERROR(VLOOKUP(A234,'Critical Roles'!A234:B1000222,2,FALSE),\"\")","v":""}]
[null,{"$f":"IFERROR(VLOOKUP(A235,'Critical Roles'!A235:B1000223,2,FALSE),\"\")","v":""}]
[null,{"$f":"IFERROR(VLOOKUP(A236,'Critical Roles'!A236:B1000224,2,FALSE),\"\")","v":""}]
[null,{"$f":"IFERROR(VLOOKUP(A237,'Critical Roles'!A237:B1000225,2,FALSE),\"\")","v":""}]
[null,{"$f":"IFERROR(VLOOKUP(A238,'Critical Roles'!A238:B1000226,2,FALSE),\"\")","v":""}]
[null,{"$f":"IFERROR(VLOOKUP(A239,'Critical Roles'!A239:B1000227,2,FALSE),\"\")","v":""}]
[null,{"$f":"IFERROR(VLOOKUP(A240,'Critical Roles'!A240:B1000228,2,FALSE),\"\")","v":""}]
[null,{"$f":"IFERROR(VLOOKUP(A241,'Critical Roles'!A241:B1000229,2,FALSE),\"\")","v":""}]
[null,{"$f":"IFERROR(VLOOKUP(A242,'Critical Roles'!A242:B1000230,2,FALSE),\"\")","v":""}]
[null,{"$f":"IFERROR(VLOOKUP(A243,'Critical Roles'!A243:B1000231,2,FALSE),\"\")","v":""}]
[null,{"$f":"IFERROR(VLOOKUP(A244,'Critical Roles'!A244:B1000232,2,FALSE),\"\")","v":""}]
[null,{"$f":"IFERROR(VLOOKUP(A245,'Critical Roles'!A245:B1000233,2,FALSE),\"\")","v":""}]
[null,{"$f":"IFERROR(VLOOKUP(A246,'Critical Roles'!A246:B1000234,2,FALSE),\"\")","v":""}]
[null,{"$f":"IFERROR(VLOOKUP(A247,'Critical Roles'!A247:B1000235,2,FALSE),\"\")","v":""}]
[null,{"$f":"IFERROR(VLOOKUP(A248,'Critical Roles'!A248:B1000236,2,FALSE),\"\")","v":""}]
[null,{"$f":"IFERROR(VLOOKUP(A249,'Critical Roles'!A249:B1000237,2,FALSE),\"\")","v":""}]
[null,{"$f":"IFERROR(VLOOKUP(A250,'Critical Roles'!A250:B1000238,2,FALSE),\"\")","v":""}]
[null,{"$f":"IFERROR(VLOOKUP(A251,'Critical Roles'!A251:B1000239,2,FALSE),\"\")","v":""}]
[null,{"$f":"IFERROR(VLOOKUP(A252,'Critical Roles'!A252:B1000240,2,FALSE),\"\")","v":""}]
[null,{"$f":"IFERROR(VLOOKUP(A253,'Critical Roles'!A253:B1000241,2,FALSE),\"\")","v":""}]
[null,{"$f":"IFERROR(VLOOKUP(A254,'Critical Roles'!A254:B1000242,2,FALSE),\"\")","v":""}]
[null,{"$f":"IFERROR(VLOOKUP(A255,'Critical Roles'!A255:B1000243,2,FALSE),\"\")","v":""}]
[null,{"$f":"IFERROR(VLOOKUP(A256,'Critical Roles'!A256:B1000244,2,FALSE),\"\")","v":""}]
[null,{"$f":"IFERROR(VLOOKUP(A257,'Critical Roles'!A257:B1000245,2,FALSE),\"\")","v":""}]
[null,{"$f":"IFERROR(VLOOKUP(A258,'Critical Roles'!A258:B1000246,2,FALSE),\"\")","v":""}]
[null,{"$f":"IFERROR(VLOOKUP(A259,'Critical Roles'!A259:B1000247,2,FALSE),\"\")","v":""}]
[null,{"$f":"IFERROR(VLOOKUP(A260,'Critical Roles'!A260:B1000248,2,FALSE),\"\")","v":""}]
[null,{"$f":"IFERROR(VLOOKUP(A261,'Critical Roles'!A261:B1000249,2,FALSE),\"\")","v":""}]
[null,{"$f":"IFERROR(VLOOKUP(A262,'Critical Roles'!A262:B1000250,2,FALSE),\"\")","v":""}]
[null,{"$f":"IFERROR(VLOOKUP(A263,'Critical Roles'!A263:B1000251,2,FALSE),\"\")","v":""}]
[null,{"$f":"IFERROR(VLOOKUP(A264,'Critical Roles'!A264:B1000252,2,FALSE),\"\")","v":""}]
[null,{"$f":"IFERROR(VLOOKUP(A265,'Critical Roles'!A265:B1000253,2,FALSE),\"\")","v":""}]
[null,{"$f":"IFERROR(VLOOKUP(A266,'Critical Roles'!A266:B1000254,2,FALSE),\"\")","v":""}]
[null,{"$f":"IFERROR(VLOOKUP(A267,'Critical Roles'!A267:B1000255,2,FALSE),\"\")","v":""}]
[null,{"$f":"IFERROR(VLOOKUP(A268,'Critical Roles'!A268:B1000256,2,FALSE),\"\")","v":""}]
[null,{"$f":"IFERROR(VLOOKUP(A269,'Critical Roles'!A269:B1000257,2,FALSE),\"\")","v":""}]
[null,{"$f":"IFERROR(VLOOKUP(A270,'Critical Roles'!A270:B1000258,2,FALSE),\"\")","v":""}]
[null,{"$f":"IFERROR(VLOOKUP(A271,'Critical Roles'!A271:B1000259,2,FALSE),\"\")","v":""}]
[null,{"$f":"IFERROR(VLOOKUP(A272,'Critical Roles'!A272:B1000260,2,FALSE),\"\")","v":""}]
[null,{"$f":"IFERROR(VLOOKUP(A273,'Critical Roles'!A273:B1000261,2,FALSE),\"\")","v":""}]
[null,{"$f":"IFERROR(VLOOKUP(A274,'Critical Roles'!A274:B1000262,2,FALSE),\"\")","v":""}]
[null,{"$f":"IFERROR(VLOOKUP(A275,'Critical Roles'!A275:B1000263,2,FALSE),\"\")","v":""}]
[null,{"$f":"IFERROR(VLOOKUP(A276,'Critical Roles'!A276:B1000264,2,FALSE),\"\")","v":""}]
[null,{"$f":"IFERROR(VLOOKUP(A277,'Critical Roles'!A277:B1000265,2,FALSE),\"\")","v":""}]
[null,{"$f":"IFERROR(VLOOKUP(A278,'Critical Roles'!A278:B1000266,2,FALSE),\"\")","v":""}]
[null,{"$f":"IFERROR(VLOOKUP(A279,'Critical Roles'!A279:B1000267,2,FALSE),\"\")","v":""}]
[null,{"$f":"IFERROR(VLOOKUP(A280,'Critical Roles'!A280:B1000268,2,FALSE),\"\")","v":""}]
[null,{"$f":"IFERROR(VLOOKUP(A281,'Critical Roles'!A281:B1000269,2,FALSE),\"\")","v":""}]
[null,{"$f":"IFERROR(VLOOKUP(A282,'Critical Roles'!A282:B1000270,2,FALSE),\"\")","v":""}]
[null,{"$f":"IFERROR(VLOOKUP(A283,'Critical Roles'!A283:B1000271,2,FALSE),\"\")","v":""}]
[null,{"$f":"IFERROR(VLOOKUP(A284,'Critical Roles'!A284:B1000272,2,FALSE),\"\")","v":""}]
[null,{"$f":"IFERROR(VLOOKUP(A285,'Critical Roles'!A285:B1000273,2,FALSE),\"\")","v":""}]
[null,{"$f":"IFERROR(VLOOKUP(A286,'Critical Roles'!A286:B1000274,2,FALSE),\"\")","v":""}]
[null,{"$f":"IFERROR(VLOOKUP(A287,'Critical Roles'!A287:B1000275,2,FALSE),\"\")","v":""}]
[null,{"$f":"IFERROR(VLOOKUP(A288,'Critical Roles'!A288:B1000276,2,FALSE),\"\")","v":""}]
[null,{"$f":"IFERROR(VLOOKUP(A289,'Critical Roles'!A289:B1000277,2,FALSE),\"\")","v":""}]
[null,{"$f":"IFERROR(VLOOKUP(A290,'Critical Roles'!A290:B1000278,2,FALSE),\"\")","v":""}]
[null,{"$f":"IFERROR(VLOOKUP(A291,'Critical Roles'!A291:B1000279,2,FALSE),\"\")","v":""}]
[null,{"$f":"IFERROR(VLOOKUP(A292,'Critical Roles'!A292:B1000280,2,FALSE),\"\")","v":""}]
[null,{"$f":"IFERROR(VLOOKUP(A293,'Critical Roles'!A293:B1000281,2,FALSE),\"\")","v":""}]
[null,{"$f":"IFERROR(VLOOKUP(A294,'Critical Roles'!A294:B1000282,2,FALSE),\"\")","v":""}]
[null,{"$f":"IFERROR(VLOOKUP(A295,'Critical Roles'!A295:B1000283,2,FALSE),\"\")","v":""}]
[null,{"$f":"IFERROR(VLOOKUP(A296,'Critical Roles'!A296:B1000284,2,FALSE),\"\")","v":""}]
[null,{"$f":"IFERROR(VLOOKUP(A297,'Critical Roles'!A297:B1000285,2,FALSE),\"\")","v":""}]
[null,{"$f":"IFERROR(VLOOKUP(A298,'Critical Roles'!A298:B1000286,2,FALSE),\"\")","v":""}]
[null,{"$f":"IFERROR(VLOOKUP(A299,'Critical Roles'!A299:B1000287,2,FALSE),\"\")","v":""}]
[null,{"$f":"IFERROR(VLOOKUP(A300,'Critical Roles'!A300:B1000288,2,FALSE),\"\")","v":""}]
[null,{"$f":"IFERROR(VLOOKUP(A301,'Critical Roles'!A301:B1000289,2,FALSE),\"\")","v":""}]
[null,{"$f":"IFERROR(VLOOKUP(A302,'Critical Roles'!A302:B1000290,2,FALSE),\"\")","v":""}]
[null,{"$f":"IFERROR(VLOOKUP(A303,'Critical Roles'!A303:B1000291,2,FALSE),\"\")","v":""}]
[null,{"$f":"IFERROR(VLOOKUP(A304,'Critical Roles'!A304:B1000292,2,FALSE),\"\")","v":""}]
[null,{"$f":"IFERROR(VLOOKUP(A305,'Critical Roles'!A305:B1000293,2,FALSE),\"\")","v":""}]
[null,{"$f":"IFERROR(VLOOKUP(A306,'Critical Roles'!A306:B1000294,2,FALSE),\"\")","v":""}]
[null,{"$f":"IFERROR(VLOOKUP(A307,'Critical Roles'!A307:B1000295,2,FALSE),\"\")","v":""}]
[null,{"$f":"IFERROR(VLOOKUP(A308,'Critical Roles'!A308:B1000296,2,FALSE),\"\")","v":""}]
[null,{"$f":"IFERROR(VLOOKUP(A309,'Critical Roles'!A309:B1000297,2,FALSE),\"\")","v":""}]
[null,{"$f":"IFERROR(VLOOKUP(A310,'Critical Roles'!A310:B1000298,2,FALSE),\"\")","v":""}]
[null,{"$f":"IFERROR(VLOOKUP(A311,'Critical Roles'!A311:B1000299,2,FALSE),\"\")","v":""}]
[null,{"$f":"IFERROR(VLOOKUP(A312,'Critical Roles'!A312:B1000300,2,FALSE),\"\")","v":""}]
[null,{"$f":"IFERROR(VLOOKUP(A313,'Critical Roles'!A313:B1000301,2,FALSE),\"\")","v":""}]
[null,{"$f":"IFERROR(VLOOKUP(A314,'Critical Roles'!A314:B1000302,2,FALSE),\"\")","v":""}]
[null,{"$f":"IFERROR(VLOOKUP(A315,'Critical Roles'!A315:B1000303,2,FALSE),\"\")","v":""}]
[null,{"$f":"IFERROR(VLOOKUP(A316,'Critical Roles'!A316:B1000304,2,FALSE),\"\")","v":""}]
[null,{"$f":"IFERROR(VLOOKUP(A317,'Critical Roles'!A317:B1000305,2,FALSE),\"\")","v":""}]
[null,{"$f":"IFERROR(VLOOKUP(A318,'Critical Roles'!A318:B1000306,2,FALSE),\"\")","v":""}]
[null,{"$f":"IFERROR(VLOOKUP(A319,'Critical Roles'!A319:B1000307,2,FALSE),\"\")","v":""}]
[null,{"$f":"IFERROR(VLOOKUP(A320,'Critical Roles'!A320:B1000308,2,FALSE),\"\")","v":""}]
[null,{"$f":"IFERROR(VLOOKUP(A321,'Critical Roles'!A321:B1000309,2,FALSE),\"\")","v":""}]
[null,{"$f":"IFERROR(VLOOKUP(A322,'Critical Roles'!A322:B1000310,2,FALSE),\"\")","v":""}]
[null,{"$f":"IFERROR(VLOOKUP(A323,'Critical Roles'!A323:B1000311,2,FALSE),\"\")","v":""}]
[null,{"$f":"IFERROR(VLOOKUP(A324,'Critical Roles'!A324:B1000312,2,FALSE),\"\")","v":""}]
[null,{"$f":"IFERROR(VLOOKUP(A325,'Critical Roles'!A325:B1000313,2,FALSE),\"\")","v":""}]
[null,{"$f":"IFERROR(VLOOKUP(A326,'Critical Roles'!A326:B1000314,2,FALSE),\"\")","v":""}]
[null,{"$f":"IFERROR(VLOOKUP(A327,'Critical Roles'!A327:B1000315,2,FALSE),\"\")","v":""}]
[null,{"$f":"IFERROR(VLOOKUP(A328,'Critical Roles'!A328:B1000316,2,FALSE),\"\")","v":""}]
[null,{"$f":"IFERROR(VLOOKUP(A329,'Critical Roles'!A329:B1000317,2,FALSE),\"\")","v":""}]
[null,{"$f":"IFERROR(VLOOKUP(A330,'Critical Roles'!A330:B1000318,2,FALSE),\"\")","v":""}]
[null,{"$f":"IFERROR(VLOOKUP(A331,'Critical Roles'!A331:B1000319,2,FALSE),\"\")","v":""}]
[null,{"$f":"IFERROR(VLOOKUP(A332,'Critical Roles'!A332:B1000320,2,FALSE),\"\")","v":""}]
[null,{"$f":"IFERROR(VLOOKUP(A333,'Critical Roles'!A333:B1000321,2,FALSE),\"\")","v":""}]
[null,{"$f":"IFERROR(VLOOKUP(A334,'Critical Roles'!A334:B1000322,2,FALSE),\"\")","v":""}]
[null,{"$f":"IFERROR(VLOOKUP(A335,'Critical Roles'!A335:B1000323,2,FALSE),\"\")","v":""}]
[null,{"$f":"IFERROR(VLOOKUP(A336,'Critical Roles'!A336:B1000324,2,FALSE),\"\")","v":""}]
[null,{"$f":"IFERROR(VLOOKUP(A337,'Critical Roles'!A337:B1000325,2,FALSE),\"\")","v":""}]
[null,{"$f":"IFERROR(VLOOKUP(A338,'Critical Roles'!A338:B1000326,2,FALSE),\"\")","v":""}]
[null,{"$f":"IFERROR(VLOOKUP(A339,'Critical Roles'!A339:B1000327,2,FALSE),\"\")","v":""}]
[null,{"$f":"IFERROR(VLOOKUP(A340,'Critical Roles'!A340:B1000328,2,FALSE),\"\")","v":""}]
[null,{"$f":"IFERROR(VLOOKUP(A341,'Critical Roles'!A341:B1000329,2,FALSE),\"\")","v":""}]
[null,{"$f":"IFERROR(VLOOKUP(A342,'Critical Roles'!A342:B1000330,2,FALSE),\"\")","v":""}]
[null,{"$f":"IFERROR(VLOOKUP(A343,'Critical Roles'!A343:B1000331,2,FALSE),\"\")","v":""}]
[null,{"$f":"IFERROR(VLOOKUP(A344,'Critical Roles'!A344:B1000332,2,FALSE),\"\")","v":""}]
[null,{"$f":"IFERROR(VLOOKUP(A345,'Critical Roles'!A345:B1000333,2,FALSE),\"\")","v":""}]
[null,{"$f":"IFERROR(VLOOKUP(A346,'Critical Roles'!A346:B1000334,2,FALSE),\"\")","v":""}]
[null,{"$f":"IFERROR(VLOOKUP(A347,'Critical Roles'!A347:B1000335,2,FALSE),\"\")","v":""}]
[null,{"$f":"IFERROR(VLOOKUP(A348,'Critical Roles'!A348:B1000336,2,FALSE),\"\")","v":""}]
[null,{"$f":"IFERROR(VLOOKUP(A349,'Critical Roles'!A349:B1000337,2,FALSE),\"\")","v":""}]
[null,{"$f":"IFERROR(VLOOKUP(A350,'Critical Roles'!A350:B1000338,2,FALSE),\"\")","v":""}]
[null,{"$f":"IFERROR(VLOOKUP(A351,'Critical Roles'!A351:B1000339,2,FALSE),\"\")","v":""}]
[null,{"$f":"IFERROR(VLOOKUP(A352,'Critical Roles'!A352:B1000340,2,FALSE),\"\")","v":""}]
[null,{"$f":"IFERROR(VLOOKUP(A353,'Critical Roles'!A353:B1000341,2,FALSE),\"\")","v":""}]
[null,{"$f":"IFERROR(VLOOKUP(A354,'Critical Roles'!A354:B1000342,2,FALSE),\"\")","v":""}]
[null,{"$f":"IFERROR(VLOOKUP(A355,'Critical Roles'!A355:B1000343,2,FALSE),\"\")","v":""}]
[null,{"$f":"IFERROR(VLOOKUP(A356,'Critical Roles'!A356:B1000344,2,FALSE),\"\")","v":""}]
[null,{"$f":"IFERROR(VLOOKUP(A357,'Critical Roles'!A357:B1000345,2,FALSE),\"\")","v":""}]
[null,{"$f":"IFERROR(VLOOKUP(A358,'Critical Roles'!A358:B1000346,2,FALSE),\"\")","v":""}]
[null,{"$f":"IFERROR(VLOOKUP(A359,'Critical Roles'!A359:B1000347,2,FALSE),\"\")","v":""}]
[null,{"$f":"IFERROR(VLOOKUP(A360,'Critical Roles'!A360:B1000348,2,FALSE),\"\")","v":""}]
[null,{"$f":"IFERROR(VLOOKUP(A361,'Critical Roles'!A361:B1000349,2,FALSE),\"\")","v":""}]
[null,{"$f":"IFERROR(VLOOKUP(A362,'Critical Roles'!A362:B1000350,2,FALSE),\"\")","v":""}]
[null,{"$f":"IFERROR(VLOOKUP(A363,'Critical Roles'!A363:B1000351,2,FALSE),\"\")","v":""}]
[null,{"$f":"IFERROR(VLOOKUP(A364,'Critical Roles'!A364:B1000352,2,FALSE),\"\")","v":""}]
[null,{"$f":"IFERROR(VLOOKUP(A365,'Critical Roles'!A365:B1000353,2,FALSE),\"\")","v":""}]
[null,{"$f":"IFERROR(VLOOKUP(A366,'Critical Roles'!A366:B1000354,2,FALSE),\"\")","v":""}]
[null,{"$f":"IFERROR(VLOOKUP(A367,'Critical Roles'!A367:B1000355,2,FALSE),\"\")","v":""}]
[null,{"$f":"IFERROR(VLOOKUP(A368,'Critical Roles'!A368:B1000356,2,FALSE),\"\")","v":""}]
[null,{"$f":"IFERROR(VLOOKUP(A369,'Critical Roles'!A369:B1000357,2,FALSE),\"\")","v":""}]
[null,{"$f":"IFERROR(VLOOKUP(A370,'Critical Roles'!A370:B1000358,2,FALSE),\"\")","v":""}]
[null,{"$f":"IFERROR(VLOOKUP(A371,'Critical Roles'!A371:B1000359,2,FALSE),\"\")","v":""}]
[null,{"$f":"IFERROR(VLOOKUP(A372,'Critical Roles'!A372:B1000360,2,FALSE),\"\")","v":""}]
[null,{"$f":"IFERROR(VLOOKUP(A373,'Critical Roles'!A373:B1000361,2,FALSE),\"\")","v":""}]
[null,{"$f":"IFERROR(VLOOKUP(A374,'Critical Roles'!A374:B1000362,2,FALSE),\"\")","v":""}]
[null,{"$f":"IFERROR(VLOOKUP(A375,'Critical Roles'!A375:B1000363,2,FALSE),\"\")","v":""}]
[null,{"$f":"IFERROR(VLOOKUP(A376,'Critical Roles'!A376:B1000364,2,FALSE),\"\")","v":""}]
[null,{"$f":"IFERROR(VLOOKUP(A377,'Critical Roles'!A377:B1000365,2,FALSE),\"\")","v":""}]
[null,{"$f":"IFERROR(VLOOKUP(A378,'Critical Roles'!A378:B1000366,2,FALSE),\"\")","v":""}]
[null,{"$f":"IFERROR(VLOOKUP(A379,'Critical Roles'!A379:B1000367,2,FALSE),\"\")","v":""}]
[null,{"$f":"IFERROR(VLOOKUP(A380,'Critical Roles'!A380:B1000368,2,FALSE),\"\")","v":""}]
[null,{"$f":"IFERROR(VLOOKUP(A381,'Critical Roles'!A381:B1000369,2,FALSE),\"\")","v":""}]
[null,{"$f":"IFERROR(VLOOKUP(A382,'Critical Roles'!A382:B1000370,2,FALSE),\"\")","v":""}]
[null,{"$f":"IFERROR(VLOOKUP(A383,'Critical Roles'!A383:B1000371,2,FALSE),\"\")","v":""}]
[null,{"$f":"IFERROR(VLOOKUP(A384,'Critical Roles'!A384:B1000372,2,FALSE),\"\")","v":""}]
[null,{"$f":"IFERROR(VLOOKUP(A385,'Critical Roles'!A385:B1000373,2,FALSE),\"\")","v":""}]
[null,{"$f":"IFERROR(VLOOKUP(A386,'Critical Roles'!A386:B1000374,2,FALSE),\"\")","v":""}]
[null,{"$f":"IFERROR(VLOOKUP(A387,'Critical Roles'!A387:B1000375,2,FALSE),\"\")","v":""}]
[null,{"$f":"IFERROR(VLOOKUP(A388,'Critical Roles'!A388:B1000376,2,FALSE),\"\")","v":""}]
[null,{"$f":"IFERROR(VLOOKUP(A389,'Critical Roles'!A389:B1000377,2,FALSE),\"\")","v":""}]
[null,{"$f":"IFERROR(VLOOKUP(A390,'Critical Roles'!A390:B1000378,2,FALSE),\"\")","v":""}]
[null,{"$f":"IFERROR(VLOOKUP(A391,'Critical Roles'!A391:B1000379,2,FALSE),\"\")","v":""}]
[null,{"$f":"IFERROR(VLOOKUP(A392,'Critical Roles'!A392:B1000380,2,FALSE),\"\")","v":""}]
[null,{"$f":"IFERROR(VLOOKUP(A393,'Critical Roles'!A393:B1000381,2,FALSE),\"\")","v":""}]
[null,{"$f":"IFERROR(VLOOKUP(A394,'Critical Roles'!A394:B1000382,2,FALSE),\"\")","v":""}]
[null,{"$f":"IFERROR(VLOOKUP(A395,'Critical Roles'!A395:B1000383,2,FALSE),\"\")","v":""}]
[null,{"$f":"IFERROR(VLOOKUP(A396,'Critical Roles'!A396:B1000384,2,FALSE),\"\")","v":""}]
[null,{"$f":"IFERROR(VLOOKUP(A397,'Critical Roles'!A397:B1000385,2,FALSE),\"\")","v":""}]
[null,{"$f":"IFERROR(VLOOKUP(A398,'Critical Roles'!A398:B1000386,2,FALSE),\"\")","v":""}]
[null,{"$f":"IFERROR(VLOOKUP(A399,'Critical Roles'!A399:B1000387,2,FALSE),\"\")","v":""}]
[null,{"$f":"IFERROR(VLOOKUP(A400,'Critical Roles'!A400:B1000388,2,FALSE),\"\")","v":""}]
[null,{"$f":"IFERROR(VLOOKUP(A401,'Critical Roles'!A401:B1000389,2,FALSE),\"\")","v":""}]
[null,{"$f":"IFERROR(VLOOKUP(A402,'Critical Roles'!A402:B1000390,2,FALSE),\"\")","v":""}]
[null,{"$f":"IFERROR(VLOOKUP(A403,'Critical Roles'!A403:B1000391,2,FALSE),\"\")","v":""}]
[null,{"$f":"IFERROR(VLOOKUP(A404,'Critical Roles'!A404:B1000392,2,FALSE),\"\")","v":""}]
[null,{"$f":"IFERROR(VLOOKUP(A405,'Critical Roles'!A405:B1000393,2,FALSE),\"\")","v":""}]
[null,{"$f":"IFERROR(VLOOKUP(A406,'Critical Roles'!A406:B1000394,2,FALSE),\"\")","v":""}]
[null,{"$f":"IFERROR(VLOOKUP(A407,'Critical Roles'!A407:B1000395,2,FALSE),\"\")","v":""}]
[null,{"$f":"IFERROR(VLOOKUP(A408,'Critical Roles'!A408:B1000396,2,FALSE),\"\")","v":""}]
[null,{"$f":"IFERROR(VLOOKUP(A409,'Critical Roles'!A409:B1000397,2,FALSE),\"\")","v":""}]
[null,{"$f":"IFERROR(VLOOKUP(A410,'Critical Roles'!A410:B1000398,2,FALSE),\"\")","v":""}]
[null,{"$f":"IFERROR(VLOOKUP(A411,'Critical Roles'!A411:B1000399,2,FALSE),\"\")","v":""}]
[null,{"$f":"IFERROR(VLOOKUP(A412,'Critical Roles'!A412:B1000400,2,FALSE),\"\")","v":""}]
[null,{"$f":"IFERROR(VLOOKUP(A413,'Critical Roles'!A413:B1000401,2,FALSE),\"\")","v":""}]
[null,{"$f":"IFERROR(VLOOKUP(A414,'Critical Roles'!A414:B1000402,2,FALSE),\"\")","v":""}]
[null,{"$f":"IFERROR(VLOOKUP(A415,'Critical Roles'!A415:B1000403,2,FALSE),\"\")","v":""}]
[null,{"$f":"IFERROR(VLOOKUP(A416,'Critical Roles'!A416:B1000404,2,FALSE),\"\")","v":""}]
[null,{"$f":"IFERROR(VLOOKUP(A417,'Critical Roles'!A417:B1000405,2,FALSE),\"\")","v":""}]
[null,{"$f":"IFERROR(VLOOKUP(A418,'Critical Roles'!A418:B1000406,2,FALSE),\"\")","v":""}]
[null,{"$f":"IFERROR(VLOOKUP(A419,'Critical Roles'!A419:B1000407,2,FALSE),\"\")","v":""}]
[null,{"$f":"IFERROR(VLOOKUP(A420,'Critical Roles'!A420:B1000408,2,FALSE),\"\")","v":""}]
[null,{"$f":"IFERROR(VLOOKUP(A421,'Critical Roles'!A421:B1000409,2,FALSE),\"\")","v":""}]
[null,{"$f":"IFERROR(VLOOKUP(A422,'Critical Roles'!A422:B1000410,2,FALSE),\"\")","v":""}]
[null,{"$f":"IFERROR(VLOOKUP(A423,'Critical Roles'!A423:B1000411,2,FALSE),\"\")","v":""}]
[null,{"$f":"IFERROR(VLOOKUP(A424,'Critical Roles'!A424:B1000412,2,FALSE),\"\")","v":""}]
[null,{"$f":"IFERROR(VLOOKUP(A425,'Critical Roles'!A425:B1000413,2,FALSE),\"\")","v":""}]
[null,{"$f":"IFERROR(VLOOKUP(A426,'Critical Roles'!A426:B1000414,2,FALSE),\"\")","v":""}]
[null,{"$f":"IFERROR(VLOOKUP(A427,'Critical Roles'!A427:B1000415,2,FALSE),\"\")","v":""}]
[null,{"$f":"IFERROR(VLOOKUP(A428,'Critical Roles'!A428:B1000416,2,FALSE),\"\")","v":""}]
[null,{"$f":"IFERROR(VLOOKUP(A429,'Critical Roles'!A429:B1000417,2,FALSE),\"\")","v":""}]
[null,{"$f":"IFERROR(VLOOKUP(A430,'Critical Roles'!A430:B1000418,2,FALSE),\"\")","v":""}]
[null,{"$f":"IFERROR(VLOOKUP(A431,'Critical Roles'!A431:B1000419,2,FALSE),\"\")","v":""}]
[null,{"$f":"IFERROR(VLOOKUP(A432,'Critical Roles'!A432:B1000420,2,FALSE),\"\")","v":""}]
[null,{"$f":"IFERROR(VLOOKUP(A433,'Critical Roles'!A433:B1000421,2,FALSE),\"\")","v":""}]
[null,{"$f":"IFERROR(VLOOKUP(A434,'Critical Roles'!A434:B1000422,2,FALSE),\"\")","v":""}]
[null,{"$f":"IFERROR(VLOOKUP(A435,'Critical Roles'!A435:B1000423,2,FALSE),\"\")","v":""}]
[null,{"$f":"IFERROR(VLOOKUP(A436,'Critical Roles'!A436:B1000424,2,FALSE),\"\")","v":""}]
[null,{"$f":"IFERROR(VLOOKUP(A437,'Critical Roles'!A437:B1000425,2,FALSE),\"\")","v":""}]
[null,{"$f":"IFERROR(VLOOKUP(A438,'Critical Roles'!A438:B1000426,2,FALSE),\"\")","v":""}]
[null,{"$f":"IFERROR(VLOOKUP(A439,'Critical Roles'!A439:B1000427,2,FALSE),\"\")","v":""}]
[null,{"$f":"IFERROR(VLOOKUP(A440,'Critical Roles'!A440:B1000428,2,FALSE),\"\")","v":""}]
[null,{"$f":"IFERROR(VLOOKUP(A441,'Critical Roles'!A441:B1000429,2,FALSE),\"\")","v":""}]
[null,{"$f":"IFERROR(VLOOKUP(A442,'Critical Roles'!A442:B1000430,2,FALSE),\"\")","v":""}]
[null,{"$f":"IFERROR(VLOOKUP(A443,'Critical Roles'!A443:B1000431,2,FALSE),\"\")","v":""}]
[null,{"$f":"IFERROR(VLOOKUP(A444,'Critical Roles'!A444:B1000432,2,FALSE),\"\")","v":""}]
[null,{"$f":"IFERROR(VLOOKUP(A445,'Critical Roles'!A445:B1000433,2,FALSE),\"\")","v":""}]
[null,{"$f":"IFERROR(VLOOKUP(A446,'Critical Roles'!A446:B1000434,2,FALSE),\"\")","v":""}]
[null,{"$f":"IFERROR(VLOOKUP(A447,'Critical Roles'!A447:B1000435,2,FALSE),\"\")","v":""}]
[null,{"$f":"IFERROR(VLOOKUP(A448,'Critical Roles'!A448:B1000436,2,FALSE),\"\")","v":""}]
[null,{"$f":"IFERROR(VLOOKUP(A449,'Critical Roles'!A449:B1000437,2,FALSE),\"\")","v":""}]
[null,{"$f":"IFERROR(VLOOKUP(A450,'Critical Roles'!A450:B1000438,2,FALSE),\"\")","v":""}]
[null,{"$f":"IFERROR(VLOOKUP(A451,'Critical Roles'!A451:B1000439,2,FALSE),\"\")","v":""}]
[null,{"$f":"IFERROR(VLOOKUP(A452,'Critical Roles'!A452:B1000440,2,FALSE),\"\")","v":""}]
[null,{"$f":"IFERROR(VLOOKUP(A453,'Critical Roles'!A453:B1000441,2,FALSE),\"\")","v":""}]
[null,{"$f":"IFERROR(VLOOKUP(A454,'Critical Roles'!A454:B1000442,2,FALSE),\"\")","v":""}]
[null,{"$f":"IFERROR(VLOOKUP(A455,'Critical Roles'!A455:B1000443,2,FALSE),\"\")","v":""}]
[null,{"$f":"IFERROR(VLOOKUP(A456,'Critical Roles'!A456:B1000444,2,FALSE),\"\")","v":""}]
[null,{"$f":"IFERROR(VLOOKUP(A457,'Critical Roles'!A457:B1000445,2,FALSE),\"\")","v":""}]
[null,{"$f":"IFERROR(VLOOKUP(A458,'Critical Roles'!A458:B1000446,2,FALSE),\"\")","v":""}]
[null,{"$f":"IFERROR(VLOOKUP(A459,'Critical Roles'!A459:B1000447,2,FALSE),\"\")","v":""}]
[null,{"$f":"IFERROR(VLOOKUP(A460,'Critical Roles'!A460:B1000448,2,FALSE),\"\")","v":""}]
[null,{"$f":"IFERROR(VLOOKUP(A461,'Critical Roles'!A461:B1000449,2,FALSE),\"\")","v":""}]
[null,{"$f":"IFERROR(VLOOKUP(A462,'Critical Roles'!A462:B1000450,2,FALSE),\"\")","v":""}]
[null,{"$f":"IFERROR(VLOOKUP(A463,'Critical Roles'!A463:B1000451,2,FALSE),\"\")","v":""}]
[null,{"$f":"IFERROR(VLOOKUP(A464,'Critical Roles'!A464:B1000452,2,FALSE),\"\")","v":""}]
[null,{"$f":"IFERROR(VLOOKUP(A465,'Critical Roles'!A465:B1000453,2,FALSE),\"\")","v":""}]
[null,{"$f":"IFERROR(VLOOKUP(A466,'Critical Roles'!A466:B1000454,2,FALSE),\"\")","v":""}]
[null,{"$f":"IFERROR(VLOOKUP(A467,'Critical Roles'!A467:B1000455,2,FALSE),\"\")","v":""}]
[null,{"$f":"IFERROR(VLOOKUP(A468,'Critical Roles'!A468:B1000456,2,FALSE),\"\")","v":""}]
[null,{"$f":"IFERROR(VLOOKUP(A469,'Critical Roles'!A469:B1000457,2,FALSE),\"\")","v":""}]
[null,{"$f":"IFERROR(VLOOKUP(A470,'Critical Roles'!A470:B1000458,2,FALSE),\"\")","v":""}]
[null,{"$f":"IFERROR(VLOOKUP(A471,'Critical Roles'!A471:B1000459,2,FALSE),\"\")","v":""}]
[null,{"$f":"IFERROR(VLOOKUP(A472,'Critical Roles'!A472:B1000460,2,FALSE),\"\")","v":""}]
[null,{"$f":"IFERROR(VLOOKUP(A473,'Critical Roles'!A473:B1000461,2,FALSE),\"\")","v":""}]
[null,{"$f":"IFERROR(VLOOKUP(A474,'Critical Roles'!A474:B1000462,2,FALSE),\"\")","v":""}]
[null,{"$f":"IFERROR(VLOOKUP(A475,'Critical Roles'!A475:B1000463,2,FALSE),\"\")","v":""}]
[null,{"$f":"IFERROR(VLOOKUP(A476,'Critical Roles'!A476:B1000464,2,FALSE),\"\")","v":""}]
[null,{"$f":"IFERROR(VLOOKUP(A477,'Critical Roles'!A477:B1000465,2,FALSE),\"\")","v":""}]
[null,{"$f":"IFERROR(VLOOKUP(A478,'Critical Roles'!A478:B1000466,2,FALSE),\"\")","v":""}]
[null,{"$f":"IFERROR(VLOOKUP(A479,'Critical Roles'!A479:B1000467,2,FALSE),\"\")","v":""}]
[null,{"$f":"IFERROR(VLOOKUP(A480,'Critical Roles'!A480:B1000468,2,FALSE),\"\")","v":""}]
[null,{"$f":"IFERROR(VLOOKUP(A481,'Critical Roles'!A481:B1000469,2,FALSE),\"\")","v":""}]
[null,{"$f":"IFERROR(VLOOKUP(A482,'Critical Roles'!A482:B1000470,2,FALSE),\"\")","v":""}]
[null,{"$f":"IFERROR(VLOOKUP(A483,'Critical Roles'!A483:B1000471,2,FALSE),\"\")","v":""}]
[null,{"$f":"IFERROR(VLOOKUP(A484,'Critical Roles'!A484:B1000472,2,FALSE),\"\")","v":""}]
[null,{"$f":"IFERROR(VLOOKUP(A485,'Critical Roles'!A485:B1000473,2,FALSE),\"\")","v":""}]
[null,{"$f":"IFERROR(VLOOKUP(A486,'Critical Roles'!A486:B1000474,2,FALSE),\"\")","v":""}]
[null,{"$f":"IFERROR(VLOOKUP(A487,'Critical Roles'!A487:B1000475,2,FALSE),\"\")","v":""}]
[null,{"$f":"IFERROR(VLOOKUP(A488,'Critical Roles'!A488:B1000476,2,FALSE),\"\")","v":""}]
[null,{"$f":"IFERROR(VLOOKUP(A489,'Critical Roles'!A489:B1000477,2,FALSE),\"\")","v":""}]
[null,{"$f":"IFERROR(VLOOKUP(A490,'Critical Roles'!A490:B1000478,2,FALSE),\"\")","v":""}]
[null,{"$f":"IFERROR(VLOOKUP(A491,'Critical Roles'!A491:B1000479,2,FALSE),\"\")","v":""}]
[null,{"$f":"IFERROR(VLOOKUP(A492,'Critical Roles'!A492:B1000480,2,FALSE),\"\")","v":""}]
[null,{"$f":"IFERROR(VLOOKUP(A493,'Critical Roles'!A493:B1000481,2,FALSE),\"\")","v":""}]
[null,{"$f":"IFERROR(VLOOKUP(A494,'Critical Roles'!A494:B1000482,2,FALSE),\"\")","v":""}]
[null,{"$f":"IFERROR(VLOOKUP(A495,'Critical Roles'!A495:B1000483,2,FALSE),\"\")","v":""}]
[null,{"$f":"IFERROR(VLOOKUP(A496,'Critical Roles'!A496:B1000484,2,FALSE),\"\")","v":""}]
[null,{"$f":"IFERROR(VLOOKUP(A497,'Critical Roles'!A497:B1000485,2,FALSE),\"\")","v":""}]
[null,{"$f":"IFERROR(VLOOKUP(A498,'Critical Roles'!A498:B1000486,2,FALSE),\"\")","v":""}]
[null,{"$f":"IFERROR(VLOOKUP(A499,'Critical Roles'!A499:B1000487,2,FALSE),\"\")","v":""}]
[null,{"$f":"IFERROR(VLOOKUP(A500,'Critical Roles'!A500:B1000488,2,FALSE),\"\")","v":""}]
[null,{"$f":"IFERROR(VLOOKUP(A501,'Critical Roles'!A501:B1000489,2,FALSE),\"\")","v":""}]
[null,{"$f":"IFERROR(VLOOKUP(A502,'Critical Roles'!A502:B1000490,2,FALSE),\"\")","v":""}]
[null,{"$f":"IFERROR(VLOOKUP(A503,'Critical Roles'!A503:B1000491,2,FALSE),\"\")","v":""}]
[null,{"$f":"IFERROR(VLOOKUP(A504,'Critical Roles'!A504:B1000492,2,FALSE),\"\")","v":""}]
[null,{"$f":"IFERROR(VLOOKUP(A505,'Critical Roles'!A505:B1000493,2,FALSE),\"\")","v":""}]
[null,{"$f":"IFERROR(VLOOKUP(A506,'Critical Roles'!A506:B1000494,2,FALSE),\"\")","v":""}]
[null,{"$f":"IFERROR(VLOOKUP(A507,'Critical Roles'!A507:B1000495,2,FALSE),\"\")","v":""}]
[null,{"$f":"IFERROR(VLOOKUP(A508,'Critical Roles'!A508:B1000496,2,FALSE),\"\")","v":""}]
[null,{"$f":"IFERROR(VLOOKUP(A509,'Critical Roles'!A509:B1000497,2,FALSE),\"\")","v":""}]
[null,{"$f":"IFERROR(VLOOKUP(A510,'Critical Roles'!A510:B1000498,2,FALSE),\"\")","v":""}]
[null,{"$f":"IFERROR(VLOOKUP(A511,'Critical Roles'!A511:B1000499,2,FALSE),\"\")","v":""}]
[null,{"$f":"IFERROR(VLOOKUP(A512,'Critical Roles'!A512:B1000500,2,FALSE),\"\")","v":""}]
[null,{"$f":"IFERROR(VLOOKUP(A513,'Critical Roles'!A513:B1000501,2,FALSE),\"\")","v":""}]
[null,{"$f":"IFERROR(VLOOKUP(A514,'Critical Roles'!A514:B1000502,2,FALSE),\"\")","v":""}]
[null,{"$f":"IFERROR(VLOOKUP(A515,'Critical Roles'!A515:B1000503,2,FALSE),\"\")","v":""}]
[null,{"$f":"IFERROR(VLOOKUP(A516,'Critical Roles'!A516:B1000504,2,FALSE),\"\")","v":""}]
[null,{"$f":"IFERROR(VLOOKUP(A517,'Critical Roles'!A517:B1000505,2,FALSE),\"\")","v":""}]
[null,{"$f":"IFERROR(VLOOKUP(A518,'Critical Roles'!A518:B1000506,2,FALSE),\"\")","v":""}]
[null,{"$f":"IFERROR(VLOOKUP(A519,'Critical Roles'!A519:B1000507,2,FALSE),\"\")","v":""}]
[null,{"$f":"IFERROR(VLOOKUP(A520,'Critical Roles'!A520:B1000508,2,FALSE),\"\")","v":""}]
[null,{"$f":"IFERROR(VLOOKUP(A521,'Critical Roles'!A521:B1000509,2,FALSE),\"\")","v":""}]
[null,{"$f":"IFERROR(VLOOKUP(A522,'Critical Roles'!A522:B1000510,2,FALSE),\"\")","v":""}]
[null,{"$f":"IFERROR(VLOOKUP(A523,'Critical Roles'!A523:B1000511,2,FALSE),\"\")","v":""}]
[null,{"$f":"IFERROR(VLOOKUP(A524,'Critical Roles'!A524:B1000512,2,FALSE),\"\")","v":""}]
[null,{"$f":"IFERROR(VLOOKUP(A525,'Critical Roles'!A525:B1000513,2,FALSE),\"\")","v":""}]
[null,{"$f":"IFERROR(VLOOKUP(A526,'Critical Roles'!A526:B1000514,2,FALSE),\"\")","v":""}]
[null,{"$f":"IFERROR(VLOOKUP(A527,'Critical Roles'!A527:B1000515,2,FALSE),\"\")","v":""}]
[null,{"$f":"IFERROR(VLOOKUP(A528,'Critical Roles'!A528:B1000516,2,FALSE),\"\")","v":""}]
[null,{"$f":"IFERROR(VLOOKUP(A529,'Critical Roles'!A529:B1000517,2,FALSE),\"\")","v":""}]
[null,{"$f":"IFERROR(VLOOKUP(A530,'Critical Roles'!A530:B1000518,2,FALSE),\"\")","v":""}]
[null,{"$f":"IFERROR(VLOOKUP(A531,'Critical Roles'!A531:B1000519,2,FALSE),\"\")","v":""}]
[null,{"$f":"IFERROR(VLOOKUP(A532,'Critical Roles'!A532:B1000520,2,FALSE),\"\")","v":""}]
[null,{"$f":"IFERROR(VLOOKUP(A533,'Critical Roles'!A533:B1000521,2,FALSE),\"\")","v":""}]
[null,{"$f":"IFERROR(VLOOKUP(A534,'Critical Roles'!A534:B1000522,2,FALSE),\"\")","v":""}]
[null,{"$f":"IFERROR(VLOOKUP(A535,'Critical Roles'!A535:B1000523,2,FALSE),\"\")","v":""}]
[null,{"$f":"IFERROR(VLOOKUP(A536,'Critical Roles'!A536:B1000524,2,FALSE),\"\")","v":""}]
[null,{"$f":"IFERROR(VLOOKUP(A537,'Critical Roles'!A537:B1000525,2,FALSE),\"\")","v":""}]
[null,{"$f":"IFERROR(VLOOKUP(A538,'Critical Roles'!A538:B1000526,2,FALSE),\"\")","v":""}]
[null,{"$f":"IFERROR(VLOOKUP(A539,'Critical Roles'!A539:B1000527,2,FALSE),\"\")","v":""}]
[null,{"$f":"IFERROR(VLOOKUP(A540,'Critical Roles'!A540:B1000528,2,FALSE),\"\")","v":""}]
[null,{"$f":"IFERROR(VLOOKUP(A541,'Critical Roles'!A541:B1000529,2,FALSE),\"\")","v":""}]
[null,{"$f":"IFERROR(VLOOKUP(A542,'Critical Roles'!A542:B1000530,2,FALSE),\"\")","v":""}]
[null,{"$f":"IFERROR(VLOOKUP(A543,'Critical Roles'!A543:B1000531,2,FALSE),\"\")","v":""}]
[null,{"$f":"IFERROR(VLOOKUP(A544,'Critical Roles'!A544:B1000532,2,FALSE),\"\")","v":""}]
[null,{"$f":"IFERROR(VLOOKUP(A545,'Critical Roles'!A545:B1000533,2,FALSE),\"\")","v":""}]
[null,{"$f":"IFERROR(VLOOKUP(A546,'Critical Roles'!A546:B1000534,2,FALSE),\"\")","v":""}]
[null,{"$f":"IFERROR(VLOOKUP(A547,'Critical Roles'!A547:B1000535,2,FALSE),\"\")","v":""}]
[null,{"$f":"IFERROR(VLOOKUP(A548,'Critical Roles'!A548:B1000536,2,FALSE),\"\")","v":""}]
[null,{"$f":"IFERROR(VLOOKUP(A549,'Critical Roles'!A549:B1000537,2,FALSE),\"\")","v":""}]
[null,{"$f":"IFERROR(VLOOKUP(A550,'Critical Roles'!A550:B1000538,2,FALSE),\"\")","v":""}]
[null,{"$f":"IFERROR(VLOOKUP(A551,'Critical Roles'!A551:B1000539,2,FALSE),\"\")","v":""}]
[null,{"$f":"IFERROR(VLOOKUP(A552,'Critical Roles'!A552:B1000540,2,FALSE),\"\")","v":""}]
[null,{"$f":"IFERROR(VLOOKUP(A553,'Critical Roles'!A553:B1000541,2,FALSE),\"\")","v":""}]
[null,{"$f":"IFERROR(VLOOKUP(A554,'Critical Roles'!A554:B1000542,2,FALSE),\"\")","v":""}]
[null,{"$f":"IFERROR(VLOOKUP(A555,'Critical Roles'!A555:B1000543,2,FALSE),\"\")","v":""}]
[null,{"$f":"IFERROR(VLOOKUP(A556,'Critical Roles'!A556:B1000544,2,FALSE),\"\")","v":""}]
[null,{"$f":"IFERROR(VLOOKUP(A557,'Critical Roles'!A557:B1000545,2,FALSE),\"\")","v":""}]
[null,{"$f":"IFERROR(VLOOKUP(A558,'Critical Roles'!A558:B1000546,2,FALSE),\"\")","v":""}]
[null,{"$f":"IFERROR(VLOOKUP(A559,'Critical Roles'!A559:B1000547,2,FALSE),\"\")","v":""}]
[null,{"$f":"IFERROR(VLOOKUP(A560,'Critical Roles'!A560:B1000548,2,FALSE),\"\")","v":""}]
[null,{"$f":"IFERROR(VLOOKUP(A561,'Critical Roles'!A561:B1000549,2,FALSE),\"\")","v":""}]
[null,{"$f":"IFERROR(VLOOKUP(A562,'Critical Roles'!A562:B1000550,2,FALSE),\"\")","v":""}]
[null,{"$f":"IFERROR(VLOOKUP(A563,'Critical Roles'!A563:B1000551,2,FALSE),\"\")","v":""}]
[null,{"$f":"IFERROR(VLOOKUP(A564,'Critical Roles'!A564:B1000552,2,FALSE),\"\")","v":""}]
[null,{"$f":"IFERROR(VLOOKUP(A565,'Critical Roles'!A565:B1000553,2,FALSE),\"\")","v":""}]
[null,{"$f":"IFERROR(VLOOKUP(A566,'Critical Roles'!A566:B1000554,2,FALSE),\"\")","v":""}]
[null,{"$f":"IFERROR(VLOOKUP(A567,'Critical Roles'!A567:B1000555,2,FALSE),\"\")","v":""}]
[null,{"$f":"IFERROR(VLOOKUP(A568,'Critical Roles'!A568:B1000556,2,FALSE),\"\")","v":""}]
[null,{"$f":"IFERROR(VLOOKUP(A569,'Critical Roles'!A569:B1000557,2,FALSE),\"\")","v":""}]
[null,{"$f":"IFERROR(VLOOKUP(A570,'Critical Roles'!A570:B1000558,2,FALSE),\"\")","v":""}]
[null,{"$f":"IFERROR(VLOOKUP(A571,'Critical Roles'!A571:B1000559,2,FALSE),\"\")","v":""}]
[null,{"$f":"IFERROR(VLOOKUP(A572,'Critical Roles'!A572:B1000560,2,FALSE),\"\")","v":""}]
[null,{"$f":"IFERROR(VLOOKUP(A573,'Critical Roles'!A573:B1000561,2,FALSE),\"\")","v":""}]
[null,{"$f":"IFERROR(VLOOKUP(A574,'Critical Roles'!A574:B1000562,2,FALSE),\"\")","v":""}]
[null,{"$f":"IFERROR(VLOOKUP(A575,'Critical Roles'!A575:B1000563,2,FALSE),\"\")","v":""}]
[null,{"$f":"IFERROR(VLOOKUP(A576,'Critical Roles'!A576:B1000564,2,FALSE),\"\")","v":""}]
[null,{"$f":"IFERROR(VLOOKUP(A577,'Critical Roles'!A577:B1000565,2,FALSE),\"\")","v":""}]
[null,{"$f":"IFERROR(VLOOKUP(A578,'Critical Roles'!A578:B1000566,2,FALSE),\"\")","v":""}]
[null,{"$f":"IFERROR(VLOOKUP(A579,'Critical Roles'!A579:B1000567,2,FALSE),\"\")","v":""}]
[null,{"$f":"IFERROR(VLOOKUP(A580,'Critical Roles'!A580:B1000568,2,FALSE),\"\")","v":""}]
[null,{"$f":"IFERROR(VLOOKUP(A581,'Critical Roles'!A581:B1000569,2,FALSE),\"\")","v":""}]
[null,{"$f":"IFERROR(VLOOKUP(A582,'Critical Roles'!A582:B1000570,2,FALSE),\"\")","v":""}]
[null,{"$f":"IFERROR(VLOOKUP(A583,'Critical Roles'!A583:B1000571,2,FALSE),\"\")","v":""}]
[null,{"$f":"IFERROR(VLOOKUP(A584,'Critical Roles'!A584:B1000572,2,FALSE),\"\")","v":""}]
[null,{"$f":"IFERROR(VLOOKUP(A585,'Critical Roles'!A585:B1000573,2,FALSE),\"\")","v":""}]
[null,{"$f":"IFERROR(VLOOKUP(A586,'Critical Roles'!A586:B1000574,2,FALSE),\"\")","v":""}]
[null,{"$f":"IFERROR(VLOOKUP(A587,'Critical Roles'!A587:B1000575,2,FALSE),\"\")","v":""}]
[null,{"$f":"IFERROR(VLOOKUP(A588,'Critical Roles'!A588:B1000576,2,FALSE),\"\")","v":""}]
[null,{"$f":"IFERROR(VLOOKUP(A589,'Critical Roles'!A589:B1000577,2,FALSE),\"\")","v":""}]
[null,{"$f":"IFERROR(VLOOKUP(A590,'Critical Roles'!A590:B1000578,2,FALSE),\"\")","v":""}]
[null,{"$f":"IFERROR(VLOOKUP(A591,'Critical Roles'!A591:B1000579,2,FALSE),\"\")","v":""}]
[null,{"$f":"IFERROR(VLOOKUP(A592,'Critical Roles'!A592:B1000580,2,FALSE),\"\")","v":""}]
[null,{"$f":"IFERROR(VLOOKUP(A593,'Critical Roles'!A593:B1000581,2,FALSE),\"\")","v":""}]
[null,{"$f":"IFERROR(VLOOKUP(A594,'Critical Roles'!A594:B1000582,2,FALSE),\"\")","v":""}]
[null,{"$f":"IFERROR(VLOOKUP(A595,'Critical Roles'!A595:B1000583,2,FALSE),\"\")","v":""}]
[null,{"$f":"IFERROR(VLOOKUP(A596,'Critical Roles'!A596:B1000584,2,FALSE),\"\")","v":""}]
[null,{"$f":"IFERROR(VLOOKUP(A597,'Critical Roles'!A597:B1000585,2,FALSE),\"\")","v":""}]
[null,{"$f":"IFERROR(VLOOKUP(A598,'Critical Roles'!A598:B1000586,2,FALSE),\"\")","v":""}]
[null,{"$f":"IFERROR(VLOOKUP(A599,'Critical Roles'!A599:B1000587,2,FALSE),\"\")","v":""}]
[null,{"$f":"IFERROR(VLOOKUP(A600,'Critical Roles'!A600:B1000588,2,FALSE),\"\")","v":""}]
[null,{"$f":"IFERROR(VLOOKUP(A601,'Critical Roles'!A601:B1000589,2,FALSE),\"\")","v":""}]
[null,{"$f":"IFERROR(VLOOKUP(A602,'Critical Roles'!A602:B1000590,2,FALSE),\"\")","v":""}]
[null,{"$f":"IFERROR(VLOOKUP(A603,'Critical Roles'!A603:B1000591,2,FALSE),\"\")","v":""}]
[null,{"$f":"IFERROR(VLOOKUP(A604,'Critical Roles'!A604:B1000592,2,FALSE),\"\")","v":""}]
[null,{"$f":"IFERROR(VLOOKUP(A605,'Critical Roles'!A605:B1000593,2,FALSE),\"\")","v":""}]
[null,{"$f":"IFERROR(VLOOKUP(A606,'Critical Roles'!A606:B1000594,2,FALSE),\"\")","v":""}]
[null,{"$f":"IFERROR(VLOOKUP(A607,'Critical Roles'!A607:B1000595,2,FALSE),\"\")","v":""}]
[null,{"$f":"IFERROR(VLOOKUP(A608,'Critical Roles'!A608:B1000596,2,FALSE),\"\")","v":""}]
[null,{"$f":"IFERROR(VLOOKUP(A609,'Critical Roles'!A609:B1000597,2,FALSE),\"\")","v":""}]
[null,{"$f":"IFERROR(VLOOKUP(A610,'Critical Roles'!A610:B1000598,2,FALSE),\"\")","v":""}]
[null,{"$f":"IFERROR(VLOOKUP(A611,'Critical Roles'!A611:B1000599,2,FALSE),\"\")","v":""}]
[null,{"$f":"IFERROR(VLOOKUP(A612,'Critical Roles'!A612:B1000600,2,FALSE),\"\")","v":""}]
[null,{"$f":"IFERROR(VLOOKUP(A613,'Critical Roles'!A613:B1000601,2,FALSE),\"\")","v":""}]
[null,{"$f":"IFERROR(VLOOKUP(A614,'Critical Roles'!A614:B1000602,2,FALSE),\"\")","v":""}]
[null,{"$f":"IFERROR(VLOOKUP(A615,'Critical Roles'!A615:B1000603,2,FALSE),\"\")","v":""}]
[null,{"$f":"IFERROR(VLOOKUP(A616,'Critical Roles'!A616:B1000604,2,FALSE),\"\")","v":""}]
[null,{"$f":"IFERROR(VLOOKUP(A617,'Critical Roles'!A617:B1000605,2,FALSE),\"\")","v":""}]
[null,{"$f":"IFERROR(VLOOKUP(A618,'Critical Roles'!A618:B1000606,2,FALSE),\"\")","v":""}]
[null,{"$f":"IFERROR(VLOOKUP(A619,'Critical Roles'!A619:B1000607,2,FALSE),\"\")","v":""}]
[null,{"$f":"IFERROR(VLOOKUP(A620,'Critical Roles'!A620:B1000608,2,FALSE),\"\")","v":""}]
[null,{"$f":"IFERROR(VLOOKUP(A621,'Critical Roles'!A621:B1000609,2,FALSE),\"\")","v":""}]
[null,{"$f":"IFERROR(VLOOKUP(A622,'Critical Roles'!A622:B1000610,2,FALSE),\"\")","v":""}]
[null,{"$f":"IFERROR(VLOOKUP(A623,'Critical Roles'!A623:B1000611,2,FALSE),\"\")","v":""}]
[null,{"$f":"IFERROR(VLOOKUP(A624,'Critical Roles'!A624:B1000612,2,FALSE),\"\")","v":""}]
[null,{"$f":"IFERROR(VLOOKUP(A625,'Critical Roles'!A625:B1000613,2,FALSE),\"\")","v":""}]
[null,{"$f":"IFERROR(VLOOKUP(A626,'Critical Roles'!A626:B1000614,2,FALSE),\"\")","v":""}]
[null,{"$f":"IFERROR(VLOOKUP(A627,'Critical Roles'!A627:B1000615,2,FALSE),\"\")","v":""}]
[null,{"$f":"IFERROR(VLOOKUP(A628,'Critical Roles'!A628:B1000616,2,FALSE),\"\")","v":""}]
[null,{"$f":"IFERROR(VLOOKUP(A629,'Critical Roles'!A629:B1000617,2,FALSE),\"\")","v":""}]
[null,{"$f":"IFERROR(VLOOKUP(A630,'Critical Roles'!A630:B1000618,2,FALSE),\"\")","v":""}]
[null,{"$f":"IFERROR(VLOOKUP(A631,'Critical Roles'!A631:B1000619,2,FALSE),\"\")","v":""}]
[null,{"$f":"IFERROR(VLOOKUP(A632,'Critical Roles'!A632:B1000620,2,FALSE),\"\")","v":""}]
[null,{"$f":"IFERROR(VLOOKUP(A633,'Critical Roles'!A633:B1000621,2,FALSE),\"\")","v":""}]
[null,{"$f":"IFERROR(VLOOKUP(A634,'Critical Roles'!A634:B1000622,2,FALSE),\"\")","v":""}]
[null,{"$f":"IFERROR(VLOOKUP(A635,'Critical Roles'!A635:B1000623,2,FALSE),\"\")","v":""}]
[null,{"$f":"IFERROR(VLOOKUP(A636,'Critical Roles'!A636:B1000624,2,FALSE),\"\")","v":""}]
[null,{"$f":"IFERROR(VLOOKUP(A637,'Critical Roles'!A637:B1000625,2,FALSE),\"\")","v":""}]
[null,{"$f":"IFERROR(VLOOKUP(A638,'Critical Roles'!A638:B1000626,2,FALSE),\"\")","v":""}]
[null,{"$f":"IFERROR(VLOOKUP(A639,'Critical Roles'!A639:B1000627,2,FALSE),\"\")","v":""}]
[null,{"$f":"IFERROR(VLOOKUP(A640,'Critical Roles'!A640:B1000628,2,FALSE),\"\")","v":""}]
[null,{"$f":"IFERROR(VLOOKUP(A641,'Critical Roles'!A641:B1000629,2,FALSE),\"\")","v":""}]
[null,{"$f":"IFERROR(VLOOKUP(A642,'Critical Roles'!A642:B1000630,2,FALSE),\"\")","v":""}]
[null,{"$f":"IFERROR(VLOOKUP(A643,'Critical Roles'!A643:B1000631,2,FALSE),\"\")","v":""}]
[null,{"$f":"IFERROR(VLOOKUP(A644,'Critical Roles'!A644:B1000632,2,FALSE),\"\")","v":""}]
[null,{"$f":"IFERROR(VLOOKUP(A645,'Critical Roles'!A645:B1000633,2,FALSE),\"\")","v":""}]
[null,{"$f":"IFERROR(VLOOKUP(A646,'Critical Roles'!A646:B1000634,2,FALSE),\"\")","v":""}]
[null,{"$f":"IFERROR(VLOOKUP(A647,'Critical Roles'!A647:B1000635,2,FALSE),\"\")","v":""}]
[null,{"$f":"IFERROR(VLOOKUP(A648,'Critical Roles'!A648:B1000636,2,FALSE),\"\")","v":""}]
[null,{"$f":"IFERROR(VLOOKUP(A649,'Critical Roles'!A649:B1000637,2,FALSE),\"\")","v":""}]
[null,{"$f":"IFERROR(VLOOKUP(A650,'Critical Roles'!A650:B1000638,2,FALSE),\"\")","v":""}]
[null,{"$f":"IFERROR(VLOOKUP(A651,'Critical Roles'!A651:B1000639,2,FALSE),\"\")","v":""}]
[null,{"$f":"IFERROR(VLOOKUP(A652,'Critical Roles'!A652:B1000640,2,FALSE),\"\")","v":""}]
[null,{"$f":"IFERROR(VLOOKUP(A653,'Critical Roles'!A653:B1000641,2,FALSE),\"\")","v":""}]
[null,{"$f":"IFERROR(VLOOKUP(A654,'Critical Roles'!A654:B1000642,2,FALSE),\"\")","v":""}]
[null,{"$f":"IFERROR(VLOOKUP(A655,'Critical Roles'!A655:B1000643,2,FALSE),\"\")","v":""}]
[null,{"$f":"IFERROR(VLOOKUP(A656,'Critical Roles'!A656:B1000644,2,FALSE),\"\")","v":""}]
[null,{"$f":"IFERROR(VLOOKUP(A657,'Critical Roles'!A657:B1000645,2,FALSE),\"\")","v":""}]
[null,{"$f":"IFERROR(VLOOKUP(A658,'Critical Roles'!A658:B1000646,2,FALSE),\"\")","v":""}]
[null,{"$f":"IFERROR(VLOOKUP(A659,'Critical Roles'!A659:B1000647,2,FALSE),\"\")","v":""}]
[null,{"$f":"IFERROR(VLOOKUP(A660,'Critical Roles'!A660:B1000648,2,FALSE),\"\")","v":""}]
[null,{"$f":"IFERROR(VLOOKUP(A661,'Critical Roles'!A661:B1000649,2,FALSE),\"\")","v":""}]
[null,{"$f":"IFERROR(VLOOKUP(A662,'Critical Roles'!A662:B1000650,2,FALSE),\"\")","v":""}]
[null,{"$f":"IFERROR(VLOOKUP(A663,'Critical Roles'!A663:B1000651,2,FALSE),\"\")","v":""}]
[null,{"$f":"IFERROR(VLOOKUP(A664,'Critical Roles'!A664:B1000652,2,FALSE),\"\")","v":""}]
[null,{"$f":"IFERROR(VLOOKUP(A665,'Critical Roles'!A665:B1000653,2,FALSE),\"\")","v":""}]
[null,{"$f":"IFERROR(VLOOKUP(A666,'Critical Roles'!A666:B1000654,2,FALSE),\"\")","v":""}]
[null,{"$f":"IFERROR(VLOOKUP(A667,'Critical Roles'!A667:B1000655,2,FALSE),\"\")","v":""}]
[null,{"$f":"IFERROR(VLOOKUP(A668,'Critical Roles'!A668:B1000656,2,FALSE),\"\")","v":""}]
[null,{"$f":"IFERROR(VLOOKUP(A669,'Critical Roles'!A669:B1000657,2,FALSE),\"\")","v":""}]
[null,{"$f":"IFERROR(VLOOKUP(A670,'Critical Roles'!A670:B1000658,2,FALSE),\"\")","v":""}]
[null,{"$f":"IFERROR(VLOOKUP(A671,'Critical Roles'!A671:B1000659,2,FALSE),\"\")","v":""}]
[null,{"$f":"IFERROR(VLOOKUP(A672,'Critical Roles'!A672:B1000660,2,FALSE),\"\")","v":""}]
[null,{"$f":"IFERROR(VLOOKUP(A673,'Critical Roles'!A673:B1000661,2,FALSE),\"\")","v":""}]
[null,{"$f":"IFERROR(VLOOKUP(A674,'Critical Roles'!A674:B1000662,2,FALSE),\"\")","v":""}]
[null,{"$f":"IFERROR(VLOOKUP(A675,'Critical Roles'!A675:B1000663,2,FALSE),\"\")","v":""}]
[null,{"$f":"IFERROR(VLOOKUP(A676,'Critical Roles'!A676:B1000664,2,FALSE),\"\")","v":""}]
[null,{"$f":"IFERROR(VLOOKUP(A677,'Critical Roles'!A677:B1000665,2,FALSE),\"\")","v":""}]
[null,{"$f":"IFERROR(VLOOKUP(A678,'Critical Roles'!A678:B1000666,2,FALSE),\"\")","v":""}]
[null,{"$f":"IFERROR(VLOOKUP(A679,'Critical Roles'!A679:B1000667,2,FALSE),\"\")","v":""}]
[null,{"$f":"IFERROR(VLOOKUP(A680,'Critical Roles'!A680:B1000668,2,FALSE),\"\")","v":""}]
[null,{"$f":"IFERROR(VLOOKUP(A681,'Critical Roles'!A681:B1000669,2,FALSE),\"\")","v":""}]
[null,{"$f":"IFERROR(VLOOKUP(A682,'Critical Roles'!A682:B1000670,2,FALSE),\"\")","v":""}]
[null,{"$f":"IFERROR(VLOOKUP(A683,'Critical Roles'!A683:B1000671,2,FALSE),\"\")","v":""}]
[null,{"$f":"IFERROR(VLOOKUP(A684,'Critical Roles'!A684:B1000672,2,FALSE),\"\")","v":""}]
[null,{"$f":"IFERROR(VLOOKUP(A685,'Critical Roles'!A685:B1000673,2,FALSE),\"\")","v":""}]
[null,{"$f":"IFERROR(VLOOKUP(A686,'Critical Roles'!A686:B1000674,2,FALSE),\"\")","v":""}]
[null,{"$f":"IFERROR(VLOOKUP(A687,'Critical Roles'!A687:B1000675,2,FALSE),\"\")","v":""}]
[null,{"$f":"IFERROR(VLOOKUP(A688,'Critical Roles'!A688:B1000676,2,FALSE),\"\")","v":""}]
[null,{"$f":"IFERROR(VLOOKUP(A689,'Critical Roles'!A689:B1000677,2,FALSE),\"\")","v":""}]
[null,{"$f":"IFERROR(VLOOKUP(A690,'Critical Roles'!A690:B1000678,2,FALSE),\"\")","v":""}]
[null,{"$f":"IFERROR(VLOOKUP(A691,'Critical Roles'!A691:B1000679,2,FALSE),\"\")","v":""}]
[null,{"$f":"IFERROR(VLOOKUP(A692,'Critical Roles'!A692:B1000680,2,FALSE),\"\")","v":""}]
[null,{"$f":"IFERROR(VLOOKUP(A693,'Critical Roles'!A693:B1000681,2,FALSE),\"\")","v":""}]
[null,{"$f":"IFERROR(VLOOKUP(A694,'Critical Roles'!A694:B1000682,2,FALSE),\"\")","v":""}]
[null,{"$f":"IFERROR(VLOOKUP(A695,'Critical Roles'!A695:B1000683,2,FALSE),\"\")","v":""}]
[null,{"$f":"IFERROR(VLOOKUP(A696,'Critical Roles'!A696:B1000684,2,FALSE),\"\")","v":""}]
[null,{"$f":"IFERROR(VLOOKUP(A697,'Critical Roles'!A697:B1000685,2,FALSE),\"\")","v":""}]
[null,{"$f":"IFERROR(VLOOKUP(A698,'Critical Roles'!A698:B1000686,2,FALSE),\"\")","v":""}]
[null,{"$f":"IFERROR(VLOOKUP(A699,'Critical Roles'!A699:B1000687,2,FALSE),\"\")","v":""}]
[null,{"$f":"IFERROR(VLOOKUP(A700,'Critical Roles'!A700:B1000688,2,FALSE),\"\")","v":""}]
[null,{"$f":"IFERROR(VLOOKUP(A701,'Critical Roles'!A701:B1000689,2,FALSE),\"\")","v":""}]
[null,{"$f":"IFERROR(VLOOKUP(A702,'Critical Roles'!A702:B1000690,2,FALSE),\"\")","v":""}]
[null,{"$f":"IFERROR(VLOOKUP(A703,'Critical Roles'!A703:B1000691,2,FALSE),\"\")","v":""}]
[null,{"$f":"IFERROR(VLOOKUP(A704,'Critical Roles'!A704:B1000692,2,FALSE),\"\")","v":""}]
[null,{"$f":"IFERROR(VLOOKUP(A705,'Critical Roles'!A705:B1000693,2,FALSE),\"\")","v":""}]
[null,{"$f":"IFERROR(VLOOKUP(A706,'Critical Roles'!A706:B1000694,2,FALSE),\"\")","v":""}]
[null,{"$f":"IFERROR(VLOOKUP(A707,'Critical Roles'!A707:B1000695,2,FALSE),\"\")","v":""}]
[null,{"$f":"IFERROR(VLOOKUP(A708,'Critical Roles'!A708:B1000696,2,FALSE),\"\")","v":""}]
[null,{"$f":"IFERROR(VLOOKUP(A709,'Critical Roles'!A709:B1000697,2,FALSE),\"\")","v":""}]
[null,{"$f":"IFERROR(VLOOKUP(A710,'Critical Roles'!A710:B1000698,2,FALSE),\"\")","v":""}]
[null,{"$f":"IFERROR(VLOOKUP(A711,'Critical Roles'!A711:B1000699,2,FALSE),\"\")","v":""}]
[null,{"$f":"IFERROR(VLOOKUP(A712,'Critical Roles'!A712:B1000700,2,FALSE),\"\")","v":""}]
[null,{"$f":"IFERROR(VLOOKUP(A713,'Critical Roles'!A713:B1000701,2,FALSE),\"\")","v":""}]
[null,{"$f":"IFERROR(VLOOKUP(A714,'Critical Roles'!A714:B1000702,2,FALSE),\"\")","v":""}]
[null,{"$f":"IFERROR(VLOOKUP(A715,'Critical Roles'!A715:B1000703,2,FALSE),\"\")","v":""}]
[null,{"$f":"IFERROR(VLOOKUP(A716,'Critical Roles'!A716:B1000704,2,FALSE),\"\")","v":""}]
[null,{"$f":"IFERROR(VLOOKUP(A717,'Critical Roles'!A717:B1000705,2,FALSE),\"\")","v":""}]
[null,{"$f":"IFERROR(VLOOKUP(A718,'Critical Roles'!A718:B1000706,2,FALSE),\"\")","v":""}]
[null,{"$f":"IFERROR(VLOOKUP(A719,'Critical Roles'!A719:B1000707,2,FALSE),\"\")","v":""}]
[null,{"$f":"IFERROR(VLOOKUP(A720,'Critical Roles'!A720:B1000708,2,FALSE),\"\")","v":""}]
[null,{"$f":"IFERROR(VLOOKUP(A721,'Critical Roles'!A721:B1000709,2,FALSE),\"\")","v":""}]
[null,{"$f":"IFERROR(VLOOKUP(A722,'Critical Roles'!A722:B1000710,2,FALSE),\"\")","v":""}]
[null,{"$f":"IFERROR(VLOOKUP(A723,'Critical Roles'!A723:B1000711,2,FALSE),\"\")","v":""}]
[null,{"$f":"IFERROR(VLOOKUP(A724,'Critical Roles'!A724:B1000712,2,FALSE),\"\")","v":""}]
[null,{"$f":"IFERROR(VLOOKUP(A725,'Critical Roles'!A725:B1000713,2,FALSE),\"\")","v":""}]
[null,{"$f":"IFERROR(VLOOKUP(A726,'Critical Roles'!A726:B1000714,2,FALSE),\"\")","v":""}]
[null,{"$f":"IFERROR(VLOOKUP(A727,'Critical Roles'!A727:B1000715,2,FALSE),\"\")","v":""}]
[null,{"$f":"IFERROR(VLOOKUP(A728,'Critical Roles'!A728:B1000716,2,FALSE),\"\")","v":""}]
[null,{"$f":"IFERROR(VLOOKUP(A729,'Critical Roles'!A729:B1000717,2,FALSE),\"\")","v":""}]
[null,{"$f":"IFERROR(VLOOKUP(A730,'Critical Roles'!A730:B1000718,2,FALSE),\"\")","v":""}]
[null,{"$f":"IFERROR(VLOOKUP(A731,'Critical Roles'!A731:B1000719,2,FALSE),\"\")","v":""}]
[null,{"$f":"IFERROR(VLOOKUP(A732,'Critical Roles'!A732:B1000720,2,FALSE),\"\")","v":""}]
[null,{"$f":"IFERROR(VLOOKUP(A733,'Critical Roles'!A733:B1000721,2,FALSE),\"\")","v":""}]
[null,{"$f":"IFERROR(VLOOKUP(A734,'Critical Roles'!A734:B1000722,2,FALSE),\"\")","v":""}]
[null,{"$f":"IFERROR(VLOOKUP(A735,'Critical Roles'!A735:B1000723,2,FALSE),\"\")","v":""}]
[null,{"$f":"IFERROR(VLOOKUP(A736,'Critical Roles'!A736:B1000724,2,FALSE),\"\")","v":""}]
[null,{"$f":"IFERROR(VLOOKUP(A737,'Critical Roles'!A737:B1000725,2,FALSE),\"\")","v":""}]
[null,{"$f":"IFERROR(VLOOKUP(A738,'Critical Roles'!A738:B1000726,2,FALSE),\"\")","v":""}]
[null,{"$f":"IFERROR(VLOOKUP(A739,'Critical Roles'!A739:B1000727,2,FALSE),\"\")","v":""}]
[null,{"$f":"IFERROR(VLOOKUP(A740,'Critical Roles'!A740:B1000728,2,FALSE),\"\")","v":""}]
[null,{"$f":"IFERROR(VLOOKUP(A741,'Critical Roles'!A741:B1000729,2,FALSE),\"\")","v":""}]
[null,{"$f":"IFERROR(VLOOKUP(A742,'Critical Roles'!A742:B1000730,2,FALSE),\"\")","v":""}]
[null,{"$f":"IFERROR(VLOOKUP(A743,'Critical Roles'!A743:B1000731,2,FALSE),\"\")","v":""}]
[null,{"$f":"IFERROR(VLOOKUP(A744,'Critical Roles'!A744:B1000732,2,FALSE),\"\")","v":""}]
[null,{"$f":"IFERROR(VLOOKUP(A745,'Critical Roles'!A745:B1000733,2,FALSE),\"\")","v":""}]
[null,{"$f":"IFERROR(VLOOKUP(A746,'Critical Roles'!A746:B1000734,2,FALSE),\"\")","v":""}]
[null,{"$f":"IFERROR(VLOOKUP(A747,'Critical Roles'!A747:B1000735,2,FALSE),\"\")","v":""}]
[null,{"$f":"IFERROR(VLOOKUP(A748,'Critical Roles'!A748:B1000736,2,FALSE),\"\")","v":""}]
[null,{"$f":"IFERROR(VLOOKUP(A749,'Critical Roles'!A749:B1000737,2,FALSE),\"\")","v":""}]
[null,{"$f":"IFERROR(VLOOKUP(A750,'Critical Roles'!A750:B1000738,2,FALSE),\"\")","v":""}]
[null,{"$f":"IFERROR(VLOOKUP(A751,'Critical Roles'!A751:B1000739,2,FALSE),\"\")","v":""}]
[null,{"$f":"IFERROR(VLOOKUP(A752,'Critical Roles'!A752:B1000740,2,FALSE),\"\")","v":""}]
[null,{"$f":"IFERROR(VLOOKUP(A753,'Critical Roles'!A753:B1000741,2,FALSE),\"\")","v":""}]
[null,{"$f":"IFERROR(VLOOKUP(A754,'Critical Roles'!A754:B1000742,2,FALSE),\"\")","v":""}]
[null,{"$f":"IFERROR(VLOOKUP(A755,'Critical Roles'!A755:B1000743,2,FALSE),\"\")","v":""}]
[null,{"$f":"IFERROR(VLOOKUP(A756,'Critical Roles'!A756:B1000744,2,FALSE),\"\")","v":""}]
[null,{"$f":"IFERROR(VLOOKUP(A757,'Critical Roles'!A757:B1000745,2,FALSE),\"\")","v":""}]
[null,{"$f":"IFERROR(VLOOKUP(A758,'Critical Roles'!A758:B1000746,2,FALSE),\"\")","v":""}]
[null,{"$f":"IFERROR(VLOOKUP(A759,'Critical Roles'!A759:B1000747,2,FALSE),\"\")","v":""}]
[null,{"$f":"IFERROR(VLOOKUP(A760,'Critical Roles'!A760:B1000748,2,FALSE),\"\")","v":""}]
[null,{"$f":"IFERROR(VLOOKUP(A761,'Critical Roles'!A761:B1000749,2,FALSE),\"\")","v":""}]
[null,{"$f":"IFERROR(VLOOKUP(A762,'Critical Roles'!A762:B1000750,2,FALSE),\"\")","v":""}]
[null,{"$f":"IFERROR(VLOOKUP(A763,'Critical Roles'!A763:B1000751,2,FALSE),\"\")","v":""}]
[null,{"$f":"IFERROR(VLOOKUP(A764,'Critical Roles'!A764:B1000752,2,FALSE),\"\")","v":""}]
[null,{"$f":"IFERROR(VLOOKUP(A765,'Critical Roles'!A765:B1000753,2,FALSE),\"\")","v":""}]
[null,{"$f":"IFERROR(VLOOKUP(A766,'Critical Roles'!A766:B1000754,2,FALSE),\"\")","v":""}]
[null,{"$f":"IFERROR(VLOOKUP(A767,'Critical Roles'!A767:B1000755,2,FALSE),\"\")","v":""}]
[null,{"$f":"IFERROR(VLOOKUP(A768,'Critical Roles'!A768:B1000756,2,FALSE),\"\")","v":""}]
[null,{"$f":"IFERROR(VLOOKUP(A769,'Critical Roles'!A769:B1000757,2,FALSE),\"\")","v":""}]
[null,{"$f":"IFERROR(VLOOKUP(A770,'Critical Roles'!A770:B1000758,2,FALSE),\"\")","v":""}]
[null,{"$f":"IFERROR(VLOOKUP(A771,'Critical Roles'!A771:B1000759,2,FALSE),\"\")","v":""}]
[null,{"$f":"IFERROR(VLOOKUP(A772,'Critical Roles'!A772:B1000760,2,FALSE),\"\")","v":""}]
[null,{"$f":"IFERROR(VLOOKUP(A773,'Critical Roles'!A773:B1000761,2,FALSE),\"\")","v":""}]
[null,{"$f":"IFERROR(VLOOKUP(A774,'Critical Roles'!A774:B1000762,2,FALSE),\"\")","v":""}]
[null,{"$f":"IFERROR(VLOOKUP(A775,'Critical Roles'!A775:B1000763,2,FALSE),\"\")","v":""}]
[null,{"$f":"IFERROR(VLOOKUP(A776,'Critical Roles'!A776:B1000764,2,FALSE),\"\")","v":""}]
[null,{"$f":"IFERROR(VLOOKUP(A777,'Critical Roles'!A777:B1000765,2,FALSE),\"\")","v":""}]
[null,{"$f":"IFERROR(VLOOKUP(A778,'Critical Roles'!A778:B1000766,2,FALSE),\"\")","v":""}]
[null,{"$f":"IFERROR(VLOOKUP(A779,'Critical Roles'!A779:B1000767,2,FALSE),\"\")","v":""}]
[null,{"$f":"IFERROR(VLOOKUP(A780,'Critical Roles'!A780:B1000768,2,FALSE),\"\")","v":""}]
[null,{"$f":"IFERROR(VLOOKUP(A781,'Critical Roles'!A781:B1000769,2,FALSE),\"\")","v":""}]
[null,{"$f":"IFERROR(VLOOKUP(A782,'Critical Roles'!A782:B1000770,2,FALSE),\"\")","v":""}]
[null,{"$f":"IFERROR(VLOOKUP(A783,'Critical Roles'!A783:B1000771,2,FALSE),\"\")","v":""}]
[null,{"$f":"IFERROR(VLOOKUP(A784,'Critical Roles'!A784:B1000772,2,FALSE),\"\")","v":""}]
[null,{"$f":"IFERROR(VLOOKUP(A785,'Critical Roles'!A785:B1000773,2,FALSE),\"\")","v":""}]
[null,{"$f":"IFERROR(VLOOKUP(A786,'Critical Roles'!A786:B1000774,2,FALSE),\"\")","v":""}]
[null,{"$f":"IFERROR(VLOOKUP(A787,'Critical Roles'!A787:B1000775,2,FALSE),\"\")","v":""}]
[null,{"$f":"IFERROR(VLOOKUP(A788,'Critical Roles'!A788:B1000776,2,FALSE),\"\")","v":""}]
[null,{"$f":"IFERROR(VLOOKUP(A789,'Critical Roles'!A789:B1000777,2,FALSE),\"\")","v":""}]
[null,{"$f":"IFERROR(VLOOKUP(A790,'Critical Roles'!A790:B1000778,2,FALSE),\"\")","v":""}]
[null,{"$f":"IFERROR(VLOOKUP(A791,'Critical Roles'!A791:B1000779,2,FALSE),\"\")","v":""}]
[null,{"$f":"IFERROR(VLOOKUP(A792,'Critical Roles'!A792:B1000780,2,FALSE),\"\")","v":""}]
[null,{"$f":"IFERROR(VLOOKUP(A793,'Critical Roles'!A793:B1000781,2,FALSE),\"\")","v":""}]
[null,{"$f":"IFERROR(VLOOKUP(A794,'Critical Roles'!A794:B1000782,2,FALSE),\"\")","v":""}]
[null,{"$f":"IFERROR(VLOOKUP(A795,'Critical Roles'!A795:B1000783,2,FALSE),\"\")","v":""}]
[null,{"$f":"IFERROR(VLOOKUP(A796,'Critical Roles'!A796:B1000784,2,FALSE),\"\")","v":""}]
[null,{"$f":"IFERROR(VLOOKUP(A797,'Critical Roles'!A797:B1000785,2,FALSE),\"\")","v":""}]
[null,{"$f":"IFERROR(VLOOKUP(A798,'Critical Roles'!A798:B1000786,2,FALSE),\"\")","v":""}]
[null,{"$f":"IFERROR(VLOOKUP(A799,'Critical Roles'!A799:B1000787,2,FALSE),\"\")","v":""}]
[null,{"$f":"IFERROR(VLOOKUP(A800,'Critical Roles'!A800:B1000788,2,FALSE),\"\")","v":""}]
[null,{"$f":"IFERROR(VLOOKUP(A801,'Critical Roles'!A801:B1000789,2,FALSE),\"\")","v":""}]
[null,{"$f":"IFERROR(VLOOKUP(A802,'Critical Roles'!A802:B1000790,2,FALSE),\"\")","v":""}]
[null,{"$f":"IFERROR(VLOOKUP(A803,'Critical Roles'!A803:B1000791,2,FALSE),\"\")","v":""}]
[null,{"$f":"IFERROR(VLOOKUP(A804,'Critical Roles'!A804:B1000792,2,FALSE),\"\")","v":""}]
[null,{"$f":"IFERROR(VLOOKUP(A805,'Critical Roles'!A805:B1000793,2,FALSE),\"\")","v":""}]
[null,{"$f":"IFERROR(VLOOKUP(A806,'Critical Roles'!A806:B1000794,2,FALSE),\"\")","v":""}]
[null,{"$f":"IFERROR(VLOOKUP(A807,'Critical Roles'!A807:B1000795,2,FALSE),\"\")","v":""}]
[null,{"$f":"IFERROR(VLOOKUP(A808,'Critical Roles'!A808:B1000796,2,FALSE),\"\")","v":""}]
[null,{"$f":"IFERROR(VLOOKUP(A809,'Critical Roles'!A809:B1000797,2,FALSE),\"\")","v":""}]
[null,{"$f":"IFERROR(VLOOKUP(A810,'Critical Roles'!A810:B1000798,2,FALSE),\"\")","v":""}]
[null,{"$f":"IFERROR(VLOOKUP(A811,'Critical Roles'!A811:B1000799,2,FALSE),\"\")","v":""}]
[null,{"$f":"IFERROR(VLOOKUP(A812,'Critical Roles'!A812:B1000800,2,FALSE),\"\")","v":""}]
[null,{"$f":"IFERROR(VLOOKUP(A813,'Critical Roles'!A813:B1000801,2,FALSE),\"\")","v":""}]
[null,{"$f":"IFERROR(VLOOKUP(A814,'Critical Roles'!A814:B1000802,2,FALSE),\"\")","v":""}]
[null,{"$f":"IFERROR(VLOOKUP(A815,'Critical Roles'!A815:B1000803,2,FALSE),\"\")","v":""}]
[null,{"$f":"IFERROR(VLOOKUP(A816,'Critical Roles'!A816:B1000804,2,FALSE),\"\")","v":""}]
[null,{"$f":"IFERROR(VLOOKUP(A817,'Critical Roles'!A817:B1000805,2,FALSE),\"\")","v":""}]
[null,{"$f":"IFERROR(VLOOKUP(A818,'Critical Roles'!A818:B1000806,2,FALSE),\"\")","v":""}]
[null,{"$f":"IFERROR(VLOOKUP(A819,'Critical Roles'!A819:B1000807,2,FALSE),\"\")","v":""}]
[null,{"$f":"IFERROR(VLOOKUP(A820,'Critical Roles'!A820:B1000808,2,FALSE),\"\")","v":""}]
[null,{"$f":"IFERROR(VLOOKUP(A821,'Critical Roles'!A821:B1000809,2,FALSE),\"\")","v":""}]
[null,{"$f":"IFERROR(VLOOKUP(A822,'Critical Roles'!A822:B1000810,2,FALSE),\"\")","v":""}]
[null,{"$f":"IFERROR(VLOOKUP(A823,'Critical Roles'!A823:B1000811,2,FALSE),\"\")","v":""}]
[null,{"$f":"IFERROR(VLOOKUP(A824,'Critical Roles'!A824:B1000812,2,FALSE),\"\")","v":""}]
[null,{"$f":"IFERROR(VLOOKUP(A825,'Critical Roles'!A825:B1000813,2,FALSE),\"\")","v":""}]
[null,{"$f":"IFERROR(VLOOKUP(A826,'Critical Roles'!A826:B1000814,2,FALSE),\"\")","v":""}]
[null,{"$f":"IFERROR(VLOOKUP(A827,'Critical Roles'!A827:B1000815,2,FALSE),\"\")","v":""}]
[null,{"$f":"IFERROR(VLOOKUP(A828,'Critical Roles'!A828:B1000816,2,FALSE),\"\")","v":""}]
[null,{"$f":"IFERROR(VLOOKUP(A829,'Critical Roles'!A829:B1000817,2,FALSE),\"\")","v":""}]
[null,{"$f":"IFERROR(VLOOKUP(A830,'Critical Roles'!A830:B1000818,2,FALSE),\"\")","v":""}]
[null,{"$f":"IFERROR(VLOOKUP(A831,'Critical Roles'!A831:B1000819,2,FALSE),\"\")","v":""}]
[null,{"$f":"IFERROR(VLOOKUP(A832,'Critical Roles'!A832:B1000820,2,FALSE),\"\")","v":""}]
[null,{"$f":"IFERROR(VLOOKUP(A833,'Critical Roles'!A833:B1000821,2,FALSE),\"\")","v":""}]
[null,{"$f":"IFERROR(VLOOKUP(A834,'Critical Roles'!A834:B1000822,2,FALSE),\"\")","v":""}]
[null,{"$f":"IFERROR(VLOOKUP(A835,'Critical Roles'!A835:B1000823,2,FALSE),\"\")","v":""}]
[null,{"$f":"IFERROR(VLOOKUP(A836,'Critical Roles'!A836:B1000824,2,FALSE),\"\")","v":""}]
[null,{"$f":"IFERROR(VLOOKUP(A837,'Critical Roles'!A837:B1000825,2,FALSE),\"\")","v":""}]
[null,{"$f":"IFERROR(VLOOKUP(A838,'Critical Roles'!A838:B1000826,2,FALSE),\"\")","v":""}]
[null,{"$f":"IFERROR(VLOOKUP(A839,'Critical Roles'!A839:B1000827,2,FALSE),\"\")","v":""}]
[null,{"$f":"IFERROR(VLOOKUP(A840,'Critical Roles'!A840:B1000828,2,FALSE),\"\")","v":""}]
[null,{"$f":"IFERROR(VLOOKUP(A841,'Critical Roles'!A841:B1000829,2,FALSE),\"\")","v":""}]
[null,{"$f":"IFERROR(VLOOKUP(A842,'Critical Roles'!A842:B1000830,2,FALSE),\"\")","v":""}]
[null,{"$f":"IFERROR(VLOOKUP(A843,'Critical Roles'!A843:B1000831,2,FALSE),\"\")","v":""}]
[null,{"$f":"IFERROR(VLOOKUP(A844,'Critical Roles'!A844:B1000832,2,FALSE),\"\")","v":""}]
[null,{"$f":"IFERROR(VLOOKUP(A845,'Critical Roles'!A845:B1000833,2,FALSE),\"\")","v":""}]
[null,{"$f":"IFERROR(VLOOKUP(A846,'Critical Roles'!A846:B1000834,2,FALSE),\"\")","v":""}]
[null,{"$f":"IFERROR(VLOOKUP(A847,'Critical Roles'!A847:B1000835,2,FALSE),\"\")","v":""}]
[null,{"$f":"IFERROR(VLOOKUP(A848,'Critical Roles'!A848:B1000836,2,FALSE),\"\")","v":""}]
[null,{"$f":"IFERROR(VLOOKUP(A849,'Critical Roles'!A849:B1000837,2,FALSE),\"\")","v":""}]
[null,{"$f":"IFERROR(VLOOKUP(A850,'Critical Roles'!A850:B1000838,2,FALSE),\"\")","v":""}]
[null,{"$f":"IFERROR(VLOOKUP(A851,'Critical Roles'!A851:B1000839,2,FALSE),\"\")","v":""}]
[null,{"$f":"IFERROR(VLOOKUP(A852,'Critical Roles'!A852:B1000840,2,FALSE),\"\")","v":""}]
[null,{"$f":"IFERROR(VLOOKUP(A853,'Critical Roles'!A853:B1000841,2,FALSE),\"\")","v":""}]
[null,{"$f":"IFERROR(VLOOKUP(A854,'Critical Roles'!A854:B1000842,2,FALSE),\"\")","v":""}]
[null,{"$f":"IFERROR(VLOOKUP(A855,'Critical Roles'!A855:B1000843,2,FALSE),\"\")","v":""}]
[null,{"$f":"IFERROR(VLOOKUP(A856,'Critical Roles'!A856:B1000844,2,FALSE),\"\")","v":""}]
[null,{"$f":"IFERROR(VLOOKUP(A857,'Critical Roles'!A857:B1000845,2,FALSE),\"\")","v":""}]
[null,{"$f":"IFERROR(VLOOKUP(A858,'Critical Roles'!A858:B1000846,2,FALSE),\"\")","v":""}]
[null,{"$f":"IFERROR(VLOOKUP(A859,'Critical Roles'!A859:B1000847,2,FALSE),\"\")","v":""}]
[null,{"$f":"IFERROR(VLOOKUP(A860,'Critical Roles'!A860:B1000848,2,FALSE),\"\")","v":""}]
[null,{"$f":"IFERROR(VLOOKUP(A861,'Critical Roles'!A861:B1000849,2,FALSE),\"\")","v":""}]
[null,{"$f":"IFERROR(VLOOKUP(A862,'Critical Roles'!A862:B1000850,2,FALSE),\"\")","v":""}]
[null,{"$f":"IFERROR(VLOOKUP(A863,'Critical Roles'!A863:B1000851,2,FALSE),\"\")","v":""}]
[null,{"$f":"IFERROR(VLOOKUP(A864,'Critical Roles'!A864:B1000852,2,FALSE),\"\")","v":""}]
[null,{"$f":"IFERROR(VLOOKUP(A865,'Critical Roles'!A865:B1000853,2,FALSE),\"\")","v":""}]
[null,{"$f":"IFERROR(VLOOKUP(A866,'Critical Roles'!A866:B1000854,2,FALSE),\"\")","v":""}]
[null,{"$f":"IFERROR(VLOOKUP(A867,'Critical Roles'!A867:B1000855,2,FALSE),\"\")","v":""}]
[null,{"$f":"IFERROR(VLOOKUP(A868,'Critical Roles'!A868:B1000856,2,FALSE),\"\")","v":""}]
[null,{"$f":"IFERROR(VLOOKUP(A869,'Critical Roles'!A869:B1000857,2,FALSE),\"\")","v":""}]
[null,{"$f":"IFERROR(VLOOKUP(A870,'Critical Roles'!A870:B1000858,2,FALSE),\"\")","v":""}]
[null,{"$f":"IFERROR(VLOOKUP(A871,'Critical Roles'!A871:B1000859,2,FALSE),\"\")","v":""}]
[null,{"$f":"IFERROR(VLOOKUP(A872,'Critical Roles'!A872:B1000860,2,FALSE),\"\")","v":""}]
[null,{"$f":"IFERROR(VLOOKUP(A873,'Critical Roles'!A873:B1000861,2,FALSE),\"\")","v":""}]
[null,{"$f":"IFERROR(VLOOKUP(A874,'Critical Roles'!A874:B1000862,2,FALSE),\"\")","v":""}]
[null,{"$f":"IFERROR(VLOOKUP(A875,'Critical Roles'!A875:B1000863,2,FALSE),\"\")","v":""}]
[null,{"$f":"IFERROR(VLOOKUP(A876,'Critical Roles'!A876:B1000864,2,FALSE),\"\")","v":""}]
[null,{"$f":"IFERROR(VLOOKUP(A877,'Critical Roles'!A877:B1000865,2,FALSE),\"\")","v":""}]
[null,{"$f":"IFERROR(VLOOKUP(A878,'Critical Roles'!A878:B1000866,2,FALSE),\"\")","v":""}]
[null,{"$f":"IFERROR(VLOOKUP(A879,'Critical Roles'!A879:B1000867,2,FALSE),\"\")","v":""}]
[null,{"$f":"IFERROR(VLOOKUP(A880,'Critical Roles'!A880:B1000868,2,FALSE),\"\")","v":""}]
[null,{"$f":"IFERROR(VLOOKUP(A881,'Critical Roles'!A881:B1000869,2,FALSE),\"\")","v":""}]
[null,{"$f":"IFERROR(VLOOKUP(A882,'Critical Roles'!A882:B1000870,2,FALSE),\"\")","v":""}]
[null,{"$f":"IFERROR(VLOOKUP(A883,'Critical Roles'!A883:B1000871,2,FALSE),\"\")","v":""}]
[null,{"$f":"IFERROR(VLOOKUP(A884,'Critical Roles'!A884:B1000872,2,FALSE),\"\")","v":""}]
[null,{"$f":"IFERROR(VLOOKUP(A885,'Critical Roles'!A885:B1000873,2,FALSE),\"\")","v":""}]
[null,{"$f":"IFERROR(VLOOKUP(A886,'Critical Roles'!A886:B1000874,2,FALSE),\"\")","v":""}]
[null,{"$f":"IFERROR(VLOOKUP(A887,'Critical Roles'!A887:B1000875,2,FALSE),\"\")","v":""}]
[null,{"$f":"IFERROR(VLOOKUP(A888,'Critical Roles'!A888:B1000876,2,FALSE),\"\")","v":""}]
[null,{"$f":"IFERROR(VLOOKUP(A889,'Critical Roles'!A889:B1000877,2,FALSE),\"\")","v":""}]
[null,{"$f":"IFERROR(VLOOKUP(A890,'Critical Roles'!A890:B1000878,2,FALSE),\"\")","v":""}]
[null,{"$f":"IFERROR(VLOOKUP(A891,'Critical Roles'!A891:B1000879,2,FALSE),\"\")","v":""}]
[null,{"$f":"IFERROR(VLOOKUP(A892,'Critical Roles'!A892:B1000880,2,FALSE),\"\")","v":""}]
[null,{"$f":"IFERROR(VLOOKUP(A893,'Critical Roles'!A893:B1000881,2,FALSE),\"\")","v":""}]
[null,{"$f":"IFERROR(VLOOKUP(A894,'Critical Roles'!A894:B1000882,2,FALSE),\"\")","v":""}]
[null,{"$f":"IFERROR(VLOOKUP(A895,'Critical Roles'!A895:B1000883,2,FALSE),\"\")","v":""}]
[null,{"$f":"IFERROR(VLOOKUP(A896,'Critical Roles'!A896:B1000884,2,FALSE),\"\")","v":""}]
[null,{"$f":"IFERROR(VLOOKUP(A897,'Critical Roles'!A897:B1000885,2,FALSE),\"\")","v":""}]
[null,{"$f":"IFERROR(VLOOKUP(A898,'Critical Roles'!A898:B1000886,2,FALSE),\"\")","v":""}]
[null,{"$f":"IFERROR(VLOOKUP(A899,'Critical Roles'!A899:B1000887,2,FALSE),\"\")","v":""}]
[null,{"$f":"IFERROR(VLOOKUP(A900,'Critical Roles'!A900:B1000888,2,FALSE),\"\")","v":""}]
[null,{"$f":"IFERROR(VLOOKUP(A901,'Critical Roles'!A901:B1000889,2,FALSE),\"\")","v":""}]
[null,{"$f":"IFERROR(VLOOKUP(A902,'Critical Roles'!A902:B1000890,2,FALSE),\"\")","v":""}]
[null,{"$f":"IFERROR(VLOOKUP(A903,'Critical Roles'!A903:B1000891,2,FALSE),\"\")","v":""}]
[null,{"$f":"IFERROR(VLOOKUP(A904,'Critical Roles'!A904:B1000892,2,FALSE),\"\")","v":""}]
[null,{"$f":"IFERROR(VLOOKUP(A905,'Critical Roles'!A905:B1000893,2,FALSE),\"\")","v":""}]
[null,{"$f":"IFERROR(VLOOKUP(A906,'Critical Roles'!A906:B1000894,2,FALSE),\"\")","v":""}]
[null,{"$f":"IFERROR(VLOOKUP(A907,'Critical Roles'!A907:B1000895,2,FALSE),\"\")","v":""}]
[null,{"$f":"IFERROR(VLOOKUP(A908,'Critical Roles'!A908:B1000896,2,FALSE),\"\")","v":""}]
[null,{"$f":"IFERROR(VLOOKUP(A909,'Critical Roles'!A909:B1000897,2,FALSE),\"\")","v":""}]
[null,{"$f":"IFERROR(VLOOKUP(A910,'Critical Roles'!A910:B1000898,2,FALSE),\"\")","v":""}]
[null,{"$f":"IFERROR(VLOOKUP(A911,'Critical Roles'!A911:B1000899,2,FALSE),\"\")","v":""}]
[null,{"$f":"IFERROR(VLOOKUP(A912,'Critical Roles'!A912:B1000900,2,FALSE),\"\")","v":""}]
[null,{"$f":"IFERROR(VLOOKUP(A913,'Critical Roles'!A913:B1000901,2,FALSE),\"\")","v":""}]
[null,{"$f":"IFERROR(VLOOKUP(A914,'Critical Roles'!A914:B1000902,2,FALSE),\"\")","v":""}]
[null,{"$f":"IFERROR(VLOOKUP(A915,'Critical Roles'!A915:B1000903,2,FALSE),\"\")","v":""}]
[null,{"$f":"IFERROR(VLOOKUP(A916,'Critical Roles'!A916:B1000904,2,FALSE),\"\")","v":""}]
[null,{"$f":"IFERROR(VLOOKUP(A917,'Critical Roles'!A917:B1000905,2,FALSE),\"\")","v":""}]
[null,{"$f":"IFERROR(VLOOKUP(A918,'Critical Roles'!A918:B1000906,2,FALSE),\"\")","v":""}]
[null,{"$f":"IFERROR(VLOOKUP(A919,'Critical Roles'!A919:B1000907,2,FALSE),\"\")","v":""}]
[null,{"$f":"IFERROR(VLOOKUP(A920,'Critical Roles'!A920:B1000908,2,FALSE),\"\")","v":""}]
[null,{"$f":"IFERROR(VLOOKUP(A921,'Critical Roles'!A921:B1000909,2,FALSE),\"\")","v":""}]
[null,{"$f":"IFERROR(VLOOKUP(A922,'Critical Roles'!A922:B1000910,2,FALSE),\"\")","v":""}]
[null,{"$f":"IFERROR(VLOOKUP(A923,'Critical Roles'!A923:B1000911,2,FALSE),\"\")","v":""}]
[null,{"$f":"IFERROR(VLOOKUP(A924,'Critical Roles'!A924:B1000912,2,FALSE),\"\")","v":""}]
[null,{"$f":"IFERROR(VLOOKUP(A925,'Critical Roles'!A925:B1000913,2,FALSE),\"\")","v":""}]
[null,{"$f":"IFERROR(VLOOKUP(A926,'Critical Roles'!A926:B1000914,2,FALSE),\"\")","v":""}]
[null,{"$f":"IFERROR(VLOOKUP(A927,'Critical Roles'!A927:B1000915,2,FALSE),\"\")","v":""}]
[null,{"$f":"IFERROR(VLOOKUP(A928,'Critical Roles'!A928:B1000916,2,FALSE),\"\")","v":""}]
[null,{"$f":"IFERROR(VLOOKUP(A929,'Critical Roles'!A929:B1000917,2,FALSE),\"\")","v":""}]
[null,{"$f":"IFERROR(VLOOKUP(A930,'Critical Roles'!A930:B1000918,2,FALSE),\"\")","v":""}]
[null,{"$f":"IFERROR(VLOOKUP(A931,'Critical Roles'!A931:B1000919,2,FALSE),\"\")","v":""}]
[null,{"$f":"IFERROR(VLOOKUP(A932,'Critical Roles'!A932:B1000920,2,FALSE),\"\")","v":""}]
[null,{"$f":"IFERROR(VLOOKUP(A933,'Critical Roles'!A933:B1000921,2,FALSE),\"\")","v":""}]
[null,{"$f":"IFERROR(VLOOKUP(A934,'Critical Roles'!A934:B1000922,2,FALSE),\"\")","v":""}]
[null,{"$f":"IFERROR(VLOOKUP(A935,'Critical Roles'!A935:B1000923,2,FALSE),\"\")","v":""}]
[null,{"$f":"IFERROR(VLOOKUP(A936,'Critical Roles'!A936:B1000924,2,FALSE),\"\")","v":""}]
[null,{"$f":"IFERROR(VLOOKUP(A937,'Critical Roles'!A937:B1000925,2,FALSE),\"\")","v":""}]
[null,{"$f":"IFERROR(VLOOKUP(A938,'Critical Roles'!A938:B1000926,2,FALSE),\"\")","v":""}]
[null,{"$f":"IFERROR(VLOOKUP(A939,'Critical Roles'!A939:B1000927,2,FALSE),\"\")","v":""}]
[null,{"$f":"IFERROR(VLOOKUP(A940,'Critical Roles'!A940:B1000928,2,FALSE),\"\")","v":""}]
[null,{"$f":"IFERROR(VLOOKUP(A941,'Critical Roles'!A941:B1000929,2,FALSE),\"\")","v":""}]
[null,{"$f":"IFERROR(VLOOKUP(A942,'Critical Roles'!A942:B1000930,2,FALSE),\"\")","v":""}]
[null,{"$f":"IFERROR(VLOOKUP(A943,'Critical Roles'!A943:B1000931,2,FALSE),\"\")","v":""}]
[null,{"$f":"IFERROR(VLOOKUP(A944,'Critical Roles'!A944:B1000932,2,FALSE),\"\")","v":""}]
[null,{"$f":"IFERROR(VLOOKUP(A945,'Critical Roles'!A945:B1000933,2,FALSE),\"\")","v":""}]
[null,{"$f":"IFERROR(VLOOKUP(A946,'Critical Roles'!A946:B1000934,2,FALSE),\"\")","v":""}]
[null,{"$f":"IFERROR(VLOOKUP(A947,'Critical Roles'!A947:B1000935,2,FALSE),\"\")","v":""}]
[null,{"$f":"IFERROR(VLOOKUP(A948,'Critical Roles'!A948:B1000936,2,FALSE),\"\")","v":""}]
[null,{"$f":"IFERROR(VLOOKUP(A949,'Critical Roles'!A949:B1000937,2,FALSE),\"\")","v":""}]
[null,{"$f":"IFERROR(VLOOKUP(A950,'Critical Roles'!A950:B1000938,2,FALSE),\"\")","v":""}]
[null,{"$f":"IFERROR(VLOOKUP(A951,'Critical Roles'!A951:B1000939,2,FALSE),\"\")","v":""}]
[null,{"$f":"IFERROR(VLOOKUP(A952,'Critical Roles'!A952:B1000940,2,FALSE),\"\")","v":""}]
[null,{"$f":"IFERROR(VLOOKUP(A953,'Critical Roles'!A953:B1000941,2,FALSE),\"\")","v":""}]
[null,{"$f":"IFERROR(VLOOKUP(A954,'Critical Roles'!A954:B1000942,2,FALSE),\"\")","v":""}]
[null,{"$f":"IFERROR(VLOOKUP(A955,'Critical Roles'!A955:B1000943,2,FALSE),\"\")","v":""}]
[null,{"$f":"IFERROR(VLOOKUP(A956,'Critical Roles'!A956:B1000944,2,FALSE),\"\")","v":""}]
[null,{"$f":"IFERROR(VLOOKUP(A957,'Critical Roles'!A957:B1000945,2,FALSE),\"\")","v":""}]
[null,{"$f":"IFERROR(VLOOKUP(A958,'Critical Roles'!A958:B1000946,2,FALSE),\"\")","v":""}]
[null,{"$f":"IFERROR(VLOOKUP(A959,'Critical Roles'!A959:B1000947,2,FALSE),\"\")","v":""}]
[null,{"$f":"IFERROR(VLOOKUP(A960,'Critical Roles'!A960:B1000948,2,FALSE),\"\")","v":""}]
[null,{"$f":"IFERROR(VLOOKUP(A961,'Critical Roles'!A961:B1000949,2,FALSE),\"\")","v":""}]
[null,{"$f":"IFERROR(VLOOKUP(A962,'Critical Roles'!A962:B1000950,2,FALSE),\"\")","v":""}]
[null,{"$f":"IFERROR(VLOOKUP(A963,'Critical Roles'!A963:B1000951,2,FALSE),\"\")","v":""}]
[null,{"$f":"IFERROR(VLOOKUP(A964,'Critical Roles'!A964:B1000952,2,FALSE),\"\")","v":""}]
[null,{"$f":"IFERROR(VLOOKUP(A965,'Critical Roles'!A965:B1000953,2,FALSE),\"\")","v":""}]
[null,{"$f":"IFERROR(VLOOKUP(A966,'Critical Roles'!A966:B1000954,2,FALSE),\"\")","v":""}]
[null,{"$f":"IFERROR(VLOOKUP(A967,'Critical Roles'!A967:B1000955,2,FALSE),\"\")","v":""}]
[null,{"$f":"IFERROR(VLOOKUP(A968,'Critical Roles'!A968:B1000956,2,FALSE),\"\")","v":""}]
[null,{"$f":"IFERROR(VLOOKUP(A969,'Critical Roles'!A969:B1000957,2,FALSE),\"\")","v":""}]
[null,{"$f":"IFERROR(VLOOKUP(A970,'Critical Roles'!A970:B1000958,2,FALSE),\"\")","v":""}]
[null,{"$f":"IFERROR(VLOOKUP(A971,'Critical Roles'!A971:B1000959,2,FALSE),\"\")","v":""}]
[null,{"$f":"IFERROR(VLOOKUP(A972,'Critical Roles'!A972:B1000960,2,FALSE),\"\")","v":""}]
[null,{"$f":"IFERROR(VLOOKUP(A973,'Critical Roles'!A973:B1000961,2,FALSE),\"\")","v":""}]
[null,{"$f":"IFERROR(VLOOKUP(A974,'Critical Roles'!A974:B1000962,2,FALSE),\"\")","v":""}]
[null,{"$f":"IFERROR(VLOOKUP(A975,'Critical Roles'!A975:B1000963,2,FALSE),\"\")","v":""}]
[null,{"$f":"IFERROR(VLOOKUP(A976,'Critical Roles'!A976:B1000964,2,FALSE),\"\")","v":""}]
[null,{"$f":"IFERROR(VLOOKUP(A977,'Critical Roles'!A977:B1000965,2,FALSE),\"\")","v":""}]
[null,{"$f":"IFERROR(VLOOKUP(A978,'Critical Roles'!A978:B1000966,2,FALSE),\"\")","v":""}]
[null,{"$f":"IFERROR(VLOOKUP(A979,'Critical Roles'!A979:B1000967,2,FALSE),\"\")","v":""}]
[null,{"$f":"IFERROR(VLOOKUP(A980,'Critical Roles'!A980:B1000968,2,FALSE),\"\")","v":""}]
[null,{"$f":"IFERROR(VLOOKUP(A981,'Critical Roles'!A981:B1000969,2,FALSE),\"\")","v":""}]
[null,{"$f":"IFERROR(VLOOKUP(A982,'Critical Roles'!A982:B1000970,2,FALSE),\"\")","v":""}]
[null,{"$f":"IFERROR(VLOOKUP(A983,'Critical Roles'!A983:B1000971,2,FALSE),\"\")","v":""}]
[null,{"$f":"IFERROR(VLOOKUP(A984,'Critical Roles'!A984:B1000972,2,FALSE),\"\")","v":""}]
[null,{"$f":"IFERROR(VLOOKUP(A985,'Critical Roles'!A985:B1000973,2,FALSE),\"\")","v":""}]
[null,{"$f":"IFERROR(VLOOKUP(A986,'Critical Roles'!A986:B1000974,2,FALSE),\"\")","v":""}]
[null,{"$f":"IFERROR(VLOOKUP(A987,'Critical Roles'!A987:B1000975,2,FALSE),\"\")","v":""}]
[null,{"$f":"IFERROR(VLOOKUP(A988,'Critical Roles'!A988:B1000976,2,FALSE),\"\")","v":""}]
[null,{"$f":"IFERROR(VLOOKUP(A989,'Critical Roles'!A989:B1000977,2,FALSE),\"\")","v":""}]
[null,{"$f":"IFERROR(VLOOKUP(A990,'Critical Roles'!A990:B1000978,2,FALSE),\"\")","v":""}]
[null,{"$f":"IFERROR(VLOOKUP(A991,'Critical Roles'!A991:B1000979,2,FALSE),\"\")","v":""}]
[null,{"$f":"IFERROR(VLOOKUP(A992,'Critical Roles'!A992:B1000980,2,FALSE),\"\")","v":""}]
[null,{"$f":"IFERROR(VLOOKUP(A993,'Critical Roles'!A993:B1000981,2,FALSE),\"\")","v":""}]
[null,{"$f":"IFERROR(VLOOKUP(A994,'Critical Roles'!A994:B1000982,2,FALSE),\"\")","v":""}]
[null,{"$f":"IFERROR(VLOOKUP(A995,'Critical Roles'!A995:B1000983,2,FALSE),\"\")","v":""}]
[null,{"$f":"IFERROR(VLOOKUP(A996,'Critical Roles'!A996:B1000984,2,FALSE),\"\")","v":""}]
[null,{"$f":"IFERROR(VLOOKUP(A997,'Critical Roles'!A997:B1000985,2,FALSE),\"\")","v":""}]
[null,{"$f":"IFERROR(VLOOKUP(A998,'Critical Roles'!A998:B1000986,2,FALSE),\"\")","v":""}]
[null,{"$f":"IFERROR(VLOOKUP(A999,'Critical Roles'!A999:B1000987,2,FALSE),\"\")","v":""}]
[null,{"$f":"IFERROR(VLOOKUP(A1000,'Critical Roles'!A1000:B1000988,2,FALSE),\"\")","v":""}]
[null,{"$f":"IFERROR(VLOOKUP(A1001,'Critical Roles'!A1001:B1000989,2,FALSE),\"\")","v":""}]
[null,{"$f":"IFERROR(VLOOKUP(A1002,'Critical Roles'!A1002:B1000990,2,FALSE),\"\")","v":""}]

{"sheet":"CARDINAL Position Report","index":6,"n_rows":36,"n_cols":49,"rows_kept":36,"cut":false,"hidden":false,"merged":[[0,0,8,9],[0,10,8,15]]}
["To include the cardinal position data information query, the full standard repot should be included (All fields). The path for the report in Cardinal is: Menu>>Reporting Tools>>Query>>Query Viewer>>V_HR_Position_Data\n\nData can be manually copied and pasted. The calcualted cells (yellow headers) will need to have the formulas dragged down to the remaining rows in the data set. Some errors may show until all cardinal reports are included in this tool."]
[]
[]
[]
[]
[]
[]
[]
[]
["Position Nbr","Position Vacated Date","Position Status","Descr","Business Unit","Eff Date","Dept ID","Job Code","Status","Company","Reg - Temp","Full - Part Time","Sal Plan","Grade","Position Action","Position Reason","Action Date","Confidential Position","Filled/Vacant","Reports To","Location","Std Hours","FLSA Stat","FTE","Position Review Date","Position Months","Position Economic Interests","Position EEO Code","Position Safety Sensitive Ind","SOC","Position Alternate Work Schedu","Sensitive Position code","Position Agency Field1","Position Agency Field 2","Position Agency Field 3","Supervisor's Position Number","Workers Comp Hazard code","Position  License 1","Position Licenses 2","Position Licenses 3","Critical-Hard-to-Hire","VPA Covered","Supv Lvl","Drug Program","Is Supervisor?","Is Executive?","EEO Description","Classification","Critical"]
[null,null,null,null,null,null,null,null,null,null,null,null,null,null,null,null,null,null,null,null,null,null,null,null,null,null,null,null,null,null,null,null,null,null,null,null,null,null,null,null,null,null,null,null,{"$f":"IF(COUNTIF(AJ:AJ,A11)>0,\"Y\",\"N\")","v":"N"},{"$f":"IF(A11=\"\",\"\",IF(COUNTIF('CENTRAL ANALYSIS'!$A$14:$A$43,A11)>0,\"Y\",\"N\"))","v":""},{"$f":"VLOOKUP(AB11,'CENTRAL ANALYSIS'!$C$22:$D$31,2,FALSE)","v":{"$error":"#N/A"}},{"$f":"VLOOKUP(A11,'CARDINAL Job Data Report'!M:O,3,FALSE)","v":{"$error":"#N/A"}},{"$f":"IFERROR(IF(VLOOKUP(A11,'Critical Roles'!A:J,2,FALSE)=\"Critical\",\"Critical\",\"Not Critical\"),\"Not Assessed\")","v":"Not Assessed"}]
[null,null,null,null,null,null,null,null,null,null,null,null,null,null,null,null,null,null,null,null,null,null,null,null,null,null,null,null,null,null,null,null,null,null,null,null,null,null,null,null,null,null,null,null,{"$f":"IF(COUNTIF(AJ:AJ,A12)>0,\"Y\",\"N\")","v":"N"},{"$f":"IF(A12=\"\",\"\",IF(COUNTIF('CENTRAL ANALYSIS'!$A$14:$A$43,A12)>0,\"Y\",\"N\"))","v":""},{"$f":"VLOOKUP(AB12,'CENTRAL ANALYSIS'!$C$22:$D$31,2,FALSE)","v":{"$error":"#N/A"}},{"$f":"VLOOKUP(A12,'CARDINAL Job Data Report'!M:O,3,FALSE)","v":{"$error":"#N/A"}},{"$f":"IFERROR(IF(VLOOKUP(A12,'Critical Roles'!A:J,2,FALSE)=\"Critical\",\"Critical\",\"Not Critical\"),\"Not Assessed\")","v":"Not Assessed"}]
[null,null,null,null,null,null,null,null,null,null,null,null,null,null,null,null,null,null,null,null,null,null,null,null,null,null,null,null,null,null,null,null,null,null,null,null,null,null,null,null,null,null,null,null,"N",{"$f":"IF(A13=\"\",\"\",IF(COUNTIF('CENTRAL ANALYSIS'!$A$14:$A$43,A13)>0,\"Y\",\"N\"))","v":""},{"$f":"VLOOKUP(AB13,'CENTRAL ANALYSIS'!$C$22:$D$31,2,FALSE)","v":{"$error":"#N/A"}},{"$f":"VLOOKUP(A13,'CARDINAL Job Data Report'!M:O,3,FALSE)","v":{"$error":"#N/A"}},{"$f":"IFERROR(IF(VLOOKUP(A13,'Critical Roles'!A:J,2,FALSE)=\"Critical\",\"Critical\",\"Not Critical\"),\"Not Assessed\")","v":"Not Assessed"}]
[null,null,null,null,null,null,null,null,null,null,null,null,null,null,null,null,null,null,null,null,null,null,null,null,null,null,null,null,null,null,null,null,null,null,null,null,null,null,null,null,null,null,null,null,"N",{"$f":"IF(A14=\"\",\"\",IF(COUNTIF('CENTRAL ANALYSIS'!$A$14:$A$43,A14)>0,\"Y\",\"N\"))","v":""},{"$f":"VLOOKUP(AB14,'CENTRAL ANALYSIS'!$C$22:$D$31,2,FALSE)","v":{"$error":"#N/A"}},{"$f":"VLOOKUP(A14,'CARDINAL Job Data Report'!M:O,3,FALSE)","v":{"$error":"#N/A"}},{"$f":"IFERROR(IF(VLOOKUP(A14,'Critical Roles'!A:J,2,FALSE)=\"Critical\",\"Critical\",\"Not Critical\"),\"Not Assessed\")","v":"Not Assessed"}]
[null,null,null,null,null,null,null,null,null,null,null,null,null,null,null,null,null,null,null,null,null,null,null,null,null,null,null,null,null,null,null,null,null,null,null,null,null,null,null,null,null,null,null,null,"N",{"$f":"IF(A15=\"\",\"\",IF(COUNTIF('CENTRAL ANALYSIS'!$A$14:$A$43,A15)>0,\"Y\",\"N\"))","v":""},{"$f":"VLOOKUP(AB15,'CENTRAL ANALYSIS'!$C$22:$D$31,2,FALSE)","v":{"$error":"#N/A"}},{"$f":"VLOOKUP(A15,'CARDINAL Job Data Report'!M:O,3,FALSE)","v":{"$error":"#N/A"}},{"$f":"IFERROR(IF(VLOOKUP(A15,'Critical Roles'!A:J,2,FALSE)=\"Critical\",\"Critical\",\"Not Critical\"),\"Not Assessed\")","v":"Not Assessed"}]
[null,null,null,null,null,null,null,null,null,null,null,null,null,null,null,null,null,null,null,null,null,null,null,null,null,null,null,null,null,null,null,null,null,null,null,null,null,null,null,null,null,null,null,null,"N",{"$f":"IF(A16=\"\",\"\",IF(COUNTIF('CENTRAL ANALYSIS'!$A$14:$A$43,A16)>0,\"Y\",\"N\"))","v":""},{"$f":"VLOOKUP(AB16,'CENTRAL ANALYSIS'!$C$22:$D$31,2,FALSE)","v":{"$error":"#N/A"}},{"$f":"VLOOKUP(A16,'CARDINAL Job Data Report'!M:O,3,FALSE)","v":{"$error":"#N/A"}},{"$f":"IFERROR(IF(VLOOKUP(A16,'Critical Roles'!A:J,2,FALSE)=\"Critical\",\"Critical\",\"Not Critical\"),\"Not Assessed\")","v":"Not Assessed"}]
[null,null,null,null,null,null,null,null,null,null,null,null,null,null,null,null,null,null,null,null,null,null,null,null,null,null,null,null,null,null,null,null,null,null,null,null,null,null,null,null,null,null,null,null,"N",{"$f":"IF(A17=\"\",\"\",IF(COUNTIF('CENTRAL ANALYSIS'!$A$14:$A$43,A17)>0,\"Y\",\"N\"))","v":""},{"$f":"VLOOKUP(AB17,'CENTRAL ANALYSIS'!$C$22:$D$31,2,FALSE)","v":{"$error":"#N/A"}},{"$f":"VLOOKUP(A17,'CARDINAL Job Data Report'!M:O,3,FALSE)","v":{"$error":"#N/A"}},{"$f":"IFERROR(IF(VLOOKUP(A17,'Critical Roles'!A:J,2,FALSE)=\"Critical\",\"Critical\",\"Not Critical\"),\"Not Assessed\")","v":"Not Assessed"}]
[null,null,null,null,null,null,null,null,null,null,null,null,null,null,null,null,null,null,null,null,null,null,null,null,null,null,null,null,null,null,null,null,null,null,null,null,null,null,null,null,null,null,null,null,"N",{"$f":"IF(A18=\"\",\"\",IF(COUNTIF('CENTRAL ANALYSIS'!$A$14:$A$43,A18)>0,\"Y\",\"N\"))","v":""},{"$f":"VLOOKUP(AB18,'CENTRAL ANALYSIS'!$C$22:$D$31,2,FALSE)","v":{"$error":"#N/A"}},{"$f":"VLOOKUP(A18,'CARDINAL Job Data Report'!M:O,3,FALSE)","v":{"$error":"#N/A"}},{"$f":"IFERROR(IF(VLOOKUP(A18,'Critical Roles'!A:J,2,FALSE)=\"Critical\",\"Critical\",\"Not Critical\"),\"Not Assessed\")","v":"Not Assessed"}]
[null,null,null,null,null,null,null,null,null,null,null,null,null,null,null,null,null,null,null,null,null,null,null,null,null,null,null,null,null,null,null,null,null,null,null,null,null,null,null,null,null,null,null,null,"N",{"$f":"IF(A19=\"\",\"\",IF(COUNTIF('CENTRAL ANALYSIS'!$A$14:$A$43,A19)>0,\"Y\",\"N\"))","v":""},{"$f":"VLOOKUP(AB19,'CENTRAL ANALYSIS'!$C$22:$D$31,2,FALSE)","v":{"$error":"#N/A"}},{"$f":"VLOOKUP(A19,'CARDINAL Job Data Report'!M:O,3,FALSE)","v":{"$error":"#N/A"}},{"$f":"IFERROR(IF(VLOOKUP(A19,'Critical Roles'!A:J,2,FALSE)=\"Critical\",\"Critical\",\"Not Critical\"),\"Not Assessed\")","v":"Not Assessed"}]
[null,null,null,null,null,null,null,null,null,null,null,null,null,null,null,null,null,null,null,null,null,null,null,null,null,null,null,null,null,null,null,null,null,null,null,null,null,null,null,null,null,null,null,null,"N",{"$f":"IF(A20=\"\",\"\",IF(COUNTIF('CENTRAL ANALYSIS'!$A$14:$A$43,A20)>0,\"Y\",\"N\"))","v":""},{"$f":"VLOOKUP(AB20,'CENTRAL ANALYSIS'!$C$22:$D$31,2,FALSE)","v":{"$error":"#N/A"}},{"$f":"VLOOKUP(A20,'CARDINAL Job Data Report'!M:O,3,FALSE)","v":{"$error":"#N/A"}},{"$f":"IFERROR(IF(VLOOKUP(A20,'Critical Roles'!A:J,2,FALSE)=\"Critical\",\"Critical\",\"Not Critical\"),\"Not Assessed\")","v":"Not Assessed"}]
[null,null,null,null,null,null,null,null,null,null,null,null,null,null,null,null,null,null,null,null,null,null,null,null,null,null,null,null,null,null,null,null,null,null,null,null,null,null,null,null,null,null,null,null,"N",{"$f":"IF(A21=\"\",\"\",IF(COUNTIF('CENTRAL ANALYSIS'!$A$14:$A$43,A21)>0,\"Y\",\"N\"))","v":""},{"$f":"VLOOKUP(AB21,'CENTRAL ANALYSIS'!$C$22:$D$31,2,FALSE)","v":{"$error":"#N/A"}},{"$f":"VLOOKUP(A21,'CARDINAL Job Data Report'!M:O,3,FALSE)","v":{"$error":"#N/A"}},{"$f":"IFERROR(IF(VLOOKUP(A21,'Critical Roles'!A:J,2,FALSE)=\"Critical\",\"Critical\",\"Not Critical\"),\"Not Assessed\")","v":"Not Assessed"}]
[null,null,null,null,null,null,null,null,null,null,null,null,null,null,null,null,null,null,null,null,null,null,null,null,null,null,null,null,null,null,null,null,null,null,null,null,null,null,null,null,null,null,null,null,"N",{"$f":"IF(A22=\"\",\"\",IF(COUNTIF('CENTRAL ANALYSIS'!$A$14:$A$43,A22)>0,\"Y\",\"N\"))","v":""},{"$f":"VLOOKUP(AB22,'CENTRAL ANALYSIS'!$C$22:$D$31,2,FALSE)","v":{"$error":"#N/A"}},{"$f":"VLOOKUP(A22,'CARDINAL Job Data Report'!M:O,3,FALSE)","v":{"$error":"#N/A"}},{"$f":"IFERROR(IF(VLOOKUP(A22,'Critical Roles'!A:J,2,FALSE)=\"Critical\",\"Critical\",\"Not Critical\"),\"Not Assessed\")","v":"Not Assessed"}]
[null,null,null,null,null,null,null,null,null,null,null,null,null,null,null,null,null,null,null,null,null,null,null,null,null,null,null,null,null,null,null,null,null,null,null,null,null,null,null,null,null,null,null,null,"N",{"$f":"IF(A23=\"\",\"\",IF(COUNTIF('CENTRAL ANALYSIS'!$A$14:$A$43,A23)>0,\"Y\",\"N\"))","v":""},{"$f":"VLOOKUP(AB23,'CENTRAL ANALYSIS'!$C$22:$D$31,2,FALSE)","v":{"$error":"#N/A"}},{"$f":"VLOOKUP(A23,'CARDINAL Job Data Report'!M:O,3,FALSE)","v":{"$error":"#N/A"}},{"$f":"IFERROR(IF(VLOOKUP(A23,'Critical Roles'!A:J,2,FALSE)=\"Critical\",\"Critical\",\"Not Critical\"),\"Not Assessed\")","v":"Not Assessed"}]
[null,null,null,null,null,null,null,null,null,null,null,null,null,null,null,null,null,null,null,null,null,null,null,null,null,null,null,null,null,null,null,null,null,null,null,null,null,null,null,null,null,null,null,null,"N",{"$f":"IF(A24=\"\",\"\",IF(COUNTIF('CENTRAL ANALYSIS'!$A$14:$A$43,A24)>0,\"Y\",\"N\"))","v":""},{"$f":"VLOOKUP(AB24,'CENTRAL ANALYSIS'!$C$22:$D$31,2,FALSE)","v":{"$error":"#N/A"}},{"$f":"VLOOKUP(A24,'CARDINAL Job Data Report'!M:O,3,FALSE)","v":{"$error":"#N/A"}},{"$f":"IFERROR(IF(VLOOKUP(A24,'Critical Roles'!A:J,2,FALSE)=\"Critical\",\"Critical\",\"Not Critical\"),\"Not Assessed\")","v":"Not Assessed"}]
[null,null,null,null,null,null,null,null,null,null,null,null,null,null,null,null,null,null,null,null,null,null,null,null,null,null,null,null,null,null,null,null,null,null,null,null,null,null,null,null,null,null,null,null,"N",{"$f":"IF(A25=\"\",\"\",IF(COUNTIF('CENTRAL ANALYSIS'!$A$14:$A$43,A25)>0,\"Y\",\"N\"))","v":""},{"$f":"VLOOKUP(AB25,'CENTRAL ANALYSIS'!$C$22:$D$31,2,FALSE)","v":{"$error":"#N/A"}},{"$f":"VLOOKUP(A25,'CARDINAL Job Data Report'!M:O,3,FALSE)","v":{"$error":"#N/A"}},{"$f":"IFERROR(IF(VLOOKUP(A25,'Critical Roles'!A:J,2,FALSE)=\"Critical\",\"Critical\",\"Not Critical\"),\"Not Assessed\")","v":"Not Assessed"}]
[null,null,null,null,null,null,null,null,null,null,null,null,null,null,null,null,null,null,null,null,null,null,null,null,null,null,null,null,null,null,null,null,null,null,null,null,null,null,null,null,null,null,null,null,{"$f":"IF(COUNTIF(AJ:AJ,A26)>0,\"Y\",\"N\")","v":"N"},{"$f":"IF(A26=\"\",\"\",IF(COUNTIF('CENTRAL ANALYSIS'!$A$14:$A$43,A26)>0,\"Y\",\"N\"))","v":""},{"$f":"VLOOKUP(AB26,'CENTRAL ANALYSIS'!$C$22:$D$31,2,FALSE)","v":{"$error":"#N/A"}},{"$f":"VLOOKUP(A26,'CARDINAL Job Data Report'!M:O,3,FALSE)","v":{"$error":"#N/A"}},{"$f":"IFERROR(IF(VLOOKUP(A26,'Critical Roles'!A:J,2,FALSE)=\"Critical\",\"Critical\",\"Not Critical\"),\"Not Assessed\")","v":"Not Assessed"}]
[null,null,null,null,null,null,null,null,null,null,null,null,null,null,null,null,null,null,null,null,null,null,null,null,null,null,null,null,null,null,null,null,null,null,null,null,null,null,null,null,null,null,null,null,"N",{"$f":"IF(A27=\"\",\"\",IF(COUNTIF('CENTRAL ANALYSIS'!$A$14:$A$43,A27)>0,\"Y\",\"N\"))","v":""},{"$f":"VLOOKUP(AB27,'CENTRAL ANALYSIS'!$C$22:$D$31,2,FALSE)","v":{"$error":"#N/A"}},{"$f":"VLOOKUP(A27,'CARDINAL Job Data Report'!M:O,3,FALSE)","v":{"$error":"#N/A"}},{"$f":"IFERROR(IF(VLOOKUP(A27,'Critical Roles'!A:J,2,FALSE)=\"Critical\",\"Critical\",\"Not Critical\"),\"Not Assessed\")","v":"Not Assessed"}]
[null,null,null,null,null,null,null,null,null,null,null,null,null,null,null,null,null,null,null,null,null,null,null,null,null,null,null,null,null,null,null,null,null,null,null,null,null,null,null,null,null,null,null,null,"N",{"$f":"IF(A28=\"\",\"\",IF(COUNTIF('CENTRAL ANALYSIS'!$A$14:$A$43,A28)>0,\"Y\",\"N\"))","v":""},{"$f":"VLOOKUP(AB28,'CENTRAL ANALYSIS'!$C$22:$D$31,2,FALSE)","v":{"$error":"#N/A"}},{"$f":"VLOOKUP(A28,'CARDINAL Job Data Report'!M:O,3,FALSE)","v":{"$error":"#N/A"}},{"$f":"IFERROR(IF(VLOOKUP(A28,'Critical Roles'!A:J,2,FALSE)=\"Critical\",\"Critical\",\"Not Critical\"),\"Not Assessed\")","v":"Not Assessed"}]
[null,null,null,null,null,null,null,null,null,null,null,null,null,null,null,null,null,null,null,null,null,null,null,null,null,null,null,null,null,null,null,null,null,null,null,null,null,null,null,null,null,null,null,null,"N",{"$f":"IF(A29=\"\",\"\",IF(COUNTIF('CENTRAL ANALYSIS'!$A$14:$A$43,A29)>0,\"Y\",\"N\"))","v":""},{"$f":"VLOOKUP(AB29,'CENTRAL ANALYSIS'!$C$22:$D$31,2,FALSE)","v":{"$error":"#N/A"}},{"$f":"VLOOKUP(A29,'CARDINAL Job Data Report'!M:O,3,FALSE)","v":{"$error":"#N/A"}},{"$f":"IFERROR(IF(VLOOKUP(A29,'Critical Roles'!A:J,2,FALSE)=\"Critical\",\"Critical\",\"Not Critical\"),\"Not Assessed\")","v":"Not Assessed"}]
[null,null,null,null,null,null,null,null,null,null,null,null,null,null,null,null,null,null,null,null,null,null,null,null,null,null,null,null,null,null,null,null,null,null,null,null,null,null,null,null,null,null,null,null,"N",{"$f":"IF(A30=\"\",\"\",IF(COUNTIF('CENTRAL ANALYSIS'!$A$14:$A$43,A30)>0,\"Y\",\"N\"))","v":""},{"$f":"VLOOKUP(AB30,'CENTRAL ANALYSIS'!$C$22:$D$31,2,FALSE)","v":{"$error":"#N/A"}},{"$f":"VLOOKUP(A30,'CARDINAL Job Data Report'!M:O,3,FALSE)","v":{"$error":"#N/A"}},{"$f":"IFERROR(IF(VLOOKUP(A30,'Critical Roles'!A:J,2,FALSE)=\"Critical\",\"Critical\",\"Not Critical\"),\"Not Assessed\")","v":"Not Assessed"}]
[null,null,null,null,null,null,null,null,null,null,null,null,null,null,null,null,null,null,null,null,null,null,null,null,null,null,null,null,null,null,null,null,null,null,null,null,null,null,null,null,null,null,null,null,"N",{"$f":"IF(A31=\"\",\"\",IF(COUNTIF('CENTRAL ANALYSIS'!$A$14:$A$43,A31)>0,\"Y\",\"N\"))","v":""},{"$f":"VLOOKUP(AB31,'CENTRAL ANALYSIS'!$C$22:$D$31,2,FALSE)","v":{"$error":"#N/A"}},{"$f":"VLOOKUP(A31,'CARDINAL Job Data Report'!M:O,3,FALSE)","v":{"$error":"#N/A"}},{"$f":"IFERROR(IF(VLOOKUP(A31,'Critical Roles'!A:J,2,FALSE)=\"Critical\",\"Critical\",\"Not Critical\"),\"Not Assessed\")","v":"Not Assessed"}]
[null,null,null,null,null,null,null,null,null,null,null,null,null,null,null,null,null,null,null,null,null,null,null,null,null,null,null,null,null,null,null,null,null,null,null,null,null,null,null,null,null,null,null,null,"N",{"$f":"IF(A32=\"\",\"\",IF(COUNTIF('CENTRAL ANALYSIS'!$A$14:$A$43,A32)>0,\"Y\",\"N\"))","v":""},{"$f":"VLOOKUP(AB32,'CENTRAL ANALYSIS'!$C$22:$D$31,2,FALSE)","v":{"$error":"#N/A"}},{"$f":"VLOOKUP(A32,'CARDINAL Job Data Report'!M:O,3,FALSE)","v":{"$error":"#N/A"}},{"$f":"IFERROR(IF(VLOOKUP(A32,'Critical Roles'!A:J,2,FALSE)=\"Critical\",\"Critical\",\"Not Critical\"),\"Not Assessed\")","v":"Not Assessed"}]
[null,null,null,null,null,null,null,null,null,null,null,null,null,null,null,null,null,null,null,null,null,null,null,null,null,null,null,null,null,null,null,null,null,null,null,null,null,null,null,null,null,null,null,null,"N",{"$f":"IF(A33=\"\",\"\",IF(COUNTIF('CENTRAL ANALYSIS'!$A$14:$A$43,A33)>0,\"Y\",\"N\"))","v":""},{"$f":"VLOOKUP(AB33,'CENTRAL ANALYSIS'!$C$22:$D$31,2,FALSE)","v":{"$error":"#N/A"}},{"$f":"VLOOKUP(A33,'CARDINAL Job Data Report'!M:O,3,FALSE)","v":{"$error":"#N/A"}},{"$f":"IFERROR(IF(VLOOKUP(A33,'Critical Roles'!A:J,2,FALSE)=\"Critical\",\"Critical\",\"Not Critical\"),\"Not Assessed\")","v":"Not Assessed"}]
[null,null,null,null,null,null,null,null,null,null,null,null,null,null,null,null,null,null,null,null,null,null,null,null,null,null,null,null,null,null,null,null,null,null,null,null,null,null,null,null,null,null,null,null,"N",{"$f":"IF(A34=\"\",\"\",IF(COUNTIF('CENTRAL ANALYSIS'!$A$14:$A$43,A34)>0,\"Y\",\"N\"))","v":""},{"$f":"VLOOKUP(AB34,'CENTRAL ANALYSIS'!$C$22:$D$31,2,FALSE)","v":{"$error":"#N/A"}},{"$f":"VLOOKUP(A34,'CARDINAL Job Data Report'!M:O,3,FALSE)","v":{"$error":"#N/A"}},{"$f":"IFERROR(IF(VLOOKUP(A34,'Critical Roles'!A:J,2,FALSE)=\"Critical\",\"Critical\",\"Not Critical\"),\"Not Assessed\")","v":"Not Assessed"}]
[null,null,null,null,null,null,null,null,null,null,null,null,null,null,null,null,null,null,null,null,null,null,null,null,null,null,null,null,null,null,null,null,null,null,null,null,null,null,null,null,null,null,null,null,"N",{"$f":"IF(A35=\"\",\"\",IF(COUNTIF('CENTRAL ANALYSIS'!$A$14:$A$43,A35)>0,\"Y\",\"N\"))","v":""},{"$f":"VLOOKUP(AB35,'CENTRAL ANALYSIS'!$C$22:$D$31,2,FALSE)","v":{"$error":"#N/A"}},{"$f":"VLOOKUP(A35,'CARDINAL Job Data Report'!M:O,3,FALSE)","v":{"$error":"#N/A"}},{"$f":"IFERROR(IF(VLOOKUP(A35,'Critical Roles'!A:J,2,FALSE)=\"Critical\",\"Critical\",\"Not Critical\"),\"Not Assessed\")","v":"Not Assessed"}]
[null,null,null,null,null,null,null,null,null,null,null,null,null,null,null,null,null,null,null,null,null,null,null,null,null,null,null,null,null,null,null,null,null,null,null,null,null,null,null,null,null,null,null,null,"N",{"$f":"IF(A36=\"\",\"\",IF(COUNTIF('CENTRAL ANALYSIS'!$A$14:$A$43,A36)>0,\"Y\",\"N\"))","v":""},{"$f":"VLOOKUP(AB36,'CENTRAL ANALYSIS'!$C$22:$D$31,2,FALSE)","v":{"$error":"#N/A"}},{"$f":"VLOOKUP(A36,'CARDINAL Job Data Report'!M:O,3,FALSE)","v":{"$error":"#N/A"}},{"$f":"IFERROR(IF(VLOOKUP(A36,'Critical Roles'!A:J,2,FALSE)=\"Critical\",\"Critical\",\"Not Critical\"),\"Not Assessed\")","v":"Not Assessed"}]

{"sheet":"CARDINAL Job Data Report","index":7,"n_rows":25,"n_cols":72,"rows_kept":25,"cut":false,"hidden":false,"merged":[[0,0,8,9],[0,10,8,15]]}
["To include the cardinal job data query, the full standard repot should be included (All fields). The path for the report in Cardinal is: Menu>>Reporting Tools>>Query>>Query Viewer>>V_HR_Job_Query\n\nData can be manually copied and pasted. The calcualted cells (yellow headers) will need to have the formulas dragged down to the remaining rows in the data set. Some errors may show until all cardinal reports are included in this tool."]
[]
[]
[]
[]
[]
[]
[]
[]
["Business Unit","Company","Department","Last Name","First Name","Empl ID","Empl Rcd","Effective Date","Effective Sequence","Action","Action Reason","Action Date","Position Nbr","Establishment","Empl Class","Pay Group","Employee Type","Tax Location","FICA Status","Job Std Hours","JOB FTE","Layoff Notification Date","STD Claim Number","Recall Elig Flg","Position Description","HR Status","Ben Status","Payroll Status","VPA Only","Job Code","Job Code Description","Supervisor ID","Standard Occup Classification","Salary Plan","Grade","Step","Reg/Temp","Full- Part Time","FLSA Status","Compensation Frequency","State Comp Rate","Non State Comp Rate","Special Comp Rate","Hourly Comp Rate","Month-Pays (Config 8)","Pos Std Hrs","Reports To","Location","Probation Date","Agency Start Date","Company Seniority Date","Employee State Begin Date","Agency Use Field 1","Agency Use Field 2","Agency Use Field 3","Non Auto-pay","Position Entry Date","Jobcode Entry Date","VRS Plan (Config 1)","Benefit Plan (Config 2)","Time Entry (Config 3)","VRS Bill Code (Config 6)","Health Bill Code (Config 9)","EEO Code","Classification","Is Supervisor","Is Executive","Critical Role","Agency YOS","Is First 5 Years?","Is First Year?","Transaction Category"]
[null,null,null,null,null,null,null,null,null,null,null,null,null,null,null,null,null,null,null,null,null,null,null,null,null,null,null,null,null,null,null,null,null,null,null,null,null,null,null,null,null,null,null,null,null,null,null,null,null,null,null,null,null,null,null,null,null,null,null,null,null,null,null,{"$f":"VLOOKUP($F11,'CARDINAL Personal Report'!$A:$X,14,FALSE)","v":{"$error":"#N/A"}},{"$f":"VLOOKUP($F11,'CARDINAL Personal Report'!$A:$X,15,FALSE)","v":{"$error":"#N/A"}},{"$f":"VLOOKUP($F11,'CARDINAL Personal Report'!$A:$X,17,FALSE)","v":{"$error":"#N/A"}},{"$f":"VLOOKUP($F11,'CARDINAL Personal Report'!$A:$X,18,FALSE)","v":{"$error":"#N/A"}},{"$f":"VLOOKUP($F11,'CARDINAL Personal Report'!$A:$X,21,FALSE)","v":{"$error":"#N/A"}},{"$f":"VLOOKUP($F11,'CARDINAL Personal Report'!$A:$AF,32,FALSE)","v":{"$error":"#N/A"}},{"$f":"IF(BQ11<5,\"Y\",\"N\")","v":{"$error":"#N/A"}},{"$f":"IF(BQ11<1,\"Y\",\"N\")","v":{"$error":"#N/A"}},{"$f":"VLOOKUP(K11,'CENTRAL ANALYSIS'!$M$14:$N$55,2,FALSE)","v":{"$error":"#N/A"}}]
[null,null,null,null,null,null,null,null,null,null,null,null,null,null,null,null,null,null,null,null,null,null,null,null,null,null,null,null,null,null,null,null,null,null,null,null,null,null,null,null,null,null,null,null,null,null,null,null,null,null,null,null,null,null,null,null,null,null,null,null,null,null,null,{"$f":"VLOOKUP($F12,'CARDINAL Personal Report'!$A:$X,14,FALSE)","v":{"$error":"#N/A"}},{"$f":"VLOOKUP($F12,'CARDINAL Personal Report'!$A:$X,15,FALSE)","v":{"$error":"#N/A"}},{"$f":"VLOOKUP($F12,'CARDINAL Personal Report'!$A:$X,17,FALSE)","v":{"$error":"#N/A"}},{"$f":"VLOOKUP($F12,'CARDINAL Personal Report'!$A:$X,18,FALSE)","v":{"$error":"#N/A"}},{"$f":"VLOOKUP($F12,'CARDINAL Personal Report'!$A:$X,21,FALSE)","v":{"$error":"#N/A"}},{"$f":"VLOOKUP($F12,'CARDINAL Personal Report'!$A:$AF,32,FALSE)","v":{"$error":"#N/A"}},{"$f":"IF(BQ12<5,\"Y\",\"N\")","v":{"$error":"#N/A"}},{"$f":"IF(BQ12<1,\"Y\",\"N\")","v":{"$error":"#N/A"}},{"$f":"VLOOKUP(K12,'CENTRAL ANALYSIS'!$M$14:$N$55,2,FALSE)","v":{"$error":"#N/A"}}]
[null,null,null,null,null,null,null,null,null,null,null,null,null,null,null,null,null,null,null,null,null,null,null,null,null,null,null,null,null,null,null,null,null,null,null,null,null,null,null,null,null,null,null,null,null,null,null,null,null,null,null,null,null,null,null,null,null,null,null,null,null,null,null,{"$f":"VLOOKUP($F13,'CARDINAL Personal Report'!$A:$X,14,FALSE)","v":{"$error":"#N/A"}},{"$f":"VLOOKUP($F13,'CARDINAL Personal Report'!$A:$X,15,FALSE)","v":{"$error":"#N/A"}},{"$f":"VLOOKUP($F13,'CARDINAL Personal Report'!$A:$X,17,FALSE)","v":{"$error":"#N/A"}},{"$f":"VLOOKUP($F13,'CARDINAL Personal Report'!$A:$X,18,FALSE)","v":{"$error":"#N/A"}},{"$f":"VLOOKUP($F13,'CARDINAL Personal Report'!$A:$X,21,FALSE)","v":{"$error":"#N/A"}},{"$f":"VLOOKUP($F13,'CARDINAL Personal Report'!$A:$AF,32,FALSE)","v":{"$error":"#N/A"}},{"$error":"#N/A"},{"$error":"#N/A"},{"$f":"VLOOKUP(K13,'CENTRAL ANALYSIS'!$M$14:$N$55,2,FALSE)","v":{"$error":"#N/A"}}]
[null,null,null,null,null,null,null,null,null,null,null,null,null,null,null,null,null,null,null,null,null,null,null,null,null,null,null,null,null,null,null,null,null,null,null,null,null,null,null,null,null,null,null,null,null,null,null,null,null,null,null,null,null,null,null,null,null,null,null,null,null,null,null,{"$f":"VLOOKUP($F14,'CARDINAL Personal Report'!$A:$X,14,FALSE)","v":{"$error":"#N/A"}},{"$f":"VLOOKUP($F14,'CARDINAL Personal Report'!$A:$X,15,FALSE)","v":{"$error":"#N/A"}},{"$f":"VLOOKUP($F14,'CARDINAL Personal Report'!$A:$X,17,FALSE)","v":{"$error":"#N/A"}},{"$f":"VLOOKUP($F14,'CARDINAL Personal Report'!$A:$X,18,FALSE)","v":{"$error":"#N/A"}},{"$f":"VLOOKUP($F14,'CARDINAL Personal Report'!$A:$X,21,FALSE)","v":{"$error":"#N/A"}},{"$f":"VLOOKUP($F14,'CARDINAL Personal Report'!$A:$AF,32,FALSE)","v":{"$error":"#N/A"}},{"$error":"#N/A"},{"$error":"#N/A"},{"$f":"VLOOKUP(K14,'CENTRAL ANALYSIS'!$M$14:$N$55,2,FALSE)","v":{"$error":"#N/A"}}]
[null,null,null,null,null,null,null,null,null,null,null,null,null,null,null,null,null,null,null,null,null,null,null,null,null,null,null,null,null,null,null,null,null,null,null,null,null,null,null,null,null,null,null,null,null,null,null,null,null,null,null,null,null,null,null,null,null,null,null,null,null,null,null,{"$f":"VLOOKUP($F15,'CARDINAL Personal Report'!$A:$X,14,FALSE)","v":{"$error":"#N/A"}},{"$f":"VLOOKUP($F15,'CARDINAL Personal Report'!$A:$X,15,FALSE)","v":{"$error":"#N/A"}},{"$f":"VLOOKUP($F15,'CARDINAL Personal Report'!$A:$X,17,FALSE)","v":{"$error":"#N/A"}},{"$f":"VLOOKUP($F15,'CARDINAL Personal Report'!$A:$X,18,FALSE)","v":{"$error":"#N/A"}},{"$f":"VLOOKUP($F15,'CARDINAL Personal Report'!$A:$X,21,FALSE)","v":{"$error":"#N/A"}},{"$f":"VLOOKUP($F15,'CARDINAL Personal Report'!$A:$AF,32,FALSE)","v":{"$error":"#N/A"}},{"$error":"#N/A"},{"$error":"#N/A"},{"$f":"VLOOKUP(K15,'CENTRAL ANALYSIS'!$M$14:$N$55,2,FALSE)","v":{"$error":"#N/A"}}]
[null,null,null,null,null,null,null,null,null,null,null,null,null,null,null,null,null,null,null,null,null,null,null,null,null,null,null,null,null,null,null,null,null,null,null,null,null,null,null,null,null,null,null,null,null,null,null,null,null,null,null,null,null,null,null,null,null,null,null,null,null,null,null,{"$f":"VLOOKUP($F16,'CARDINAL Personal Report'!$A:$X,14,FALSE)","v":{"$error":"#N/A"}},{"$f":"VLOOKUP($F16,'CARDINAL Personal Report'!$A:$X,15,FALSE)","v":{"$error":"#N/A"}},{"$f":"VLOOKUP($F16,'CARDINAL Personal Report'!$A:$X,17,FALSE)","v":{"$error":"#N/A"}},{"$f":"VLOOKUP($F16,'CARDINAL Personal Report'!$A:$X,18,FALSE)","v":{"$error":"#N/A"}},{"$f":"VLOOKUP($F16,'CARDINAL Personal Report'!$A:$X,21,FALSE)","v":{"$error":"#N/A"}},{"$f":"VLOOKUP($F16,'CARDINAL Personal Report'!$A:$AF,32,FALSE)","v":{"$error":"#N/A"}},{"$error":"#N/A"},{"$error":"#N/A"},{"$f":"VLOOKUP(K16,'CENTRAL ANALYSIS'!$M$14:$N$55,2,FALSE)","v":{"$error":"#N/A"}}]
[null,null,null,null,null,null,null,null,null,null,null,null,null,null,null,null,null,null,null,null,null,null,null,null,null,null,null,null,null,null,null,null,null,null,null,null,null,null,null,null,null,null,null,null,null,null,null,null,null,null,null,null,null,null,null,null,null,null,null,null,null,null,null,{"$f":"VLOOKUP($F17,'CARDINAL Personal Report'!$A:$X,14,FALSE)","v":{"$error":"#N/A"}},{"$f":"VLOOKUP($F17,'CARDINAL Personal Report'!$A:$X,15,FALSE)","v":{"$error":"#N/A"}},{"$f":"VLOOKUP($F17,'CARDINAL Personal Report'!$A:$X,17,FALSE)","v":{"$error":"#N/A"}},{"$f":"VLOOKUP($F17,'CARDINAL Personal Report'!$A:$X,18,FALSE)","v":{"$error":"#N/A"}},{"$f":"VLOOKUP($F17,'CARDINAL Personal Report'!$A:$X,21,FALSE)","v":{"$error":"#N/A"}},{"$f":"VLOOKUP($F17,'CARDINAL Personal Report'!$A:$AF,32,FALSE)","v":{"$error":"#N/A"}},{"$error":"#N/A"},{"$error":"#N/A"},{"$f":"VLOOKUP(K17,'CENTRAL ANALYSIS'!$M$14:$N$55,2,FALSE)","v":{"$error":"#N/A"}}]
[null,null,null,null,null,null,null,null,null,null,null,null,null,null,null,null,null,null,null,null,null,null,null,null,null,null,null,null,null,null,null,null,null,null,null,null,null,null,null,null,null,null,null,null,null,null,null,null,null,null,null,null,null,null,null,null,null,null,null,null,null,null,null,{"$f":"VLOOKUP($F18,'CARDINAL Personal Report'!$A:$X,14,FALSE)","v":{"$error":"#N/A"}},{"$f":"VLOOKUP($F18,'CARDINAL Personal Report'!$A:$X,15,FALSE)","v":{"$error":"#N/A"}},{"$f":"VLOOKUP($F18,'CARDINAL Personal Report'!$A:$X,17,FALSE)","v":{"$error":"#N/A"}},{"$f":"VLOOKUP($F18,'CARDINAL Personal Report'!$A:$X,18,FALSE)","v":{"$error":"#N/A"}},{"$f":"VLOOKUP($F18,'CARDINAL Personal Report'!$A:$X,21,FALSE)","v":{"$error":"#N/A"}},{"$f":"VLOOKUP($F18,'CARDINAL Personal Report'!$A:$AF,32,FALSE)","v":{"$error":"#N/A"}},{"$error":"#N/A"},{"$error":"#N/A"},{"$f":"VLOOKUP(K18,'CENTRAL ANALYSIS'!$M$14:$N$55,2,FALSE)","v":{"$error":"#N/A"}}]
[null,null,null,null,null,null,null,null,null,null,null,null,null,null,null,null,null,null,null,null,null,null,null,null,null,null,null,null,null,null,null,null,null,null,null,null,null,null,null,null,null,null,null,null,null,null,null,null,null,null,null,null,null,null,null,null,null,null,null,null,null,null,null,{"$f":"VLOOKUP($F19,'CARDINAL Personal Report'!$A:$X,14,FALSE)","v":{"$error":"#N/A"}},{"$f":"VLOOKUP($F19,'CARDINAL Personal Report'!$A:$X,15,FALSE)","v":{"$error":"#N/A"}},{"$f":"VLOOKUP($F19,'CARDINAL Personal Report'!$A:$X,17,FALSE)","v":{"$error":"#N/A"}},{"$f":"VLOOKUP($F19,'CARDINAL Personal Report'!$A:$X,18,FALSE)","v":{"$error":"#N/A"}},{"$f":"VLOOKUP($F19,'CARDINAL Personal Report'!$A:$X,21,FALSE)","v":{"$error":"#N/A"}},{"$f":"VLOOKUP($F19,'CARDINAL Personal Report'!$A:$AF,32,FALSE)","v":{"$error":"#N/A"}},{"$error":"#N/A"},{"$error":"#N/A"},{"$f":"VLOOKUP(K19,'CENTRAL ANALYSIS'!$M$14:$N$55,2,FALSE)","v":{"$error":"#N/A"}}]
[null,null,null,null,null,null,null,null,null,null,null,null,null,null,null,null,null,null,null,null,null,null,null,null,null,null,null,null,null,null,null,null,null,null,null,null,null,null,null,null,null,null,null,null,null,null,null,null,null,null,null,null,null,null,null,null,null,null,null,null,null,null,null,{"$f":"VLOOKUP($F20,'CARDINAL Personal Report'!$A:$X,14,FALSE)","v":{"$error":"#N/A"}},{"$f":"VLOOKUP($F20,'CARDINAL Personal Report'!$A:$X,15,FALSE)","v":{"$error":"#N/A"}},{"$f":"VLOOKUP($F20,'CARDINAL Personal Report'!$A:$X,17,FALSE)","v":{"$error":"#N/A"}},{"$f":"VLOOKUP($F20,'CARDINAL Personal Report'!$A:$X,18,FALSE)","v":{"$error":"#N/A"}},{"$f":"VLOOKUP($F20,'CARDINAL Personal Report'!$A:$X,21,FALSE)","v":{"$error":"#N/A"}},{"$f":"VLOOKUP($F20,'CARDINAL Personal Report'!$A:$AF,32,FALSE)","v":{"$error":"#N/A"}},{"$error":"#N/A"},{"$error":"#N/A"},{"$f":"VLOOKUP(K20,'CENTRAL ANALYSIS'!$M$14:$N$55,2,FALSE)","v":{"$error":"#N/A"}}]
[null,null,null,null,null,null,null,null,null,null,null,null,null,null,null,null,null,null,null,null,null,null,null,null,null,null,null,null,null,null,null,null,null,null,null,null,null,null,null,null,null,null,null,null,null,null,null,null,null,null,null,null,null,null,null,null,null,null,null,null,null,null,null,{"$f":"VLOOKUP($F21,'CARDINAL Personal Report'!$A:$X,14,FALSE)","v":{"$error":"#N/A"}},{"$f":"VLOOKUP($F21,'CARDINAL Personal Report'!$A:$X,15,FALSE)","v":{"$error":"#N/A"}},{"$f":"VLOOKUP($F21,'CARDINAL Personal Report'!$A:$X,17,FALSE)","v":{"$error":"#N/A"}},{"$f":"VLOOKUP($F21,'CARDINAL Personal Report'!$A:$X,18,FALSE)","v":{"$error":"#N/A"}},{"$f":"VLOOKUP($F21,'CARDINAL Personal Report'!$A:$X,21,FALSE)","v":{"$error":"#N/A"}},{"$f":"VLOOKUP($F21,'CARDINAL Personal Report'!$A:$AF,32,FALSE)","v":{"$error":"#N/A"}},{"$error":"#N/A"},{"$error":"#N/A"},{"$f":"VLOOKUP(K21,'CENTRAL ANALYSIS'!$M$14:$N$55,2,FALSE)","v":{"$error":"#N/A"}}]
[null,null,null,null,null,null,null,null,null,null,null,null,null,null,null,null,null,null,null,null,null,null,null,null,null,null,null,null,null,null,null,null,null,null,null,null,null,null,null,null,null,null,null,null,null,null,null,null,null,null,null,null,null,null,null,null,null,null,null,null,null,null,null,{"$f":"VLOOKUP($F22,'CARDINAL Personal Report'!$A:$X,14,FALSE)","v":{"$error":"#N/A"}},{"$f":"VLOOKUP($F22,'CARDINAL Personal Report'!$A:$X,15,FALSE)","v":{"$error":"#N/A"}},{"$f":"VLOOKUP($F22,'CARDINAL Personal Report'!$A:$X,17,FALSE)","v":{"$error":"#N/A"}},{"$f":"VLOOKUP($F22,'CARDINAL Personal Report'!$A:$X,18,FALSE)","v":{"$error":"#N/A"}},{"$f":"VLOOKUP($F22,'CARDINAL Personal Report'!$A:$X,21,FALSE)","v":{"$error":"#N/A"}},{"$f":"VLOOKUP($F22,'CARDINAL Personal Report'!$A:$AF,32,FALSE)","v":{"$error":"#N/A"}},{"$error":"#N/A"},{"$error":"#N/A"},{"$f":"VLOOKUP(K22,'CENTRAL ANALYSIS'!$M$14:$N$55,2,FALSE)","v":{"$error":"#N/A"}}]
[null,null,null,null,null,null,null,null,null,null,null,null,null,null,null,null,null,null,null,null,null,null,null,null,null,null,null,null,null,null,null,null,null,null,null,null,null,null,null,null,null,null,null,null,null,null,null,null,null,null,null,null,null,null,null,null,null,null,null,null,null,null,null,{"$f":"VLOOKUP($F23,'CARDINAL Personal Report'!$A:$X,14,FALSE)","v":{"$error":"#N/A"}},{"$f":"VLOOKUP($F23,'CARDINAL Personal Report'!$A:$X,15,FALSE)","v":{"$error":"#N/A"}},{"$f":"VLOOKUP($F23,'CARDINAL Personal Report'!$A:$X,17,FALSE)","v":{"$error":"#N/A"}},{"$f":"VLOOKUP($F23,'CARDINAL Personal Report'!$A:$X,18,FALSE)","v":{"$error":"#N/A"}},{"$f":"VLOOKUP($F23,'CARDINAL Personal Report'!$A:$X,21,FALSE)","v":{"$error":"#N/A"}},{"$f":"VLOOKUP($F23,'CARDINAL Personal Report'!$A:$AF,32,FALSE)","v":{"$error":"#N/A"}},{"$error":"#N/A"},{"$error":"#N/A"},{"$f":"VLOOKUP(K23,'CENTRAL ANALYSIS'!$M$14:$N$55,2,FALSE)","v":{"$error":"#N/A"}}]
[null,null,null,null,null,null,null,null,null,null,null,null,null,null,null,null,null,null,null,null,null,null,null,null,null,null,null,null,null,null,null,null,null,null,null,null,null,null,null,null,null,null,null,null,null,null,null,null,null,null,null,null,null,null,null,null,null,null,null,null,null,null,null,{"$f":"VLOOKUP($F24,'CARDINAL Personal Report'!$A:$X,14,FALSE)","v":{"$error":"#N/A"}},{"$f":"VLOOKUP($F24,'CARDINAL Personal Report'!$A:$X,15,FALSE)","v":{"$error":"#N/A"}},{"$f":"VLOOKUP($F24,'CARDINAL Personal Report'!$A:$X,17,FALSE)","v":{"$error":"#N/A"}},{"$f":"VLOOKUP($F24,'CARDINAL Personal Report'!$A:$X,18,FALSE)","v":{"$error":"#N/A"}},{"$f":"VLOOKUP($F24,'CARDINAL Personal Report'!$A:$X,21,FALSE)","v":{"$error":"#N/A"}},{"$f":"VLOOKUP($F24,'CARDINAL Personal Report'!$A:$AF,32,FALSE)","v":{"$error":"#N/A"}},{"$error":"#N/A"},{"$error":"#N/A"},{"$f":"VLOOKUP(K24,'CENTRAL ANALYSIS'!$M$14:$N$55,2,FALSE)","v":{"$error":"#N/A"}}]
[null,null,null,null,null,null,null,null,null,null,null,null,null,null,null,null,null,null,null,null,null,null,null,null,null,null,null,null,null,null,null,null,null,null,null,null,null,null,null,null,null,null,null,null,null,null,null,null,null,null,null,null,null,null,null,null,null,null,null,null,null,null,null,{"$f":"VLOOKUP($F25,'CARDINAL Personal Report'!$A:$X,14,FALSE)","v":{"$error":"#N/A"}},{"$f":"VLOOKUP($F25,'CARDINAL Personal Report'!$A:$X,15,FALSE)","v":{"$error":"#N/A"}},{"$f":"VLOOKUP($F25,'CARDINAL Personal Report'!$A:$X,17,FALSE)","v":{"$error":"#N/A"}},{"$f":"VLOOKUP($F25,'CARDINAL Personal Report'!$A:$X,18,FALSE)","v":{"$error":"#N/A"}},{"$f":"VLOOKUP($F25,'CARDINAL Personal Report'!$A:$X,21,FALSE)","v":{"$error":"#N/A"}},{"$f":"VLOOKUP($F25,'CARDINAL Personal Report'!$A:$AF,32,FALSE)","v":{"$error":"#N/A"}},{"$error":"#N/A"},{"$error":"#N/A"},{"$f":"VLOOKUP(K25,'CENTRAL ANALYSIS'!$M$14:$N$55,2,FALSE)","v":{"$error":"#N/A"}}]

{"sheet":"CARDINAL Personal Report","index":8,"n_rows":25,"n_cols":34,"rows_kept":25,"cut":false,"hidden":false,"merged":[[0,0,8,9],[0,10,8,15]]}
["To include the cardinal personal data query, only select columns are included. Most PII are not included. See the column headers for which fields to include. The path for the report in Cardinal is: Menu>>Reporting Tools>>Query>>Query Viewer>>V_HR_Personal_Data\n\nData can be manually copied and pasted. The calcualted cells (yellow headers) will need to have the formulas dragged down to the remaining rows in the data set. Some errors may show until all cardinal reports are included in this tool."]
[]
[]
[]
[]
[]
[]
[]
[]
["Emplid","Empl Rcd","Business Unit","Dept","Empl Class","Empl Status","Job Code","Hire Date","Termination Date","Date of Birth","Gender","Ethnic Group -1","Position Number","EEO Code","Classification","Template Race Description","Is Supervisor","Is Executive","Disability Status","Veteran Status","Critical Role","State Begin Date","Age","State YOS","Retirement: Currently Eligible",{"$f":"CONCATENATE('CENTRAL ANALYSIS'!G13,\" Eligibile\")","v":"FY1 Eligibile"},{"$f":"CONCATENATE('CENTRAL ANALYSIS'!H13,\" Eligibile\")","v":"FY2 Eligibile"},{"$f":"CONCATENATE('CENTRAL ANALYSIS'!I13,\" Eligibile\")","v":"FY3 Eligibile"},{"$f":"CONCATENATE('CENTRAL ANALYSIS'!J13,\" Eligibile\")","v":"FY4 Eligibile"},{"$f":"CONCATENATE('CENTRAL ANALYSIS'!K13,\" Eligibile\")","v":"FY5 Eligibile"},"Agency Start Date","Agency YOS","Is First 5 Years?","Is First Year?"]
[null,null,null,null,null,null,null,null,null,null,null,null,{"$f":"VLOOKUP(A11,'CARDINAL Job Data Report'!F:M,8,FALSE)","v":{"$error":"#N/A"}},{"$f":"VLOOKUP(M11,'CARDINAL Position Report'!A:AV,47,FALSE)","v":{"$error":"#N/A"}},{"$f":"VLOOKUP(M11,'CARDINAL Position Report'!A:AV,48,FALSE)","v":{"$error":"#N/A"}},{"$f":"VLOOKUP(L11,'CENTRAL ANALYSIS'!$C$14:$D$19,2,FALSE)","v":{"$error":"#N/A"}},{"$f":"VLOOKUP(M11,'CARDINAL Position Report'!A:AT,45,FALSE)","v":{"$error":"#N/A"}},{"$f":"VLOOKUP(M11,'CARDINAL Position Report'!A:AT,46,FALSE)","v":{"$error":"#N/A"}},{"$f":"VLOOKUP(A11,'CARDINAL DisabilityVeteran'!B:D,2,FALSE)","v":{"$error":"#N/A"}},{"$f":"VLOOKUP(A11,'CARDINAL DisabilityVeteran'!B:D,3,FALSE)","v":{"$error":"#N/A"}},{"$f":"IFERROR(IF(VLOOKUP(M11,'Critical Roles'!A:J,2,FALSE)=\"Critical\",\"Critical\",\"Not Critical\"),\"Not Assessed\")","v":"Not Assessed"},{"$f":"VLOOKUP(A11,'CARDINAL Job Data Report'!F:AZ,47,FALSE)","v":{"$error":"#N/A"}},{"$f":"('DATA SETUP'!$N$29-'CARDINAL Personal Report'!J11)/365.25","v":0},{"$f":"('DATA SETUP'!$N$29-'CARDINAL Personal Report'!V11)/365.25","v":{"$error":"#N/A"}},{"$f":"IF(AND(W11>=65,X11>=5),\"Y\",\"N\")","v":{"$error":"#N/A"}},{"$f":"IF(Y11=\"N\",IF(AND((('CENTRAL ANALYSIS'!G$14-'CARDINAL Personal Report'!$J11)/365.25)>=65,(('CENTRAL ANALYSIS'!G$14-'CARDINAL Personal Report'!$V11)/365.25)>=5),\"Y\",\"N\"),\"--\")","v":{"$error":"#N/A"}},{"$f":"IF(Z11=\"N\",IF(AND((('CENTRAL ANALYSIS'!H$14-'CARDINAL Personal Report'!$J11)/365.25)>=65,(('CENTRAL ANALYSIS'!H$14-'CARDINAL Personal Report'!$V11)/365.25)>=5),\"Y\",\"N\"),\"--\")","v":{"$error":"#N/A"}},{"$f":"IF(AA11=\"N\",IF(AND((('CENTRAL ANALYSIS'!I$14-'CARDINAL Personal Report'!$J11)/365.25)>=65,(('CENTRAL ANALYSIS'!I$14-'CARDINAL Personal Report'!$V11)/365.25)>=5),\"Y\",\"N\"),\"--\")","v":{"$error":"#N/A"}},{"$f":"IF(AB11=\"N\",IF(AND((('CENTRAL ANALYSIS'!J$14-'CARDINAL Personal Report'!$J11)/365.25)>=65,(('CENTRAL ANALYSIS'!J$14-'CARDINAL Personal Report'!$V11)/365.25)>=5),\"Y\",\"N\"),\"--\")","v":{"$error":"#N/A"}},{"$f":"IF(AC11=\"N\",IF(AND((('CENTRAL ANALYSIS'!K$14-'CARDINAL Personal Report'!$J11)/365.25)>=65,(('CENTRAL ANALYSIS'!K$14-'CARDINAL Personal Report'!$V11)/365.25)>=5),\"Y\",\"N\"),\"--\")","v":{"$error":"#N/A"}},{"$f":"VLOOKUP(A11,'CARDINAL Job Data Report'!F:AX,45,FALSE)","v":{"$error":"#N/A"}},{"$f":"('DATA SETUP'!$N$29-'CARDINAL Personal Report'!AE11)/365.25","v":{"$error":"#N/A"}},{"$f":"IF(AF11<5,\"Y\",\"N\")","v":{"$error":"#N/A"}},{"$f":"IF(AF11<1,\"Y\",\"N\")","v":{"$error":"#N/A"}}]
[null,null,null,null,null,null,null,null,null,null,null,null,{"$f":"VLOOKUP(A12,'CARDINAL Job Data Report'!F:M,8,FALSE)","v":{"$error":"#N/A"}},{"$f":"VLOOKUP(M12,'CARDINAL Position Report'!A:AV,47,FALSE)","v":{"$error":"#N/A"}},{"$f":"VLOOKUP(M12,'CARDINAL Position Report'!A:AV,48,FALSE)","v":{"$error":"#N/A"}},{"$f":"VLOOKUP(L12,'CENTRAL ANALYSIS'!$C$14:$D$19,2,FALSE)","v":{"$error":"#N/A"}},{"$f":"VLOOKUP(M12,'CARDINAL Position Report'!A:AT,45,FALSE)","v":{"$error":"#N/A"}},{"$f":"VLOOKUP(M12,'CARDINAL Position Report'!A:AT,46,FALSE)","v":{"$error":"#N/A"}},{"$f":"VLOOKUP(A12,'CARDINAL DisabilityVeteran'!B:D,2,FALSE)","v":{"$error":"#N/A"}},{"$f":"VLOOKUP(A12,'CARDINAL DisabilityVeteran'!B:D,3,FALSE)","v":{"$error":"#N/A"}},{"$f":"IFERROR(IF(VLOOKUP(M12,'Critical Roles'!A:J,2,FALSE)=\"Critical\",\"Critical\",\"Not Critical\"),\"Not Assessed\")","v":"Not Assessed"},{"$f":"VLOOKUP(A12,'CARDINAL Job Data Report'!F:AZ,47,FALSE)","v":{"$error":"#N/A"}},{"$f":"('DATA SETUP'!$N$29-'CARDINAL Personal Report'!J12)/365.25","v":0},{"$f":"('DATA SETUP'!$N$29-'CARDINAL Personal Report'!V12)/365.25","v":{"$error":"#N/A"}},{"$f":"IF(AND(W12>=65,X12>=5),\"Y\",\"N\")","v":{"$error":"#N/A"}},{"$f":"IF(Y12=\"N\",IF(AND((('CENTRAL ANALYSIS'!G$14-'CARDINAL Personal Report'!$J12)/365.25)>=65,(('CENTRAL ANALYSIS'!G$14-'CARDINAL Personal Report'!$V12)/365.25)>=5),\"Y\",\"N\"),\"--\")","v":{"$error":"#N/A"}},{"$f":"IF(Z12=\"N\",IF(AND((('CENTRAL ANALYSIS'!H$14-'CARDINAL Personal Report'!$J12)/365.25)>=65,(('CENTRAL ANALYSIS'!H$14-'CARDINAL Personal Report'!$V12)/365.25)>=5),\"Y\",\"N\"),\"--\")","v":{"$error":"#N/A"}},{"$f":"IF(AA12=\"N\",IF(AND((('CENTRAL ANALYSIS'!I$14-'CARDINAL Personal Report'!$J12)/365.25)>=65,(('CENTRAL ANALYSIS'!I$14-'CARDINAL Personal Report'!$V12)/365.25)>=5),\"Y\",\"N\"),\"--\")","v":{"$error":"#N/A"}},{"$f":"IF(AB12=\"N\",IF(AND((('CENTRAL ANALYSIS'!J$14-'CARDINAL Personal Report'!$J12)/365.25)>=65,(('CENTRAL ANALYSIS'!J$14-'CARDINAL Personal Report'!$V12)/365.25)>=5),\"Y\",\"N\"),\"--\")","v":{"$error":"#N/A"}},{"$f":"IF(AC12=\"N\",IF(AND((('CENTRAL ANALYSIS'!K$14-'CARDINAL Personal Report'!$J12)/365.25)>=65,(('CENTRAL ANALYSIS'!K$14-'CARDINAL Personal Report'!$V12)/365.25)>=5),\"Y\",\"N\"),\"--\")","v":{"$error":"#N/A"}},{"$f":"VLOOKUP(A12,'CARDINAL Job Data Report'!F:AX,45,FALSE)","v":{"$error":"#N/A"}},{"$f":"('DATA SETUP'!$N$29-'CARDINAL Personal Report'!AE12)/365.25","v":{"$error":"#N/A"}},{"$f":"IF(AF12<5,\"Y\",\"N\")","v":{"$error":"#N/A"}},{"$f":"IF(AF12<1,\"Y\",\"N\")","v":{"$error":"#N/A"}}]
[null,null,null,null,null,null,null,null,null,null,null,null,{"$f":"VLOOKUP(A13,'CARDINAL Job Data Report'!F:M,8,FALSE)","v":{"$error":"#N/A"}},{"$f":"VLOOKUP(M13,'CARDINAL Position Report'!A:AV,47,FALSE)","v":{"$error":"#N/A"}},{"$f":"VLOOKUP(M13,'CARDINAL Position Report'!A:AV,48,FALSE)","v":{"$error":"#N/A"}},{"$f":"VLOOKUP(L13,'CENTRAL ANALYSIS'!$C$14:$D$19,2,FALSE)","v":{"$error":"#N/A"}},{"$f":"VLOOKUP(M13,'CARDINAL Position Report'!A:AT,45,FALSE)","v":{"$error":"#N/A"}},{"$f":"VLOOKUP(M13,'CARDINAL Position Report'!A:AT,46,FALSE)","v":{"$error":"#N/A"}},{"$f":"VLOOKUP(A13,'CARDINAL DisabilityVeteran'!B:D,2,FALSE)","v":{"$error":"#N/A"}},{"$f":"VLOOKUP(A13,'CARDINAL DisabilityVeteran'!B:D,3,FALSE)","v":{"$error":"#N/A"}},{"$f":"IFERROR(IF(VLOOKUP(M13,'Critical Roles'!A:J,2,FALSE)=\"Critical\",\"Critical\",\"Not Critical\"),\"Not Assessed\")","v":"Not Assessed"},{"$f":"VLOOKUP(A13,'CARDINAL Job Data Report'!F:AZ,47,FALSE)","v":{"$error":"#N/A"}},{"$f":"('DATA SETUP'!$N$29-'CARDINAL Personal Report'!J13)/365.25","v":0},{"$f":"('DATA SETUP'!$N$29-'CARDINAL Personal Report'!V13)/365.25","v":{"$error":"#N/A"}},{"$error":"#N/A"},{"$f":"IF(Y13=\"N\",IF(AND((('CENTRAL ANALYSIS'!G$14-'CARDINAL Personal Report'!$J13)/365.25)>=65,(('CENTRAL ANALYSIS'!G$14-'CARDINAL Personal Report'!$V13)/365.25)>=5),\"Y\",\"N\"),\"--\")","v":{"$error":"#N/A"}},{"$f":"IF(Z13=\"N\",IF(AND((('CENTRAL ANALYSIS'!H$14-'CARDINAL Personal Report'!$J13)/365.25)>=65,(('CENTRAL ANALYSIS'!H$14-'CARDINAL Personal Report'!$V13)/365.25)>=5),\"Y\",\"N\"),\"--\")","v":{"$error":"#N/A"}},{"$f":"IF(AA13=\"N\",IF(AND((('CENTRAL ANALYSIS'!I$14-'CARDINAL Personal Report'!$J13)/365.25)>=65,(('CENTRAL ANALYSIS'!I$14-'CARDINAL Personal Report'!$V13)/365.25)>=5),\"Y\",\"N\"),\"--\")","v":{"$error":"#N/A"}},{"$f":"IF(AB13=\"N\",IF(AND((('CENTRAL ANALYSIS'!J$14-'CARDINAL Personal Report'!$J13)/365.25)>=65,(('CENTRAL ANALYSIS'!J$14-'CARDINAL Personal Report'!$V13)/365.25)>=5),\"Y\",\"N\"),\"--\")","v":{"$error":"#N/A"}},{"$f":"IF(AC13=\"N\",IF(AND((('CENTRAL ANALYSIS'!K$14-'CARDINAL Personal Report'!$J13)/365.25)>=65,(('CENTRAL ANALYSIS'!K$14-'CARDINAL Personal Report'!$V13)/365.25)>=5),\"Y\",\"N\"),\"--\")","v":{"$error":"#N/A"}},{"$f":"VLOOKUP(A13,'CARDINAL Job Data Report'!F:AX,45,FALSE)","v":{"$error":"#N/A"}},{"$f":"('DATA SETUP'!$N$29-'CARDINAL Personal Report'!AE13)/365.25","v":{"$error":"#N/A"}},{"$error":"#N/A"},{"$error":"#N/A"}]
[null,null,null,null,null,null,null,null,null,null,null,null,{"$f":"VLOOKUP(A14,'CARDINAL Job Data Report'!F:M,8,FALSE)","v":{"$error":"#N/A"}},{"$f":"VLOOKUP(M14,'CARDINAL Position Report'!A:AV,47,FALSE)","v":{"$error":"#N/A"}},{"$f":"VLOOKUP(M14,'CARDINAL Position Report'!A:AV,48,FALSE)","v":{"$error":"#N/A"}},{"$f":"VLOOKUP(L14,'CENTRAL ANALYSIS'!$C$14:$D$19,2,FALSE)","v":{"$error":"#N/A"}},{"$f":"VLOOKUP(M14,'CARDINAL Position Report'!A:AT,45,FALSE)","v":{"$error":"#N/A"}},{"$f":"VLOOKUP(M14,'CARDINAL Position Report'!A:AT,46,FALSE)","v":{"$error":"#N/A"}},{"$f":"VLOOKUP(A14,'CARDINAL DisabilityVeteran'!B:D,2,FALSE)","v":{"$error":"#N/A"}},{"$f":"VLOOKUP(A14,'CARDINAL DisabilityVeteran'!B:D,3,FALSE)","v":{"$error":"#N/A"}},{"$f":"IFERROR(IF(VLOOKUP(M14,'Critical Roles'!A:J,2,FALSE)=\"Critical\",\"Critical\",\"Not Critical\"),\"Not Assessed\")","v":"Not Assessed"},{"$f":"VLOOKUP(A14,'CARDINAL Job Data Report'!F:AZ,47,FALSE)","v":{"$error":"#N/A"}},{"$f":"('DATA SETUP'!$N$29-'CARDINAL Personal Report'!J14)/365.25","v":0},{"$f":"('DATA SETUP'!$N$29-'CARDINAL Personal Report'!V14)/365.25","v":{"$error":"#N/A"}},{"$error":"#N/A"},{"$f":"IF(Y14=\"N\",IF(AND((('CENTRAL ANALYSIS'!G$14-'CARDINAL Personal Report'!$J14)/365.25)>=65,(('CENTRAL ANALYSIS'!G$14-'CARDINAL Personal Report'!$V14)/365.25)>=5),\"Y\",\"N\"),\"--\")","v":{"$error":"#N/A"}},{"$f":"IF(Z14=\"N\",IF(AND((('CENTRAL ANALYSIS'!H$14-'CARDINAL Personal Report'!$J14)/365.25)>=65,(('CENTRAL ANALYSIS'!H$14-'CARDINAL Personal Report'!$V14)/365.25)>=5),\"Y\",\"N\"),\"--\")","v":{"$error":"#N/A"}},{"$f":"IF(AA14=\"N\",IF(AND((('CENTRAL ANALYSIS'!I$14-'CARDINAL Personal Report'!$J14)/365.25)>=65,(('CENTRAL ANALYSIS'!I$14-'CARDINAL Personal Report'!$V14)/365.25)>=5),\"Y\",\"N\"),\"--\")","v":{"$error":"#N/A"}},{"$f":"IF(AB14=\"N\",IF(AND((('CENTRAL ANALYSIS'!J$14-'CARDINAL Personal Report'!$J14)/365.25)>=65,(('CENTRAL ANALYSIS'!J$14-'CARDINAL Personal Report'!$V14)/365.25)>=5),\"Y\",\"N\"),\"--\")","v":{"$error":"#N/A"}},{"$f":"IF(AC14=\"N\",IF(AND((('CENTRAL ANALYSIS'!K$14-'CARDINAL Personal Report'!$J14)/365.25)>=65,(('CENTRAL ANALYSIS'!K$14-'CARDINAL Personal Report'!$V14)/365.25)>=5),\"Y\",\"N\"),\"--\")","v":{"$error":"#N/A"}},{"$f":"VLOOKUP(A14,'CARDINAL Job Data Report'!F:AX,45,FALSE)","v":{"$error":"#N/A"}},{"$f":"('DATA SETUP'!$N$29-'CARDINAL Personal Report'!AE14)/365.25","v":{"$error":"#N/A"}},{"$error":"#N/A"},{"$error":"#N/A"}]
[null,null,null,null,null,null,null,null,null,null,null,null,{"$f":"VLOOKUP(A15,'CARDINAL Job Data Report'!F:M,8,FALSE)","v":{"$error":"#N/A"}},{"$f":"VLOOKUP(M15,'CARDINAL Position Report'!A:AV,47,FALSE)","v":{"$error":"#N/A"}},{"$f":"VLOOKUP(M15,'CARDINAL Position Report'!A:AV,48,FALSE)","v":{"$error":"#N/A"}},{"$f":"VLOOKUP(L15,'CENTRAL ANALYSIS'!$C$14:$D$19,2,FALSE)","v":{"$error":"#N/A"}},{"$f":"VLOOKUP(M15,'CARDINAL Position Report'!A:AT,45,FALSE)","v":{"$error":"#N/A"}},{"$f":"VLOOKUP(M15,'CARDINAL Position Report'!A:AT,46,FALSE)","v":{"$error":"#N/A"}},{"$f":"VLOOKUP(A15,'CARDINAL DisabilityVeteran'!B:D,2,FALSE)","v":{"$error":"#N/A"}},{"$f":"VLOOKUP(A15,'CARDINAL DisabilityVeteran'!B:D,3,FALSE)","v":{"$error":"#N/A"}},{"$f":"IFERROR(IF(VLOOKUP(M15,'Critical Roles'!A:J,2,FALSE)=\"Critical\",\"Critical\",\"Not Critical\"),\"Not Assessed\")","v":"Not Assessed"},{"$f":"VLOOKUP(A15,'CARDINAL Job Data Report'!F:AZ,47,FALSE)","v":{"$error":"#N/A"}},{"$f":"('DATA SETUP'!$N$29-'CARDINAL Personal Report'!J15)/365.25","v":0},{"$f":"('DATA SETUP'!$N$29-'CARDINAL Personal Report'!V15)/365.25","v":{"$error":"#N/A"}},{"$error":"#N/A"},{"$f":"IF(Y15=\"N\",IF(AND((('CENTRAL ANALYSIS'!G$14-'CARDINAL Personal Report'!$J15)/365.25)>=65,(('CENTRAL ANALYSIS'!G$14-'CARDINAL Personal Report'!$V15)/365.25)>=5),\"Y\",\"N\"),\"--\")","v":{"$error":"#N/A"}},{"$f":"IF(Z15=\"N\",IF(AND((('CENTRAL ANALYSIS'!H$14-'CARDINAL Personal Report'!$J15)/365.25)>=65,(('CENTRAL ANALYSIS'!H$14-'CARDINAL Personal Report'!$V15)/365.25)>=5),\"Y\",\"N\"),\"--\")","v":{"$error":"#N/A"}},{"$f":"IF(AA15=\"N\",IF(AND((('CENTRAL ANALYSIS'!I$14-'CARDINAL Personal Report'!$J15)/365.25)>=65,(('CENTRAL ANALYSIS'!I$14-'CARDINAL Personal Report'!$V15)/365.25)>=5),\"Y\",\"N\"),\"--\")","v":{"$error":"#N/A"}},{"$f":"IF(AB15=\"N\",IF(AND((('CENTRAL ANALYSIS'!J$14-'CARDINAL Personal Report'!$J15)/365.25)>=65,(('CENTRAL ANALYSIS'!J$14-'CARDINAL Personal Report'!$V15)/365.25)>=5),\"Y\",\"N\"),\"--\")","v":{"$error":"#N/A"}},{"$f":"IF(AC15=\"N\",IF(AND((('CENTRAL ANALYSIS'!K$14-'CARDINAL Personal Report'!$J15)/365.25)>=65,(('CENTRAL ANALYSIS'!K$14-'CARDINAL Personal Report'!$V15)/365.25)>=5),\"Y\",\"N\"),\"--\")","v":{"$error":"#N/A"}},{"$f":"VLOOKUP(A15,'CARDINAL Job Data Report'!F:AX,45,FALSE)","v":{"$error":"#N/A"}},{"$f":"('DATA SETUP'!$N$29-'CARDINAL Personal Report'!AE15)/365.25","v":{"$error":"#N/A"}},{"$error":"#N/A"},{"$error":"#N/A"}]
[null,null,null,null,null,null,null,null,null,null,null,null,{"$f":"VLOOKUP(A16,'CARDINAL Job Data Report'!F:M,8,FALSE)","v":{"$error":"#N/A"}},{"$f":"VLOOKUP(M16,'CARDINAL Position Report'!A:AV,47,FALSE)","v":{"$error":"#N/A"}},{"$f":"VLOOKUP(M16,'CARDINAL Position Report'!A:AV,48,FALSE)","v":{"$error":"#N/A"}},{"$f":"VLOOKUP(L16,'CENTRAL ANALYSIS'!$C$14:$D$19,2,FALSE)","v":{"$error":"#N/A"}},{"$f":"VLOOKUP(M16,'CARDINAL Position Report'!A:AT,45,FALSE)","v":{"$error":"#N/A"}},{"$f":"VLOOKUP(M16,'CARDINAL Position Report'!A:AT,46,FALSE)","v":{"$error":"#N/A"}},{"$f":"VLOOKUP(A16,'CARDINAL DisabilityVeteran'!B:D,2,FALSE)","v":{"$error":"#N/A"}},{"$f":"VLOOKUP(A16,'CARDINAL DisabilityVeteran'!B:D,3,FALSE)","v":{"$error":"#N/A"}},{"$f":"IFERROR(IF(VLOOKUP(M16,'Critical Roles'!A:J,2,FALSE)=\"Critical\",\"Critical\",\"Not Critical\"),\"Not Assessed\")","v":"Not Assessed"},{"$f":"VLOOKUP(A16,'CARDINAL Job Data Report'!F:AZ,47,FALSE)","v":{"$error":"#N/A"}},{"$f":"('DATA SETUP'!$N$29-'CARDINAL Personal Report'!J16)/365.25","v":0},{"$f":"('DATA SETUP'!$N$29-'CARDINAL Personal Report'!V16)/365.25","v":{"$error":"#N/A"}},{"$error":"#N/A"},{"$f":"IF(Y16=\"N\",IF(AND((('CENTRAL ANALYSIS'!G$14-'CARDINAL Personal Report'!$J16)/365.25)>=65,(('CENTRAL ANALYSIS'!G$14-'CARDINAL Personal Report'!$V16)/365.25)>=5),\"Y\",\"N\"),\"--\")","v":{"$error":"#N/A"}},{"$f":"IF(Z16=\"N\",IF(AND((('CENTRAL ANALYSIS'!H$14-'CARDINAL Personal Report'!$J16)/365.25)>=65,(('CENTRAL ANALYSIS'!H$14-'CARDINAL Personal Report'!$V16)/365.25)>=5),\"Y\",\"N\"),\"--\")","v":{"$error":"#N/A"}},{"$f":"IF(AA16=\"N\",IF(AND((('CENTRAL ANALYSIS'!I$14-'CARDINAL Personal Report'!$J16)/365.25)>=65,(('CENTRAL ANALYSIS'!I$14-'CARDINAL Personal Report'!$V16)/365.25)>=5),\"Y\",\"N\"),\"--\")","v":{"$error":"#N/A"}},{"$f":"IF(AB16=\"N\",IF(AND((('CENTRAL ANALYSIS'!J$14-'CARDINAL Personal Report'!$J16)/365.25)>=65,(('CENTRAL ANALYSIS'!J$14-'CARDINAL Personal Report'!$V16)/365.25)>=5),\"Y\",\"N\"),\"--\")","v":{"$error":"#N/A"}},{"$f":"IF(AC16=\"N\",IF(AND((('CENTRAL ANALYSIS'!K$14-'CARDINAL Personal Report'!$J16)/365.25)>=65,(('CENTRAL ANALYSIS'!K$14-'CARDINAL Personal Report'!$V16)/365.25)>=5),\"Y\",\"N\"),\"--\")","v":{"$error":"#N/A"}},{"$f":"VLOOKUP(A16,'CARDINAL Job Data Report'!F:AX,45,FALSE)","v":{"$error":"#N/A"}},{"$f":"('DATA SETUP'!$N$29-'CARDINAL Personal Report'!AE16)/365.25","v":{"$error":"#N/A"}},{"$error":"#N/A"},{"$error":"#N/A"}]
[null,null,null,null,null,null,null,null,null,null,null,null,{"$f":"VLOOKUP(A17,'CARDINAL Job Data Report'!F:M,8,FALSE)","v":{"$error":"#N/A"}},{"$f":"VLOOKUP(M17,'CARDINAL Position Report'!A:AV,47,FALSE)","v":{"$error":"#N/A"}},{"$f":"VLOOKUP(M17,'CARDINAL Position Report'!A:AV,48,FALSE)","v":{"$error":"#N/A"}},{"$f":"VLOOKUP(L17,'CENTRAL ANALYSIS'!$C$14:$D$19,2,FALSE)","v":{"$error":"#N/A"}},{"$f":"VLOOKUP(M17,'CARDINAL Position Report'!A:AT,45,FALSE)","v":{"$error":"#N/A"}},{"$f":"VLOOKUP(M17,'CARDINAL Position Report'!A:AT,46,FALSE)","v":{"$error":"#N/A"}},{"$f":"VLOOKUP(A17,'CARDINAL DisabilityVeteran'!B:D,2,FALSE)","v":{"$error":"#N/A"}},{"$f":"VLOOKUP(A17,'CARDINAL DisabilityVeteran'!B:D,3,FALSE)","v":{"$error":"#N/A"}},{"$f":"IFERROR(IF(VLOOKUP(M17,'Critical Roles'!A:J,2,FALSE)=\"Critical\",\"Critical\",\"Not Critical\"),\"Not Assessed\")","v":"Not Assessed"},{"$f":"VLOOKUP(A17,'CARDINAL Job Data Report'!F:AZ,47,FALSE)","v":{"$error":"#N/A"}},{"$f":"('DATA SETUP'!$N$29-'CARDINAL Personal Report'!J17)/365.25","v":0},{"$f":"('DATA SETUP'!$N$29-'CARDINAL Personal Report'!V17)/365.25","v":{"$error":"#N/A"}},{"$error":"#N/A"},{"$f":"IF(Y17=\"N\",IF(AND((('CENTRAL ANALYSIS'!G$14-'CARDINAL Personal Report'!$J17)/365.25)>=65,(('CENTRAL ANALYSIS'!G$14-'CARDINAL Personal Report'!$V17)/365.25)>=5),\"Y\",\"N\"),\"--\")","v":{"$error":"#N/A"}},{"$f":"IF(Z17=\"N\",IF(AND((('CENTRAL ANALYSIS'!H$14-'CARDINAL Personal Report'!$J17)/365.25)>=65,(('CENTRAL ANALYSIS'!H$14-'CARDINAL Personal Report'!$V17)/365.25)>=5),\"Y\",\"N\"),\"--\")","v":{"$error":"#N/A"}},{"$f":"IF(AA17=\"N\",IF(AND((('CENTRAL ANALYSIS'!I$14-'CARDINAL Personal Report'!$J17)/365.25)>=65,(('CENTRAL ANALYSIS'!I$14-'CARDINAL Personal Report'!$V17)/365.25)>=5),\"Y\",\"N\"),\"--\")","v":{"$error":"#N/A"}},{"$f":"IF(AB17=\"N\",IF(AND((('CENTRAL ANALYSIS'!J$14-'CARDINAL Personal Report'!$J17)/365.25)>=65,(('CENTRAL ANALYSIS'!J$14-'CARDINAL Personal Report'!$V17)/365.25)>=5),\"Y\",\"N\"),\"--\")","v":{"$error":"#N/A"}},{"$f":"IF(AC17=\"N\",IF(AND((('CENTRAL ANALYSIS'!K$14-'CARDINAL Personal Report'!$J17)/365.25)>=65,(('CENTRAL ANALYSIS'!K$14-'CARDINAL Personal Report'!$V17)/365.25)>=5),\"Y\",\"N\"),\"--\")","v":{"$error":"#N/A"}},{"$f":"VLOOKUP(A17,'CARDINAL Job Data Report'!F:AX,45,FALSE)","v":{"$error":"#N/A"}},{"$f":"('DATA SETUP'!$N$29-'CARDINAL Personal Report'!AE17)/365.25","v":{"$error":"#N/A"}},{"$error":"#N/A"},{"$error":"#N/A"}]
[null,null,null,null,null,null,null,null,null,null,null,null,{"$f":"VLOOKUP(A18,'CARDINAL Job Data Report'!F:M,8,FALSE)","v":{"$error":"#N/A"}},{"$f":"VLOOKUP(M18,'CARDINAL Position Report'!A:AV,47,FALSE)","v":{"$error":"#N/A"}},{"$f":"VLOOKUP(M18,'CARDINAL Position Report'!A:AV,48,FALSE)","v":{"$error":"#N/A"}},{"$f":"VLOOKUP(L18,'CENTRAL ANALYSIS'!$C$14:$D$19,2,FALSE)","v":{"$error":"#N/A"}},{"$f":"VLOOKUP(M18,'CARDINAL Position Report'!A:AT,45,FALSE)","v":{"$error":"#N/A"}},{"$f":"VLOOKUP(M18,'CARDINAL Position Report'!A:AT,46,FALSE)","v":{"$error":"#N/A"}},{"$f":"VLOOKUP(A18,'CARDINAL DisabilityVeteran'!B:D,2,FALSE)","v":{"$error":"#N/A"}},{"$f":"VLOOKUP(A18,'CARDINAL DisabilityVeteran'!B:D,3,FALSE)","v":{"$error":"#N/A"}},{"$f":"IFERROR(IF(VLOOKUP(M18,'Critical Roles'!A:J,2,FALSE)=\"Critical\",\"Critical\",\"Not Critical\"),\"Not Assessed\")","v":"Not Assessed"},{"$f":"VLOOKUP(A18,'CARDINAL Job Data Report'!F:AZ,47,FALSE)","v":{"$error":"#N/A"}},{"$f":"('DATA SETUP'!$N$29-'CARDINAL Personal Report'!J18)/365.25","v":0},{"$f":"('DATA SETUP'!$N$29-'CARDINAL Personal Report'!V18)/365.25","v":{"$error":"#N/A"}},{"$error":"#N/A"},{"$f":"IF(Y18=\"N\",IF(AND((('CENTRAL ANALYSIS'!G$14-'CARDINAL Personal Report'!$J18)/365.25)>=65,(('CENTRAL ANALYSIS'!G$14-'CARDINAL Personal Report'!$V18)/365.25)>=5),\"Y\",\"N\"),\"--\")","v":{"$error":"#N/A"}},{"$f":"IF(Z18=\"N\",IF(AND((('CENTRAL ANALYSIS'!H$14-'CARDINAL Personal Report'!$J18)/365.25)>=65,(('CENTRAL ANALYSIS'!H$14-'CARDINAL Personal Report'!$V18)/365.25)>=5),\"Y\",\"N\"),\"--\")","v":{"$error":"#N/A"}},{"$f":"IF(AA18=\"N\",IF(AND((('CENTRAL ANALYSIS'!I$14-'CARDINAL Personal Report'!$J18)/365.25)>=65,(('CENTRAL ANALYSIS'!I$14-'CARDINAL Personal Report'!$V18)/365.25)>=5),\"Y\",\"N\"),\"--\")","v":{"$error":"#N/A"}},{"$f":"IF(AB18=\"N\",IF(AND((('CENTRAL ANALYSIS'!J$14-'CARDINAL Personal Report'!$J18)/365.25)>=65,(('CENTRAL ANALYSIS'!J$14-'CARDINAL Personal Report'!$V18)/365.25)>=5),\"Y\",\"N\"),\"--\")","v":{"$error":"#N/A"}},{"$f":"IF(AC18=\"N\",IF(AND((('CENTRAL ANALYSIS'!K$14-'CARDINAL Personal Report'!$J18)/365.25)>=65,(('CENTRAL ANALYSIS'!K$14-'CARDINAL Personal Report'!$V18)/365.25)>=5),\"Y\",\"N\"),\"--\")","v":{"$error":"#N/A"}},{"$f":"VLOOKUP(A18,'CARDINAL Job Data Report'!F:AX,45,FALSE)","v":{"$error":"#N/A"}},{"$f":"('DATA SETUP'!$N$29-'CARDINAL Personal Report'!AE18)/365.25","v":{"$error":"#N/A"}},{"$error":"#N/A"},{"$error":"#N/A"}]
[null,null,null,null,null,null,null,null,null,null,null,null,{"$f":"VLOOKUP(A19,'CARDINAL Job Data Report'!F:M,8,FALSE)","v":{"$error":"#N/A"}},{"$f":"VLOOKUP(M19,'CARDINAL Position Report'!A:AV,47,FALSE)","v":{"$error":"#N/A"}},{"$f":"VLOOKUP(M19,'CARDINAL Position Report'!A:AV,48,FALSE)","v":{"$error":"#N/A"}},{"$f":"VLOOKUP(L19,'CENTRAL ANALYSIS'!$C$14:$D$19,2,FALSE)","v":{"$error":"#N/A"}},{"$f":"VLOOKUP(M19,'CARDINAL Position Report'!A:AT,45,FALSE)","v":{"$error":"#N/A"}},{"$f":"VLOOKUP(M19,'CARDINAL Position Report'!A:AT,46,FALSE)","v":{"$error":"#N/A"}},{"$f":"VLOOKUP(A19,'CARDINAL DisabilityVeteran'!B:D,2,FALSE)","v":{"$error":"#N/A"}},{"$f":"VLOOKUP(A19,'CARDINAL DisabilityVeteran'!B:D,3,FALSE)","v":{"$error":"#N/A"}},{"$f":"IFERROR(IF(VLOOKUP(M19,'Critical Roles'!A:J,2,FALSE)=\"Critical\",\"Critical\",\"Not Critical\"),\"Not Assessed\")","v":"Not Assessed"},{"$f":"VLOOKUP(A19,'CARDINAL Job Data Report'!F:AZ,47,FALSE)","v":{"$error":"#N/A"}},{"$f":"('DATA SETUP'!$N$29-'CARDINAL Personal Report'!J19)/365.25","v":0},{"$f":"('DATA SETUP'!$N$29-'CARDINAL Personal Report'!V19)/365.25","v":{"$error":"#N/A"}},{"$error":"#N/A"},{"$f":"IF(Y19=\"N\",IF(AND((('CENTRAL ANALYSIS'!G$14-'CARDINAL Personal Report'!$J19)/365.25)>=65,(('CENTRAL ANALYSIS'!G$14-'CARDINAL Personal Report'!$V19)/365.25)>=5),\"Y\",\"N\"),\"--\")","v":{"$error":"#N/A"}},{"$f":"IF(Z19=\"N\",IF(AND((('CENTRAL ANALYSIS'!H$14-'CARDINAL Personal Report'!$J19)/365.25)>=65,(('CENTRAL ANALYSIS'!H$14-'CARDINAL Personal Report'!$V19)/365.25)>=5),\"Y\",\"N\"),\"--\")","v":{"$error":"#N/A"}},{"$f":"IF(AA19=\"N\",IF(AND((('CENTRAL ANALYSIS'!I$14-'CARDINAL Personal Report'!$J19)/365.25)>=65,(('CENTRAL ANALYSIS'!I$14-'CARDINAL Personal Report'!$V19)/365.25)>=5),\"Y\",\"N\"),\"--\")","v":{"$error":"#N/A"}},{"$f":"IF(AB19=\"N\",IF(AND((('CENTRAL ANALYSIS'!J$14-'CARDINAL Personal Report'!$J19)/365.25)>=65,(('CENTRAL ANALYSIS'!J$14-'CARDINAL Personal Report'!$V19)/365.25)>=5),\"Y\",\"N\"),\"--\")","v":{"$error":"#N/A"}},{"$f":"IF(AC19=\"N\",IF(AND((('CENTRAL ANALYSIS'!K$14-'CARDINAL Personal Report'!$J19)/365.25)>=65,(('CENTRAL ANALYSIS'!K$14-'CARDINAL Personal Report'!$V19)/365.25)>=5),\"Y\",\"N\"),\"--\")","v":{"$error":"#N/A"}},{"$f":"VLOOKUP(A19,'CARDINAL Job Data Report'!F:AX,45,FALSE)","v":{"$error":"#N/A"}},{"$f":"('DATA SETUP'!$N$29-'CARDINAL Personal Report'!AE19)/365.25","v":{"$error":"#N/A"}},{"$error":"#N/A"},{"$error":"#N/A"}]
[null,null,null,null,null,null,null,null,null,null,null,null,{"$f":"VLOOKUP(A20,'CARDINAL Job Data Report'!F:M,8,FALSE)","v":{"$error":"#N/A"}},{"$f":"VLOOKUP(M20,'CARDINAL Position Report'!A:AV,47,FALSE)","v":{"$error":"#N/A"}},{"$f":"VLOOKUP(M20,'CARDINAL Position Report'!A:AV,48,FALSE)","v":{"$error":"#N/A"}},{"$f":"VLOOKUP(L20,'CENTRAL ANALYSIS'!$C$14:$D$19,2,FALSE)","v":{"$error":"#N/A"}},{"$f":"VLOOKUP(M20,'CARDINAL Position Report'!A:AT,45,FALSE)","v":{"$error":"#N/A"}},{"$f":"VLOOKUP(M20,'CARDINAL Position Report'!A:AT,46,FALSE)","v":{"$error":"#N/A"}},{"$f":"VLOOKUP(A20,'CARDINAL DisabilityVeteran'!B:D,2,FALSE)","v":{"$error":"#N/A"}},{"$f":"VLOOKUP(A20,'CARDINAL DisabilityVeteran'!B:D,3,FALSE)","v":{"$error":"#N/A"}},{"$f":"IFERROR(IF(VLOOKUP(M20,'Critical Roles'!A:J,2,FALSE)=\"Critical\",\"Critical\",\"Not Critical\"),\"Not Assessed\")","v":"Not Assessed"},{"$f":"VLOOKUP(A20,'CARDINAL Job Data Report'!F:AZ,47,FALSE)","v":{"$error":"#N/A"}},{"$f":"('DATA SETUP'!$N$29-'CARDINAL Personal Report'!J20)/365.25","v":0},{"$f":"('DATA SETUP'!$N$29-'CARDINAL Personal Report'!V20)/365.25","v":{"$error":"#N/A"}},{"$error":"#N/A"},{"$f":"IF(Y20=\"N\",IF(AND((('CENTRAL ANALYSIS'!G$14-'CARDINAL Personal Report'!$J20)/365.25)>=65,(('CENTRAL ANALYSIS'!G$14-'CARDINAL Personal Report'!$V20)/365.25)>=5),\"Y\",\"N\"),\"--\")","v":{"$error":"#N/A"}},{"$f":"IF(Z20=\"N\",IF(AND((('CENTRAL ANALYSIS'!H$14-'CARDINAL Personal Report'!$J20)/365.25)>=65,(('CENTRAL ANALYSIS'!H$14-'CARDINAL Personal Report'!$V20)/365.25)>=5),\"Y\",\"N\"),\"--\")","v":{"$error":"#N/A"}},{"$f":"IF(AA20=\"N\",IF(AND((('CENTRAL ANALYSIS'!I$14-'CARDINAL Personal Report'!$J20)/365.25)>=65,(('CENTRAL ANALYSIS'!I$14-'CARDINAL Personal Report'!$V20)/365.25)>=5),\"Y\",\"N\"),\"--\")","v":{"$error":"#N/A"}},{"$f":"IF(AB20=\"N\",IF(AND((('CENTRAL ANALYSIS'!J$14-'CARDINAL Personal Report'!$J20)/365.25)>=65,(('CENTRAL ANALYSIS'!J$14-'CARDINAL Personal Report'!$V20)/365.25)>=5),\"Y\",\"N\"),\"--\")","v":{"$error":"#N/A"}},{"$f":"IF(AC20=\"N\",IF(AND((('CENTRAL ANALYSIS'!K$14-'CARDINAL Personal Report'!$J20)/365.25)>=65,(('CENTRAL ANALYSIS'!K$14-'CARDINAL Personal Report'!$V20)/365.25)>=5),\"Y\",\"N\"),\"--\")","v":{"$error":"#N/A"}},{"$f":"VLOOKUP(A20,'CARDINAL Job Data Report'!F:AX,45,FALSE)","v":{"$error":"#N/A"}},{"$f":"('DATA SETUP'!$N$29-'CARDINAL Personal Report'!AE20)/365.25","v":{"$error":"#N/A"}},{"$error":"#N/A"},{"$error":"#N/A"}]
[null,null,null,null,null,null,null,null,null,null,null,null,{"$f":"VLOOKUP(A21,'CARDINAL Job Data Report'!F:M,8,FALSE)","v":{"$error":"#N/A"}},{"$f":"VLOOKUP(M21,'CARDINAL Position Report'!A:AV,47,FALSE)","v":{"$error":"#N/A"}},{"$f":"VLOOKUP(M21,'CARDINAL Position Report'!A:AV,48,FALSE)","v":{"$error":"#N/A"}},{"$f":"VLOOKUP(L21,'CENTRAL ANALYSIS'!$C$14:$D$19,2,FALSE)","v":{"$error":"#N/A"}},{"$f":"VLOOKUP(M21,'CARDINAL Position Report'!A:AT,45,FALSE)","v":{"$error":"#N/A"}},{"$f":"VLOOKUP(M21,'CARDINAL Position Report'!A:AT,46,FALSE)","v":{"$error":"#N/A"}},{"$f":"VLOOKUP(A21,'CARDINAL DisabilityVeteran'!B:D,2,FALSE)","v":{"$error":"#N/A"}},{"$f":"VLOOKUP(A21,'CARDINAL DisabilityVeteran'!B:D,3,FALSE)","v":{"$error":"#N/A"}},{"$f":"IFERROR(IF(VLOOKUP(M21,'Critical Roles'!A:J,2,FALSE)=\"Critical\",\"Critical\",\"Not Critical\"),\"Not Assessed\")","v":"Not Assessed"},{"$f":"VLOOKUP(A21,'CARDINAL Job Data Report'!F:AZ,47,FALSE)","v":{"$error":"#N/A"}},{"$f":"('DATA SETUP'!$N$29-'CARDINAL Personal Report'!J21)/365.25","v":0},{"$f":"('DATA SETUP'!$N$29-'CARDINAL Personal Report'!V21)/365.25","v":{"$error":"#N/A"}},{"$error":"#N/A"},{"$f":"IF(Y21=\"N\",IF(AND((('CENTRAL ANALYSIS'!G$14-'CARDINAL Personal Report'!$J21)/365.25)>=65,(('CENTRAL ANALYSIS'!G$14-'CARDINAL Personal Report'!$V21)/365.25)>=5),\"Y\",\"N\"),\"--\")","v":{"$error":"#N/A"}},{"$f":"IF(Z21=\"N\",IF(AND((('CENTRAL ANALYSIS'!H$14-'CARDINAL Personal Report'!$J21)/365.25)>=65,(('CENTRAL ANALYSIS'!H$14-'CARDINAL Personal Report'!$V21)/365.25)>=5),\"Y\",\"N\"),\"--\")","v":{"$error":"#N/A"}},{"$f":"IF(AA21=\"N\",IF(AND((('CENTRAL ANALYSIS'!I$14-'CARDINAL Personal Report'!$J21)/365.25)>=65,(('CENTRAL ANALYSIS'!I$14-'CARDINAL Personal Report'!$V21)/365.25)>=5),\"Y\",\"N\"),\"--\")","v":{"$error":"#N/A"}},{"$f":"IF(AB21=\"N\",IF(AND((('CENTRAL ANALYSIS'!J$14-'CARDINAL Personal Report'!$J21)/365.25)>=65,(('CENTRAL ANALYSIS'!J$14-'CARDINAL Personal Report'!$V21)/365.25)>=5),\"Y\",\"N\"),\"--\")","v":{"$error":"#N/A"}},{"$f":"IF(AC21=\"N\",IF(AND((('CENTRAL ANALYSIS'!K$14-'CARDINAL Personal Report'!$J21)/365.25)>=65,(('CENTRAL ANALYSIS'!K$14-'CARDINAL Personal Report'!$V21)/365.25)>=5),\"Y\",\"N\"),\"--\")","v":{"$error":"#N/A"}},{"$f":"VLOOKUP(A21,'CARDINAL Job Data Report'!F:AX,45,FALSE)","v":{"$error":"#N/A"}},{"$f":"('DATA SETUP'!$N$29-'CARDINAL Personal Report'!AE21)/365.25","v":{"$error":"#N/A"}},{"$error":"#N/A"},{"$error":"#N/A"}]
[null,null,null,null,null,null,null,null,null,null,null,null,{"$f":"VLOOKUP(A22,'CARDINAL Job Data Report'!F:M,8,FALSE)","v":{"$error":"#N/A"}},{"$f":"VLOOKUP(M22,'CARDINAL Position Report'!A:AV,47,FALSE)","v":{"$error":"#N/A"}},{"$f":"VLOOKUP(M22,'CARDINAL Position Report'!A:AV,48,FALSE)","v":{"$error":"#N/A"}},{"$f":"VLOOKUP(L22,'CENTRAL ANALYSIS'!$C$14:$D$19,2,FALSE)","v":{"$error":"#N/A"}},{"$f":"VLOOKUP(M22,'CARDINAL Position Report'!A:AT,45,FALSE)","v":{"$error":"#N/A"}},{"$f":"VLOOKUP(M22,'CARDINAL Position Report'!A:AT,46,FALSE)","v":{"$error":"#N/A"}},{"$f":"VLOOKUP(A22,'CARDINAL DisabilityVeteran'!B:D,2,FALSE)","v":{"$error":"#N/A"}},{"$f":"VLOOKUP(A22,'CARDINAL DisabilityVeteran'!B:D,3,FALSE)","v":{"$error":"#N/A"}},{"$f":"IFERROR(IF(VLOOKUP(M22,'Critical Roles'!A:J,2,FALSE)=\"Critical\",\"Critical\",\"Not Critical\"),\"Not Assessed\")","v":"Not Assessed"},{"$f":"VLOOKUP(A22,'CARDINAL Job Data Report'!F:AZ,47,FALSE)","v":{"$error":"#N/A"}},{"$f":"('DATA SETUP'!$N$29-'CARDINAL Personal Report'!J22)/365.25","v":0},{"$f":"('DATA SETUP'!$N$29-'CARDINAL Personal Report'!V22)/365.25","v":{"$error":"#N/A"}},{"$error":"#N/A"},{"$f":"IF(Y22=\"N\",IF(AND((('CENTRAL ANALYSIS'!G$14-'CARDINAL Personal Report'!$J22)/365.25)>=65,(('CENTRAL ANALYSIS'!G$14-'CARDINAL Personal Report'!$V22)/365.25)>=5),\"Y\",\"N\"),\"--\")","v":{"$error":"#N/A"}},{"$f":"IF(Z22=\"N\",IF(AND((('CENTRAL ANALYSIS'!H$14-'CARDINAL Personal Report'!$J22)/365.25)>=65,(('CENTRAL ANALYSIS'!H$14-'CARDINAL Personal Report'!$V22)/365.25)>=5),\"Y\",\"N\"),\"--\")","v":{"$error":"#N/A"}},{"$f":"IF(AA22=\"N\",IF(AND((('CENTRAL ANALYSIS'!I$14-'CARDINAL Personal Report'!$J22)/365.25)>=65,(('CENTRAL ANALYSIS'!I$14-'CARDINAL Personal Report'!$V22)/365.25)>=5),\"Y\",\"N\"),\"--\")","v":{"$error":"#N/A"}},{"$f":"IF(AB22=\"N\",IF(AND((('CENTRAL ANALYSIS'!J$14-'CARDINAL Personal Report'!$J22)/365.25)>=65,(('CENTRAL ANALYSIS'!J$14-'CARDINAL Personal Report'!$V22)/365.25)>=5),\"Y\",\"N\"),\"--\")","v":{"$error":"#N/A"}},{"$f":"IF(AC22=\"N\",IF(AND((('CENTRAL ANALYSIS'!K$14-'CARDINAL Personal Report'!$J22)/365.25)>=65,(('CENTRAL ANALYSIS'!K$14-'CARDINAL Personal Report'!$V22)/365.25)>=5),\"Y\",\"N\"),\"--\")","v":{"$error":"#N/A"}},{"$f":"VLOOKUP(A22,'CARDINAL Job Data Report'!F:AX,45,FALSE)","v":{"$error":"#N/A"}},{"$f":"('DATA SETUP'!$N$29-'CARDINAL Personal Report'!AE22)/365.25","v":{"$error":"#N/A"}},{"$error":"#N/A"},{"$error":"#N/A"}]
[null,null,null,null,null,null,null,null,null,null,null,null,{"$f":"VLOOKUP(A23,'CARDINAL Job Data Report'!F:M,8,FALSE)","v":{"$error":"#N/A"}},{"$f":"VLOOKUP(M23,'CARDINAL Position Report'!A:AV,47,FALSE)","v":{"$error":"#N/A"}},{"$f":"VLOOKUP(M23,'CARDINAL Position Report'!A:AV,48,FALSE)","v":{"$error":"#N/A"}},{"$f":"VLOOKUP(L23,'CENTRAL ANALYSIS'!$C$14:$D$19,2,FALSE)","v":{"$error":"#N/A"}},{"$f":"VLOOKUP(M23,'CARDINAL Position Report'!A:AT,45,FALSE)","v":{"$error":"#N/A"}},{"$f":"VLOOKUP(M23,'CARDINAL Position Report'!A:AT,46,FALSE)","v":{"$error":"#N/A"}},{"$f":"VLOOKUP(A23,'CARDINAL DisabilityVeteran'!B:D,2,FALSE)","v":{"$error":"#N/A"}},{"$f":"VLOOKUP(A23,'CARDINAL DisabilityVeteran'!B:D,3,FALSE)","v":{"$error":"#N/A"}},{"$f":"IFERROR(IF(VLOOKUP(M23,'Critical Roles'!A:J,2,FALSE)=\"Critical\",\"Critical\",\"Not Critical\"),\"Not Assessed\")","v":"Not Assessed"},{"$f":"VLOOKUP(A23,'CARDINAL Job Data Report'!F:AZ,47,FALSE)","v":{"$error":"#N/A"}},{"$f":"('DATA SETUP'!$N$29-'CARDINAL Personal Report'!J23)/365.25","v":0},{"$f":"('DATA SETUP'!$N$29-'CARDINAL Personal Report'!V23)/365.25","v":{"$error":"#N/A"}},{"$error":"#N/A"},{"$f":"IF(Y23=\"N\",IF(AND((('CENTRAL ANALYSIS'!G$14-'CARDINAL Personal Report'!$J23)/365.25)>=65,(('CENTRAL ANALYSIS'!G$14-'CARDINAL Personal Report'!$V23)/365.25)>=5),\"Y\",\"N\"),\"--\")","v":{"$error":"#N/A"}},{"$f":"IF(Z23=\"N\",IF(AND((('CENTRAL ANALYSIS'!H$14-'CARDINAL Personal Report'!$J23)/365.25)>=65,(('CENTRAL ANALYSIS'!H$14-'CARDINAL Personal Report'!$V23)/365.25)>=5),\"Y\",\"N\"),\"--\")","v":{"$error":"#N/A"}},{"$f":"IF(AA23=\"N\",IF(AND((('CENTRAL ANALYSIS'!I$14-'CARDINAL Personal Report'!$J23)/365.25)>=65,(('CENTRAL ANALYSIS'!I$14-'CARDINAL Personal Report'!$V23)/365.25)>=5),\"Y\",\"N\"),\"--\")","v":{"$error":"#N/A"}},{"$f":"IF(AB23=\"N\",IF(AND((('CENTRAL ANALYSIS'!J$14-'CARDINAL Personal Report'!$J23)/365.25)>=65,(('CENTRAL ANALYSIS'!J$14-'CARDINAL Personal Report'!$V23)/365.25)>=5),\"Y\",\"N\"),\"--\")","v":{"$error":"#N/A"}},{"$f":"IF(AC23=\"N\",IF(AND((('CENTRAL ANALYSIS'!K$14-'CARDINAL Personal Report'!$J23)/365.25)>=65,(('CENTRAL ANALYSIS'!K$14-'CARDINAL Personal Report'!$V23)/365.25)>=5),\"Y\",\"N\"),\"--\")","v":{"$error":"#N/A"}},{"$f":"VLOOKUP(A23,'CARDINAL Job Data Report'!F:AX,45,FALSE)","v":{"$error":"#N/A"}},{"$f":"('DATA SETUP'!$N$29-'CARDINAL Personal Report'!AE23)/365.25","v":{"$error":"#N/A"}},{"$error":"#N/A"},{"$error":"#N/A"}]
[null,null,null,null,null,null,null,null,null,null,null,null,{"$f":"VLOOKUP(A24,'CARDINAL Job Data Report'!F:M,8,FALSE)","v":{"$error":"#N/A"}},{"$f":"VLOOKUP(M24,'CARDINAL Position Report'!A:AV,47,FALSE)","v":{"$error":"#N/A"}},{"$f":"VLOOKUP(M24,'CARDINAL Position Report'!A:AV,48,FALSE)","v":{"$error":"#N/A"}},{"$f":"VLOOKUP(L24,'CENTRAL ANALYSIS'!$C$14:$D$19,2,FALSE)","v":{"$error":"#N/A"}},{"$f":"VLOOKUP(M24,'CARDINAL Position Report'!A:AT,45,FALSE)","v":{"$error":"#N/A"}},{"$f":"VLOOKUP(M24,'CARDINAL Position Report'!A:AT,46,FALSE)","v":{"$error":"#N/A"}},{"$f":"VLOOKUP(A24,'CARDINAL DisabilityVeteran'!B:D,2,FALSE)","v":{"$error":"#N/A"}},{"$f":"VLOOKUP(A24,'CARDINAL DisabilityVeteran'!B:D,3,FALSE)","v":{"$error":"#N/A"}},{"$f":"IFERROR(IF(VLOOKUP(M24,'Critical Roles'!A:J,2,FALSE)=\"Critical\",\"Critical\",\"Not Critical\"),\"Not Assessed\")","v":"Not Assessed"},{"$f":"VLOOKUP(A24,'CARDINAL Job Data Report'!F:AZ,47,FALSE)","v":{"$error":"#N/A"}},{"$f":"('DATA SETUP'!$N$29-'CARDINAL Personal Report'!J24)/365.25","v":0},{"$f":"('DATA SETUP'!$N$29-'CARDINAL Personal Report'!V24)/365.25","v":{"$error":"#N/A"}},{"$error":"#N/A"},{"$f":"IF(Y24=\"N\",IF(AND((('CENTRAL ANALYSIS'!G$14-'CARDINAL Personal Report'!$J24)/365.25)>=65,(('CENTRAL ANALYSIS'!G$14-'CARDINAL Personal Report'!$V24)/365.25)>=5),\"Y\",\"N\"),\"--\")","v":{"$error":"#N/A"}},{"$f":"IF(Z24=\"N\",IF(AND((('CENTRAL ANALYSIS'!H$14-'CARDINAL Personal Report'!$J24)/365.25)>=65,(('CENTRAL ANALYSIS'!H$14-'CARDINAL Personal Report'!$V24)/365.25)>=5),\"Y\",\"N\"),\"--\")","v":{"$error":"#N/A"}},{"$f":"IF(AA24=\"N\",IF(AND((('CENTRAL ANALYSIS'!I$14-'CARDINAL Personal Report'!$J24)/365.25)>=65,(('CENTRAL ANALYSIS'!I$14-'CARDINAL Personal Report'!$V24)/365.25)>=5),\"Y\",\"N\"),\"--\")","v":{"$error":"#N/A"}},{"$f":"IF(AB24=\"N\",IF(AND((('CENTRAL ANALYSIS'!J$14-'CARDINAL Personal Report'!$J24)/365.25)>=65,(('CENTRAL ANALYSIS'!J$14-'CARDINAL Personal Report'!$V24)/365.25)>=5),\"Y\",\"N\"),\"--\")","v":{"$error":"#N/A"}},{"$f":"IF(AC24=\"N\",IF(AND((('CENTRAL ANALYSIS'!K$14-'CARDINAL Personal Report'!$J24)/365.25)>=65,(('CENTRAL ANALYSIS'!K$14-'CARDINAL Personal Report'!$V24)/365.25)>=5),\"Y\",\"N\"),\"--\")","v":{"$error":"#N/A"}},{"$f":"VLOOKUP(A24,'CARDINAL Job Data Report'!F:AX,45,FALSE)","v":{"$error":"#N/A"}},{"$f":"('DATA SETUP'!$N$29-'CARDINAL Personal Report'!AE24)/365.25","v":{"$error":"#N/A"}},{"$error":"#N/A"},{"$error":"#N/A"}]
[null,null,null,null,null,null,null,null,null,null,null,null,{"$f":"VLOOKUP(A25,'CARDINAL Job Data Report'!F:M,8,FALSE)","v":{"$error":"#N/A"}},{"$f":"VLOOKUP(M25,'CARDINAL Position Report'!A:AV,47,FALSE)","v":{"$error":"#N/A"}},{"$f":"VLOOKUP(M25,'CARDINAL Position Report'!A:AV,48,FALSE)","v":{"$error":"#N/A"}},{"$f":"VLOOKUP(L25,'CENTRAL ANALYSIS'!$C$14:$D$19,2,FALSE)","v":{"$error":"#N/A"}},{"$f":"VLOOKUP(M25,'CARDINAL Position Report'!A:AT,45,FALSE)","v":{"$error":"#N/A"}},{"$f":"VLOOKUP(M25,'CARDINAL Position Report'!A:AT,46,FALSE)","v":{"$error":"#N/A"}},{"$f":"VLOOKUP(A25,'CARDINAL DisabilityVeteran'!B:D,2,FALSE)","v":{"$error":"#N/A"}},{"$f":"VLOOKUP(A25,'CARDINAL DisabilityVeteran'!B:D,3,FALSE)","v":{"$error":"#N/A"}},{"$f":"IFERROR(IF(VLOOKUP(M25,'Critical Roles'!A:J,2,FALSE)=\"Critical\",\"Critical\",\"Not Critical\"),\"Not Assessed\")","v":"Not Assessed"},{"$f":"VLOOKUP(A25,'CARDINAL Job Data Report'!F:AZ,47,FALSE)","v":{"$error":"#N/A"}},{"$f":"('DATA SETUP'!$N$29-'CARDINAL Personal Report'!J25)/365.25","v":0},{"$f":"('DATA SETUP'!$N$29-'CARDINAL Personal Report'!V25)/365.25","v":{"$error":"#N/A"}},{"$error":"#N/A"},{"$f":"IF(Y25=\"N\",IF(AND((('CENTRAL ANALYSIS'!G$14-'CARDINAL Personal Report'!$J25)/365.25)>=65,(('CENTRAL ANALYSIS'!G$14-'CARDINAL Personal Report'!$V25)/365.25)>=5),\"Y\",\"N\"),\"--\")","v":{"$error":"#N/A"}},{"$f":"IF(Z25=\"N\",IF(AND((('CENTRAL ANALYSIS'!H$14-'CARDINAL Personal Report'!$J25)/365.25)>=65,(('CENTRAL ANALYSIS'!H$14-'CARDINAL Personal Report'!$V25)/365.25)>=5),\"Y\",\"N\"),\"--\")","v":{"$error":"#N/A"}},{"$f":"IF(AA25=\"N\",IF(AND((('CENTRAL ANALYSIS'!I$14-'CARDINAL Personal Report'!$J25)/365.25)>=65,(('CENTRAL ANALYSIS'!I$14-'CARDINAL Personal Report'!$V25)/365.25)>=5),\"Y\",\"N\"),\"--\")","v":{"$error":"#N/A"}},{"$f":"IF(AB25=\"N\",IF(AND((('CENTRAL ANALYSIS'!J$14-'CARDINAL Personal Report'!$J25)/365.25)>=65,(('CENTRAL ANALYSIS'!J$14-'CARDINAL Personal Report'!$V25)/365.25)>=5),\"Y\",\"N\"),\"--\")","v":{"$error":"#N/A"}},{"$f":"IF(AC25=\"N\",IF(AND((('CENTRAL ANALYSIS'!K$14-'CARDINAL Personal Report'!$J25)/365.25)>=65,(('CENTRAL ANALYSIS'!K$14-'CARDINAL Personal Report'!$V25)/365.25)>=5),\"Y\",\"N\"),\"--\")","v":{"$error":"#N/A"}},{"$f":"VLOOKUP(A25,'CARDINAL Job Data Report'!F:AX,45,FALSE)","v":{"$error":"#N/A"}},{"$f":"('DATA SETUP'!$N$29-'CARDINAL Personal Report'!AE25)/365.25","v":{"$error":"#N/A"}},{"$error":"#N/A"},{"$error":"#N/A"}]

{"sheet":"CARDINAL DisabilityVeteran","index":9,"n_rows":10,"n_cols":4,"rows_kept":10,"cut":false,"hidden":false,"merged":[[0,0,8,9],[0,10,8,15]]}
["To include the cardinal employee disability and verteran status report, only select columns are included. Most PII are not included. See the column headers for which fields to include. The path for the report in Cardinal is: Menu>>Workforce Administration>>Job Information>>Reports>>Disability and Veteran Status\n\nData can be manually copied and pasted."]
[]
[]
[]
[]
[]
[]
[]
[]
["Department","Employee ID","Disability Status","Veteran Status"]

{"sheet":"HRDI Employee Report","index":10,"n_rows":25,"n_cols":30,"rows_kept":25,"cut":false,"hidden":false,"merged":[[0,0,8,9]]}
["To include the HR Data Insights employee hub report, the following fields should be included (from the column headers).\n\nData can be manually copied and pasted."]
[]
[]
[]
[]
[]
[]
[]
[]
["EmployeeID","BusinessUnitName","PositionDepartmentID","PositionType","EmployeeStatus","PositionJobcode","EmployeeAgencyStartDate","EmployeeTerminationDate","EmployeeBirthDate","EmployeeSex","EmployeeMinorityStatus","PositionNumber","PositionEEO4Category","PositionLevel","EmployeeVeteranStatus","EmployeeDisabledStatus","EmployeeOriginalHireDate","Is Executive","Critical Role","Age","State YOS","Retirement: Currently Eligible",{"$f":"CONCATENATE('CENTRAL ANALYSIS'!G13,\" Eligibile\")","v":"FY1 Eligibile"},{"$f":"CONCATENATE('CENTRAL ANALYSIS'!H13,\" Eligibile\")","v":"FY2 Eligibile"},{"$f":"CONCATENATE('CENTRAL ANALYSIS'!I13,\" Eligibile\")","v":"FY3 Eligibile"},{"$f":"CONCATENATE('CENTRAL ANALYSIS'!J13,\" Eligibile\")","v":"FY4 Eligibile"},{"$f":"CONCATENATE('CENTRAL ANALYSIS'!K13,\" Eligibile\")","v":"FY5 Eligibile"},"Agency YOS","Is First 5 Years?","Is First Year?"]
[null,null,null,null,null,null,null,null,null,null,null,null,null,null,null,null,null,{"$f":"IF(L11=\"\",\"\",IF(COUNTIF('CENTRAL ANALYSIS'!$A$14:$A$43,'HRDI Employee Report'!L11)>0,\"Y\",\"N\"))","v":""},{"$f":"IFERROR(IF(VLOOKUP($L11,'Critical Roles'!$A$11:$B$999999,2,FALSE)=\"Critical\",\"Critical\",\"Not Critical\"),\"Not Assessed\")","v":"Not Assessed"},{"$f":"('DATA SETUP'!$N$29-I11)/365.25","v":0},{"$f":"('DATA SETUP'!$N$29-Q11)/365.25","v":0},{"$f":"IF(AND(T11>=65,U11>=5),\"Y\",\"N\")","v":"N"},{"$f":"IF(V11=\"N\",IF(AND((('CENTRAL ANALYSIS'!G$14-$I11)/365.25)>=65,(('CENTRAL ANALYSIS'!G$14-$I11)/365.25)>=5),\"Y\",\"N\"),\"--\")","v":"N"},{"$f":"IF(W11=\"N\",IF(AND((('CENTRAL ANALYSIS'!H$14-$I11)/365.25)>=65,(('CENTRAL ANALYSIS'!H$14-$I11)/365.25)>=5),\"Y\",\"N\"),\"--\")","v":"N"},{"$f":"IF(X11=\"N\",IF(AND((('CENTRAL ANALYSIS'!I$14-$I11)/365.25)>=65,(('CENTRAL ANALYSIS'!I$14-$I11)/365.25)>=5),\"Y\",\"N\"),\"--\")","v":"N"},{"$f":"IF(Y11=\"N\",IF(AND((('CENTRAL ANALYSIS'!J$14-$I11)/365.25)>=65,(('CENTRAL ANALYSIS'!J$14-$I11)/365.25)>=5),\"Y\",\"N\"),\"--\")","v":"N"},{"$f":"IF(Z11=\"N\",IF(AND((('CENTRAL ANALYSIS'!K$14-$I11)/365.25)>=65,(('CENTRAL ANALYSIS'!K$14-$I11)/365.25)>=5),\"Y\",\"N\"),\"--\")","v":"N"},{"$f":"('DATA SETUP'!$N$29-G11)/365.25","v":0},{"$f":"IF(AB11<5,\"Y\",\"N\")","v":"Y"},{"$f":"IF(AB11<1,\"Y\",\"N\")","v":"Y"}]
[null,null,null,null,null,null,null,null,null,null,null,null,null,null,null,null,null,{"$f":"IF(L12=\"\",\"\",IF(COUNTIF('CENTRAL ANALYSIS'!$A$14:$A$43,'HRDI Employee Report'!L12)>0,\"Y\",\"N\"))","v":""},{"$f":"IFERROR(IF(VLOOKUP($L12,'Critical Roles'!$A$11:$B$999999,2,FALSE)=\"Critical\",\"Critical\",\"Not Critical\"),\"Not Assessed\")","v":"Not Assessed"},{"$f":"('DATA SETUP'!$N$29-I12)/365.25","v":0},{"$f":"('DATA SETUP'!$N$29-Q12)/365.25","v":0},{"$f":"IF(AND(T12>=65,U12>=5),\"Y\",\"N\")","v":"N"},{"$f":"IF(V12=\"N\",IF(AND((('CENTRAL ANALYSIS'!G$14-$I12)/365.25)>=65,(('CENTRAL ANALYSIS'!G$14-$I12)/365.25)>=5),\"Y\",\"N\"),\"--\")","v":"N"},{"$f":"IF(W12=\"N\",IF(AND((('CENTRAL ANALYSIS'!H$14-$I12)/365.25)>=65,(('CENTRAL ANALYSIS'!H$14-$I12)/365.25)>=5),\"Y\",\"N\"),\"--\")","v":"N"},{"$f":"IF(X12=\"N\",IF(AND((('CENTRAL ANALYSIS'!I$14-$I12)/365.25)>=65,(('CENTRAL ANALYSIS'!I$14-$I12)/365.25)>=5),\"Y\",\"N\"),\"--\")","v":"N"},{"$f":"IF(Y12=\"N\",IF(AND((('CENTRAL ANALYSIS'!J$14-$I12)/365.25)>=65,(('CENTRAL ANALYSIS'!J$14-$I12)/365.25)>=5),\"Y\",\"N\"),\"--\")","v":"N"},{"$f":"IF(Z12=\"N\",IF(AND((('CENTRAL ANALYSIS'!K$14-$I12)/365.25)>=65,(('CENTRAL ANALYSIS'!K$14-$I12)/365.25)>=5),\"Y\",\"N\"),\"--\")","v":"N"},{"$f":"('DATA SETUP'!$N$29-G12)/365.25","v":0},{"$f":"IF(AB12<5,\"Y\",\"N\")","v":"Y"},{"$f":"IF(AB12<1,\"Y\",\"N\")","v":"Y"}]
[null,null,null,null,null,null,null,null,null,null,null,null,null,null,null,null,null,{"$f":"IF(L13=\"\",\"\",IF(COUNTIF('CENTRAL ANALYSIS'!$A$14:$A$43,'HRDI Employee Report'!L13)>0,\"Y\",\"N\"))","v":""},{"$f":"IFERROR(IF(VLOOKUP($L13,'Critical Roles'!$A$11:$B$999999,2,FALSE)=\"Critical\",\"Critical\",\"Not Critical\"),\"Not Assessed\")","v":"Not Assessed"},{"$f":"('DATA SETUP'!$N$29-I13)/365.25","v":0},{"$f":"('DATA SETUP'!$N$29-Q13)/365.25","v":0},"N",{"$f":"IF(V13=\"N\",IF(AND((('CENTRAL ANALYSIS'!G$14-$I13)/365.25)>=65,(('CENTRAL ANALYSIS'!G$14-$I13)/365.25)>=5),\"Y\",\"N\"),\"--\")","v":"N"},{"$f":"IF(W13=\"N\",IF(AND((('CENTRAL ANALYSIS'!H$14-$I13)/365.25)>=65,(('CENTRAL ANALYSIS'!H$14-$I13)/365.25)>=5),\"Y\",\"N\"),\"--\")","v":"N"},{"$f":"IF(X13=\"N\",IF(AND((('CENTRAL ANALYSIS'!I$14-$I13)/365.25)>=65,(('CENTRAL ANALYSIS'!I$14-$I13)/365.25)>=5),\"Y\",\"N\"),\"--\")","v":"N"},{"$f":"IF(Y13=\"N\",IF(AND((('CENTRAL ANALYSIS'!J$14-$I13)/365.25)>=65,(('CENTRAL ANALYSIS'!J$14-$I13)/365.25)>=5),\"Y\",\"N\"),\"--\")","v":"N"},{"$f":"IF(Z13=\"N\",IF(AND((('CENTRAL ANALYSIS'!K$14-$I13)/365.25)>=65,(('CENTRAL ANALYSIS'!K$14-$I13)/365.25)>=5),\"Y\",\"N\"),\"--\")","v":"N"},{"$f":"('DATA SETUP'!$N$29-G13)/365.25","v":0},"Y","Y"]
[null,null,null,null,null,null,null,null,null,null,null,null,null,null,null,null,null,{"$f":"IF(L14=\"\",\"\",IF(COUNTIF('CENTRAL ANALYSIS'!$A$14:$A$43,'HRDI Employee Report'!L14)>0,\"Y\",\"N\"))","v":""},{"$f":"IFERROR(IF(VLOOKUP($L14,'Critical Roles'!$A$11:$B$999999,2,FALSE)=\"Critical\",\"Critical\",\"Not Critical\"),\"Not Assessed\")","v":"Not Assessed"},{"$f":"('DATA SETUP'!$N$29-I14)/365.25","v":0},{"$f":"('DATA SETUP'!$N$29-Q14)/365.25","v":0},"N",{"$f":"IF(V14=\"N\",IF(AND((('CENTRAL ANALYSIS'!G$14-$I14)/365.25)>=65,(('CENTRAL ANALYSIS'!G$14-$I14)/365.25)>=5),\"Y\",\"N\"),\"--\")","v":"N"},{"$f":"IF(W14=\"N\",IF(AND((('CENTRAL ANALYSIS'!H$14-$I14)/365.25)>=65,(('CENTRAL ANALYSIS'!H$14-$I14)/365.25)>=5),\"Y\",\"N\"),\"--\")","v":"N"},{"$f":"IF(X14=\"N\",IF(AND((('CENTRAL ANALYSIS'!I$14-$I14)/365.25)>=65,(('CENTRAL ANALYSIS'!I$14-$I14)/365.25)>=5),\"Y\",\"N\"),\"--\")","v":"N"},{"$f":"IF(Y14=\"N\",IF(AND((('CENTRAL ANALYSIS'!J$14-$I14)/365.25)>=65,(('CENTRAL ANALYSIS'!J$14-$I14)/365.25)>=5),\"Y\",\"N\"),\"--\")","v":"N"},{"$f":"IF(Z14=\"N\",IF(AND((('CENTRAL ANALYSIS'!K$14-$I14)/365.25)>=65,(('CENTRAL ANALYSIS'!K$14-$I14)/365.25)>=5),\"Y\",\"N\"),\"--\")","v":"N"},{"$f":"('DATA SETUP'!$N$29-G14)/365.25","v":0},"Y","Y"]
[null,null,null,null,null,null,null,null,null,null,null,null,null,null,null,null,null,{"$f":"IF(L15=\"\",\"\",IF(COUNTIF('CENTRAL ANALYSIS'!$A$14:$A$43,'HRDI Employee Report'!L15)>0,\"Y\",\"N\"))","v":""},{"$f":"IFERROR(IF(VLOOKUP($L15,'Critical Roles'!$A$11:$B$999999,2,FALSE)=\"Critical\",\"Critical\",\"Not Critical\"),\"Not Assessed\")","v":"Not Assessed"},{"$f":"('DATA SETUP'!$N$29-I15)/365.25","v":0},{"$f":"('DATA SETUP'!$N$29-Q15)/365.25","v":0},"N",{"$f":"IF(V15=\"N\",IF(AND((('CENTRAL ANALYSIS'!G$14-$I15)/365.25)>=65,(('CENTRAL ANALYSIS'!G$14-$I15)/365.25)>=5),\"Y\",\"N\"),\"--\")","v":"N"},{"$f":"IF(W15=\"N\",IF(AND((('CENTRAL ANALYSIS'!H$14-$I15)/365.25)>=65,(('CENTRAL ANALYSIS'!H$14-$I15)/365.25)>=5),\"Y\",\"N\"),\"--\")","v":"N"},{"$f":"IF(X15=\"N\",IF(AND((('CENTRAL ANALYSIS'!I$14-$I15)/365.25)>=65,(('CENTRAL ANALYSIS'!I$14-$I15)/365.25)>=5),\"Y\",\"N\"),\"--\")","v":"N"},{"$f":"IF(Y15=\"N\",IF(AND((('CENTRAL ANALYSIS'!J$14-$I15)/365.25)>=65,(('CENTRAL ANALYSIS'!J$14-$I15)/365.25)>=5),\"Y\",\"N\"),\"--\")","v":"N"},{"$f":"IF(Z15=\"N\",IF(AND((('CENTRAL ANALYSIS'!K$14-$I15)/365.25)>=65,(('CENTRAL ANALYSIS'!K$14-$I15)/365.25)>=5),\"Y\",\"N\"),\"--\")","v":"N"},{"$f":"('DATA SETUP'!$N$29-G15)/365.25","v":0},"Y","Y"]
[null,null,null,null,null,null,null,null,null,null,null,null,null,null,null,null,null,{"$f":"IF(L16=\"\",\"\",IF(COUNTIF('CENTRAL ANALYSIS'!$A$14:$A$43,'HRDI Employee Report'!L16)>0,\"Y\",\"N\"))","v":""},{"$f":"IFERROR(IF(VLOOKUP($L16,'Critical Roles'!$A$11:$B$999999,2,FALSE)=\"Critical\",\"Critical\",\"Not Critical\"),\"Not Assessed\")","v":"Not Assessed"},{"$f":"('DATA SETUP'!$N$29-I16)/365.25","v":0},{"$f":"('DATA SETUP'!$N$29-Q16)/365.25","v":0},"N",{"$f":"IF(V16=\"N\",IF(AND((('CENTRAL ANALYSIS'!G$14-$I16)/365.25)>=65,(('CENTRAL ANALYSIS'!G$14-$I16)/365.25)>=5),\"Y\",\"N\"),\"--\")","v":"N"},{"$f":"IF(W16=\"N\",IF(AND((('CENTRAL ANALYSIS'!H$14-$I16)/365.25)>=65,(('CENTRAL ANALYSIS'!H$14-$I16)/365.25)>=5),\"Y\",\"N\"),\"--\")","v":"N"},{"$f":"IF(X16=\"N\",IF(AND((('CENTRAL ANALYSIS'!I$14-$I16)/365.25)>=65,(('CENTRAL ANALYSIS'!I$14-$I16)/365.25)>=5),\"Y\",\"N\"),\"--\")","v":"N"},{"$f":"IF(Y16=\"N\",IF(AND((('CENTRAL ANALYSIS'!J$14-$I16)/365.25)>=65,(('CENTRAL ANALYSIS'!J$14-$I16)/365.25)>=5),\"Y\",\"N\"),\"--\")","v":"N"},{"$f":"IF(Z16=\"N\",IF(AND((('CENTRAL ANALYSIS'!K$14-$I16)/365.25)>=65,(('CENTRAL ANALYSIS'!K$14-$I16)/365.25)>=5),\"Y\",\"N\"),\"--\")","v":"N"},{"$f":"('DATA SETUP'!$N$29-G16)/365.25","v":0},"Y","Y"]
[null,null,null,null,null,null,null,null,null,null,null,null,null,null,null,null,null,{"$f":"IF(L17=\"\",\"\",IF(COUNTIF('CENTRAL ANALYSIS'!$A$14:$A$43,'HRDI Employee Report'!L17)>0,\"Y\",\"N\"))","v":""},{"$f":"IFERROR(IF(VLOOKUP($L17,'Critical Roles'!$A$11:$B$999999,2,FALSE)=\"Critical\",\"Critical\",\"Not Critical\"),\"Not Assessed\")","v":"Not Assessed"},{"$f":"('DATA SETUP'!$N$29-I17)/365.25","v":0},{"$f":"('DATA SETUP'!$N$29-Q17)/365.25","v":0},"N",{"$f":"IF(V17=\"N\",IF(AND((('CENTRAL ANALYSIS'!G$14-$I17)/365.25)>=65,(('CENTRAL ANALYSIS'!G$14-$I17)/365.25)>=5),\"Y\",\"N\"),\"--\")","v":"N"},{"$f":"IF(W17=\"N\",IF(AND((('CENTRAL ANALYSIS'!H$14-$I17)/365.25)>=65,(('CENTRAL ANALYSIS'!H$14-$I17)/365.25)>=5),\"Y\",\"N\"),\"--\")","v":"N"},{"$f":"IF(X17=\"N\",IF(AND((('CENTRAL ANALYSIS'!I$14-$I17)/365.25)>=65,(('CENTRAL ANALYSIS'!I$14-$I17)/365.25)>=5),\"Y\",\"N\"),\"--\")","v":"N"},{"$f":"IF(Y17=\"N\",IF(AND((('CENTRAL ANALYSIS'!J$14-$I17)/365.25)>=65,(('CENTRAL ANALYSIS'!J$14-$I17)/365.25)>=5),\"Y\",\"N\"),\"--\")","v":"N"},{"$f":"IF(Z17=\"N\",IF(AND((('CENTRAL ANALYSIS'!K$14-$I17)/365.25)>=65,(('CENTRAL ANALYSIS'!K$14-$I17)/365.25)>=5),\"Y\",\"N\"),\"--\")","v":"N"},{"$f":"('DATA SETUP'!$N$29-G17)/365.25","v":0},"Y","Y"]
[null,null,null,null,null,null,null,null,null,null,null,null,null,null,null,null,null,{"$f":"IF(L18=\"\",\"\",IF(COUNTIF('CENTRAL ANALYSIS'!$A$14:$A$43,'HRDI Employee Report'!L18)>0,\"Y\",\"N\"))","v":""},{"$f":"IFERROR(IF(VLOOKUP($L18,'Critical Roles'!$A$11:$B$999999,2,FALSE)=\"Critical\",\"Critical\",\"Not Critical\"),\"Not Assessed\")","v":"Not Assessed"},{"$f":"('DATA SETUP'!$N$29-I18)/365.25","v":0},{"$f":"('DATA SETUP'!$N$29-Q18)/365.25","v":0},"N",{"$f":"IF(V18=\"N\",IF(AND((('CENTRAL ANALYSIS'!G$14-$I18)/365.25)>=65,(('CENTRAL ANALYSIS'!G$14-$I18)/365.25)>=5),\"Y\",\"N\"),\"--\")","v":"N"},{"$f":"IF(W18=\"N\",IF(AND((('CENTRAL ANALYSIS'!H$14-$I18)/365.25)>=65,(('CENTRAL ANALYSIS'!H$14-$I18)/365.25)>=5),\"Y\",\"N\"),\"--\")","v":"N"},{"$f":"IF(X18=\"N\",IF(AND((('CENTRAL ANALYSIS'!I$14-$I18)/365.25)>=65,(('CENTRAL ANALYSIS'!I$14-$I18)/365.25)>=5),\"Y\",\"N\"),\"--\")","v":"N"},{"$f":"IF(Y18=\"N\",IF(AND((('CENTRAL ANALYSIS'!J$14-$I18)/365.25)>=65,(('CENTRAL ANALYSIS'!J$14-$I18)/365.25)>=5),\"Y\",\"N\"),\"--\")","v":"N"},{"$f":"IF(Z18=\"N\",IF(AND((('CENTRAL ANALYSIS'!K$14-$I18)/365.25)>=65,(('CENTRAL ANALYSIS'!K$14-$I18)/365.25)>=5),\"Y\",\"N\"),\"--\")","v":"N"},{"$f":"('DATA SETUP'!$N$29-G18)/365.25","v":0},"Y","Y"]
[null,null,null,null,null,null,null,null,null,null,null,null,null,null,null,null,null,{"$f":"IF(L19=\"\",\"\",IF(COUNTIF('CENTRAL ANALYSIS'!$A$14:$A$43,'HRDI Employee Report'!L19)>0,\"Y\",\"N\"))","v":""},{"$f":"IFERROR(IF(VLOOKUP($L19,'Critical Roles'!$A$11:$B$999999,2,FALSE)=\"Critical\",\"Critical\",\"Not Critical\"),\"Not Assessed\")","v":"Not Assessed"},{"$f":"('DATA SETUP'!$N$29-I19)/365.25","v":0},{"$f":"('DATA SETUP'!$N$29-Q19)/365.25","v":0},"N",{"$f":"IF(V19=\"N\",IF(AND((('CENTRAL ANALYSIS'!G$14-$I19)/365.25)>=65,(('CENTRAL ANALYSIS'!G$14-$I19)/365.25)>=5),\"Y\",\"N\"),\"--\")","v":"N"},{"$f":"IF(W19=\"N\",IF(AND((('CENTRAL ANALYSIS'!H$14-$I19)/365.25)>=65,(('CENTRAL ANALYSIS'!H$14-$I19)/365.25)>=5),\"Y\",\"N\"),\"--\")","v":"N"},{"$f":"IF(X19=\"N\",IF(AND((('CENTRAL ANALYSIS'!I$14-$I19)/365.25)>=65,(('CENTRAL ANALYSIS'!I$14-$I19)/365.25)>=5),\"Y\",\"N\"),\"--\")","v":"N"},{"$f":"IF(Y19=\"N\",IF(AND((('CENTRAL ANALYSIS'!J$14-$I19)/365.25)>=65,(('CENTRAL ANALYSIS'!J$14-$I19)/365.25)>=5),\"Y\",\"N\"),\"--\")","v":"N"},{"$f":"IF(Z19=\"N\",IF(AND((('CENTRAL ANALYSIS'!K$14-$I19)/365.25)>=65,(('CENTRAL ANALYSIS'!K$14-$I19)/365.25)>=5),\"Y\",\"N\"),\"--\")","v":"N"},{"$f":"('DATA SETUP'!$N$29-G19)/365.25","v":0},"Y","Y"]
[null,null,null,null,null,null,null,null,null,null,null,null,null,null,null,null,null,{"$f":"IF(L20=\"\",\"\",IF(COUNTIF('CENTRAL ANALYSIS'!$A$14:$A$43,'HRDI Employee Report'!L20)>0,\"Y\",\"N\"))","v":""},{"$f":"IFERROR(IF(VLOOKUP($L20,'Critical Roles'!$A$11:$B$999999,2,FALSE)=\"Critical\",\"Critical\",\"Not Critical\"),\"Not Assessed\")","v":"Not Assessed"},{"$f":"('DATA SETUP'!$N$29-I20)/365.25","v":0},{"$f":"('DATA SETUP'!$N$29-Q20)/365.25","v":0},"N",{"$f":"IF(V20=\"N\",IF(AND((('CENTRAL ANALYSIS'!G$14-$I20)/365.25)>=65,(('CENTRAL ANALYSIS'!G$14-$I20)/365.25)>=5),\"Y\",\"N\"),\"--\")","v":"N"},{"$f":"IF(W20=\"N\",IF(AND((('CENTRAL ANALYSIS'!H$14-$I20)/365.25)>=65,(('CENTRAL ANALYSIS'!H$14-$I20)/365.25)>=5),\"Y\",\"N\"),\"--\")","v":"N"},{"$f":"IF(X20=\"N\",IF(AND((('CENTRAL ANALYSIS'!I$14-$I20)/365.25)>=65,(('CENTRAL ANALYSIS'!I$14-$I20)/365.25)>=5),\"Y\",\"N\"),\"--\")","v":"N"},{"$f":"IF(Y20=\"N\",IF(AND((('CENTRAL ANALYSIS'!J$14-$I20)/365.25)>=65,(('CENTRAL ANALYSIS'!J$14-$I20)/365.25)>=5),\"Y\",\"N\"),\"--\")","v":"N"},{"$f":"IF(Z20=\"N\",IF(AND((('CENTRAL ANALYSIS'!K$14-$I20)/365.25)>=65,(('CENTRAL ANALYSIS'!K$14-$I20)/365.25)>=5),\"Y\",\"N\"),\"--\")","v":"N"},{"$f":"('DATA SETUP'!$N$29-G20)/365.25","v":0},"Y","Y"]
[null,null,null,null,null,null,null,null,null,null,null,null,null,null,null,null,null,{"$f":"IF(L21=\"\",\"\",IF(COUNTIF('CENTRAL ANALYSIS'!$A$14:$A$43,'HRDI Employee Report'!L21)>0,\"Y\",\"N\"))","v":""},{"$f":"IFERROR(IF(VLOOKUP($L21,'Critical Roles'!$A$11:$B$999999,2,FALSE)=\"Critical\",\"Critical\",\"Not Critical\"),\"Not Assessed\")","v":"Not Assessed"},{"$f":"('DATA SETUP'!$N$29-I21)/365.25","v":0},{"$f":"('DATA SETUP'!$N$29-Q21)/365.25","v":0},"N",{"$f":"IF(V21=\"N\",IF(AND((('CENTRAL ANALYSIS'!G$14-$I21)/365.25)>=65,(('CENTRAL ANALYSIS'!G$14-$I21)/365.25)>=5),\"Y\",\"N\"),\"--\")","v":"N"},{"$f":"IF(W21=\"N\",IF(AND((('CENTRAL ANALYSIS'!H$14-$I21)/365.25)>=65,(('CENTRAL ANALYSIS'!H$14-$I21)/365.25)>=5),\"Y\",\"N\"),\"--\")","v":"N"},{"$f":"IF(X21=\"N\",IF(AND((('CENTRAL ANALYSIS'!I$14-$I21)/365.25)>=65,(('CENTRAL ANALYSIS'!I$14-$I21)/365.25)>=5),\"Y\",\"N\"),\"--\")","v":"N"},{"$f":"IF(Y21=\"N\",IF(AND((('CENTRAL ANALYSIS'!J$14-$I21)/365.25)>=65,(('CENTRAL ANALYSIS'!J$14-$I21)/365.25)>=5),\"Y\",\"N\"),\"--\")","v":"N"},{"$f":"IF(Z21=\"N\",IF(AND((('CENTRAL ANALYSIS'!K$14-$I21)/365.25)>=65,(('CENTRAL ANALYSIS'!K$14-$I21)/365.25)>=5),\"Y\",\"N\"),\"--\")","v":"N"},{"$f":"('DATA SETUP'!$N$29-G21)/365.25","v":0},"Y","Y"]
[null,null,null,null,null,null,null,null,null,null,null,null,null,null,null,null,null,{"$f":"IF(L22=\"\",\"\",IF(COUNTIF('CENTRAL ANALYSIS'!$A$14:$A$43,'HRDI Employee Report'!L22)>0,\"Y\",\"N\"))","v":""},{"$f":"IFERROR(IF(VLOOKUP($L22,'Critical Roles'!$A$11:$B$999999,2,FALSE)=\"Critical\",\"Critical\",\"Not Critical\"),\"Not Assessed\")","v":"Not Assessed"},{"$f":"('DATA SETUP'!$N$29-I22)/365.25","v":0},{"$f":"('DATA SETUP'!$N$29-Q22)/365.25","v":0},"N",{"$f":"IF(V22=\"N\",IF(AND((('CENTRAL ANALYSIS'!G$14-$I22)/365.25)>=65,(('CENTRAL ANALYSIS'!G$14-$I22)/365.25)>=5),\"Y\",\"N\"),\"--\")","v":"N"},{"$f":"IF(W22=\"N\",IF(AND((('CENTRAL ANALYSIS'!H$14-$I22)/365.25)>=65,(('CENTRAL ANALYSIS'!H$14-$I22)/365.25)>=5),\"Y\",\"N\"),\"--\")","v":"N"},{"$f":"IF(X22=\"N\",IF(AND((('CENTRAL ANALYSIS'!I$14-$I22)/365.25)>=65,(('CENTRAL ANALYSIS'!I$14-$I22)/365.25)>=5),\"Y\",\"N\"),\"--\")","v":"N"},{"$f":"IF(Y22=\"N\",IF(AND((('CENTRAL ANALYSIS'!J$14-$I22)/365.25)>=65,(('CENTRAL ANALYSIS'!J$14-$I22)/365.25)>=5),\"Y\",\"N\"),\"--\")","v":"N"},{"$f":"IF(Z22=\"N\",IF(AND((('CENTRAL ANALYSIS'!K$14-$I22)/365.25)>=65,(('CENTRAL ANALYSIS'!K$14-$I22)/365.25)>=5),\"Y\",\"N\"),\"--\")","v":"N"},{"$f":"('DATA SETUP'!$N$29-G22)/365.25","v":0},"Y","Y"]
[null,null,null,null,null,null,null,null,null,null,null,null,null,null,null,null,null,{"$f":"IF(L23=\"\",\"\",IF(COUNTIF('CENTRAL ANALYSIS'!$A$14:$A$43,'HRDI Employee Report'!L23)>0,\"Y\",\"N\"))","v":""},{"$f":"IFERROR(IF(VLOOKUP($L23,'Critical Roles'!$A$11:$B$999999,2,FALSE)=\"Critical\",\"Critical\",\"Not Critical\"),\"Not Assessed\")","v":"Not Assessed"},{"$f":"('DATA SETUP'!$N$29-I23)/365.25","v":0},{"$f":"('DATA SETUP'!$N$29-Q23)/365.25","v":0},"N",{"$f":"IF(V23=\"N\",IF(AND((('CENTRAL ANALYSIS'!G$14-$I23)/365.25)>=65,(('CENTRAL ANALYSIS'!G$14-$I23)/365.25)>=5),\"Y\",\"N\"),\"--\")","v":"N"},{"$f":"IF(W23=\"N\",IF(AND((('CENTRAL ANALYSIS'!H$14-$I23)/365.25)>=65,(('CENTRAL ANALYSIS'!H$14-$I23)/365.25)>=5),\"Y\",\"N\"),\"--\")","v":"N"},{"$f":"IF(X23=\"N\",IF(AND((('CENTRAL ANALYSIS'!I$14-$I23)/365.25)>=65,(('CENTRAL ANALYSIS'!I$14-$I23)/365.25)>=5),\"Y\",\"N\"),\"--\")","v":"N"},{"$f":"IF(Y23=\"N\",IF(AND((('CENTRAL ANALYSIS'!J$14-$I23)/365.25)>=65,(('CENTRAL ANALYSIS'!J$14-$I23)/365.25)>=5),\"Y\",\"N\"),\"--\")","v":"N"},{"$f":"IF(Z23=\"N\",IF(AND((('CENTRAL ANALYSIS'!K$14-$I23)/365.25)>=65,(('CENTRAL ANALYSIS'!K$14-$I23)/365.25)>=5),\"Y\",\"N\"),\"--\")","v":"N"},{"$f":"('DATA SETUP'!$N$29-G23)/365.25","v":0},"Y","Y"]
[null,null,null,null,null,null,null,null,null,null,null,null,null,null,null,null,null,null,{"$f":"IFERROR(IF(VLOOKUP($L24,'Critical Roles'!$A$11:$B$999999,2,FALSE)=\"Critical\",\"Critical\",\"Not Critical\"),\"Not Assessed\")","v":"Not Assessed"},{"$f":"('DATA SETUP'!$N$29-I24)/365.25","v":0},{"$f":"('DATA SETUP'!$N$29-Q24)/365.25","v":0},"N",{"$f":"IF(V24=\"N\",IF(AND((('CENTRAL ANALYSIS'!G$14-$I24)/365.25)>=65,(('CENTRAL ANALYSIS'!G$14-$I24)/365.25)>=5),\"Y\",\"N\"),\"--\")","v":"N"},{"$f":"IF(W24=\"N\",IF(AND((('CENTRAL ANALYSIS'!H$14-$I24)/365.25)>=65,(('CENTRAL ANALYSIS'!H$14-$I24)/365.25)>=5),\"Y\",\"N\"),\"--\")","v":"N"},{"$f":"IF(X24=\"N\",IF(AND((('CENTRAL ANALYSIS'!I$14-$I24)/365.25)>=65,(('CENTRAL ANALYSIS'!I$14-$I24)/365.25)>=5),\"Y\",\"N\"),\"--\")","v":"N"},{"$f":"IF(Y24=\"N\",IF(AND((('CENTRAL ANALYSIS'!J$14-$I24)/365.25)>=65,(('CENTRAL ANALYSIS'!J$14-$I24)/365.25)>=5),\"Y\",\"N\"),\"--\")","v":"N"},{"$f":"IF(Z24=\"N\",IF(AND((('CENTRAL ANALYSIS'!K$14-$I24)/365.25)>=65,(('CENTRAL ANALYSIS'!K$14-$I24)/365.25)>=5),\"Y\",\"N\"),\"--\")","v":"N"},{"$f":"('DATA SETUP'!$N$29-G24)/365.25","v":0},"Y","Y"]
[null,null,null,null,null,null,null,null,null,null,null,null,null,null,null,null,null,null,{"$f":"IFERROR(IF(VLOOKUP($L25,'Critical Roles'!$A$11:$B$999999,2,FALSE)=\"Critical\",\"Critical\",\"Not Critical\"),\"Not Assessed\")","v":"Not Assessed"},{"$f":"('DATA SETUP'!$N$29-I25)/365.25","v":0},{"$f":"('DATA SETUP'!$N$29-Q25)/365.25","v":0},"N",{"$f":"IF(V25=\"N\",IF(AND((('CENTRAL ANALYSIS'!G$14-$I25)/365.25)>=65,(('CENTRAL ANALYSIS'!G$14-$I25)/365.25)>=5),\"Y\",\"N\"),\"--\")","v":"N"},{"$f":"IF(W25=\"N\",IF(AND((('CENTRAL ANALYSIS'!H$14-$I25)/365.25)>=65,(('CENTRAL ANALYSIS'!H$14-$I25)/365.25)>=5),\"Y\",\"N\"),\"--\")","v":"N"},{"$f":"IF(X25=\"N\",IF(AND((('CENTRAL ANALYSIS'!I$14-$I25)/365.25)>=65,(('CENTRAL ANALYSIS'!I$14-$I25)/365.25)>=5),\"Y\",\"N\"),\"--\")","v":"N"},{"$f":"IF(Y25=\"N\",IF(AND((('CENTRAL ANALYSIS'!J$14-$I25)/365.25)>=65,(('CENTRAL ANALYSIS'!J$14-$I25)/365.25)>=5),\"Y\",\"N\"),\"--\")","v":"N"},{"$f":"IF(Z25=\"N\",IF(AND((('CENTRAL ANALYSIS'!K$14-$I25)/365.25)>=65,(('CENTRAL ANALYSIS'!K$14-$I25)/365.25)>=5),\"Y\",\"N\"),\"--\")","v":"N"},{"$f":"('DATA SETUP'!$N$29-G25)/365.25","v":0},"Y","Y"]

{"sheet":"HRDI Transaction Report","index":11,"n_rows":31,"n_cols":24,"rows_kept":31,"cut":false,"hidden":false,"merged":[[0,0,8,9]]}
["To include the HR Data Insights transaction hub report, the following fields should be included (from the column headers).\n\nData can be manually copied and pasted."]
[]
[]
[]
[]
[]
[]
[]
[]
["EmployeeID","PositionNumber","BusinessUnitName","PositionDepartmentID","PositionType","EmployeeStatus","PositionJobcode","EmployeeAgencyStartDate","EmployeeTerminationDate","EmployeeSex","EmployeeMinorityStatus","PositionEEO4Category","PositionType","PositionLevel","EmployeeVeteranStatus","EmployeeDisabledStatus","TransactionEffectiveDate","CardinalActionReason","Is Executive","Critical Role","Agency YOS","Is First 5 Years?","Is First Year?","Transaction Category"]
[null,null,null,null,null,null,null,null,null,null,null,null,null,null,null,null,null,null,{"$f":"IF(B11=\"\",\"\",IF(COUNTIF('CENTRAL ANALYSIS'!$A$14:$A$43,'HRDI Employee Report'!L11)>0,\"Y\",\"N\"))","v":""},{"$f":"IFERROR(IF(VLOOKUP($B11,'Critical Roles'!$A$11:$B$999999,2,FALSE)=\"Critical\",\"Critical\",\"Not Critical\"),\"Not Assessed\")","v":"Not Assessed"},{"$f":"('DATA SETUP'!$N$29-H11)/365.25","v":0},{"$f":"IF(U11<5,\"Y\",\"N\")","v":"Y"},{"$f":"IF(U11<1,\"Y\",\"N\")","v":"Y"},{"$f":"IFERROR(VLOOKUP(R11,'CENTRAL ANALYSIS'!$M$14:$N$55,2,FALSE),\"\")","v":""}]
[null,null,null,null,null,null,null,null,null,null,null,null,null,null,null,null,null,null,{"$f":"IF(B12=\"\",\"\",IF(COUNTIF('CENTRAL ANALYSIS'!$A$14:$A$43,'HRDI Employee Report'!L12)>0,\"Y\",\"N\"))","v":""},{"$f":"IFERROR(IF(VLOOKUP($B12,'Critical Roles'!$A$11:$B$999999,2,FALSE)=\"Critical\",\"Critical\",\"Not Critical\"),\"Not Assessed\")","v":"Not Assessed"},{"$f":"('DATA SETUP'!$N$29-H12)/365.25","v":0},{"$f":"IF(U12<5,\"Y\",\"N\")","v":"Y"},{"$f":"IF(U12<1,\"Y\",\"N\")","v":"Y"},{"$f":"IFERROR(VLOOKUP(R12,'CENTRAL ANALYSIS'!$M$14:$N$55,2,FALSE),\"\")","v":""}]
[null,null,null,null,null,null,null,null,null,null,null,null,null,null,null,null,null,null,{"$f":"IF(B13=\"\",\"\",IF(COUNTIF('CENTRAL ANALYSIS'!$A$14:$A$43,'HRDI Employee Report'!L13)>0,\"Y\",\"N\"))","v":""},{"$f":"IFERROR(IF(VLOOKUP($B13,'Critical Roles'!$A$11:$B$999999,2,FALSE)=\"Critical\",\"Critical\",\"Not Critical\"),\"Not Assessed\")","v":"Not Assessed"},{"$f":"('DATA SETUP'!$N$29-H13)/365.25","v":0},"Y","Y",{"$f":"IFERROR(VLOOKUP(R13,'CENTRAL ANALYSIS'!$M$14:$N$55,2,FALSE),\"\")","v":""}]
[null,null,null,null,null,null,null,null,null,null,null,null,null,null,null,null,null,null,{"$f":"IF(B14=\"\",\"\",IF(COUNTIF('CENTRAL ANALYSIS'!$A$14:$A$43,'HRDI Employee Report'!L14)>0,\"Y\",\"N\"))","v":""},{"$f":"IFERROR(IF(VLOOKUP($B14,'Critical Roles'!$A$11:$B$999999,2,FALSE)=\"Critical\",\"Critical\",\"Not Critical\"),\"Not Assessed\")","v":"Not Assessed"},{"$f":"('DATA SETUP'!$N$29-H14)/365.25","v":0},"Y","Y",{"$f":"IFERROR(VLOOKUP(R14,'CENTRAL ANALYSIS'!$M$14:$N$55,2,FALSE),\"\")","v":""}]
[null,null,null,null,null,null,null,null,null,null,null,null,null,null,null,null,null,null,{"$f":"IF(B15=\"\",\"\",IF(COUNTIF('CENTRAL ANALYSIS'!$A$14:$A$43,'HRDI Employee Report'!L15)>0,\"Y\",\"N\"))","v":""},{"$f":"IFERROR(IF(VLOOKUP($B15,'Critical Roles'!$A$11:$B$999999,2,FALSE)=\"Critical\",\"Critical\",\"Not Critical\"),\"Not Assessed\")","v":"Not Assessed"},{"$f":"('DATA SETUP'!$N$29-H15)/365.25","v":0},"Y","Y",{"$f":"IFERROR(VLOOKUP(R15,'CENTRAL ANALYSIS'!$M$14:$N$55,2,FALSE),\"\")","v":""}]
[null,null,null,null,null,null,null,null,null,null,null,null,null,null,null,null,null,null,{"$f":"IF(B16=\"\",\"\",IF(COUNTIF('CENTRAL ANALYSIS'!$A$14:$A$43,'HRDI Employee Report'!L16)>0,\"Y\",\"N\"))","v":""},{"$f":"IFERROR(IF(VLOOKUP($B16,'Critical Roles'!$A$11:$B$999999,2,FALSE)=\"Critical\",\"Critical\",\"Not Critical\"),\"Not Assessed\")","v":"Not Assessed"},{"$f":"('DATA SETUP'!$N$29-H16)/365.25","v":0},"Y","Y",{"$f":"IFERROR(VLOOKUP(R16,'CENTRAL ANALYSIS'!$M$14:$N$55,2,FALSE),\"\")","v":""}]
[null,null,null,null,null,null,null,null,null,null,null,null,null,null,null,null,null,null,{"$f":"IF(B17=\"\",\"\",IF(COUNTIF('CENTRAL ANALYSIS'!$A$14:$A$43,'HRDI Employee Report'!L17)>0,\"Y\",\"N\"))","v":""},{"$f":"IFERROR(IF(VLOOKUP($B17,'Critical Roles'!$A$11:$B$999999,2,FALSE)=\"Critical\",\"Critical\",\"Not Critical\"),\"Not Assessed\")","v":"Not Assessed"},{"$f":"('DATA SETUP'!$N$29-H17)/365.25","v":0},"Y","Y",{"$f":"IFERROR(VLOOKUP(R17,'CENTRAL ANALYSIS'!$M$14:$N$55,2,FALSE),\"\")","v":""}]
[null,null,null,null,null,null,null,null,null,null,null,null,null,null,null,null,null,null,{"$f":"IF(B18=\"\",\"\",IF(COUNTIF('CENTRAL ANALYSIS'!$A$14:$A$43,'HRDI Employee Report'!L18)>0,\"Y\",\"N\"))","v":""},{"$f":"IFERROR(IF(VLOOKUP($B18,'Critical Roles'!$A$11:$B$999999,2,FALSE)=\"Critical\",\"Critical\",\"Not Critical\"),\"Not Assessed\")","v":"Not Assessed"},{"$f":"('DATA SETUP'!$N$29-H18)/365.25","v":0},"Y","Y",{"$f":"IFERROR(VLOOKUP(R18,'CENTRAL ANALYSIS'!$M$14:$N$55,2,FALSE),\"\")","v":""}]
[null,null,null,null,null,null,null,null,null,null,null,null,null,null,null,null,null,null,{"$f":"IF(B19=\"\",\"\",IF(COUNTIF('CENTRAL ANALYSIS'!$A$14:$A$43,'HRDI Employee Report'!L19)>0,\"Y\",\"N\"))","v":""},{"$f":"IFERROR(IF(VLOOKUP($B19,'Critical Roles'!$A$11:$B$999999,2,FALSE)=\"Critical\",\"Critical\",\"Not Critical\"),\"Not Assessed\")","v":"Not Assessed"},{"$f":"('DATA SETUP'!$N$29-H19)/365.25","v":0},"Y","Y",{"$f":"IFERROR(VLOOKUP(R19,'CENTRAL ANALYSIS'!$M$14:$N$55,2,FALSE),\"\")","v":""}]
[null,null,null,null,null,null,null,null,null,null,null,null,null,null,null,null,null,null,{"$f":"IF(B20=\"\",\"\",IF(COUNTIF('CENTRAL ANALYSIS'!$A$14:$A$43,'HRDI Employee Report'!L20)>0,\"Y\",\"N\"))","v":""},{"$f":"IFERROR(IF(VLOOKUP($B20,'Critical Roles'!$A$11:$B$999999,2,FALSE)=\"Critical\",\"Critical\",\"Not Critical\"),\"Not Assessed\")","v":"Not Assessed"},{"$f":"('DATA SETUP'!$N$29-H20)/365.25","v":0},"Y","Y",{"$f":"IFERROR(VLOOKUP(R20,'CENTRAL ANALYSIS'!$M$14:$N$55,2,FALSE),\"\")","v":""}]
[null,null,null,null,null,null,null,null,null,null,null,null,null,null,null,null,null,null,{"$f":"IF(B21=\"\",\"\",IF(COUNTIF('CENTRAL ANALYSIS'!$A$14:$A$43,'HRDI Employee Report'!L21)>0,\"Y\",\"N\"))","v":""},{"$f":"IFERROR(IF(VLOOKUP($B21,'Critical Roles'!$A$11:$B$999999,2,FALSE)=\"Critical\",\"Critical\",\"Not Critical\"),\"Not Assessed\")","v":"Not Assessed"},{"$f":"('DATA SETUP'!$N$29-H21)/365.25","v":0},"Y","Y",{"$f":"IFERROR(VLOOKUP(R21,'CENTRAL ANALYSIS'!$M$14:$N$55,2,FALSE),\"\")","v":""}]
[null,null,null,null,null,null,null,null,null,null,null,null,null,null,null,null,null,null,{"$f":"IF(B22=\"\",\"\",IF(COUNTIF('CENTRAL ANALYSIS'!$A$14:$A$43,'HRDI Employee Report'!L22)>0,\"Y\",\"N\"))","v":""},{"$f":"IFERROR(IF(VLOOKUP($B22,'Critical Roles'!$A$11:$B$999999,2,FALSE)=\"Critical\",\"Critical\",\"Not Critical\"),\"Not Assessed\")","v":"Not Assessed"},{"$f":"('DATA SETUP'!$N$29-H22)/365.25","v":0},"Y","Y",{"$f":"IFERROR(VLOOKUP(R22,'CENTRAL ANALYSIS'!$M$14:$N$55,2,FALSE),\"\")","v":""}]
[null,null,null,null,null,null,null,null,null,null,null,null,null,null,null,null,null,null,{"$f":"IF(B23=\"\",\"\",IF(COUNTIF('CENTRAL ANALYSIS'!$A$14:$A$43,'HRDI Employee Report'!L23)>0,\"Y\",\"N\"))","v":""},{"$f":"IFERROR(IF(VLOOKUP($B23,'Critical Roles'!$A$11:$B$999999,2,FALSE)=\"Critical\",\"Critical\",\"Not Critical\"),\"Not Assessed\")","v":"Not Assessed"},{"$f":"('DATA SETUP'!$N$29-H23)/365.25","v":0},"Y","Y",{"$f":"IFERROR(VLOOKUP(R23,'CENTRAL ANALYSIS'!$M$14:$N$55,2,FALSE),\"\")","v":""}]
[null,null,null,null,null,null,null,null,null,null,null,null,null,null,null,null,null,null,{"$f":"IF(B24=\"\",\"\",IF(COUNTIF('CENTRAL ANALYSIS'!$A$14:$A$43,'HRDI Employee Report'!L24)>0,\"Y\",\"N\"))","v":""},{"$f":"IFERROR(IF(VLOOKUP($B24,'Critical Roles'!$A$11:$B$999999,2,FALSE)=\"Critical\",\"Critical\",\"Not Critical\"),\"Not Assessed\")","v":"Not Assessed"},{"$f":"('DATA SETUP'!$N$29-H24)/365.25","v":0},"Y","Y",{"$f":"IFERROR(VLOOKUP(R24,'CENTRAL ANALYSIS'!$M$14:$N$55,2,FALSE),\"\")","v":""}]
[null,null,null,null,null,null,null,null,null,null,null,null,null,null,null,null,null,null,{"$f":"IF(B25=\"\",\"\",IF(COUNTIF('CENTRAL ANALYSIS'!$A$14:$A$43,'HRDI Employee Report'!L25)>0,\"Y\",\"N\"))","v":""},{"$f":"IFERROR(IF(VLOOKUP($B25,'Critical Roles'!$A$11:$B$999999,2,FALSE)=\"Critical\",\"Critical\",\"Not Critical\"),\"Not Assessed\")","v":"Not Assessed"},{"$f":"('DATA SETUP'!$N$29-H25)/365.25","v":0},"Y","Y",{"$f":"IFERROR(VLOOKUP(R25,'CENTRAL ANALYSIS'!$M$14:$N$55,2,FALSE),\"\")","v":""}]
[null,null,null,null,null,null,null,null,null,null,null,null,null,null,null,null,null,null,{"$f":"IF(B26=\"\",\"\",IF(COUNTIF('CENTRAL ANALYSIS'!$A$14:$A$43,'HRDI Employee Report'!L26)>0,\"Y\",\"N\"))","v":""},{"$f":"IFERROR(IF(VLOOKUP($B26,'Critical Roles'!$A$11:$B$999999,2,FALSE)=\"Critical\",\"Critical\",\"Not Critical\"),\"Not Assessed\")","v":"Not Assessed"},{"$f":"('DATA SETUP'!$N$29-H26)/365.25","v":0},"Y","Y",{"$f":"IFERROR(VLOOKUP(R26,'CENTRAL ANALYSIS'!$M$14:$N$55,2,FALSE),\"\")","v":""}]
[null,null,null,null,null,null,null,null,null,null,null,null,null,null,null,null,null,null,{"$f":"IF(B27=\"\",\"\",IF(COUNTIF('CENTRAL ANALYSIS'!$A$14:$A$43,'HRDI Employee Report'!L27)>0,\"Y\",\"N\"))","v":""},{"$f":"IFERROR(IF(VLOOKUP($B27,'Critical Roles'!$A$11:$B$999999,2,FALSE)=\"Critical\",\"Critical\",\"Not Critical\"),\"Not Assessed\")","v":"Not Assessed"},{"$f":"('DATA SETUP'!$N$29-H27)/365.25","v":0},"Y","Y",{"$f":"IFERROR(VLOOKUP(R27,'CENTRAL ANALYSIS'!$M$14:$N$55,2,FALSE),\"\")","v":""}]
[null,null,null,null,null,null,null,null,null,null,null,null,null,null,null,null,null,null,null,null,null,null,null,{"$f":"IFERROR(VLOOKUP(R28,'CENTRAL ANALYSIS'!$M$14:$N$55,2,FALSE),\"\")","v":""}]
[null,null,null,null,null,null,null,null,null,null,null,null,null,null,null,null,null,null,null,null,null,null,null,{"$f":"IFERROR(VLOOKUP(R29,'CENTRAL ANALYSIS'!$M$14:$N$55,2,FALSE),\"\")","v":""}]
[null,null,null,null,null,null,null,null,null,null,null,null,null,null,null,null,null,null,null,null,null,null,null,{"$f":"IFERROR(VLOOKUP(R30,'CENTRAL ANALYSIS'!$M$14:$N$55,2,FALSE),\"\")","v":""}]
[null,null,null,null,null,null,null,null,null,null,null,null,null,null,null,null,null,null,null,null,null,null,null,{"$f":"IFERROR(VLOOKUP(R31,'CENTRAL ANALYSIS'!$M$14:$N$55,2,FALSE),\"\")","v":""}]

{"sheet":"PageUP","index":12,"n_rows":38,"n_cols":27,"rows_kept":38,"cut":false,"hidden":false,"merged":[[0,0,8,9],[0,10,8,15]]}
["To include the page up report, begin with creating a new report in enhanced reporting and use the applicant search / all candidates report as the description, with the applicant basics quick start as the base. Four additional fields will need to be added: Job position number, job time to fill (days), application date: date submtted, and application steps: date hired.\n\nData can be manually copied and pasted. The calcualted cells (yellow headers) will need to have the formulas dragged down to the remaining rows in the data set."]
[]
[]
[]
[]
[]
[]
[]
[]
["Applicant Internal Applicant? (Yes / No)","Applicant Date created Date","Applicant Duplicate (Yes / No)","Applicant Applicant e-mail","Applicant Applicant Name (Sorted)","Applicant Last activity Date","Applicant Last login Date","Applicant Nominated employment status","Applicant Phone Number","Applicant Cell phone","Applicant SMS text notification (Yes / No)","Applicant Source","Applicant Status","Applicant Sub source","Job Time to Fill (Days)","Job Position Number","Application Date application submitted","Application Steps Date hired","Is Supervisor?","Is Executive?","EEO Description","Classification","Critical Role","Filled Positions Numbers","Vacant Positions","Vacant Position Number","Unique Vacant Count"]
[null,null,null,null,null,null,null,null,null,null,null,null,null,null,null,null,null,null,{"$f":"VLOOKUP($P11,'CARDINAL Position Report'!$A:$AV,45,FALSE)","v":{"$error":"#N/A"}},{"$f":"VLOOKUP($P11,'CARDINAL Position Report'!$A:$AV,46,FALSE)","v":{"$error":"#N/A"}},{"$f":"VLOOKUP($P11,'CARDINAL Position Report'!$A:$AV,47,FALSE)","v":{"$error":"#N/A"}},{"$f":"VLOOKUP($P11,'CARDINAL Position Report'!$A:$AV,48,FALSE)","v":{"$error":"#N/A"}},{"$f":"IFERROR(IF(VLOOKUP(P11,'Critical Roles'!A:J,2,FALSE)=\"Critical\",\"Critical\",\"Not Critical\"),\"Not Assessed\")","v":"Not Assessed"},{"$f":"IF(R11<>\"\",P11,\"N/A\")","v":"N/A"},{"$f":"IF(COUNTIF(X:X,P11)=0,\"Y\",\"N\")","v":"Y"},{"$f":"IF(Y11=\"Y\",P11,\"\")","v":0},{"$f":"IF(Z11=\"\",\"\",IF(Z11<>0,COUNTIF($Z$10:Z11,Z11),\"\"))","v":""}]
[null,null,null,null,null,null,null,null,null,null,null,null,null,null,null,null,null,null,{"$f":"VLOOKUP($P12,'CARDINAL Position Report'!$A:$AV,45,FALSE)","v":{"$error":"#N/A"}},{"$f":"VLOOKUP($P12,'CARDINAL Position Report'!$A:$AV,46,FALSE)","v":{"$error":"#N/A"}},{"$f":"VLOOKUP($P12,'CARDINAL Position Report'!$A:$AV,47,FALSE)","v":{"$error":"#N/A"}},{"$f":"VLOOKUP($P12,'CARDINAL Position Report'!$A:$AV,48,FALSE)","v":{"$error":"#N/A"}},{"$f":"IFERROR(IF(VLOOKUP(P12,'Critical Roles'!A:J,2,FALSE)=\"Critical\",\"Critical\",\"Not Critical\"),\"Not Assessed\")","v":"Not Assessed"},{"$f":"IF(R12<>\"\",P12,\"N/A\")","v":"N/A"},"Y",{"$f":"IF(Y12=\"Y\",P12,\"\")","v":0},{"$f":"IF(Z12=\"\",\"\",IF(Z12<>0,COUNTIF($Z$10:Z12,Z12),\"\"))","v":""}]
[null,null,null,null,null,null,null,null,null,null,null,null,null,null,null,null,null,null,{"$f":"VLOOKUP($P13,'CARDINAL Position Report'!$A:$AV,45,FALSE)","v":{"$error":"#N/A"}},{"$f":"VLOOKUP($P13,'CARDINAL Position Report'!$A:$AV,46,FALSE)","v":{"$error":"#N/A"}},{"$f":"VLOOKUP($P13,'CARDINAL Position Report'!$A:$AV,47,FALSE)","v":{"$error":"#N/A"}},{"$f":"VLOOKUP($P13,'CARDINAL Position Report'!$A:$AV,48,FALSE)","v":{"$error":"#N/A"}},{"$f":"IFERROR(IF(VLOOKUP(P13,'Critical Roles'!A:J,2,FALSE)=\"Critical\",\"Critical\",\"Not Critical\"),\"Not Assessed\")","v":"Not Assessed"},"N/A","Y",0,{"$f":"IF(Z13=\"\",\"\",IF(Z13<>0,COUNTIF($Z$10:Z13,Z13),\"\"))","v":""}]
[null,null,null,null,null,null,null,null,null,null,null,null,null,null,null,null,null,null,{"$f":"VLOOKUP($P14,'CARDINAL Position Report'!$A:$AV,45,FALSE)","v":{"$error":"#N/A"}},{"$f":"VLOOKUP($P14,'CARDINAL Position Report'!$A:$AV,46,FALSE)","v":{"$error":"#N/A"}},{"$f":"VLOOKUP($P14,'CARDINAL Position Report'!$A:$AV,47,FALSE)","v":{"$error":"#N/A"}},{"$f":"VLOOKUP($P14,'CARDINAL Position Report'!$A:$AV,48,FALSE)","v":{"$error":"#N/A"}},{"$f":"IFERROR(IF(VLOOKUP(P14,'Critical Roles'!A:J,2,FALSE)=\"Critical\",\"Critical\",\"Not Critical\"),\"Not Assessed\")","v":"Not Assessed"},"N/A","Y",0,{"$f":"IF(Z14=\"\",\"\",IF(Z14<>0,COUNTIF($Z$10:Z14,Z14),\"\"))","v":""}]
[null,null,null,null,null,null,null,null,null,null,null,null,null,null,null,null,null,null,{"$f":"VLOOKUP($P15,'CARDINAL Position Report'!$A:$AV,45,FALSE)","v":{"$error":"#N/A"}},{"$f":"VLOOKUP($P15,'CARDINAL Position Report'!$A:$AV,46,FALSE)","v":{"$error":"#N/A"}},{"$f":"VLOOKUP($P15,'CARDINAL Position Report'!$A:$AV,47,FALSE)","v":{"$error":"#N/A"}},{"$f":"VLOOKUP($P15,'CARDINAL Position Report'!$A:$AV,48,FALSE)","v":{"$error":"#N/A"}},{"$f":"IFERROR(IF(VLOOKUP(P15,'Critical Roles'!A:J,2,FALSE)=\"Critical\",\"Critical\",\"Not Critical\"),\"Not Assessed\")","v":"Not Assessed"},"N/A",{"$f":"IF(COUNTIF(X:X,P15)=0,\"Y\",\"N\")","v":"Y"},0,{"$f":"IF(Z15=\"\",\"\",IF(Z15<>0,COUNTIF($Z$10:Z15,Z15),\"\"))","v":""}]
[null,null,null,null,null,null,null,null,null,null,null,null,null,null,null,null,null,null,{"$f":"VLOOKUP($P16,'CARDINAL Position Report'!$A:$AV,45,FALSE)","v":{"$error":"#N/A"}},{"$f":"VLOOKUP($P16,'CARDINAL Position Report'!$A:$AV,46,FALSE)","v":{"$error":"#N/A"}},{"$f":"VLOOKUP($P16,'CARDINAL Position Report'!$A:$AV,47,FALSE)","v":{"$error":"#N/A"}},{"$f":"VLOOKUP($P16,'CARDINAL Position Report'!$A:$AV,48,FALSE)","v":{"$error":"#N/A"}},{"$f":"IFERROR(IF(VLOOKUP(P16,'Critical Roles'!A:J,2,FALSE)=\"Critical\",\"Critical\",\"Not Critical\"),\"Not Assessed\")","v":"Not Assessed"},"N/A","Y",0,{"$f":"IF(Z16=\"\",\"\",IF(Z16<>0,COUNTIF($Z$10:Z16,Z16),\"\"))","v":""}]
[null,null,null,null,null,null,null,null,null,null,null,null,null,null,null,null,null,null,{"$f":"VLOOKUP($P17,'CARDINAL Position Report'!$A:$AV,45,FALSE)","v":{"$error":"#N/A"}},{"$f":"VLOOKUP($P17,'CARDINAL Position Report'!$A:$AV,46,FALSE)","v":{"$error":"#N/A"}},{"$f":"VLOOKUP($P17,'CARDINAL Position Report'!$A:$AV,47,FALSE)","v":{"$error":"#N/A"}},{"$f":"VLOOKUP($P17,'CARDINAL Position Report'!$A:$AV,48,FALSE)","v":{"$error":"#N/A"}},{"$f":"IFERROR(IF(VLOOKUP(P17,'Critical Roles'!A:J,2,FALSE)=\"Critical\",\"Critical\",\"Not Critical\"),\"Not Assessed\")","v":"Not Assessed"},"N/A","Y",0,{"$f":"IF(Z17=\"\",\"\",IF(Z17<>0,COUNTIF($Z$10:Z17,Z17),\"\"))","v":""}]
[null,null,null,null,null,null,null,null,null,null,null,null,null,null,null,null,null,null,{"$f":"VLOOKUP($P18,'CARDINAL Position Report'!$A:$AV,45,FALSE)","v":{"$error":"#N/A"}},{"$f":"VLOOKUP($P18,'CARDINAL Position Report'!$A:$AV,46,FALSE)","v":{"$error":"#N/A"}},{"$f":"VLOOKUP($P18,'CARDINAL Position Report'!$A:$AV,47,FALSE)","v":{"$error":"#N/A"}},{"$f":"VLOOKUP($P18,'CARDINAL Position Report'!$A:$AV,48,FALSE)","v":{"$error":"#N/A"}},{"$f":"IFERROR(IF(VLOOKUP(P18,'Critical Roles'!A:J,2,FALSE)=\"Critical\",\"Critical\",\"Not Critical\"),\"Not Assessed\")","v":"Not Assessed"},"N/A","Y",0,{"$f":"IF(Z18=\"\",\"\",IF(Z18<>0,COUNTIF($Z$10:Z18,Z18),\"\"))","v":""}]
[null,null,null,null,null,null,null,null,null,null,null,null,null,null,null,null,null,null,{"$f":"VLOOKUP($P19,'CARDINAL Position Report'!$A:$AV,45,FALSE)","v":{"$error":"#N/A"}},{"$f":"VLOOKUP($P19,'CARDINAL Position Report'!$A:$AV,46,FALSE)","v":{"$error":"#N/A"}},{"$f":"VLOOKUP($P19,'CARDINAL Position Report'!$A:$AV,47,FALSE)","v":{"$error":"#N/A"}},{"$f":"VLOOKUP($P19,'CARDINAL Position Report'!$A:$AV,48,FALSE)","v":{"$error":"#N/A"}},{"$f":"IFERROR(IF(VLOOKUP(P19,'Critical Roles'!A:J,2,FALSE)=\"Critical\",\"Critical\",\"Not Critical\"),\"Not Assessed\")","v":"Not Assessed"},"N/A","Y",0,{"$f":"IF(Z19=\"\",\"\",IF(Z19<>0,COUNTIF($Z$10:Z19,Z19),\"\"))","v":""}]
[null,null,null,null,null,null,null,null,null,null,null,null,null,null,null,null,null,null,{"$f":"VLOOKUP($P20,'CARDINAL Position Report'!$A:$AV,45,FALSE)","v":{"$error":"#N/A"}},{"$f":"VLOOKUP($P20,'CARDINAL Position Report'!$A:$AV,46,FALSE)","v":{"$error":"#N/A"}},{"$f":"VLOOKUP($P20,'CARDINAL Position Report'!$A:$AV,47,FALSE)","v":{"$error":"#N/A"}},{"$f":"VLOOKUP($P20,'CARDINAL Position Report'!$A:$AV,48,FALSE)","v":{"$error":"#N/A"}},{"$f":"IFERROR(IF(VLOOKUP(P20,'Critical Roles'!A:J,2,FALSE)=\"Critical\",\"Critical\",\"Not Critical\"),\"Not Assessed\")","v":"Not Assessed"},"N/A","Y",0,{"$f":"IF(Z20=\"\",\"\",IF(Z20<>0,COUNTIF($Z$10:Z20,Z20),\"\"))","v":""}]
[null,null,null,null,null,null,null,null,null,null,null,null,null,null,null,null,null,null,{"$f":"VLOOKUP($P21,'CARDINAL Position Report'!$A:$AV,45,FALSE)","v":{"$error":"#N/A"}},{"$f":"VLOOKUP($P21,'CARDINAL Position Report'!$A:$AV,46,FALSE)","v":{"$error":"#N/A"}},{"$f":"VLOOKUP($P21,'CARDINAL Position Report'!$A:$AV,47,FALSE)","v":{"$error":"#N/A"}},{"$f":"VLOOKUP($P21,'CARDINAL Position Report'!$A:$AV,48,FALSE)","v":{"$error":"#N/A"}},{"$f":"IFERROR(IF(VLOOKUP(P21,'Critical Roles'!A:J,2,FALSE)=\"Critical\",\"Critical\",\"Not Critical\"),\"Not Assessed\")","v":"Not Assessed"},"N/A","Y",0,{"$f":"IF(Z21=\"\",\"\",IF(Z21<>0,COUNTIF($Z$10:Z21,Z21),\"\"))","v":""}]
[null,null,null,null,null,null,null,null,null,null,null,null,null,null,null,null,null,null,{"$f":"VLOOKUP($P22,'CARDINAL Position Report'!$A:$AV,45,FALSE)","v":{"$error":"#N/A"}},{"$f":"VLOOKUP($P22,'CARDINAL Position Report'!$A:$AV,46,FALSE)","v":{"$error":"#N/A"}},{"$f":"VLOOKUP($P22,'CARDINAL Position Report'!$A:$AV,47,FALSE)","v":{"$error":"#N/A"}},{"$f":"VLOOKUP($P22,'CARDINAL Position Report'!$A:$AV,48,FALSE)","v":{"$error":"#N/A"}},{"$f":"IFERROR(IF(VLOOKUP(P22,'Critical Roles'!A:J,2,FALSE)=\"Critical\",\"Critical\",\"Not Critical\"),\"Not Assessed\")","v":"Not Assessed"},"N/A","Y",0,{"$f":"IF(Z22=\"\",\"\",IF(Z22<>0,COUNTIF($Z$10:Z22,Z22),\"\"))","v":""}]
[null,null,null,null,null,null,null,null,null,null,null,null,null,null,null,null,null,null,{"$f":"VLOOKUP($P23,'CARDINAL Position Report'!$A:$AV,45,FALSE)","v":{"$error":"#N/A"}},{"$f":"VLOOKUP($P23,'CARDINAL Position Report'!$A:$AV,46,FALSE)","v":{"$error":"#N/A"}},{"$f":"VLOOKUP($P23,'CARDINAL Position Report'!$A:$AV,47,FALSE)","v":{"$error":"#N/A"}},{"$f":"VLOOKUP($P23,'CARDINAL Position Report'!$A:$AV,48,FALSE)","v":{"$error":"#N/A"}},{"$f":"IFERROR(IF(VLOOKUP(P23,'Critical Roles'!A:J,2,FALSE)=\"Critical\",\"Critical\",\"Not Critical\"),\"Not Assessed\")","v":"Not Assessed"},"N/A","Y",0,{"$f":"IF(Z23=\"\",\"\",IF(Z23<>0,COUNTIF($Z$10:Z23,Z23),\"\"))","v":""}]
[null,null,null,null,null,null,null,null,null,null,null,null,null,null,null,null,null,null,{"$f":"VLOOKUP($P24,'CARDINAL Position Report'!$A:$AV,45,FALSE)","v":{"$error":"#N/A"}},{"$f":"VLOOKUP($P24,'CARDINAL Position Report'!$A:$AV,46,FALSE)","v":{"$error":"#N/A"}},{"$f":"VLOOKUP($P24,'CARDINAL Position Report'!$A:$AV,47,FALSE)","v":{"$error":"#N/A"}},{"$f":"VLOOKUP($P24,'CARDINAL Position Report'!$A:$AV,48,FALSE)","v":{"$error":"#N/A"}},{"$f":"IFERROR(IF(VLOOKUP(P24,'Critical Roles'!A:J,2,FALSE)=\"Critical\",\"Critical\",\"Not Critical\"),\"Not Assessed\")","v":"Not Assessed"},"N/A","Y",0,{"$f":"IF(Z24=\"\",\"\",IF(Z24<>0,COUNTIF($Z$10:Z24,Z24),\"\"))","v":""}]
[null,null,null,null,null,null,null,null,null,null,null,null,null,null,null,null,null,null,{"$f":"VLOOKUP($P25,'CARDINAL Position Report'!$A:$AV,45,FALSE)","v":{"$error":"#N/A"}},{"$f":"VLOOKUP($P25,'CARDINAL Position Report'!$A:$AV,46,FALSE)","v":{"$error":"#N/A"}},{"$f":"VLOOKUP($P25,'CARDINAL Position Report'!$A:$AV,47,FALSE)","v":{"$error":"#N/A"}},{"$f":"VLOOKUP($P25,'CARDINAL Position Report'!$A:$AV,48,FALSE)","v":{"$error":"#N/A"}},{"$f":"IFERROR(IF(VLOOKUP(P25,'Critical Roles'!A:J,2,FALSE)=\"Critical\",\"Critical\",\"Not Critical\"),\"Not Assessed\")","v":"Not Assessed"},"N/A","Y",0,{"$f":"IF(Z25=\"\",\"\",IF(Z25<>0,COUNTIF($Z$10:Z25,Z25),\"\"))","v":""}]
[null,null,null,null,null,null,null,null,null,null,null,null,null,null,null,null,null,null,{"$f":"VLOOKUP($P26,'CARDINAL Position Report'!$A:$AV,45,FALSE)","v":{"$error":"#N/A"}},{"$f":"VLOOKUP($P26,'CARDINAL Position Report'!$A:$AV,46,FALSE)","v":{"$error":"#N/A"}},{"$f":"VLOOKUP($P26,'CARDINAL Position Report'!$A:$AV,47,FALSE)","v":{"$error":"#N/A"}},{"$f":"VLOOKUP($P26,'CARDINAL Position Report'!$A:$AV,48,FALSE)","v":{"$error":"#N/A"}},{"$f":"IFERROR(IF(VLOOKUP(P26,'Critical Roles'!A:J,2,FALSE)=\"Critical\",\"Critical\",\"Not Critical\"),\"Not Assessed\")","v":"Not Assessed"},"N/A","Y",0,{"$f":"IF(Z26=\"\",\"\",IF(Z26<>0,COUNTIF($Z$10:Z26,Z26),\"\"))","v":""}]
[null,null,null,null,null,null,null,null,null,null,null,null,null,null,null,null,null,null,{"$f":"VLOOKUP($P27,'CARDINAL Position Report'!$A:$AV,45,FALSE)","v":{"$error":"#N/A"}},{"$f":"VLOOKUP($P27,'CARDINAL Position Report'!$A:$AV,46,FALSE)","v":{"$error":"#N/A"}},{"$f":"VLOOKUP($P27,'CARDINAL Position Report'!$A:$AV,47,FALSE)","v":{"$error":"#N/A"}},{"$f":"VLOOKUP($P27,'CARDINAL Position Report'!$A:$AV,48,FALSE)","v":{"$error":"#N/A"}},{"$f":"IFERROR(IF(VLOOKUP(P27,'Critical Roles'!A:J,2,FALSE)=\"Critical\",\"Critical\",\"Not Critical\"),\"Not Assessed\")","v":"Not Assessed"},"N/A","Y",0,{"$f":"IF(Z27=\"\",\"\",IF(Z27<>0,COUNTIF($Z$10:Z27,Z27),\"\"))","v":""}]
[null,null,null,null,null,null,null,null,null,null,null,null,null,null,null,null,null,null,{"$f":"VLOOKUP($P28,'CARDINAL Position Report'!$A:$AV,45,FALSE)","v":{"$error":"#N/A"}},{"$f":"VLOOKUP($P28,'CARDINAL Position Report'!$A:$AV,46,FALSE)","v":{"$error":"#N/A"}},{"$f":"VLOOKUP($P28,'CARDINAL Position Report'!$A:$AV,47,FALSE)","v":{"$error":"#N/A"}},{"$f":"VLOOKUP($P28,'CARDINAL Position Report'!$A:$AV,48,FALSE)","v":{"$error":"#N/A"}},{"$f":"IFERROR(IF(VLOOKUP(P28,'Critical Roles'!A:J,2,FALSE)=\"Critical\",\"Critical\",\"Not Critical\"),\"Not Assessed\")","v":"Not Assessed"},"N/A","Y",0,{"$f":"IF(Z28=\"\",\"\",IF(Z28<>0,COUNTIF($Z$10:Z28,Z28),\"\"))","v":""}]
[null,null,null,null,null,null,null,null,null,null,null,null,null,null,null,null,null,null,{"$f":"VLOOKUP($P29,'CARDINAL Position Report'!$A:$AV,45,FALSE)","v":{"$error":"#N/A"}},{"$f":"VLOOKUP($P29,'CARDINAL Position Report'!$A:$AV,46,FALSE)","v":{"$error":"#N/A"}},{"$f":"VLOOKUP($P29,'CARDINAL Position Report'!$A:$AV,47,FALSE)","v":{"$error":"#N/A"}},{"$f":"VLOOKUP($P29,'CARDINAL Position Report'!$A:$AV,48,FALSE)","v":{"$error":"#N/A"}},{"$f":"IFERROR(IF(VLOOKUP(P29,'Critical Roles'!A:J,2,FALSE)=\"Critical\",\"Critical\",\"Not Critical\"),\"Not Assessed\")","v":"Not Assessed"},"N/A","Y",0,{"$f":"IF(Z29=\"\",\"\",IF(Z29<>0,COUNTIF($Z$10:Z29,Z29),\"\"))","v":""}]
[null,null,null,null,null,null,null,null,null,null,null,null,null,null,null,null,null,null,{"$f":"VLOOKUP($P30,'CARDINAL Position Report'!$A:$AV,45,FALSE)","v":{"$error":"#N/A"}},{"$f":"VLOOKUP($P30,'CARDINAL Position Report'!$A:$AV,46,FALSE)","v":{"$error":"#N/A"}},{"$f":"VLOOKUP($P30,'CARDINAL Position Report'!$A:$AV,47,FALSE)","v":{"$error":"#N/A"}},{"$f":"VLOOKUP($P30,'CARDINAL Position Report'!$A:$AV,48,FALSE)","v":{"$error":"#N/A"}},{"$f":"IFERROR(IF(VLOOKUP(P30,'Critical Roles'!A:J,2,FALSE)=\"Critical\",\"Critical\",\"Not Critical\"),\"Not Assessed\")","v":"Not Assessed"},"N/A","Y",0,{"$f":"IF(Z30=\"\",\"\",IF(Z30<>0,COUNTIF($Z$10:Z30,Z30),\"\"))","v":""}]
[null,null,null,null,null,null,null,null,null,null,null,null,null,null,null,null,null,null,{"$f":"VLOOKUP($P31,'CARDINAL Position Report'!$A:$AV,45,FALSE)","v":{"$error":"#N/A"}},{"$f":"VLOOKUP($P31,'CARDINAL Position Report'!$A:$AV,46,FALSE)","v":{"$error":"#N/A"}},{"$f":"VLOOKUP($P31,'CARDINAL Position Report'!$A:$AV,47,FALSE)","v":{"$error":"#N/A"}},{"$f":"VLOOKUP($P31,'CARDINAL Position Report'!$A:$AV,48,FALSE)","v":{"$error":"#N/A"}},{"$f":"IFERROR(IF(VLOOKUP(P31,'Critical Roles'!A:J,2,FALSE)=\"Critical\",\"Critical\",\"Not Critical\"),\"Not Assessed\")","v":"Not Assessed"},"N/A","Y",0,{"$f":"IF(Z31=\"\",\"\",IF(Z31<>0,COUNTIF($Z$10:Z31,Z31),\"\"))","v":""}]
[null,null,null,null,null,null,null,null,null,null,null,null,null,null,null,null,null,null,{"$f":"VLOOKUP($P32,'CARDINAL Position Report'!$A:$AV,45,FALSE)","v":{"$error":"#N/A"}},{"$f":"VLOOKUP($P32,'CARDINAL Position Report'!$A:$AV,46,FALSE)","v":{"$error":"#N/A"}},{"$f":"VLOOKUP($P32,'CARDINAL Position Report'!$A:$AV,47,FALSE)","v":{"$error":"#N/A"}},{"$f":"VLOOKUP($P32,'CARDINAL Position Report'!$A:$AV,48,FALSE)","v":{"$error":"#N/A"}},{"$f":"IFERROR(IF(VLOOKUP(P32,'Critical Roles'!A:J,2,FALSE)=\"Critical\",\"Critical\",\"Not Critical\"),\"Not Assessed\")","v":"Not Assessed"},"N/A","Y",0,{"$f":"IF(Z32=\"\",\"\",IF(Z32<>0,COUNTIF($Z$10:Z32,Z32),\"\"))","v":""}]
[null,null,null,null,null,null,null,null,null,null,null,null,null,null,null,null,null,null,{"$f":"VLOOKUP($P33,'CARDINAL Position Report'!$A:$AV,45,FALSE)","v":{"$error":"#N/A"}},{"$f":"VLOOKUP($P33,'CARDINAL Position Report'!$A:$AV,46,FALSE)","v":{"$error":"#N/A"}},{"$f":"VLOOKUP($P33,'CARDINAL Position Report'!$A:$AV,47,FALSE)","v":{"$error":"#N/A"}},{"$f":"VLOOKUP($P33,'CARDINAL Position Report'!$A:$AV,48,FALSE)","v":{"$error":"#N/A"}},{"$f":"IFERROR(IF(VLOOKUP(P33,'Critical Roles'!A:J,2,FALSE)=\"Critical\",\"Critical\",\"Not Critical\"),\"Not Assessed\")","v":"Not Assessed"},"N/A","Y",0,{"$f":"IF(Z33=\"\",\"\",IF(Z33<>0,COUNTIF($Z$10:Z33,Z33),\"\"))","v":""}]
[null,null,null,null,null,null,null,null,null,null,null,null,null,null,null,null,null,null,{"$f":"VLOOKUP($P34,'CARDINAL Position Report'!$A:$AV,45,FALSE)","v":{"$error":"#N/A"}},{"$f":"VLOOKUP($P34,'CARDINAL Position Report'!$A:$AV,46,FALSE)","v":{"$error":"#N/A"}},{"$f":"VLOOKUP($P34,'CARDINAL Position Report'!$A:$AV,47,FALSE)","v":{"$error":"#N/A"}},{"$f":"VLOOKUP($P34,'CARDINAL Position Report'!$A:$AV,48,FALSE)","v":{"$error":"#N/A"}},{"$f":"IFERROR(IF(VLOOKUP(P34,'Critical Roles'!A:J,2,FALSE)=\"Critical\",\"Critical\",\"Not Critical\"),\"Not Assessed\")","v":"Not Assessed"},"N/A","Y",0,{"$f":"IF(Z34=\"\",\"\",IF(Z34<>0,COUNTIF($Z$10:Z34,Z34),\"\"))","v":""}]
[null,null,null,null,null,null,null,null,null,null,null,null,null,null,null,null,null,null,{"$f":"VLOOKUP($P35,'CARDINAL Position Report'!$A:$AV,45,FALSE)","v":{"$error":"#N/A"}},{"$f":"VLOOKUP($P35,'CARDINAL Position Report'!$A:$AV,46,FALSE)","v":{"$error":"#N/A"}},{"$f":"VLOOKUP($P35,'CARDINAL Position Report'!$A:$AV,47,FALSE)","v":{"$error":"#N/A"}},{"$f":"VLOOKUP($P35,'CARDINAL Position Report'!$A:$AV,48,FALSE)","v":{"$error":"#N/A"}},{"$f":"IFERROR(IF(VLOOKUP(P35,'Critical Roles'!A:J,2,FALSE)=\"Critical\",\"Critical\",\"Not Critical\"),\"Not Assessed\")","v":"Not Assessed"},"N/A","Y",0,{"$f":"IF(Z35=\"\",\"\",IF(Z35<>0,COUNTIF($Z$10:Z35,Z35),\"\"))","v":""}]
[null,null,null,null,null,null,null,null,null,null,null,null,null,null,null,null,null,null,{"$f":"VLOOKUP($P36,'CARDINAL Position Report'!$A:$AV,45,FALSE)","v":{"$error":"#N/A"}},{"$f":"VLOOKUP($P36,'CARDINAL Position Report'!$A:$AV,46,FALSE)","v":{"$error":"#N/A"}},{"$f":"VLOOKUP($P36,'CARDINAL Position Report'!$A:$AV,47,FALSE)","v":{"$error":"#N/A"}},{"$f":"VLOOKUP($P36,'CARDINAL Position Report'!$A:$AV,48,FALSE)","v":{"$error":"#N/A"}},{"$f":"IFERROR(IF(VLOOKUP(P36,'Critical Roles'!A:J,2,FALSE)=\"Critical\",\"Critical\",\"Not Critical\"),\"Not Assessed\")","v":"Not Assessed"},"N/A","Y",0,{"$f":"IF(Z36=\"\",\"\",IF(Z36<>0,COUNTIF($Z$10:Z36,Z36),\"\"))","v":""}]
[null,null,null,null,null,null,null,null,null,null,null,null,null,null,null,null,null,null,{"$f":"VLOOKUP($P37,'CARDINAL Position Report'!$A:$AV,45,FALSE)","v":{"$error":"#N/A"}},{"$f":"VLOOKUP($P37,'CARDINAL Position Report'!$A:$AV,46,FALSE)","v":{"$error":"#N/A"}},{"$f":"VLOOKUP($P37,'CARDINAL Position Report'!$A:$AV,47,FALSE)","v":{"$error":"#N/A"}},{"$f":"VLOOKUP($P37,'CARDINAL Position Report'!$A:$AV,48,FALSE)","v":{"$error":"#N/A"}},{"$f":"IFERROR(IF(VLOOKUP(P37,'Critical Roles'!A:J,2,FALSE)=\"Critical\",\"Critical\",\"Not Critical\"),\"Not Assessed\")","v":"Not Assessed"},"N/A","Y",0,{"$f":"IF(Z37=\"\",\"\",IF(Z37<>0,COUNTIF($Z$10:Z37,Z37),\"\"))","v":""}]
[null,null,null,null,null,null,null,null,null,null,null,null,null,null,null,null,null,null,{"$f":"VLOOKUP($P38,'CARDINAL Position Report'!$A:$AV,45,FALSE)","v":{"$error":"#N/A"}},{"$f":"VLOOKUP($P38,'CARDINAL Position Report'!$A:$AV,46,FALSE)","v":{"$error":"#N/A"}},{"$f":"VLOOKUP($P38,'CARDINAL Position Report'!$A:$AV,47,FALSE)","v":{"$error":"#N/A"}},{"$f":"VLOOKUP($P38,'CARDINAL Position Report'!$A:$AV,48,FALSE)","v":{"$error":"#N/A"}},{"$f":"IFERROR(IF(VLOOKUP(P38,'Critical Roles'!A:J,2,FALSE)=\"Critical\",\"Critical\",\"Not Critical\"),\"Not Assessed\")","v":"Not Assessed"},"N/A","Y",0,{"$f":"IF(Z38=\"\",\"\",IF(Z38<>0,COUNTIF($Z$10:Z38,Z38),\"\"))","v":""}]

{"sheet":"PeopleAdmin","index":13,"n_rows":34,"n_cols":19,"rows_kept":34,"cut":false,"hidden":false,"merged":[[0,0,8,9],[0,10,8,15]]}
["To include the people admin report, begin with creating a new custom report with the fields below(column headers) included.\n\nData can be manually copied and pasted. The calcualted cells (yellow headers) will need to have the formulas dragged down to the remaining rows in the data set."]
[]
[]
[]
[]
[]
[]
[]
[]
["Position Number","Submitted At","Active/Inactive","Job Posting Number","Position Type Name","Department Display Label","Current Workflow State","Job Type","Posted At","Job Open Date","Filled At","Job Close Date","Is Supervisor?","Is Executive?","EEO Description","Classification","Critical Role","Time To Fill","Vacant "]
[null,null,null,null,null,null,null,null,null,null,null,null,{"$f":"VLOOKUP($A11,'CARDINAL Position Report'!$A:$AV,45,FALSE)","v":{"$error":"#N/A"}},{"$f":"VLOOKUP($A11,'CARDINAL Position Report'!$A:$AV,46,FALSE)","v":{"$error":"#N/A"}},{"$f":"VLOOKUP($A11,'CARDINAL Position Report'!$A:$AV,47,FALSE)","v":{"$error":"#N/A"}},{"$f":"VLOOKUP($A11,'CARDINAL Position Report'!$A:$AV,48,FALSE)","v":{"$error":"#N/A"}},{"$f":"IFERROR(IF(VLOOKUP(A11,'Critical Roles'!A:J,2,FALSE)=\"Critical\",\"Critical\",\"Not Critical\"),\"Not Assessed\")","v":"Not Assessed"},{"$f":"IF(K11-J11<0,\"\",K11-J11)","v":0},{"$f":"IF(AND(J11<>\"\",K11=\"\"),\"Y\",\"N\")","v":"N"}]
[null,null,null,null,null,null,null,null,null,null,null,null,{"$f":"VLOOKUP($A12,'CARDINAL Position Report'!$A:$AV,45,FALSE)","v":{"$error":"#N/A"}},{"$f":"VLOOKUP($A12,'CARDINAL Position Report'!$A:$AV,46,FALSE)","v":{"$error":"#N/A"}},{"$f":"VLOOKUP($A12,'CARDINAL Position Report'!$A:$AV,47,FALSE)","v":{"$error":"#N/A"}},{"$f":"VLOOKUP($A12,'CARDINAL Position Report'!$A:$AV,48,FALSE)","v":{"$error":"#N/A"}},{"$f":"IFERROR(IF(VLOOKUP(A12,'Critical Roles'!A:J,2,FALSE)=\"Critical\",\"Critical\",\"Not Critical\"),\"Not Assessed\")","v":"Not Assessed"},{"$f":"IF(K12-J12<0,\"\",K12-J12)","v":0},{"$f":"IF(AND(J12<>\"\",K12=\"\"),\"Y\",\"N\")","v":"N"}]
[null,null,null,null,null,null,null,null,null,null,null,null,{"$f":"VLOOKUP($A13,'CARDINAL Position Report'!$A:$AV,45,FALSE)","v":{"$error":"#N/A"}},{"$f":"VLOOKUP($A13,'CARDINAL Position Report'!$A:$AV,46,FALSE)","v":{"$error":"#N/A"}},{"$f":"VLOOKUP($A13,'CARDINAL Position Report'!$A:$AV,47,FALSE)","v":{"$error":"#N/A"}},{"$f":"VLOOKUP($A13,'CARDINAL Position Report'!$A:$AV,48,FALSE)","v":{"$error":"#N/A"}},{"$f":"IFERROR(IF(VLOOKUP(A13,'Critical Roles'!A:J,2,FALSE)=\"Critical\",\"Critical\",\"Not Critical\"),\"Not Assessed\")","v":"Not Assessed"},0,"N"]
[null,null,null,null,null,null,null,null,null,null,null,null,{"$f":"VLOOKUP($A14,'CARDINAL Position Report'!$A:$AV,45,FALSE)","v":{"$error":"#N/A"}},{"$f":"VLOOKUP($A14,'CARDINAL Position Report'!$A:$AV,46,FALSE)","v":{"$error":"#N/A"}},{"$f":"VLOOKUP($A14,'CARDINAL Position Report'!$A:$AV,47,FALSE)","v":{"$error":"#N/A"}},{"$f":"VLOOKUP($A14,'CARDINAL Position Report'!$A:$AV,48,FALSE)","v":{"$error":"#N/A"}},{"$f":"IFERROR(IF(VLOOKUP(A14,'Critical Roles'!A:J,2,FALSE)=\"Critical\",\"Critical\",\"Not Critical\"),\"Not Assessed\")","v":"Not Assessed"},0,"N"]
[null,null,null,null,null,null,null,null,null,null,null,null,{"$f":"VLOOKUP($A15,'CARDINAL Position Report'!$A:$AV,45,FALSE)","v":{"$error":"#N/A"}},{"$f":"VLOOKUP($A15,'CARDINAL Position Report'!$A:$AV,46,FALSE)","v":{"$error":"#N/A"}},{"$f":"VLOOKUP($A15,'CARDINAL Position Report'!$A:$AV,47,FALSE)","v":{"$error":"#N/A"}},{"$f":"VLOOKUP($A15,'CARDINAL Position Report'!$A:$AV,48,FALSE)","v":{"$error":"#N/A"}},{"$f":"IFERROR(IF(VLOOKUP(A15,'Critical Roles'!A:J,2,FALSE)=\"Critical\",\"Critical\",\"Not Critical\"),\"Not Assessed\")","v":"Not Assessed"},0,"N"]
[null,null,null,null,null,null,null,null,null,null,null,null,{"$f":"VLOOKUP($A16,'CARDINAL Position Report'!$A:$AV,45,FALSE)","v":{"$error":"#N/A"}},{"$f":"VLOOKUP($A16,'CARDINAL Position Report'!$A:$AV,46,FALSE)","v":{"$error":"#N/A"}},{"$f":"VLOOKUP($A16,'CARDINAL Position Report'!$A:$AV,47,FALSE)","v":{"$error":"#N/A"}},{"$f":"VLOOKUP($A16,'CARDINAL Position Report'!$A:$AV,48,FALSE)","v":{"$error":"#N/A"}},{"$f":"IFERROR(IF(VLOOKUP(A16,'Critical Roles'!A:J,2,FALSE)=\"Critical\",\"Critical\",\"Not Critical\"),\"Not Assessed\")","v":"Not Assessed"},0,"N"]
[null,null,null,null,null,null,null,null,null,null,null,null,{"$f":"VLOOKUP($A17,'CARDINAL Position Report'!$A:$AV,45,FALSE)","v":{"$error":"#N/A"}},{"$f":"VLOOKUP($A17,'CARDINAL Position Report'!$A:$AV,46,FALSE)","v":{"$error":"#N/A"}},{"$f":"VLOOKUP($A17,'CARDINAL Position Report'!$A:$AV,47,FALSE)","v":{"$error":"#N/A"}},{"$f":"VLOOKUP($A17,'CARDINAL Position Report'!$A:$AV,48,FALSE)","v":{"$error":"#N/A"}},{"$f":"IFERROR(IF(VLOOKUP(A17,'Critical Roles'!A:J,2,FALSE)=\"Critical\",\"Critical\",\"Not Critical\"),\"Not Assessed\")","v":"Not Assessed"},0,"N"]
[null,null,null,null,null,null,null,null,null,null,null,null,{"$f":"VLOOKUP($A18,'CARDINAL Position Report'!$A:$AV,45,FALSE)","v":{"$error":"#N/A"}},{"$f":"VLOOKUP($A18,'CARDINAL Position Report'!$A:$AV,46,FALSE)","v":{"$error":"#N/A"}},{"$f":"VLOOKUP($A18,'CARDINAL Position Report'!$A:$AV,47,FALSE)","v":{"$error":"#N/A"}},{"$f":"VLOOKUP($A18,'CARDINAL Position Report'!$A:$AV,48,FALSE)","v":{"$error":"#N/A"}},{"$f":"IFERROR(IF(VLOOKUP(A18,'Critical Roles'!A:J,2,FALSE)=\"Critical\",\"Critical\",\"Not Critical\"),\"Not Assessed\")","v":"Not Assessed"},0,"N"]
[null,null,null,null,null,null,null,null,null,null,null,null,{"$f":"VLOOKUP($A19,'CARDINAL Position Report'!$A:$AV,45,FALSE)","v":{"$error":"#N/A"}},{"$f":"VLOOKUP($A19,'CARDINAL Position Report'!$A:$AV,46,FALSE)","v":{"$error":"#N/A"}},{"$f":"VLOOKUP($A19,'CARDINAL Position Report'!$A:$AV,47,FALSE)","v":{"$error":"#N/A"}},{"$f":"VLOOKUP($A19,'CARDINAL Position Report'!$A:$AV,48,FALSE)","v":{"$error":"#N/A"}},{"$f":"IFERROR(IF(VLOOKUP(A19,'Critical Roles'!A:J,2,FALSE)=\"Critical\",\"Critical\",\"Not Critical\"),\"Not Assessed\")","v":"Not Assessed"},0,"N"]
[null,null,null,null,null,null,null,null,null,null,null,null,{"$f":"VLOOKUP($A20,'CARDINAL Position Report'!$A:$AV,45,FALSE)","v":{"$error":"#N/A"}},{"$f":"VLOOKUP($A20,'CARDINAL Position Report'!$A:$AV,46,FALSE)","v":{"$error":"#N/A"}},{"$f":"VLOOKUP($A20,'CARDINAL Position Report'!$A:$AV,47,FALSE)","v":{"$error":"#N/A"}},{"$f":"VLOOKUP($A20,'CARDINAL Position Report'!$A:$AV,48,FALSE)","v":{"$error":"#N/A"}},{"$f":"IFERROR(IF(VLOOKUP(A20,'Critical Roles'!A:J,2,FALSE)=\"Critical\",\"Critical\",\"Not Critical\"),\"Not Assessed\")","v":"Not Assessed"},0,"N"]
[null,null,null,null,null,null,null,null,null,null,null,null,{"$f":"VLOOKUP($A21,'CARDINAL Position Report'!$A:$AV,45,FALSE)","v":{"$error":"#N/A"}},{"$f":"VLOOKUP($A21,'CARDINAL Position Report'!$A:$AV,46,FALSE)","v":{"$error":"#N/A"}},{"$f":"VLOOKUP($A21,'CARDINAL Position Report'!$A:$AV,47,FALSE)","v":{"$error":"#N/A"}},{"$f":"VLOOKUP($A21,'CARDINAL Position Report'!$A:$AV,48,FALSE)","v":{"$error":"#N/A"}},{"$f":"IFERROR(IF(VLOOKUP(A21,'Critical Roles'!A:J,2,FALSE)=\"Critical\",\"Critical\",\"Not Critical\"),\"Not Assessed\")","v":"Not Assessed"},0,"N"]
[null,null,null,null,null,null,null,null,null,null,null,null,{"$f":"VLOOKUP($A22,'CARDINAL Position Report'!$A:$AV,45,FALSE)","v":{"$error":"#N/A"}},{"$f":"VLOOKUP($A22,'CARDINAL Position Report'!$A:$AV,46,FALSE)","v":{"$error":"#N/A"}},{"$f":"VLOOKUP($A22,'CARDINAL Position Report'!$A:$AV,47,FALSE)","v":{"$error":"#N/A"}},{"$f":"VLOOKUP($A22,'CARDINAL Position Report'!$A:$AV,48,FALSE)","v":{"$error":"#N/A"}},{"$f":"IFERROR(IF(VLOOKUP(A22,'Critical Roles'!A:J,2,FALSE)=\"Critical\",\"Critical\",\"Not Critical\"),\"Not Assessed\")","v":"Not Assessed"},0,"N"]
[null,null,null,null,null,null,null,null,null,null,null,null,{"$f":"VLOOKUP($A23,'CARDINAL Position Report'!$A:$AV,45,FALSE)","v":{"$error":"#N/A"}},{"$f":"VLOOKUP($A23,'CARDINAL Position Report'!$A:$AV,46,FALSE)","v":{"$error":"#N/A"}},{"$f":"VLOOKUP($A23,'CARDINAL Position Report'!$A:$AV,47,FALSE)","v":{"$error":"#N/A"}},{"$f":"VLOOKUP($A23,'CARDINAL Position Report'!$A:$AV,48,FALSE)","v":{"$error":"#N/A"}},{"$f":"IFERROR(IF(VLOOKUP(A23,'Critical Roles'!A:J,2,FALSE)=\"Critical\",\"Critical\",\"Not Critical\"),\"Not Assessed\")","v":"Not Assessed"},0,"N"]
[]
[]
[]
[]
[]
[]
[]
[]
[]
[]
[null,null,null,null,null,null,null,null,null,null,null,null,null,""]

{"sheet":"COVLC DOMAIN HISTORY","index":14,"n_rows":31,"n_cols":14,"rows_kept":31,"cut":false,"hidden":false,"merged":[[0,0,8,9]]}
["To include the COVLC report, all fields from the domain history report can be included. \n\nData can be manually copied and pasted. The calcualted cells (yellow headers) will need to have the formulas dragged down to the remaining rows in the data set."]
[]
[]
[]
[]
[]
[]
[]
[]
["#","Last Name","First Name","Content Title","Content Type","Enroll Date","Start Date","Complete Date","Progress Status","Score","Internal/External","CombinedName&Title","Unique Participants","Unique Opportunitiy"]
[null,null,null,null,null,null,null,null,null,null,{"$f":"VLOOKUP(D11,'DATA SETUP'!$G$161:$P$210,8,FALSE)","v":{"$error":"#N/A"}},{"$f":"IF(H11=\"Complete\",CONCATENATE(B11,C11,D11),\"\")","v":""},{"$f":"COUNTIF($L$10:L11,L11)","v":1},{"$f":"COUNTIF($D$10:D11,D11)","v":0}]
[null,null,null,null,null,null,null,null,null,null,{"$f":"VLOOKUP(D12,'DATA SETUP'!$G$161:$P$210,8,FALSE)","v":{"$error":"#N/A"}},{"$f":"IF(H12=\"Complete\",CONCATENATE(B12,C12,D12),\"\")","v":""},{"$f":"COUNTIF($L$10:L12,L12)","v":2},{"$f":"COUNTIF($D$10:D12,D12)","v":0}]
[null,null,null,null,null,null,null,null,null,null,{"$f":"VLOOKUP(D13,'DATA SETUP'!$G$161:$P$210,8,FALSE)","v":{"$error":"#N/A"}},"",{"$f":"COUNTIF($L$10:L13,L13)","v":3},{"$f":"COUNTIF($D$10:D13,D13)","v":0}]
[null,null,null,null,null,null,null,null,null,null,{"$f":"VLOOKUP(D14,'DATA SETUP'!$G$161:$P$210,8,FALSE)","v":{"$error":"#N/A"}},"",{"$f":"COUNTIF($L$10:L14,L14)","v":4},{"$f":"COUNTIF($D$10:D14,D14)","v":0}]
[null,null,null,null,null,null,null,null,null,null,{"$f":"VLOOKUP(D15,'DATA SETUP'!$G$161:$P$210,8,FALSE)","v":{"$error":"#N/A"}},"",{"$f":"COUNTIF($L$10:L15,L15)","v":5},{"$f":"COUNTIF($D$10:D15,D15)","v":0}]
[null,null,null,null,null,null,null,null,null,null,{"$f":"VLOOKUP(D16,'DATA SETUP'!$G$161:$P$210,8,FALSE)","v":{"$error":"#N/A"}},"",{"$f":"COUNTIF($L$10:L16,L16)","v":6},{"$f":"COUNTIF($D$10:D16,D16)","v":0}]
[null,null,null,null,null,null,null,null,null,null,{"$f":"VLOOKUP(D17,'DATA SETUP'!$G$161:$P$210,8,FALSE)","v":{"$error":"#N/A"}},"",{"$f":"COUNTIF($L$10:L17,L17)","v":7},{"$f":"COUNTIF($D$10:D17,D17)","v":0}]
[null,null,null,null,null,null,null,null,null,null,{"$f":"VLOOKUP(D18,'DATA SETUP'!$G$161:$P$210,8,FALSE)","v":{"$error":"#N/A"}},"",{"$f":"COUNTIF($L$10:L18,L18)","v":8},{"$f":"COUNTIF($D$10:D18,D18)","v":0}]
[null,null,null,null,null,null,null,null,null,null,{"$f":"VLOOKUP(D19,'DATA SETUP'!$G$161:$P$210,8,FALSE)","v":{"$error":"#N/A"}},"",{"$f":"COUNTIF($L$10:L19,L19)","v":9},{"$f":"COUNTIF($D$10:D19,D19)","v":0}]
[null,null,null,null,null,null,null,null,null,null,{"$f":"VLOOKUP(D20,'DATA SETUP'!$G$161:$P$210,8,FALSE)","v":{"$error":"#N/A"}},{"$f":"IF(H20=\"Complete\",CONCATENATE(B20,C20,D20),\"\")","v":""},{"$f":"COUNTIF($L$10:L20,L20)","v":10},{"$f":"COUNTIF($D$10:D20,D20)","v":0}]
[null,null,null,null,null,null,null,null,null,null,{"$f":"VLOOKUP(D21,'DATA SETUP'!$G$161:$P$210,8,FALSE)","v":{"$error":"#N/A"}},"",{"$f":"COUNTIF($L$10:L21,L21)","v":11},{"$f":"COUNTIF($D$10:D21,D21)","v":0}]
[null,null,null,null,null,null,null,null,null,null,{"$f":"VLOOKUP(D22,'DATA SETUP'!$G$161:$P$210,8,FALSE)","v":{"$error":"#N/A"}},"",{"$f":"COUNTIF($L$10:L22,L22)","v":12},{"$f":"COUNTIF($D$10:D22,D22)","v":0}]
[null,null,null,null,null,null,null,null,null,null,{"$f":"VLOOKUP(D23,'DATA SETUP'!$G$161:$P$210,8,FALSE)","v":{"$error":"#N/A"}},"",{"$f":"COUNTIF($L$10:L23,L23)","v":13},{"$f":"COUNTIF($D$10:D23,D23)","v":0}]
[null,null,null,null,null,null,null,null,null,null,{"$f":"VLOOKUP(D24,'DATA SETUP'!$G$161:$P$210,8,FALSE)","v":{"$error":"#N/A"}},"",{"$f":"COUNTIF($L$10:L24,L24)","v":14},{"$f":"COUNTIF($D$10:D24,D24)","v":0}]
[null,null,null,null,null,null,null,null,null,null,{"$f":"VLOOKUP(D25,'DATA SETUP'!$G$161:$P$210,8,FALSE)","v":{"$error":"#N/A"}},"",{"$f":"COUNTIF($L$10:L25,L25)","v":15},{"$f":"COUNTIF($D$10:D25,D25)","v":0}]
[null,null,null,null,null,null,null,null,null,null,{"$f":"VLOOKUP(D26,'DATA SETUP'!$G$161:$P$210,8,FALSE)","v":{"$error":"#N/A"}},"",{"$f":"COUNTIF($L$10:L26,L26)","v":16},{"$f":"COUNTIF($D$10:D26,D26)","v":0}]
[null,null,null,null,null,null,null,null,null,null,{"$f":"VLOOKUP(D27,'DATA SETUP'!$G$161:$P$210,8,FALSE)","v":{"$error":"#N/A"}},"",{"$f":"COUNTIF($L$10:L27,L27)","v":17},{"$f":"COUNTIF($D$10:D27,D27)","v":0}]
[null,null,null,null,null,null,null,null,null,null,{"$f":"VLOOKUP(D28,'DATA SETUP'!$G$161:$P$210,8,FALSE)","v":{"$error":"#N/A"}},"",{"$f":"COUNTIF($L$10:L28,L28)","v":18},{"$f":"COUNTIF($D$10:D28,D28)","v":0}]
[null,null,null,null,null,null,null,null,null,null,{"$f":"VLOOKUP(D29,'DATA SETUP'!$G$161:$P$210,8,FALSE)","v":{"$error":"#N/A"}},"",{"$f":"COUNTIF($L$10:L29,L29)","v":19},{"$f":"COUNTIF($D$10:D29,D29)","v":0}]
[null,null,null,null,null,null,null,null,null,null,{"$f":"VLOOKUP(D30,'DATA SETUP'!$G$161:$P$210,8,FALSE)","v":{"$error":"#N/A"}},"",{"$f":"COUNTIF($L$10:L30,L30)","v":20},{"$f":"COUNTIF($D$10:D30,D30)","v":0}]
[null,null,null,null,null,null,null,null,null,null,{"$f":"VLOOKUP(D31,'DATA SETUP'!$G$161:$P$210,8,FALSE)","v":{"$error":"#N/A"}},"",{"$f":"COUNTIF($L$10:L31,L31)","v":21},{"$f":"COUNTIF($D$10:D31,D31)","v":0}]

{"sheet":"AGENCY LMS","index":15,"n_rows":20,"n_cols":11,"rows_kept":20,"cut":false,"hidden":false,"merged":[[0,0,8,11]]}
["To include the an Agency LMS report, all fields below (column headers) need to be included. The column headers should match the headers in your agency LMS report. If they do not, they can be changed in this tool.\n\nData can be manually copied and pasted. The calcualted cells (yellow headers) will need to have the formulas dragged down to the remaining rows in the data set."]
[]
[]
[]
[]
[]
[]
[]
[]
["First Name","Last Name","Content Title","Start Date","End Date","Complete Date","Progress","Internal/External","CombinedName&Title","Unique Participants","Unique Opportunitiy"]
[null,null,null,null,null,null,null,{"$f":"VLOOKUP(C11,'DATA SETUP'!$G$161:$P$210,8,FALSE)","v":{"$error":"#N/A"}},{"$f":"IF(F11=\"complete\",CONCATENATE(A11,B11,C11),\"\")","v":""},{"$f":"COUNTIF($I$10:I11,I11)","v":1},{"$f":"COUNTIF($C$10:C11,C11)","v":0}]
[null,null,null,null,null,null,null,{"$f":"VLOOKUP(C12,'DATA SETUP'!$G$161:$P$210,8,FALSE)","v":{"$error":"#N/A"}},{"$f":"IF(F12=\"complete\",CONCATENATE(A12,B12,C12),\"\")","v":""},{"$f":"COUNTIF($I$10:I12,I12)","v":2},{"$f":"COUNTIF($C$10:C12,C12)","v":0}]
[null,null,null,null,null,null,null,{"$f":"VLOOKUP(C13,'DATA SETUP'!$G$161:$P$210,8,FALSE)","v":{"$error":"#N/A"}},"",{"$f":"COUNTIF($I$10:I13,I13)","v":3},{"$f":"COUNTIF($C$10:C13,C13)","v":0}]
[null,null,null,null,null,null,null,{"$f":"VLOOKUP(C14,'DATA SETUP'!$G$161:$P$210,8,FALSE)","v":{"$error":"#N/A"}},"",{"$f":"COUNTIF($I$10:I14,I14)","v":4},{"$f":"COUNTIF($C$10:C14,C14)","v":0}]
[null,null,null,null,null,null,null,{"$f":"VLOOKUP(C15,'DATA SETUP'!$G$161:$P$210,8,FALSE)","v":{"$error":"#N/A"}},"",{"$f":"COUNTIF($I$10:I15,I15)","v":5},{"$f":"COUNTIF($C$10:C15,C15)","v":0}]
[null,null,null,null,null,null,null,{"$f":"VLOOKUP(C16,'DATA SETUP'!$G$161:$P$210,8,FALSE)","v":{"$error":"#N/A"}},"",{"$f":"COUNTIF($I$10:I16,I16)","v":6},{"$f":"COUNTIF($C$10:C16,C16)","v":0}]
[null,null,null,null,null,null,null,{"$f":"VLOOKUP(C17,'DATA SETUP'!$G$161:$P$210,8,FALSE)","v":{"$error":"#N/A"}},"",{"$f":"COUNTIF($I$10:I17,I17)","v":7},{"$f":"COUNTIF($C$10:C17,C17)","v":0}]
[null,null,null,null,null,null,null,{"$f":"VLOOKUP(C18,'DATA SETUP'!$G$161:$P$210,8,FALSE)","v":{"$error":"#N/A"}},"",{"$f":"COUNTIF($I$10:I18,I18)","v":8},{"$f":"COUNTIF($C$10:C18,C18)","v":0}]
[null,null,null,null,null,null,null,{"$f":"VLOOKUP(C19,'DATA SETUP'!$G$161:$P$210,8,FALSE)","v":{"$error":"#N/A"}},"",{"$f":"COUNTIF($I$10:I19,I19)","v":9},{"$f":"COUNTIF($C$10:C19,C19)","v":0}]
[null,null,null,null,null,null,null,{"$f":"VLOOKUP(C20,'DATA SETUP'!$G$161:$P$210,8,FALSE)","v":{"$error":"#N/A"}},"",{"$f":"COUNTIF($I$10:I20,I20)","v":10},{"$f":"COUNTIF($C$10:C20,C20)","v":0}]

{"sheet":"CENTRAL DATA","index":16,"n_rows":141,"n_cols":16,"rows_kept":141,"cut":false,"hidden":true,"merged":[[4,2,6,14],[7,2,8,14]]}
[]
[]
[]
[]
[null,null,"CENTRAL DATA"]
[]
[]
[null,null,"This tab serves as a central place for all data for drop down lists or look up formulas within this template."]
[]
[]
["Agency Names","Secretary","Agency Number",null,"Internal/External Dev.",null,"Home Tab Pictures",null,null,"Transactions",null,"Employee",null,"Recruitment",null,"LMS"]
["Assistive Technology Loan Fund Authority","Health and Human Resources",null,null,"Internal",null,"LOCKED",{"$error":"#VALUE!"},null,"Internal Promotion",null,"Cardinal",null,"Page Up",null,"COVLC"]
["Blue Ridge Community College","Higher Education",291,null,"External",null,"UNLOCKED",{"$error":"#VALUE!"},null,"Internal Transfer",null,"HR Data Insights",null,"PeopleAdmin",null,"Agency"]
["Board of Accountancy","Finance",226,null,null,null,null,null,null,"External Transfer",null,null,null,null,null,"Both"]
["Center for Innovative Technology","Independent",null,null,null,null,null,null,null,"Voluntary Separation"]
["Central Virginia Community College","Higher Education",292]
["Christopher Newport University","Higher Education",242]
["Commonwealth's Attorneys' Services Council","Public Safety and Homeland Security"]
["Compensation Board","Administration",157]
["Mountain Gateway Community College","Higher Education",287]
["Danville Community College ","Higher Education",279]
["Department for the Blind and Vision Impaired","Health and Human Resources",702]
["Department for the Deaf and Hard of Hearing","Health and Human Resources",751]
["Department of Accounts","Finance",151]
["Department for Aging and Rehabilitative Services","Health and Human Resources",262]
["Department of Aviation","Transportation",841]
["Department of Behavioral Health and Developmental Services","Health and Human Resources",720]
["Department of Corrections","Public Safety and Homeland Security",701]
["Department of Criminal Justice Services","Public Safety and Homeland Security",140]
["Department of Education","Education",201]
["Department of Elections","Administration",132]
["Department of Emergency Management","Public Safety and Homeland Security",127]
["Department of Energy","Commerce and Trade",409]
["Department of Environmental Quality","Natural Resources",440]
["Department of Forensic Science","Public Safety and Homeland Security",778]
["Department of Forestry","Agriculture and Forestry",411]
["Department of General Services","Administration",194]
["Department of Health Professions","Health and Human Resources",223]
["Department of Historic Resources","Natural Resources",423]
["Department of Housing & Community Development","Commerce and Trade",165]
["Department of Human Resources Management","Administration",129]
["Department of Juvenile Justice","Public Safety and Homeland Security",777]
["Department of Labor and Industry","Commerce and Trade",181]
["Department of Medical Assistance Services","Health and Human Resources",602]
["Department of Military Affairs","Veterans and Defense Affairs",123]
["Department of Motor Vehicles","Transportation",154]
["Department of Planning and Budget","Administration",122]
["Department of Professional and Occupational Regulation","Commerce and Trade",222]
["Department of Rail and Public Transportation","Transportation",505]
["Department of Small Business and Supplier Diversity","Commerce and Trade",350]
["Department of Social Services","Health and Human Resources",765]
["Department of State Police","Public Safety and Homeland Security",156]
["Department of Taxation","Finance",161]
["Department of the Treasury","Finance",152]
["Department of Transportation","Transportation",501]
["Department of Veterans Services","Veterans and Defense Affairs",912]
["Department of Wildlife Resources","Natural Resources",403]
["Eastern Shore Community College","Higher Education",284]
["Foundation for Healthy Youth","Health and Human Resources",852]
["Frontier Culture Museum of Virginia","Education",239]
["George Mason University","Higher Education",247]
["Germanna Community College","Higher Education",297]
["Gunston Hall","Education",417]
["J. Sargeant Reynolds Community College","Higher Education",283]
["James Madison University","Higher Education",216]
["Jamestown-Yorktown Foundation","Education",425]
["Brightpoint Community College","Higher Education",290]
["Library of Virginia","Education",202]
["Longwood University","Higher Education",214]
["Laurel Ridge Community College","Higher Education",298]
["Marine Resources Commission","Natural Resources",402]
["Motor Vehicle Dealer Board","Transportation",506]
["Mountain Empire Community College","Higher Education",299]
["New College Institute","Higher Education",938]
["New River Community College","Higher Education",275]
["Norfolk State University","Higher Education",213]
["Northern Virginia Community College","Higher Education",280]
["Northern Virginia Mental Health Institute","Health and Human Resources"]
["Office of the State Inspector General","Independent",147]
["Old Dominion University","Higher Education",221]
["Patrick & Henry Community College","Higher Education",285]
["Paul D. Camp Community College","Higher Education",277]
["Piedmont Virginia Community College","Higher Education",282]
["Radford University","Higher Education",217]
["Rappahannock Community College","Higher Education",278]
["Richard Bland College","Higher Education",241]
["Sitter and Barfoot Veterans Care Center","Veterans and Defense Affairs",922]
["Southern Virginia Higher Education Center","Higher Education",937]
["Southside Virginia Community College","Higher Education",276]
["Southwest Virginia Community College","Higher Education",294]
["Southwest Virginia Higher Education Center","Higher Education",948]
["State Corporation Commission","Independent",171]
["State Council for Higher Education for Virginia","Education",245]
["The College of William and Mary","Higher Education",204]
["The Science Museum of Virginia","Education",146]
["Virginia Peninsula Community College","Higher Education",293]
["Tidewater Community College","Higher Education",295]
["University of Mary Washington","Higher Education",215]
["University of Virginia","Higher Education",207]
["University of Virginia at Wise","Higher Education",246]
["University of Virginia Medical Center","Higher Education",209]
["VCCS Shared Services Center","Higher Education",270]
["VCCS System Office","Higher Education",270]
["Virginia Alcoholic Beverage Control","Independent",999]
["Virginia Board for People with Disabilities","Health and Human Resources",606]
["Virginia Commercial Space Flight Authority","Transportation"]
["Virginia Commission for the Arts","Education",148]
["Virginia Commonwealth University","Higher Education",236]
["Virginia Commonwealth University Health Systems Authority","Independent"]
["Virginia Community College System","Higher Education",261]
["Virginia Department of Agriculture and Consumer Services","Agriculture and Forestry",301]
["Virginia Department of Conservation and Recreation","Natural Resources",199]
["Virginia Department of Fire Programs","Public Safety and Homeland Security",960]
["Virginia Department of Health","Health and Human Resources",601]
["Virginia Economic Development Partnership","Commerce and Trade",310]
["Virginia Employment Commission","Commerce and Trade",182]
["Virginia Highlands Community College","Higher Education",296]
["Virginia Housing Development Authority","Commerce and Trade"]
["Virginia Information Technologies Agency","Administration",136]
["Virginia Lottery","Independent",172]
["Virginia Military Institute","Higher Education",211]
["Virginia Museum of Fine Arts","Education",238]
["Virginia Museum of Natural History","Education",942]
["Virginia Parole Board","Public Safety and Homeland Security",766]
["Virginia Polytechnic Institute and State University","Higher Education",208]
["Virginia Port Authority","Transportation",407]
["Virginia Racing Commission","Agriculture and Forestry",405]
["Virginia Resources Authority","Finance"]
["Virginia Retirement System","Independent",158]
["Virginia School for the Deaf and the Blind","Education",218]
["Virginia State University","Higher Education",212]
["Virginia Tobacco Region Revitalization Commission","Commerce and Trade",851]
["Virginia Tourism Corporation","Commerce and Trade",320]
["Virginia Veterans Care Center","Veterans and Defense Affairs",128]
["Virginia Western Community College","Higher Education",286]
["Jones and Cabacoy Veterans Care Center ","Veterans and Defense Affairs",903]
["Department of Workforce Development and Advancement","Labor",327]
["Virginia Workers' Compensation Commission","Independent",191]
["Virginia529 College Savings Plan","Independent",174]
["Wilson Workforce Rehabilitation Center","Health and Human Resources",203]
["Wytheville Community College","Higher Education",288]

{"sheet":"CENTRAL ANALYSIS","index":17,"n_rows":114,"n_cols":14,"rows_kept":114,"cut":false,"hidden":true,"merged":[[4,2,6,14],[7,2,8,14]]}
[]
[]
[]
[]
[null,null,"CENTRAL ANALYSIS"]
[]
[]
[null,null,"This tab serves houses all the calculations for metrics on the data tabs and the explorer tab."]
[]
[]
[]
[]
["Executive Team",null,"Cardinal Race","Template Race Description",null,{"$f":"CONCATENATE(\"FY\",RIGHT($G$16,2))","v":"FY00"},{"$f":"CONCATENATE(\"FY\",RIGHT($G$16,2)+1)","v":"FY1"},{"$f":"CONCATENATE(\"FY\",RIGHT($G$16,2)+2)","v":"FY2"},{"$f":"CONCATENATE(\"FY\",RIGHT($G$16,2)+3)","v":"FY3"},{"$f":"CONCATENATE(\"FY\",RIGHT($G$16,2)+4)","v":"FY4"},{"$f":"CONCATENATE(\"FY\",RIGHT($G$16,2)+5)","v":"FY5"},null,"Code","Type"]
[{"$f":"'DATA SETUP'!O72","v":0},null,"WHITE","Non Minority",null,{"$f":"I16","v":"1900-06-30"},{"$f":"DATE(YEAR(F14)+1,6,30)","v":"1901-06-30"},{"$f":"DATE(YEAR(G14)+1,6,30)","v":"1902-06-30"},"1903-06-30","1904-06-30","1905-06-30",null,"XCL",{"$f":"IF('DATA SETUP'!N111<>\"\",'DATA SETUP'!N111,'DATA SETUP'!K111)","v":"Internal Transfer"}]
[{"$f":"'DATA SETUP'!O73","v":0},null,"BLACK","Minority",null,null,"Year","FY END","FY Report","Next FY END",null,null,"XLP",{"$f":"IF('DATA SETUP'!N112<>\"\",'DATA SETUP'!N112,'DATA SETUP'!K112)","v":"Internal Transfer"}]
[{"$f":"'DATA SETUP'!O74","v":0},null,"ASIAN","Minority",null,"End Date",{"$f":"YEAR('DATA SETUP'!N29)","v":1900},{"$f":"DATE(G16,6,30)","v":"1900-06-30"},{"$f":"IF('DATA SETUP'!N29<='CENTRAL ANALYSIS'!H16,'CENTRAL ANALYSIS'!H16,'CENTRAL ANALYSIS'!J16)","v":"1900-06-30"},{"$f":"H16+365","v":"1901-06-30"},null,null,"XLR",{"$f":"IF('DATA SETUP'!N113<>\"\",'DATA SETUP'!N113,'DATA SETUP'!K113)","v":"Internal Transfer"}]
[{"$f":"'DATA SETUP'!O75","v":0},null,"HISPA","Minority",null,null,null,null,null,null,null,null,"XNC",{"$f":"IF('DATA SETUP'!N114<>\"\",'DATA SETUP'!N114,'DATA SETUP'!K114)","v":"Internal Transfer"}]
[{"$f":"'DATA SETUP'!O76","v":0},null,"UNKNOWN","Unknown",null,null,null,null,null,null,null,null,"XPO",{"$f":"IF('DATA SETUP'!N115<>\"\",'DATA SETUP'!N115,'DATA SETUP'!K115)","v":"Internal Transfer"}]
[{"$f":"'DATA SETUP'!O77","v":0},null,"AMIND","Minority",null,null,null,null,null,null,null,null,"XRE",{"$f":"IF('DATA SETUP'!N116<>\"\",'DATA SETUP'!N116,'DATA SETUP'!K116)","v":"Internal Transfer"}]
[{"$f":"'DATA SETUP'!O78","v":0},null,null,null,null,null,null,null,null,null,null,null,"XVD",{"$f":"IF('DATA SETUP'!N117<>\"\",'DATA SETUP'!N117,'DATA SETUP'!K117)","v":"Internal Transfer"}]
[{"$f":"'DATA SETUP'!O79","v":0},null,"Position EEO Code","EEO Code Description",null,null,null,null,null,null,null,null,"DIP",{"$f":"IF('DATA SETUP'!N118<>\"\",'DATA SETUP'!N118,'DATA SETUP'!K118)","v":"Internal Transfer"}]
[{"$f":"'DATA SETUP'!O80","v":0},null,1,"Officials and Administrators",null,null,null,null,null,null,null,null,"NEW",{"$f":"IF('DATA SETUP'!N119<>\"\",'DATA SETUP'!N119,'DATA SETUP'!K119)","v":"Internal Transfer"}]
[{"$f":"'DATA SETUP'!O81","v":0},null,2,"Professionals",null,null,null,null,null,null,null,null,"POR",{"$f":"IF('DATA SETUP'!N120<>\"\",'DATA SETUP'!N120,'DATA SETUP'!K120)","v":"Internal Transfer"}]
[{"$f":"'DATA SETUP'!O82","v":0},null,3,"Technicians",null,null,null,null,null,null,null,null,"RDW",{"$f":"IF('DATA SETUP'!N121<>\"\",'DATA SETUP'!N121,'DATA SETUP'!K121)","v":"Internal Transfer"}]
[{"$f":"'DATA SETUP'!O83","v":0},null,4,"Protective Service Workers",null,null,null,null,null,null,null,null,"RLT",{"$f":"IF('DATA SETUP'!N122<>\"\",'DATA SETUP'!N122,'DATA SETUP'!K122)","v":"Internal Transfer"}]
[{"$f":"'DATA SETUP'!O84","v":0},null,5,"Paraprofessionals",null,null,null,null,null,null,null,null,"CPL",{"$f":"IF('DATA SETUP'!N123<>\"\",'DATA SETUP'!N123,'DATA SETUP'!K123)","v":"Internal Transfer"}]
[{"$f":"'DATA SETUP'!O85","v":0},null,6,"Administrative Support(Includi",null,null,null,null,null,null,null,null,"IDX",{"$f":"IF('DATA SETUP'!N124<>\"\",'DATA SETUP'!N124,'DATA SETUP'!K124)","v":"Internal Transfer"}]
[{"$f":"'DATA SETUP'!O86","v":0},null,7,"Skilled Craft Workers",null,null,null,null,null,null,null,null,"LDX",{"$f":"IF('DATA SETUP'!N125<>\"\",'DATA SETUP'!N125,'DATA SETUP'!K125)","v":"Internal Transfer"}]
[{"$f":"'DATA SETUP'!O87","v":0},null,8,"Service-Maitenance",null,null,null,null,null,null,null,null,"NCL",{"$f":"IF('DATA SETUP'!N126<>\"\",'DATA SETUP'!N126,'DATA SETUP'!K126)","v":"Internal Transfer"}]
[{"$f":"'DATA SETUP'!O88","v":0},null,9,"Faculty",null,null,null,null,null,null,null,null,"REA",{"$f":"IF('DATA SETUP'!N127<>\"\",'DATA SETUP'!N127,'DATA SETUP'!K127)","v":"Internal Transfer"}]
[{"$f":"'DATA SETUP'!O89","v":0},null,99,"Other",null,null,null,null,null,null,null,null,"VDX",{"$f":"IF('DATA SETUP'!N128<>\"\",'DATA SETUP'!N128,'DATA SETUP'!K128)","v":"Internal Transfer"}]
[{"$f":"'DATA SETUP'!O90","v":0},null,null,null,null,null,null,null,null,null,null,null,"XCL",{"$f":"IF('DATA SETUP'!N129<>\"\",'DATA SETUP'!N129,'DATA SETUP'!K129)","v":"Internal Transfer"}]
[{"$f":"'DATA SETUP'!O91","v":0},null,null,null,null,null,null,null,null,null,null,null,"XNC",{"$f":"IF('DATA SETUP'!N130<>\"\",'DATA SETUP'!N130,'DATA SETUP'!K130)","v":"Internal Transfer"}]
[{"$f":"'DATA SETUP'!O92","v":0},null,null,null,null,null,null,null,null,null,null,null,"XPO",{"$f":"IF('DATA SETUP'!N131<>\"\",'DATA SETUP'!N131,'DATA SETUP'!K131)","v":"Internal Transfer"}]
[{"$f":"'DATA SETUP'!O93","v":0},null,null,null,null,null,null,null,null,null,null,null,"XRA",{"$f":"IF('DATA SETUP'!N132<>\"\",'DATA SETUP'!N132,'DATA SETUP'!K132)","v":"Internal Transfer"}]
[{"$f":"'DATA SETUP'!O94","v":0},null,null,null,null,null,null,null,null,null,null,null,"XRS",{"$f":"IF('DATA SETUP'!N133<>\"\",'DATA SETUP'!N133,'DATA SETUP'!K133)","v":"Internal Transfer"}]
[{"$f":"'DATA SETUP'!O95","v":0},null,null,null,null,null,null,null,null,null,null,null,"XVD",{"$f":"IF('DATA SETUP'!N134<>\"\",'DATA SETUP'!N134,'DATA SETUP'!K134)","v":"Internal Transfer"}]
[{"$f":"'DATA SETUP'!O96","v":0},null,null,null,null,null,null,null,null,null,null,null,"RUP",{"$f":"IF('DATA SETUP'!N135<>\"\",'DATA SETUP'!N135,'DATA SETUP'!K135)","v":"Internal Promotion"}]
[{"$f":"'DATA SETUP'!O97","v":0},null,null,null,null,null,null,null,null,null,null,null,"PRO",{"$f":"IF('DATA SETUP'!N136<>\"\",'DATA SETUP'!N136,'DATA SETUP'!K136)","v":"Internal Promotion"}]
[{"$f":"'DATA SETUP'!O98","v":0},null,null,null,null,null,null,null,null,null,null,null,"LOC",{"$f":"IF('DATA SETUP'!N137<>\"\",'DATA SETUP'!N137,'DATA SETUP'!K137)","v":"External Transfer"}]
[{"$f":"'DATA SETUP'!O99","v":0},null,null,null,null,null,null,null,null,null,null,null,"XFO",{"$f":"IF('DATA SETUP'!N138<>\"\",'DATA SETUP'!N138,'DATA SETUP'!K138)","v":"External Transfer"}]
[{"$f":"'DATA SETUP'!O100","v":0},null,null,null,null,null,null,null,null,null,null,null,"XOP",{"$f":"IF('DATA SETUP'!N139<>\"\",'DATA SETUP'!N139,'DATA SETUP'!K139)","v":"External Transfer"}]
[{"$f":"'DATA SETUP'!O101","v":0},null,null,null,null,null,null,null,null,null,null,null,"DIS",{"$f":"IF('DATA SETUP'!N140<>\"\",'DATA SETUP'!N140,'DATA SETUP'!K140)","v":"Voluntary Separation"}]
[null,null,null,null,null,null,null,null,null,null,null,null,"ERT",{"$f":"IF('DATA SETUP'!N141<>\"\",'DATA SETUP'!N141,'DATA SETUP'!K141)","v":"Voluntary Separation"}]
["Total Employees","All","Executive",null,null,null,null,null,null,null,null,null,"ORP",{"$f":"IF('DATA SETUP'!N142<>\"\",'DATA SETUP'!N142,'DATA SETUP'!K142)","v":"Voluntary Separation"}]
["Cardinal",{"$f":"COUNTA('CARDINAL Personal Report'!A11:A999999)","v":0},{"$f":"COUNTIF('CARDINAL Personal Report'!R:R,\"y\")","v":0},null,null,null,null,null,null,null,null,null,"RMT",{"$f":"IF('DATA SETUP'!N143<>\"\",'DATA SETUP'!N143,'DATA SETUP'!K143)","v":"Voluntary Separation"}]
["HR Data Insights",{"$f":"COUNTA('HRDI Employee Report'!A11:A999999)","v":0},{"$f":"COUNTIF('HRDI Employee Report'!R:R,\"y\")","v":0},null,null,null,null,null,null,null,null,null,"DEA",{"$f":"IF('DATA SETUP'!N144<>\"\",'DATA SETUP'!N144,'DATA SETUP'!K144)","v":"Voluntary Separation"}]
[null,null,null,null,null,null,null,null,null,null,null,null,"DIS",{"$f":"IF('DATA SETUP'!N145<>\"\",'DATA SETUP'!N145,'DATA SETUP'!K145)","v":"Voluntary Separation"}]
["Total Positions","All","Executive","Exec Critical",null,null,null,null,null,null,null,null,"DWD",{"$f":"IF('DATA SETUP'!N146<>\"\",'DATA SETUP'!N146,'DATA SETUP'!K146)","v":"Voluntary Separation"}]
["Cardinal",{"$f":"COUNTA('CARDINAL Position Report'!A11:A999999)","v":0},{"$f":"COUNTIF('CARDINAL Position Report'!AT:AT,\"y\")","v":0},{"$f":"COUNTIFS('CARDINAL Position Report'!AT:AT,\"y\",'CARDINAL Position Report'!AW:AW,\"Critical\")","v":0},null,null,null,null,null,null,null,null,"EPP",{"$f":"IF('DATA SETUP'!N147<>\"\",'DATA SETUP'!N147,'DATA SETUP'!K147)","v":"Voluntary Separation"}]
["HR Data Insights",{"$f":"COUNTA('HRDI Employee Report'!L11:L999999)","v":0},{"$f":"COUNTIF('HRDI Employee Report'!R:R,\"y\")","v":0},{"$f":"COUNTIFS('HRDI Employee Report'!R:R,\"y\",'HRDI Employee Report'!S:S,\"Critical\")","v":0},null,null,null,null,null,null,null,null,"FAM",{"$f":"IF('DATA SETUP'!N148<>\"\",'DATA SETUP'!N148,'DATA SETUP'!K148)","v":"Voluntary Separation"}]
[null,null,null,null,null,null,null,null,null,null,null,null,"HEA",{"$f":"IF('DATA SETUP'!N149<>\"\",'DATA SETUP'!N149,'DATA SETUP'!K149)","v":"Voluntary Separation"}]
["Total Critical Positions",null,null,null,null,null,null,null,null,null,null,null,"REL",{"$f":"IF('DATA SETUP'!N150<>\"\",'DATA SETUP'!N150,'DATA SETUP'!K150)","v":"Voluntary Separation"}]
["Total Assessed",{"$f":"COUNTA('Critical Roles'!A11:A100000)","v":0},null,null,null,null,null,null,null,null,null,null,"RES",{"$f":"IF('DATA SETUP'!N151<>\"\",'DATA SETUP'!N151,'DATA SETUP'!K151)","v":"Voluntary Separation"}]
["Total Identified as Criticl",{"$f":"COUNTIF('Critical Roles'!B:B,\"Critical\")","v":0},null,null,null,null,null,null,null,null,null,null,"USD",{"$f":"IF('DATA SETUP'!N152<>\"\",'DATA SETUP'!N152,'DATA SETUP'!K152)","v":"Voluntary Separation"}]
[]
["First 5 Years","All"]
["Cardinal",{"$f":"COUNTIF('CARDINAL Personal Report'!AG:AG,\"y\")","v":0},null,null,null,null,null,null,null,"Report Note","Classification","Space","Joined","Trimmed"]
["HR Data Insights",{"$f":"COUNTIF('HRDI Employee Report'!AC:AC,\"y\")","v":15},null,null,null,null,null,null,null,{"$f":"IF(K59<>\"\",K59,\"\")","v":""},{"$f":"IF('DATA SETUP'!G49<>\"\",'DATA SETUP'!G49,\"\")","v":""},{"$f":"IF(K59<>\"\",IF(K60<>\"\",\",\",\".\"),\"\")","v":""},{"$f":"CONCATENATE(J59,L59,\" \",J60,L60,\" \",J61,L61,\" \",J62,L62,,\" \",J63,L63,\" \",J64,L64,\" \",J65,L65,\" \",J66,L66,\" \",J67,L67,\" \",J68,L68,\" \",J69,L69,\" \",J70,L70,\" \",J71,L71,\" \",J72,L72)","v":"             "},{"$f":"TRIM(M59)","v":""}]
[null,null,null,null,null,null,null,null,null,{"$f":"IF(K60<>\"\",K60,\"\")","v":""},{"$f":"IF('DATA SETUP'!G50<>\"\",'DATA SETUP'!G50,\"\")","v":""},{"$f":"IF(K60<>\"\",IF(K61<>\"\",\",\",\".\"),\"\")","v":""}]
["First Year","All",null,null,null,null,null,null,null,"",{"$f":"IF('DATA SETUP'!G51<>\"\",'DATA SETUP'!G51,\"\")","v":""},""]
["Cardinal",{"$f":"COUNTIF('CARDINAL Personal Report'!AH:AH,\"y\")","v":0},null,null,null,null,null,null,null,"",{"$f":"IF('DATA SETUP'!G52<>\"\",'DATA SETUP'!G52,\"\")","v":""},""]
["HR Data Insights",{"$f":"COUNTIF('HRDI Employee Report'!AD:AD,\"y\")","v":15},null,null,null,null,null,null,null,"",{"$f":"IF('DATA SETUP'!G53<>\"\",'DATA SETUP'!G53,\"\")","v":""},""]
[null,null,null,null,null,null,null,null,null,"",{"$f":"IF('DATA SETUP'!G54<>\"\",'DATA SETUP'!G54,\"\")","v":""},""]
["Retirements","Current",{"$f":"G13","v":"FY1"},{"$f":"H13","v":"FY2"},"FY3","FY4","FY5",null,null,"",{"$f":"IF('DATA SETUP'!G55<>\"\",'DATA SETUP'!G55,\"\")","v":""},""]
["Cardinal",{"$f":"COUNTIF('CARDINAL Personal Report'!Y:Y,\"y\")","v":0},{"$f":"COUNTIF('CARDINAL Personal Report'!Z:Z,\"y\")","v":0},{"$f":"COUNTIF('CARDINAL Personal Report'!AA:AA,\"y\")","v":0},{"$f":"COUNTIF('CARDINAL Personal Report'!AB:AB,\"y\")","v":0},{"$f":"COUNTIF('CARDINAL Personal Report'!AC:AC,\"y\")","v":0},{"$f":"COUNTIF('CARDINAL Personal Report'!AD:AD,\"y\")","v":0},null,null,"",{"$f":"IF('DATA SETUP'!G56<>\"\",'DATA SETUP'!G56,\"\")","v":""},""]
["HR Data Insights",{"$f":"COUNTIF('HRDI Employee Report'!V:V,\"y\")","v":0},{"$f":"COUNTIF('HRDI Employee Report'!W:W,\"y\")","v":0},{"$f":"COUNTIF('HRDI Employee Report'!X:X,\"y\")","v":0},{"$f":"COUNTIF('HRDI Employee Report'!Y:Y,\"y\")","v":0},{"$f":"COUNTIF('HRDI Employee Report'!Z:Z,\"y\")","v":0},{"$f":"COUNTIF('HRDI Employee Report'!AA:AA,\"y\")","v":0},null,null,"",{"$f":"IF('DATA SETUP'!G57<>\"\",'DATA SETUP'!G57,\"\")","v":""},""]
[null,null,null,null,null,null,null,null,null,"",{"$f":"IF('DATA SETUP'!G58<>\"\",'DATA SETUP'!G58,\"\")","v":""},""]
["CR Retirements","Current",{"$f":"C65","v":"FY1"},{"$f":"D65","v":"FY2"},"FY3","FY4","FY5",null,null,"",{"$f":"IF('DATA SETUP'!G59<>\"\",'DATA SETUP'!G59,\"\")","v":""},""]
["Cardinal",{"$f":"COUNTIFS('CARDINAL Personal Report'!Y:Y,\"y\",'CARDINAL Personal Report'!$U:$U,\"Critical\")","v":0},{"$f":"COUNTIFS('CARDINAL Personal Report'!Z:Z,\"y\",'CARDINAL Personal Report'!$U:$U,\"Critical\")","v":0},{"$f":"COUNTIFS('CARDINAL Personal Report'!AA:AA,\"y\",'CARDINAL Personal Report'!$U:$U,\"Critical\")","v":0},{"$f":"COUNTIFS('CARDINAL Personal Report'!AB:AB,\"y\",'CARDINAL Personal Report'!$U:$U,\"Critical\")","v":0},{"$f":"COUNTIFS('CARDINAL Personal Report'!AC:AC,\"y\",'CARDINAL Personal Report'!$U:$U,\"Critical\")","v":0},{"$f":"COUNTIFS('CARDINAL Personal Report'!AD:AD,\"y\",'CARDINAL Personal Report'!$U:$U,\"Critical\")","v":0},null,null,"",{"$f":"IF('DATA SETUP'!G60<>\"\",'DATA SETUP'!G60,\"\")","v":""},""]
["HR Data Insights",{"$f":"COUNTIFS('HRDI Employee Report'!V:V,\"y\",'HRDI Employee Report'!$S:$S,\"Critical\")","v":0},{"$f":"COUNTIFS('HRDI Employee Report'!W:W,\"y\",'HRDI Employee Report'!$S:$S,\"Critical\")","v":0},{"$f":"COUNTIFS('HRDI Employee Report'!X:X,\"y\",'HRDI Employee Report'!$S:$S,\"Critical\")","v":0},{"$f":"COUNTIFS('HRDI Employee Report'!Y:Y,\"y\",'HRDI Employee Report'!$S:$S,\"Critical\")","v":0},{"$f":"COUNTIFS('HRDI Employee Report'!Z:Z,\"y\",'HRDI Employee Report'!$S:$S,\"Critical\")","v":0},{"$f":"COUNTIFS('HRDI Employee Report'!AA:AA,\"y\",'HRDI Employee Report'!$S:$S,\"Critical\")","v":0},null,null,"",{"$f":"IF('DATA SETUP'!G61<>\"\",'DATA SETUP'!G61,\"\")","v":""},""]
[null,null,null,null,null,null,null,null,null,"",{"$f":"IF('DATA SETUP'!G62<>\"\",'DATA SETUP'!G62,\"\")","v":""},""]
["Recruimtnet","Applicants","Hires","Filled","Vacant","TTF",null,null,null,"",{"$f":"IF('DATA SETUP'!G63<>\"\",'DATA SETUP'!G63,\"\")","v":""},""]
["Page Up",{"$f":"COUNTIF(PageUP!C:C,\"no\")","v":0},{"$f":"COUNTA(PageUP!R11:R999999)","v":0},{"$f":"COUNTA(PageUP!X:X)-COUNTIF(PageUP!X:X,\"N/A\")-1","v":0},{"$f":"COUNTIF(PageUP!AA:AA,1)+COUNTA('Vacant Positions'!A11:A999999)","v":0},{"$f":"IFERROR(AVERAGE(PageUP!O11:O999999),\"\")","v":""}]
["PeopleAdmin",{"$f":"COUNTA(PeopleAdmin!B11:B999999)","v":0},{"$f":"COUNTIF(PeopleAdmin!G11:G999999,\"Hired\")","v":0},{"$f":"COUNTA(PeopleAdmin!K11:K999999)","v":0},{"$f":"COUNTIF(PeopleAdmin!S:S,\"y\")+COUNTA('Vacant Positions'!A11:A999999)","v":0},{"$f":"AVERAGE(PeopleAdmin!R:R)","v":0}]
[]
["CR Recruimtnet","Applicants","Hires","Filled","Vacant","TTF"]
["Page Up",{"$f":"COUNTIFS(PageUP!C:C,\"no\",PageUP!W:W,\"critical\")","v":0},{"$f":"COUNTIFS(PageUP!W:W,\"critical\",PageUP!R:R,\"<>\"&\"\")","v":0},{"$f":"COUNTIFS(PageUP!W:W,\"critical\",PageUP!R:R,\"<>\"&\"\")","v":0},{"$f":"COUNTIFS(PageUP!W:W,\"Critical\",PageUP!AA:AA,1)+COUNTIF('Vacant Positions'!B11:B999999,\"Critical\")","v":0},{"$f":"IFERROR(AVERAGEIFS(PageUP!O:O,PageUP!W:W,\"Critical\",PageUP!R:R,\"<>\"&\"\"),\"\")","v":""}]
["PeopleAdmin",{"$f":"COUNTIFS(PeopleAdmin!Q:Q,\"critical\",PeopleAdmin!B:B,\"<>\"&\"\")","v":0},{"$f":"COUNTIFS(PageUP!W:W,\"critical\",PageUP!G:G,\"hired\")","v":0},{"$f":"COUNTIFS(PeopleAdmin!Q:Q,\"critical\",PeopleAdmin!K:K,\"<>\"&\"\")","v":0},{"$f":"COUNTIFS(PeopleAdmin!S:S,\"y\",PeopleAdmin!Q:Q,\"Critical\")+COUNTIF('Vacant Positions'!B11:B999999,\"Critical\")","v":0},{"$f":"IFERROR(AVERAGEIF(PeopleAdmin!Q:Q,\"critical\",PeopleAdmin!R:R),\"\")","v":""}]
[]
["All employees"]
["Retention & Engagement","Avg YOS","I Promotions","I Transfers","Ex Transers","Vol Sep"]
["Cardinal",{"$f":"AVERAGE('CARDINAL Job Data Report'!BQ:BQ)","v":{"$error":"#N/A"}},{"$f":"COUNTIF('CARDINAL Job Data Report'!BT:BT,\"Internal Promotion\")","v":0},{"$f":"COUNTIF('CARDINAL Job Data Report'!BT:BT,\"Internal Transfer\")","v":0},{"$f":"COUNTIF('CARDINAL Job Data Report'!BT:BT,\"External Transfer\")","v":0},{"$f":"COUNTIF('CARDINAL Job Data Report'!BT:BT,\"Voluntary Separation\")","v":0}]
["HR Data Insights",{"$f":"AVERAGE('HRDI Transaction Report'!U:U)","v":0},{"$f":"COUNTIF('HRDI Transaction Report'!X:X,\"Internal Promotion\")","v":0},{"$f":"COUNTIF('HRDI Transaction Report'!X:X,\"Internal Transfer\")","v":0},{"$f":"COUNTIF('HRDI Transaction Report'!X:X,\"External Transfer\")","v":0},{"$f":"COUNTIF('HRDI Transaction Report'!X:X,\"Voluntary Separation\")","v":0}]
[]
["All employees - Critical Roles"]
["Retention & Engagement","Avg YOS","I Promotions","I Transfers","Ex Transers","Vol Sep"]
["Cardinal",{"$f":"AVERAGEIF('CARDINAL Job Data Report'!BP:BP,\"critical\",'CARDINAL Job Data Report'!BQ:BQ)","v":{"$error":"#DIV/0!"}},{"$f":"COUNTIFS('CARDINAL Job Data Report'!BT:BT,\"Internal Promotion\",'CARDINAL Job Data Report'!BP:BP,\"critical\")","v":0},{"$f":"COUNTIFS('CARDINAL Job Data Report'!BT:BT,\"Internal Transfer\",'CARDINAL Job Data Report'!BP:BP,\"critical\")","v":0},{"$f":"COUNTIFS('CARDINAL Job Data Report'!BT:BT,\"External Transfer\",'CARDINAL Job Data Report'!BP:BP,\"critical\")","v":0},{"$f":"COUNTIFS('CARDINAL Job Data Report'!BT:BT,\"Voluntary Separation\",'CARDINAL Job Data Report'!BP:BP,\"critical\")","v":0}]
["HR Data Insights",{"$f":"AVERAGEIF('HRDI Transaction Report'!T:T,\"critical\",'HRDI Transaction Report'!U:U)","v":{"$error":"#DIV/0!"}},{"$f":"COUNTIFS('HRDI Transaction Report'!X:X,\"Internal Promotion\",'HRDI Transaction Report'!T:T,\"critical\")","v":0},{"$f":"COUNTIFS('HRDI Transaction Report'!X:X,\"Internal Transfer\",'HRDI Transaction Report'!T:T,\"critical\")","v":0},{"$f":"COUNTIFS('HRDI Transaction Report'!X:X,\"External Transfer\",'HRDI Transaction Report'!T:T,\"critical\")","v":0},{"$f":"COUNTIFS('HRDI Transaction Report'!X:X,\"Voluntary Separation\",'HRDI Transaction Report'!T:T,\"critical\")","v":0}]
[]
["First 5 years"]
["Retention & Engagement","Avg YOS","I Promotions","I Transfers","Ex Transers","Vol Sep"]
["Cardinal",{"$f":"AVERAGEIFS('CARDINAL Job Data Report'!BQ:BQ,'CARDINAL Job Data Report'!BR:BR,\"y\")","v":{"$error":"#DIV/0!"}},{"$f":"COUNTIFS('CARDINAL Job Data Report'!BT:BT,\"Internal Promotion\",'CARDINAL Job Data Report'!BR:BR,\"y\")","v":0},{"$f":"COUNTIFS('CARDINAL Job Data Report'!BT:BT,\"Internal Transfer\",'CARDINAL Job Data Report'!BR:BR,\"y\")","v":0},{"$f":"COUNTIFS('CARDINAL Job Data Report'!BT:BT,\"External Transfer\",'CARDINAL Job Data Report'!BR:BR,\"y\")","v":0},{"$f":"COUNTIFS('CARDINAL Job Data Report'!BT:BT,\"Voluntary Separation\",'CARDINAL Job Data Report'!BR:BR,\"y\")","v":0}]
["HR Data Insights",{"$f":"AVERAGEIFS('HRDI Transaction Report'!U:U,'HRDI Transaction Report'!V:V,\"y\")","v":0},{"$f":"COUNTIFS('HRDI Transaction Report'!X:X,\"Internal Promotion\",'HRDI Transaction Report'!V:V,\"y\")","v":0},{"$f":"COUNTIFS('HRDI Transaction Report'!X:X,\"Internal Transfer\",'HRDI Transaction Report'!V:V,\"y\")","v":0},{"$f":"COUNTIFS('HRDI Transaction Report'!X:X,\"External Transfer\",'HRDI Transaction Report'!V:V,\"y\")","v":0},{"$f":"COUNTIFS('HRDI Transaction Report'!X:X,\"Voluntary Separation\",'HRDI Transaction Report'!V:V,\"y\")","v":0}]
[]
["First 5 years - Critical Roles"]
["Retention & Engagement","Avg YOS","I Promotions","I Transfers","Ex Transers","Vol Sep"]
["Cardinal",{"$f":"AVERAGEIFS('CARDINAL Job Data Report'!BQ:BQ,'CARDINAL Job Data Report'!BP:BP,\"critical\",'CARDINAL Job Data Report'!BR:BR,\"y\")","v":{"$error":"#DIV/0!"}},{"$f":"COUNTIFS('CARDINAL Job Data Report'!BT:BT,\"Internal Promotion\",'CARDINAL Job Data Report'!BP:BP,\"critical\",'CARDINAL Job Data Report'!BR:BR,\"y\")","v":0},{"$f":"COUNTIFS('CARDINAL Job Data Report'!BT:BT,\"Internal Transfer\",'CARDINAL Job Data Report'!BP:BP,\"critical\",'CARDINAL Job Data Report'!BR:BR,\"y\")","v":0},{"$f":"COUNTIFS('CARDINAL Job Data Report'!BT:BT,\"External Transfer\",'CARDINAL Job Data Report'!BP:BP,\"critical\",'CARDINAL Job Data Report'!BR:BR,\"y\")","v":0},{"$f":"COUNTIFS('CARDINAL Job Data Report'!BT:BT,\"Voluntary Separation\",'CARDINAL Job Data Report'!BP:BP,\"critical\",'CARDINAL Job Data Report'!BR:BR,\"y\")","v":0}]
["HR Data Insights",{"$f":"AVERAGEIFS('HRDI Transaction Report'!U:U,'HRDI Transaction Report'!T:T,\"critical\",'HRDI Transaction Report'!V:V,\"y\")","v":{"$error":"#DIV/0!"}},{"$f":"COUNTIFS('HRDI Transaction Report'!X:X,\"Internal Promotion\",'HRDI Transaction Report'!T:T,\"critical\",'HRDI Transaction Report'!V:V,\"y\")","v":0},{"$f":"COUNTIFS('HRDI Transaction Report'!X:X,\"Internal Transfer\",'HRDI Transaction Report'!T:T,\"critical\",'HRDI Transaction Report'!V:V,\"y\")","v":0},{"$f":"COUNTIFS('HRDI Transaction Report'!X:X,\"External Transfer\",'HRDI Transaction Report'!T:T,\"critical\",'HRDI Transaction Report'!V:V,\"y\")","v":0},{"$f":"COUNTIFS('HRDI Transaction Report'!X:X,\"Voluntary Separation\",'HRDI Transaction Report'!T:T,\"critical\",'HRDI Transaction Report'!V:V,\"y\")","v":0}]
[]
["First Year"]
["Retention & Engagement","Avg YOS","I Promotions","I Transfers","Ex Transers","Vol Sep"]
["Cardinal",{"$f":"AVERAGEIFS('CARDINAL Job Data Report'!BQ:BQ,'CARDINAL Job Data Report'!BR:BR,\"y\")","v":{"$error":"#DIV/0!"}},{"$f":"COUNTIFS('CARDINAL Job Data Report'!BT:BT,\"Internal Promotion\",'CARDINAL Job Data Report'!BS:BS,\"y\")","v":0},{"$f":"COUNTIFS('CARDINAL Job Data Report'!BT:BT,\"Internal Transfer\",'CARDINAL Job Data Report'!BS:BS,\"y\")","v":0},{"$f":"COUNTIFS('CARDINAL Job Data Report'!BT:BT,\"External Transfer\",'CARDINAL Job Data Report'!BS:BS,\"y\")","v":0},{"$f":"COUNTIFS('CARDINAL Job Data Report'!BT:BT,\"Voluntary Separation\",'CARDINAL Job Data Report'!BS:BS,\"y\")","v":0}]
["HR Data Insights",{"$f":"AVERAGEIFS('HRDI Transaction Report'!U:U,'HRDI Transaction Report'!W:W,\"y\")","v":0},{"$f":"COUNTIFS('HRDI Transaction Report'!X:X,\"Internal Promotion\",'HRDI Transaction Report'!W:W,\"y\")","v":0},{"$f":"COUNTIFS('HRDI Transaction Report'!X:X,\"Internal Transfer\",'HRDI Transaction Report'!W:W,\"y\")","v":0},{"$f":"COUNTIFS('HRDI Transaction Report'!X:X,\"External Transfer\",'HRDI Transaction Report'!W:W,\"y\")","v":0},{"$f":"COUNTIFS('HRDI Transaction Report'!X:X,\"Voluntary Separation\",'HRDI Transaction Report'!W:W,\"y\")","v":0}]
[]
["First Year - Critical Roles"]
["Retention & Engagement","Avg YOS","I Promotions","I Transfers","Ex Transers","Vol Sep"]
["Cardinal",{"$f":"AVERAGEIFS('CARDINAL Job Data Report'!BQ:BQ,'CARDINAL Job Data Report'!BP:BP,\"critical\",'CARDINAL Job Data Report'!BS:BS,\"y\")","v":{"$error":"#DIV/0!"}},{"$f":"COUNTIFS('CARDINAL Job Data Report'!BT:BT,\"Internal Promotion\",'CARDINAL Job Data Report'!BP:BP,\"critical\",'CARDINAL Job Data Report'!BS:BS,\"y\")","v":0},{"$f":"COUNTIFS('CARDINAL Job Data Report'!BT:BT,\"Internal Transfer\",'CARDINAL Job Data Report'!BP:BP,\"critical\",'CARDINAL Job Data Report'!BS:BS,\"y\")","v":0},{"$f":"COUNTIFS('CARDINAL Job Data Report'!BT:BT,\"External Transfer\",'CARDINAL Job Data Report'!BP:BP,\"critical\",'CARDINAL Job Data Report'!BS:BS,\"y\")","v":0},{"$f":"COUNTIFS('CARDINAL Job Data Report'!BT:BT,\"Voluntary Separation\",'CARDINAL Job Data Report'!BP:BP,\"critical\",'CARDINAL Job Data Report'!BS:BS,\"y\")","v":0}]
["HR Data Insights",{"$f":"AVERAGEIFS('HRDI Transaction Report'!U:U,'HRDI Transaction Report'!T:T,\"critical\",'HRDI Transaction Report'!W:W,\"y\")","v":{"$error":"#DIV/0!"}},{"$f":"COUNTIFS('HRDI Transaction Report'!X:X,\"Internal Promotion\",'HRDI Transaction Report'!T:T,\"critical\",'HRDI Transaction Report'!W:W,\"y\")","v":0},{"$f":"COUNTIFS('HRDI Transaction Report'!X:X,\"Internal Transfer\",'HRDI Transaction Report'!T:T,\"critical\",'HRDI Transaction Report'!W:W,\"y\")","v":0},{"$f":"COUNTIFS('HRDI Transaction Report'!X:X,\"External Transfer\",'HRDI Transaction Report'!T:T,\"critical\",'HRDI Transaction Report'!W:W,\"y\")","v":0},{"$f":"COUNTIFS('HRDI Transaction Report'!X:X,\"Voluntary Separation\",'HRDI Transaction Report'!T:T,\"critical\",'HRDI Transaction Report'!W:W,\"y\")","v":0}]
[]
["WF Development","Internal Participants","Internal Opp","External Participants","External Op"]
["COVLC",{"$f":"COUNTIFS('COVLC DOMAIN HISTORY'!M:M,1,'COVLC DOMAIN HISTORY'!K:K,\"Internal\")","v":0},{"$f":"COUNTIFS('COVLC DOMAIN HISTORY'!N:N,1,'COVLC DOMAIN HISTORY'!K:K,\"Internal\")","v":0},{"$f":"COUNTIFS('COVLC DOMAIN HISTORY'!M:M,1,'COVLC DOMAIN HISTORY'!K:K,\"External\")","v":0},{"$f":"COUNTIFS('COVLC DOMAIN HISTORY'!M:M,1,'COVLC DOMAIN HISTORY'!K:K,\"External\")","v":0}]
["Agency LMS",{"$f":"COUNTIFS('AGENCY LMS'!J10:J99999,1,'AGENCY LMS'!H10:H99999,\"internal\")","v":0},{"$f":"COUNTIFS('AGENCY LMS'!K10:K99999,1,'AGENCY LMS'!H10:H99999,\"internal\")","v":0},{"$f":"COUNTIFS('AGENCY LMS'!J10:J99999,1,'AGENCY LMS'!H10:H99999,\"external\")","v":0},{"$f":"COUNTIFS('AGENCY LMS'!K10:K99999,1,'AGENCY LMS'!H10:H99999,\"external\")","v":0}]
["Both",{"$f":"SUM(B112:B113)","v":0},{"$f":"SUM(C112:C113)","v":0},0,0]

{"sheet":"DHRM ADMIN","index":18,"n_rows":21,"n_cols":15,"rows_kept":21,"cut":false,"hidden":true,"merged":[[20,14,20,15],[18,14,18,15],[16,14,16,15],[4,2,6,14],[7,2,8,14],[11,1,12,15],[14,3,14,13],[14,14,14,15]]}
[]
[]
[]
[]
[null,null,"DHRM ADMIN"]
[]
[]
[null,null,"The DHRM Admin tab is for annual updates, such as changes to Fiscal Years, and tracks the maintenance of the tool versions."]
[]
[]
[]
[null,"Version Notes"]
[]
[]
[null,null,"Version Number","Version Notes",null,null,null,null,null,null,null,null,null,null,"Effective Date"]
[]
[null,null,"Version 1.0","Initial version released to agencies.",null,null,null,null,null,null,null,null,null,null,"2024-07-25"]
[]
[null,null,"Version 1.1","Updated tool for FY25 and Changes to Cardinal Reports/PageUp Report",null,null,null,null,null,null,null,null,null,null,"2025-06-10"]
[]
[null,null,"Version 1.1","Updated incorrect column reference in Vlookup for State and Agency YOS date on Peronal Report Tab",null,null,null,null,null,null,null,null,null,null,"2025-08-07"]